Workbook

Sheet Dashboard

Sheet Settings
B2: =+dict!C1730 -> Basisjahr | C2: 2017
B3: =+dict!C1731 -> Aktuelles Jahr | C3: 2022
B4: =+dict!C1732 -> Aktueller Monat | C4: 12

Sheet PL-tc
A2: GuV | B2: =+dict!C1733 -> GuV | D2: =+Settings!C2 -> 2017 | E2: =D2+1 -> 2018 | F2: =E2+1 -> 2019 | G2: =F2+1 -> 2020 | H2: =G2+1 -> 2021 | I2: =H2+1 -> 2022 | J2: =I2+1 -> 2023 | K2: =J2+1 -> 2024 | L2: =K2+1 -> 2025 | M2: =L2+1 -> 2026 | N2: 2027 | P2: =+H2 -> 2021 | Q2: =+I2 -> 2022 | R2: =H2+1 -> 2022 | S2: =+dict!C1669 -> Budget | T2: =+dict!C1662 -> VJ | V2: =+H2 -> 2021 | W2: =+I2 -> 2022 | X2: =+W2 -> 2022 | Y2: =+dict!C1669 -> Budget | Z2: =+dict!C1662 -> VJ
A3: in TEUR | B3: =+dict!$C$1734 -> in TEUR | D3: =+dict!$C$1662 -> VJ | E3: =+dict!$C$1662 -> VJ | F3: =+dict!$C$1662 -> VJ | G3: =+dict!$C$1662 -> VJ | H3: =+dict!$C$1662 -> VJ | I3: =+dict!$C$1663 -> FC | J3: =+dict!C1664 -> B | K3: =+J3 -> B | L3: =+J3 -> B | M3: =+J3 -> B | N3: =+J3 -> B | P3: =+dict!C1666 -> VJ YTD | Q3: =+dict!C1668 -> B YTD | R3: =+dict!C1667 -> A YTD | S3: Δ % | T3: Δ % | V3: =+I3 -> FC | W3: =+J3 -> B | X3: =+I3 -> FC | Y3: Δ % | Z3: Δ %
A5: 1. Umsatzerlöse | B5: 1. Umsatzerlöse | D5: =+SUM(D6:D76)+D77 ->  | E5: =+SUM(E6:E76)+E77 ->  | F5: =+SUM(F6:F76)+F77 ->  | G5: =+SUM(G6:G76)+G77 ->  | M5: =+SUM(M6:M76)+M77 ->  | P5: =+SUM(P6:P76)+P77 ->  | S5: =IFERROR(R5/Q5-1,"n/a") -> n/a | T5: =IFERROR(R5/P5-1,"n/a") -> n/a | V5: =+SUM(V6:V76)+V77 ->  | Y5: =IFERROR(X5/W5-1,"n/a") -> n/a | Z5: =IFERROR(X5/V5-1,"n/a") -> n/a
A6: 8000 | B6: =+masterfile!D1211 -> 8000 Umsatzerlöse Allemein | D6: =-VLOOKUP(A6,'pl-data'!A:F,4) ->  | E6: =-VLOOKUP(A6,'pl-data'!A:F,5) ->  | F6: =-VLOOKUP(A6,'pl-data'!A:F,6) ->  | G6: =-VLOOKUP(A6,'pl-data'!A:G,7) ->  | H6: =-VLOOKUP(A6,'pl-data'!A:V,22) ->  | I6: =+W6+R6-Q6 ->  | J6: =-VLOOKUP(A6,'pl-data'!A:BQ,66) ->  | K6: =-VLOOKUP(A6,'pl-data'!A:BQ,68) ->  | L6: =-VLOOKUP(A6,'pl-data'!A:BQ,69) ->  | M6: =-VLOOKUP(A6,'pl-data'!A:BR,70) ->  | N6: =-VLOOKUP(A6,'pl-data'!A:BS,71) ->  | P6: =-VLOOKUP(A6,'pl-data'!A:BQ,21) ->  | Q6: =-VLOOKUP(A6,'pl-data'!A:BQ,51) ->  | R6: =-VLOOKUP(A6,'pl-data'!A:BQ,36) ->  | S6: =IFERROR(R6/Q6-1,"n/a") -> n/a | T6: =IFERROR(R6/P6-1,"n/a") -> n/a | V6: =+H6 ->  | W6: =-VLOOKUP(A6,'pl-data'!A:BQ,52) ->  | X6: =+I6 ->  | Y6: =IFERROR(X6/W6-1,"n/a") -> n/a | Z6: =IFERROR(X6/V6-1,"n/a") -> n/a
A7: 8001 | B7: =+masterfile!D1212 -> 8001 Umsatzerlöse Software | D7: =-VLOOKUP(A7,'pl-data'!A:F,4) ->  | E7: =-VLOOKUP(A7,'pl-data'!A:F,5) ->  | F7: =-VLOOKUP(A7,'pl-data'!A:F,6) ->  | G7: =-VLOOKUP(A7,'pl-data'!A:G,7) ->  | H7: =-VLOOKUP(A7,'pl-data'!A:V,22) ->  | I7: =+W7+R7-Q7 ->  | J7: =-VLOOKUP(A7,'pl-data'!A:BQ,66) ->  | K7: =-VLOOKUP(A7,'pl-data'!A:BQ,68) ->  | L7: =-VLOOKUP(A7,'pl-data'!A:BQ,69) ->  | M7: =-VLOOKUP(A7,'pl-data'!A:BR,70) ->  | N7: =-VLOOKUP(A7,'pl-data'!A:BS,71) ->  | P7: =-VLOOKUP(A7,'pl-data'!A:BQ,21) ->  | Q7: =-VLOOKUP(A7,'pl-data'!A:BQ,51) ->  | R7: =-VLOOKUP(A7,'pl-data'!A:BQ,36) -> 0 | S7: =IFERROR(R7/Q7-1,"n/a") -> n/a | T7: =IFERROR(R7/P7-1,"n/a") -> n/a | V7: =+H7 ->  | W7: =-VLOOKUP(A7,'pl-data'!A:BQ,52) ->  | X7: =+I7 ->  | Y7: =IFERROR(X7/W7-1,"n/a") -> n/a | Z7: =IFERROR(X7/V7-1,"n/a") -> n/a
A8: 8002 | B8: =+masterfile!D1213 -> 8002 Umsatzerlöse Customization | D8: =-VLOOKUP(A8,'pl-data'!A:F,4) ->  | E8: =-VLOOKUP(A8,'pl-data'!A:F,5) ->  | F8: =-VLOOKUP(A8,'pl-data'!A:F,6) ->  | G8: =-VLOOKUP(A8,'pl-data'!A:G,7) ->  | H8: =-VLOOKUP(A8,'pl-data'!A:V,22) ->  | J8: =-VLOOKUP(A8,'pl-data'!A:BQ,66) ->  | K8: =-VLOOKUP(A8,'pl-data'!A:BQ,68) ->  | L8: =-VLOOKUP(A8,'pl-data'!A:BQ,69) ->  | M8: =-VLOOKUP(A8,'pl-data'!A:BR,70) ->  | N8: =-VLOOKUP(A8,'pl-data'!A:BS,71) ->  | P8: =-VLOOKUP(A8,'pl-data'!A:BQ,21) ->  | Q8: =-VLOOKUP(A8,'pl-data'!A:BQ,51) ->  | R8: =-VLOOKUP(A8,'pl-data'!A:BQ,36) -> 0 | S8: n/a | T8: n/a | W8: =-VLOOKUP(A8,'pl-data'!A:BQ,52) ->  | Y8: n/a | Z8: n/a
A9: 8003 | B9: =+masterfile!D1214 -> 8003 Umsatzerlöse Schulung, Wartung & Support | D9: =-VLOOKUP(A9,'pl-data'!A:F,4) ->  | E9: =-VLOOKUP(A9,'pl-data'!A:F,5) ->  | F9: =-VLOOKUP(A9,'pl-data'!A:F,6) ->  | G9: =-VLOOKUP(A9,'pl-data'!A:G,7) ->  | H9: =-VLOOKUP(A9,'pl-data'!A:V,22) ->  | J9: =-VLOOKUP(A9,'pl-data'!A:BQ,66) ->  | K9: =-VLOOKUP(A9,'pl-data'!A:BQ,68) ->  | L9: =-VLOOKUP(A9,'pl-data'!A:BQ,69) ->  | M9: =-VLOOKUP(A9,'pl-data'!A:BR,70) ->  | N9: =-VLOOKUP(A9,'pl-data'!A:BS,71) ->  | P9: =-VLOOKUP(A9,'pl-data'!A:BQ,21) ->  | Q9: =-VLOOKUP(A9,'pl-data'!A:BQ,51) ->  | R9: =-VLOOKUP(A9,'pl-data'!A:BQ,36) -> 0 | S9: n/a | T9: n/a | W9: =-VLOOKUP(A9,'pl-data'!A:BQ,52) ->  | Y9: n/a | Z9: n/a
A10: 8004 | B10: =+masterfile!D1215 -> 8004 Umsatzerlöse Hardware | D10: =-VLOOKUP(A10,'pl-data'!A:F,4) ->  | E10: =-VLOOKUP(A10,'pl-data'!A:F,5) ->  | F10: =-VLOOKUP(A10,'pl-data'!A:F,6) ->  | G10: =-VLOOKUP(A10,'pl-data'!A:G,7) ->  | H10: =-VLOOKUP(A10,'pl-data'!A:V,22) ->  | J10: =-VLOOKUP(A10,'pl-data'!A:BQ,66) ->  | K10: =-VLOOKUP(A10,'pl-data'!A:BQ,68) ->  | L10: =-VLOOKUP(A10,'pl-data'!A:BQ,69) ->  | M10: =-VLOOKUP(A10,'pl-data'!A:BR,70) ->  | N10: =-VLOOKUP(A10,'pl-data'!A:BS,71) ->  | P10: =-VLOOKUP(A10,'pl-data'!A:BQ,21) ->  | Q10: =-VLOOKUP(A10,'pl-data'!A:BQ,51) ->  | R10: =-VLOOKUP(A10,'pl-data'!A:BQ,36) -> 0 | S10: n/a | T10: n/a | W10: =-VLOOKUP(A10,'pl-data'!A:BQ,52) ->  | Y10: n/a | Z10: n/a
A11: 8005 | B11: =+masterfile!D1216 -> 8005 Umsatzerlöse Sonstiges | D11: =-VLOOKUP(A11,'pl-data'!A:F,4) ->  | E11: =-VLOOKUP(A11,'pl-data'!A:F,5) ->  | F11: =-VLOOKUP(A11,'pl-data'!A:F,6) ->  | G11: =-VLOOKUP(A11,'pl-data'!A:G,7) ->  | H11: =-VLOOKUP(A11,'pl-data'!A:V,22) ->  | J11: =-VLOOKUP(A11,'pl-data'!A:BQ,66) ->  | K11: =-VLOOKUP(A11,'pl-data'!A:BQ,68) ->  | L11: =-VLOOKUP(A11,'pl-data'!A:BQ,69) ->  | M11: =-VLOOKUP(A11,'pl-data'!A:BR,70) ->  | N11: =-VLOOKUP(A11,'pl-data'!A:BS,71) ->  | P11: =-VLOOKUP(A11,'pl-data'!A:BQ,21) ->  | Q11: =-VLOOKUP(A11,'pl-data'!A:BQ,51) ->  | R11: =-VLOOKUP(A11,'pl-data'!A:BQ,36) -> 0 | S11: n/a | T11: n/a | W11: =-VLOOKUP(A11,'pl-data'!A:BQ,52) ->  | Y11: n/a | Z11: n/a
A12: 8006 | B12: =+masterfile!D1217 -> 8006 Umsatzerlöse | D12: =-VLOOKUP(A12,'pl-data'!A:F,4) ->  | E12: =-VLOOKUP(A12,'pl-data'!A:F,5) ->  | F12: =-VLOOKUP(A12,'pl-data'!A:F,6) ->  | G12: =-VLOOKUP(A12,'pl-data'!A:G,7) ->  | H12: =-VLOOKUP(A12,'pl-data'!A:V,22) ->  | J12: =-VLOOKUP(A12,'pl-data'!A:BQ,66) ->  | K12: =-VLOOKUP(A12,'pl-data'!A:BQ,68) ->  | L12: =-VLOOKUP(A12,'pl-data'!A:BQ,69) ->  | M12: =-VLOOKUP(A12,'pl-data'!A:BR,70) ->  | N12: =-VLOOKUP(A12,'pl-data'!A:BS,71) ->  | P12: =-VLOOKUP(A12,'pl-data'!A:BQ,21) ->  | Q12: =-VLOOKUP(A12,'pl-data'!A:BQ,51) ->  | R12: =-VLOOKUP(A12,'pl-data'!A:BQ,36) -> 0 | S12: n/a | T12: n/a | W12: =-VLOOKUP(A12,'pl-data'!A:BQ,52) ->  | Y12: n/a | Z12: n/a
A13: 8007 | B13: =+masterfile!D1218 -> 8007 Umsatzerlöse | D13: =-VLOOKUP(A13,'pl-data'!A:F,4) ->  | E13: =-VLOOKUP(A13,'pl-data'!A:F,5) ->  | F13: =-VLOOKUP(A13,'pl-data'!A:F,6) ->  | G13: =-VLOOKUP(A13,'pl-data'!A:G,7) ->  | H13: =-VLOOKUP(A13,'pl-data'!A:V,22) ->  | J13: =-VLOOKUP(A13,'pl-data'!A:BQ,66) ->  | K13: =-VLOOKUP(A13,'pl-data'!A:BQ,68) ->  | L13: =-VLOOKUP(A13,'pl-data'!A:BQ,69) ->  | M13: =-VLOOKUP(A13,'pl-data'!A:BR,70) ->  | N13: =-VLOOKUP(A13,'pl-data'!A:BS,71) ->  | P13: =-VLOOKUP(A13,'pl-data'!A:BQ,21) ->  | Q13: =-VLOOKUP(A13,'pl-data'!A:BQ,51) ->  | R13: =-VLOOKUP(A13,'pl-data'!A:BQ,36) -> 0 | S13: n/a | T13: n/a | W13: =-VLOOKUP(A13,'pl-data'!A:BQ,52) ->  | Y13: n/a | Z13: n/a
A14: 8008 | B14: =+masterfile!D1219 -> 8008 Umsatzerlöse | D14: =-VLOOKUP(A14,'pl-data'!A:F,4) ->  | E14: =-VLOOKUP(A14,'pl-data'!A:F,5) ->  | F14: =-VLOOKUP(A14,'pl-data'!A:F,6) ->  | G14: =-VLOOKUP(A14,'pl-data'!A:G,7) ->  | H14: =-VLOOKUP(A14,'pl-data'!A:V,22) ->  | J14: =-VLOOKUP(A14,'pl-data'!A:BQ,66) ->  | K14: =-VLOOKUP(A14,'pl-data'!A:BQ,68) ->  | L14: =-VLOOKUP(A14,'pl-data'!A:BQ,69) ->  | M14: =-VLOOKUP(A14,'pl-data'!A:BR,70) ->  | N14: =-VLOOKUP(A14,'pl-data'!A:BS,71) ->  | P14: =-VLOOKUP(A14,'pl-data'!A:BQ,21) ->  | Q14: =-VLOOKUP(A14,'pl-data'!A:BQ,51) ->  | R14: =-VLOOKUP(A14,'pl-data'!A:BQ,36) -> 0 | S14: n/a | T14: n/a | W14: =-VLOOKUP(A14,'pl-data'!A:BQ,52) ->  | Y14: n/a | Z14: n/a
A15: 8009 | B15: =+masterfile!D1220 -> 8009 Umsatzerlöse | D15: =-VLOOKUP(A15,'pl-data'!A:F,4) ->  | E15: =-VLOOKUP(A15,'pl-data'!A:F,5) ->  | F15: =-VLOOKUP(A15,'pl-data'!A:F,6) ->  | G15: =-VLOOKUP(A15,'pl-data'!A:G,7) ->  | H15: =-VLOOKUP(A15,'pl-data'!A:V,22) ->  | J15: =-VLOOKUP(A15,'pl-data'!A:BQ,66) ->  | K15: =-VLOOKUP(A15,'pl-data'!A:BQ,68) ->  | L15: =-VLOOKUP(A15,'pl-data'!A:BQ,69) ->  | M15: =-VLOOKUP(A15,'pl-data'!A:BR,70) ->  | N15: =-VLOOKUP(A15,'pl-data'!A:BS,71) ->  | P15: =-VLOOKUP(A15,'pl-data'!A:BQ,21) ->  | Q15: =-VLOOKUP(A15,'pl-data'!A:BQ,51) ->  | R15: =-VLOOKUP(A15,'pl-data'!A:BQ,36) -> 0 | S15: n/a | T15: n/a | W15: =-VLOOKUP(A15,'pl-data'!A:BQ,52) ->  | Y15: n/a | Z15: n/a
A16: 8100 | B16: =+masterfile!D1221 -> 8100 Steuerfreie Umsätze § 4 Nr. 8 ff. UStG | D16: =-VLOOKUP(A16,'pl-data'!A:F,4) ->  | E16: =-VLOOKUP(A16,'pl-data'!A:F,5) ->  | F16: =-VLOOKUP(A16,'pl-data'!A:F,6) ->  | G16: =-VLOOKUP(A16,'pl-data'!A:G,7) ->  | H16: =-VLOOKUP(A16,'pl-data'!A:V,22) ->  | J16: =-VLOOKUP(A16,'pl-data'!A:BQ,66) ->  | K16: =-VLOOKUP(A16,'pl-data'!A:BQ,68) ->  | L16: =-VLOOKUP(A16,'pl-data'!A:BQ,69) ->  | M16: =-VLOOKUP(A16,'pl-data'!A:BR,70) ->  | N16: =-VLOOKUP(A16,'pl-data'!A:BS,71) ->  | P16: =-VLOOKUP(A16,'pl-data'!A:BQ,21) ->  | Q16: =-VLOOKUP(A16,'pl-data'!A:BQ,51) ->  | R16: =-VLOOKUP(A16,'pl-data'!A:BQ,36) -> 0 | S16: n/a | T16: n/a | W16: =-VLOOKUP(A16,'pl-data'!A:BQ,52) ->  | Y16: n/a | Z16: n/a
A17: 8105 | B17: =+masterfile!D1222 -> 8105 Steuerfreie Umsätze V+V § 4 Nr. 12 UStG | D17: =-VLOOKUP(A17,'pl-data'!A:F,4) ->  | E17: =-VLOOKUP(A17,'pl-data'!A:F,5) ->  | F17: =-VLOOKUP(A17,'pl-data'!A:F,6) ->  | G17: =-VLOOKUP(A17,'pl-data'!A:G,7) ->  | H17: =-VLOOKUP(A17,'pl-data'!A:V,22) ->  | J17: =-VLOOKUP(A17,'pl-data'!A:BQ,66) ->  | K17: =-VLOOKUP(A17,'pl-data'!A:BQ,68) ->  | L17: =-VLOOKUP(A17,'pl-data'!A:BQ,69) ->  | M17: =-VLOOKUP(A17,'pl-data'!A:BR,70) ->  | N17: =-VLOOKUP(A17,'pl-data'!A:BS,71) ->  | P17: =-VLOOKUP(A17,'pl-data'!A:BQ,21) ->  | Q17: =-VLOOKUP(A17,'pl-data'!A:BQ,51) ->  | R17: =-VLOOKUP(A17,'pl-data'!A:BQ,36) -> 0 | S17: n/a | T17: n/a | W17: =-VLOOKUP(A17,'pl-data'!A:BQ,52) ->  | Y17: n/a | Z17: n/a
A18: 8110 | B18: =+masterfile!D1223 -> 8110 Sonstige steuerfr. Umsätze Inland | D18: =-VLOOKUP(A18,'pl-data'!A:F,4) ->  | E18: =-VLOOKUP(A18,'pl-data'!A:F,5) ->  | F18: =-VLOOKUP(A18,'pl-data'!A:F,6) ->  | G18: =-VLOOKUP(A18,'pl-data'!A:G,7) ->  | H18: =-VLOOKUP(A18,'pl-data'!A:V,22) ->  | J18: =-VLOOKUP(A18,'pl-data'!A:BQ,66) ->  | K18: =-VLOOKUP(A18,'pl-data'!A:BQ,68) ->  | L18: =-VLOOKUP(A18,'pl-data'!A:BQ,69) ->  | M18: =-VLOOKUP(A18,'pl-data'!A:BR,70) ->  | N18: =-VLOOKUP(A18,'pl-data'!A:BS,71) ->  | P18: =-VLOOKUP(A18,'pl-data'!A:BQ,21) ->  | Q18: =-VLOOKUP(A18,'pl-data'!A:BQ,51) ->  | R18: =-VLOOKUP(A18,'pl-data'!A:BQ,36) -> 0 | S18: n/a | T18: n/a | W18: =-VLOOKUP(A18,'pl-data'!A:BQ,52) ->  | Y18: n/a | Z18: n/a
A19: 8120 | B19: =+masterfile!D1224 -> 8120 Steuerfreie Umsätze § 4 Nr. 1a UStG | D19: =-VLOOKUP(A19,'pl-data'!A:F,4) ->  | E19: =-VLOOKUP(A19,'pl-data'!A:F,5) ->  | F19: =-VLOOKUP(A19,'pl-data'!A:F,6) ->  | G19: =-VLOOKUP(A19,'pl-data'!A:G,7) ->  | H19: =-VLOOKUP(A19,'pl-data'!A:V,22) ->  | J19: =-VLOOKUP(A19,'pl-data'!A:BQ,66) ->  | K19: =-VLOOKUP(A19,'pl-data'!A:BQ,68) ->  | L19: =-VLOOKUP(A19,'pl-data'!A:BQ,69) ->  | M19: =-VLOOKUP(A19,'pl-data'!A:BR,70) ->  | N19: =-VLOOKUP(A19,'pl-data'!A:BS,71) ->  | P19: =-VLOOKUP(A19,'pl-data'!A:BQ,21) ->  | Q19: =-VLOOKUP(A19,'pl-data'!A:BQ,51) ->  | R19: =-VLOOKUP(A19,'pl-data'!A:BQ,36) -> 0 | S19: n/a | T19: n/a | W19: =-VLOOKUP(A19,'pl-data'!A:BQ,52) ->  | Y19: n/a | Z19: n/a
A20: 8125 | B20: =+masterfile!D1225 -> 8125 Steuerfr. EU-Lieferungen § 4 Nr. 1b UStG | D20: =-VLOOKUP(A20,'pl-data'!A:F,4) ->  | E20: =-VLOOKUP(A20,'pl-data'!A:F,5) ->  | F20: =-VLOOKUP(A20,'pl-data'!A:F,6) ->  | G20: =-VLOOKUP(A20,'pl-data'!A:G,7) ->  | H20: =-VLOOKUP(A20,'pl-data'!A:V,22) ->  | J20: =-VLOOKUP(A20,'pl-data'!A:BQ,66) ->  | K20: =-VLOOKUP(A20,'pl-data'!A:BQ,68) ->  | L20: =-VLOOKUP(A20,'pl-data'!A:BQ,69) ->  | M20: =-VLOOKUP(A20,'pl-data'!A:BR,70) ->  | N20: =-VLOOKUP(A20,'pl-data'!A:BS,71) ->  | P20: =-VLOOKUP(A20,'pl-data'!A:BQ,21) ->  | Q20: =-VLOOKUP(A20,'pl-data'!A:BQ,51) ->  | R20: =-VLOOKUP(A20,'pl-data'!A:BQ,36) -> 0 | S20: n/a | T20: n/a | W20: =-VLOOKUP(A20,'pl-data'!A:BQ,52) ->  | Y20: n/a | Z20: n/a
A21: 8130 | B21: =+masterfile!D1226 -> 8130 Innergemeinschaftl. Dreiecksgeschäft | D21: =-VLOOKUP(A21,'pl-data'!A:F,4) ->  | E21: =-VLOOKUP(A21,'pl-data'!A:F,5) ->  | F21: =-VLOOKUP(A21,'pl-data'!A:F,6) ->  | G21: =-VLOOKUP(A21,'pl-data'!A:G,7) ->  | H21: =-VLOOKUP(A21,'pl-data'!A:V,22) ->  | J21: =-VLOOKUP(A21,'pl-data'!A:BQ,66) ->  | K21: =-VLOOKUP(A21,'pl-data'!A:BQ,68) ->  | L21: =-VLOOKUP(A21,'pl-data'!A:BQ,69) ->  | M21: =-VLOOKUP(A21,'pl-data'!A:BR,70) ->  | N21: =-VLOOKUP(A21,'pl-data'!A:BS,71) ->  | P21: =-VLOOKUP(A21,'pl-data'!A:BQ,21) ->  | Q21: =-VLOOKUP(A21,'pl-data'!A:BQ,51) ->  | R21: =-VLOOKUP(A21,'pl-data'!A:BQ,36) -> 0 | S21: n/a | T21: n/a | W21: =-VLOOKUP(A21,'pl-data'!A:BQ,52) ->  | Y21: n/a | Z21: n/a
A22: 8135 | B22: =+masterfile!D1227 -> 8135 Steuerfr. EU-Lief.v.Neufahrzg.ohne UStID | D22: =-VLOOKUP(A22,'pl-data'!A:F,4) ->  | E22: =-VLOOKUP(A22,'pl-data'!A:F,5) ->  | F22: =-VLOOKUP(A22,'pl-data'!A:F,6) ->  | G22: =-VLOOKUP(A22,'pl-data'!A:G,7) ->  | H22: =-VLOOKUP(A22,'pl-data'!A:V,22) ->  | J22: =-VLOOKUP(A22,'pl-data'!A:BQ,66) ->  | K22: =-VLOOKUP(A22,'pl-data'!A:BQ,68) ->  | L22: =-VLOOKUP(A22,'pl-data'!A:BQ,69) ->  | M22: =-VLOOKUP(A22,'pl-data'!A:BR,70) ->  | N22: =-VLOOKUP(A22,'pl-data'!A:BS,71) ->  | P22: =-VLOOKUP(A22,'pl-data'!A:BQ,21) ->  | Q22: =-VLOOKUP(A22,'pl-data'!A:BQ,51) ->  | R22: =-VLOOKUP(A22,'pl-data'!A:BQ,36) -> 0 | S22: n/a | T22: n/a | W22: =-VLOOKUP(A22,'pl-data'!A:BQ,52) ->  | Y22: n/a | Z22: n/a
A23: 8140 | B23: =+masterfile!D1228 -> 8140 Steuerfreie Umsätze Offshore usw. | D23: =-VLOOKUP(A23,'pl-data'!A:F,4) ->  | E23: =-VLOOKUP(A23,'pl-data'!A:F,5) ->  | F23: =-VLOOKUP(A23,'pl-data'!A:F,6) ->  | G23: =-VLOOKUP(A23,'pl-data'!A:G,7) ->  | H23: =-VLOOKUP(A23,'pl-data'!A:V,22) ->  | J23: =-VLOOKUP(A23,'pl-data'!A:BQ,66) ->  | K23: =-VLOOKUP(A23,'pl-data'!A:BQ,68) ->  | L23: =-VLOOKUP(A23,'pl-data'!A:BQ,69) ->  | M23: =-VLOOKUP(A23,'pl-data'!A:BR,70) ->  | N23: =-VLOOKUP(A23,'pl-data'!A:BS,71) ->  | P23: =-VLOOKUP(A23,'pl-data'!A:BQ,21) ->  | Q23: =-VLOOKUP(A23,'pl-data'!A:BQ,51) ->  | R23: =-VLOOKUP(A23,'pl-data'!A:BQ,36) -> 0 | S23: n/a | T23: n/a | W23: =-VLOOKUP(A23,'pl-data'!A:BQ,52) ->  | Y23: n/a | Z23: n/a
A24: 8150 | B24: =+masterfile!D1229 -> 8150 Steuerfreie Umsätze § 4 Nr. 2-7 UStG | D24: =-VLOOKUP(A24,'pl-data'!A:F,4) ->  | E24: =-VLOOKUP(A24,'pl-data'!A:F,5) ->  | F24: =-VLOOKUP(A24,'pl-data'!A:F,6) ->  | G24: =-VLOOKUP(A24,'pl-data'!A:G,7) ->  | H24: =-VLOOKUP(A24,'pl-data'!A:V,22) ->  | J24: =-VLOOKUP(A24,'pl-data'!A:BQ,66) ->  | K24: =-VLOOKUP(A24,'pl-data'!A:BQ,68) ->  | L24: =-VLOOKUP(A24,'pl-data'!A:BQ,69) ->  | M24: =-VLOOKUP(A24,'pl-data'!A:BR,70) ->  | N24: =-VLOOKUP(A24,'pl-data'!A:BS,71) ->  | P24: =-VLOOKUP(A24,'pl-data'!A:BQ,21) ->  | Q24: =-VLOOKUP(A24,'pl-data'!A:BQ,51) ->  | R24: =-VLOOKUP(A24,'pl-data'!A:BQ,36) -> 0 | S24: n/a | T24: n/a | W24: =-VLOOKUP(A24,'pl-data'!A:BQ,52) ->  | Y24: n/a | Z24: n/a
A25: 8160 | B25: =+masterfile!D1230 -> 8160 Stfreie Umsätze ohne VoSt-Abzug § 4 UStG | D25: =-VLOOKUP(A25,'pl-data'!A:F,4) ->  | E25: =-VLOOKUP(A25,'pl-data'!A:F,5) ->  | F25: =-VLOOKUP(A25,'pl-data'!A:F,6) ->  | G25: =-VLOOKUP(A25,'pl-data'!A:G,7) ->  | H25: =-VLOOKUP(A25,'pl-data'!A:V,22) ->  | J25: =-VLOOKUP(A25,'pl-data'!A:BQ,66) ->  | K25: =-VLOOKUP(A25,'pl-data'!A:BQ,68) ->  | L25: =-VLOOKUP(A25,'pl-data'!A:BQ,69) ->  | M25: =-VLOOKUP(A25,'pl-data'!A:BR,70) ->  | N25: =-VLOOKUP(A25,'pl-data'!A:BS,71) ->  | P25: =-VLOOKUP(A25,'pl-data'!A:BQ,21) ->  | Q25: =-VLOOKUP(A25,'pl-data'!A:BQ,51) ->  | R25: =-VLOOKUP(A25,'pl-data'!A:BQ,36) -> 0 | S25: n/a | T25: n/a | W25: =-VLOOKUP(A25,'pl-data'!A:BQ,52) ->  | Y25: n/a | Z25: n/a
A26: 8165 | B26: =+masterfile!D1231 -> 8165 Steuerfreie Umsätze ohne Vorsteuerabzug | D26: =-VLOOKUP(A26,'pl-data'!A:F,4) ->  | E26: =-VLOOKUP(A26,'pl-data'!A:F,5) ->  | F26: =-VLOOKUP(A26,'pl-data'!A:F,6) ->  | G26: =-VLOOKUP(A26,'pl-data'!A:G,7) ->  | H26: =-VLOOKUP(A26,'pl-data'!A:V,22) ->  | J26: =-VLOOKUP(A26,'pl-data'!A:BQ,66) ->  | K26: =-VLOOKUP(A26,'pl-data'!A:BQ,68) ->  | L26: =-VLOOKUP(A26,'pl-data'!A:BQ,69) ->  | M26: =-VLOOKUP(A26,'pl-data'!A:BR,70) ->  | N26: =-VLOOKUP(A26,'pl-data'!A:BS,71) ->  | P26: =-VLOOKUP(A26,'pl-data'!A:BQ,21) ->  | Q26: =-VLOOKUP(A26,'pl-data'!A:BQ,51) ->  | R26: =-VLOOKUP(A26,'pl-data'!A:BQ,36) -> 0 | S26: n/a | T26: n/a | W26: =-VLOOKUP(A26,'pl-data'!A:BQ,52) ->  | Y26: n/a | Z26: n/a
A27: 8190 | B27: =+masterfile!D1232 -> 8190 Erlöse nach § 24 UStG | D27: =-VLOOKUP(A27,'pl-data'!A:F,4) ->  | E27: =-VLOOKUP(A27,'pl-data'!A:F,5) ->  | F27: =-VLOOKUP(A27,'pl-data'!A:F,6) ->  | G27: =-VLOOKUP(A27,'pl-data'!A:G,7) ->  | H27: =-VLOOKUP(A27,'pl-data'!A:V,22) ->  | J27: =-VLOOKUP(A27,'pl-data'!A:BQ,66) ->  | K27: =-VLOOKUP(A27,'pl-data'!A:BQ,68) ->  | L27: =-VLOOKUP(A27,'pl-data'!A:BQ,69) ->  | M27: =-VLOOKUP(A27,'pl-data'!A:BR,70) ->  | N27: =-VLOOKUP(A27,'pl-data'!A:BS,71) ->  | P27: =-VLOOKUP(A27,'pl-data'!A:BQ,21) ->  | Q27: =-VLOOKUP(A27,'pl-data'!A:BQ,51) ->  | R27: =-VLOOKUP(A27,'pl-data'!A:BQ,36) -> 0 | S27: n/a | T27: n/a | W27: =-VLOOKUP(A27,'pl-data'!A:BQ,52) ->  | Y27: n/a | Z27: n/a
A28: 8191 | B28: =+masterfile!D1233 -> 8191 Umsatzerlöse §§ 25 und 25a UStG 19% USt | D28: =-VLOOKUP(A28,'pl-data'!A:F,4) ->  | E28: =-VLOOKUP(A28,'pl-data'!A:F,5) ->  | F28: =-VLOOKUP(A28,'pl-data'!A:F,6) ->  | G28: =-VLOOKUP(A28,'pl-data'!A:G,7) ->  | H28: =-VLOOKUP(A28,'pl-data'!A:V,22) ->  | J28: =-VLOOKUP(A28,'pl-data'!A:BQ,66) ->  | K28: =-VLOOKUP(A28,'pl-data'!A:BQ,68) ->  | L28: =-VLOOKUP(A28,'pl-data'!A:BQ,69) ->  | M28: =-VLOOKUP(A28,'pl-data'!A:BR,70) ->  | N28: =-VLOOKUP(A28,'pl-data'!A:BS,71) ->  | P28: =-VLOOKUP(A28,'pl-data'!A:BQ,21) ->  | Q28: =-VLOOKUP(A28,'pl-data'!A:BQ,51) ->  | R28: =-VLOOKUP(A28,'pl-data'!A:BQ,36) -> 0 | S28: n/a | T28: n/a | W28: =-VLOOKUP(A28,'pl-data'!A:BQ,52) ->  | Y28: n/a | Z28: n/a
A29: 8193 | B29: =+masterfile!D1234 -> 8193 Umsatzerlöse §§ 25 u. 25a UStG ohne USt | D29: =-VLOOKUP(A29,'pl-data'!A:F,4) ->  | E29: =-VLOOKUP(A29,'pl-data'!A:F,5) ->  | F29: =-VLOOKUP(A29,'pl-data'!A:F,6) ->  | G29: =-VLOOKUP(A29,'pl-data'!A:G,7) ->  | H29: =-VLOOKUP(A29,'pl-data'!A:V,22) ->  | J29: =-VLOOKUP(A29,'pl-data'!A:BQ,66) ->  | K29: =-VLOOKUP(A29,'pl-data'!A:BQ,68) ->  | L29: =-VLOOKUP(A29,'pl-data'!A:BQ,69) ->  | M29: =-VLOOKUP(A29,'pl-data'!A:BR,70) ->  | N29: =-VLOOKUP(A29,'pl-data'!A:BS,71) ->  | P29: =-VLOOKUP(A29,'pl-data'!A:BQ,21) ->  | Q29: =-VLOOKUP(A29,'pl-data'!A:BQ,51) ->  | R29: =-VLOOKUP(A29,'pl-data'!A:BQ,36) -> 0 | S29: n/a | T29: n/a | W29: =-VLOOKUP(A29,'pl-data'!A:BQ,52) ->  | Y29: n/a | Z29: n/a
A30: 8194 | B30: =+masterfile!D1235 -> 8194 Umsatzerl.Reiseleist § 25(2) UStG stfrei | D30: =-VLOOKUP(A30,'pl-data'!A:F,4) ->  | E30: =-VLOOKUP(A30,'pl-data'!A:F,5) ->  | F30: =-VLOOKUP(A30,'pl-data'!A:F,6) ->  | G30: =-VLOOKUP(A30,'pl-data'!A:G,7) ->  | H30: =-VLOOKUP(A30,'pl-data'!A:V,22) ->  | J30: =-VLOOKUP(A30,'pl-data'!A:BQ,66) ->  | K30: =-VLOOKUP(A30,'pl-data'!A:BQ,68) ->  | L30: =-VLOOKUP(A30,'pl-data'!A:BQ,69) ->  | M30: =-VLOOKUP(A30,'pl-data'!A:BR,70) ->  | N30: =-VLOOKUP(A30,'pl-data'!A:BS,71) ->  | P30: =-VLOOKUP(A30,'pl-data'!A:BQ,21) ->  | Q30: =-VLOOKUP(A30,'pl-data'!A:BQ,51) ->  | R30: =-VLOOKUP(A30,'pl-data'!A:BQ,36) -> 0 | S30: n/a | T30: n/a | W30: =-VLOOKUP(A30,'pl-data'!A:BQ,52) ->  | Y30: n/a | Z30: n/a
A31: 8195 | B31: =+masterfile!D1236 -> 8195 Erlöse Kleinunternehmer § 19 (1) UStG | D31: =-VLOOKUP(A31,'pl-data'!A:F,4) ->  | E31: =-VLOOKUP(A31,'pl-data'!A:F,5) ->  | F31: =-VLOOKUP(A31,'pl-data'!A:F,6) ->  | G31: =-VLOOKUP(A31,'pl-data'!A:G,7) ->  | H31: =-VLOOKUP(A31,'pl-data'!A:V,22) ->  | J31: =-VLOOKUP(A31,'pl-data'!A:BQ,66) ->  | K31: =-VLOOKUP(A31,'pl-data'!A:BQ,68) ->  | L31: =-VLOOKUP(A31,'pl-data'!A:BQ,69) ->  | M31: =-VLOOKUP(A31,'pl-data'!A:BR,70) ->  | N31: =-VLOOKUP(A31,'pl-data'!A:BS,71) ->  | P31: =-VLOOKUP(A31,'pl-data'!A:BQ,21) ->  | Q31: =-VLOOKUP(A31,'pl-data'!A:BQ,51) ->  | R31: =-VLOOKUP(A31,'pl-data'!A:BQ,36) -> 0 | S31: n/a | T31: n/a | W31: =-VLOOKUP(A31,'pl-data'!A:BQ,52) ->  | Y31: n/a | Z31: n/a
A32: 8196 | B32: =+masterfile!D1237 -> 8196 Erlöse Geldspielautomaten 19% USt | D32: =-VLOOKUP(A32,'pl-data'!A:F,4) ->  | E32: =-VLOOKUP(A32,'pl-data'!A:F,5) ->  | F32: =-VLOOKUP(A32,'pl-data'!A:F,6) ->  | G32: =-VLOOKUP(A32,'pl-data'!A:G,7) ->  | H32: =-VLOOKUP(A32,'pl-data'!A:V,22) ->  | J32: =-VLOOKUP(A32,'pl-data'!A:BQ,66) ->  | K32: =-VLOOKUP(A32,'pl-data'!A:BQ,68) ->  | L32: =-VLOOKUP(A32,'pl-data'!A:BQ,69) ->  | M32: =-VLOOKUP(A32,'pl-data'!A:BR,70) ->  | N32: =-VLOOKUP(A32,'pl-data'!A:BS,71) ->  | P32: =-VLOOKUP(A32,'pl-data'!A:BQ,21) ->  | Q32: =-VLOOKUP(A32,'pl-data'!A:BQ,51) ->  | R32: =-VLOOKUP(A32,'pl-data'!A:BQ,36) -> 0 | S32: n/a | T32: n/a | W32: =-VLOOKUP(A32,'pl-data'!A:BQ,52) ->  | Y32: n/a | Z32: n/a
A33: 8200 | B33: =+masterfile!D1238 -> 8200 Erlöse | D33: =-VLOOKUP(A33,'pl-data'!A:F,4) ->  | E33: =-VLOOKUP(A33,'pl-data'!A:F,5) ->  | F33: =-VLOOKUP(A33,'pl-data'!A:F,6) ->  | G33: =-VLOOKUP(A33,'pl-data'!A:G,7) ->  | H33: =-VLOOKUP(A33,'pl-data'!A:V,22) ->  | J33: =-VLOOKUP(A33,'pl-data'!A:BQ,66) ->  | K33: =-VLOOKUP(A33,'pl-data'!A:BQ,68) ->  | L33: =-VLOOKUP(A33,'pl-data'!A:BQ,69) ->  | M33: =-VLOOKUP(A33,'pl-data'!A:BR,70) ->  | N33: =-VLOOKUP(A33,'pl-data'!A:BS,71) ->  | P33: =-VLOOKUP(A33,'pl-data'!A:BQ,21) ->  | Q33: =-VLOOKUP(A33,'pl-data'!A:BQ,51) ->  | R33: =-VLOOKUP(A33,'pl-data'!A:BQ,36) -> 0 | S33: n/a | T33: n/a | W33: =-VLOOKUP(A33,'pl-data'!A:BQ,52) ->  | Y33: n/a | Z33: n/a
A34: 8300 | B34: =+masterfile!D1239 -> 8300 Erlöse 7% USt | D34: =-VLOOKUP(A34,'pl-data'!A:F,4) ->  | E34: =-VLOOKUP(A34,'pl-data'!A:F,5) ->  | F34: =-VLOOKUP(A34,'pl-data'!A:F,6) ->  | G34: =-VLOOKUP(A34,'pl-data'!A:G,7) ->  | H34: =-VLOOKUP(A34,'pl-data'!A:V,22) ->  | J34: =-VLOOKUP(A34,'pl-data'!A:BQ,66) ->  | K34: =-VLOOKUP(A34,'pl-data'!A:BQ,68) ->  | L34: =-VLOOKUP(A34,'pl-data'!A:BQ,69) ->  | M34: =-VLOOKUP(A34,'pl-data'!A:BR,70) ->  | N34: =-VLOOKUP(A34,'pl-data'!A:BS,71) ->  | P34: =-VLOOKUP(A34,'pl-data'!A:BQ,21) ->  | Q34: =-VLOOKUP(A34,'pl-data'!A:BQ,51) ->  | R34: =-VLOOKUP(A34,'pl-data'!A:BQ,36) -> 0 | S34: n/a | T34: n/a | W34: =-VLOOKUP(A34,'pl-data'!A:BQ,52) ->  | Y34: n/a | Z34: n/a
A35: 8310 | B35: =+masterfile!D1240 -> 8310 Erlöse EU-Lieferungen 7% USt | D35: =-VLOOKUP(A35,'pl-data'!A:F,4) ->  | E35: =-VLOOKUP(A35,'pl-data'!A:F,5) ->  | F35: =-VLOOKUP(A35,'pl-data'!A:F,6) ->  | G35: =-VLOOKUP(A35,'pl-data'!A:G,7) ->  | H35: =-VLOOKUP(A35,'pl-data'!A:V,22) ->  | J35: =-VLOOKUP(A35,'pl-data'!A:BQ,66) ->  | K35: =-VLOOKUP(A35,'pl-data'!A:BQ,68) ->  | L35: =-VLOOKUP(A35,'pl-data'!A:BQ,69) ->  | M35: =-VLOOKUP(A35,'pl-data'!A:BR,70) ->  | N35: =-VLOOKUP(A35,'pl-data'!A:BS,71) ->  | P35: =-VLOOKUP(A35,'pl-data'!A:BQ,21) ->  | Q35: =-VLOOKUP(A35,'pl-data'!A:BQ,51) ->  | R35: =-VLOOKUP(A35,'pl-data'!A:BQ,36) -> 0 | S35: n/a | T35: n/a | W35: =-VLOOKUP(A35,'pl-data'!A:BQ,52) ->  | Y35: n/a | Z35: n/a
A36: 8315 | B36: =+masterfile!D1241 -> 8315 Erlöse EU-Lieferungen 19% USt | D36: =-VLOOKUP(A36,'pl-data'!A:F,4) ->  | E36: =-VLOOKUP(A36,'pl-data'!A:F,5) ->  | F36: =-VLOOKUP(A36,'pl-data'!A:F,6) ->  | G36: =-VLOOKUP(A36,'pl-data'!A:G,7) ->  | H36: =-VLOOKUP(A36,'pl-data'!A:V,22) ->  | J36: =-VLOOKUP(A36,'pl-data'!A:BQ,66) ->  | K36: =-VLOOKUP(A36,'pl-data'!A:BQ,68) ->  | L36: =-VLOOKUP(A36,'pl-data'!A:BQ,69) ->  | M36: =-VLOOKUP(A36,'pl-data'!A:BR,70) ->  | N36: =-VLOOKUP(A36,'pl-data'!A:BS,71) ->  | P36: =-VLOOKUP(A36,'pl-data'!A:BQ,21) ->  | Q36: =-VLOOKUP(A36,'pl-data'!A:BQ,51) ->  | R36: =-VLOOKUP(A36,'pl-data'!A:BQ,36) -> 0 | S36: n/a | T36: n/a | W36: =-VLOOKUP(A36,'pl-data'!A:BQ,52) ->  | Y36: n/a | Z36: n/a
A37: 8320 | B37: =+masterfile!D1242 -> 8320 Erl.a.im and.EU-Land stpfl.Lieferungen | D37: =-VLOOKUP(A37,'pl-data'!A:F,4) ->  | E37: =-VLOOKUP(A37,'pl-data'!A:F,5) ->  | F37: =-VLOOKUP(A37,'pl-data'!A:F,6) ->  | G37: =-VLOOKUP(A37,'pl-data'!A:G,7) ->  | H37: =-VLOOKUP(A37,'pl-data'!A:V,22) ->  | J37: =-VLOOKUP(A37,'pl-data'!A:BQ,66) ->  | K37: =-VLOOKUP(A37,'pl-data'!A:BQ,68) ->  | L37: =-VLOOKUP(A37,'pl-data'!A:BQ,69) ->  | M37: =-VLOOKUP(A37,'pl-data'!A:BR,70) ->  | N37: =-VLOOKUP(A37,'pl-data'!A:BS,71) ->  | P37: =-VLOOKUP(A37,'pl-data'!A:BQ,21) ->  | Q37: =-VLOOKUP(A37,'pl-data'!A:BQ,51) ->  | R37: =-VLOOKUP(A37,'pl-data'!A:BQ,36) -> 0 | S37: n/a | T37: n/a | W37: =-VLOOKUP(A37,'pl-data'!A:BQ,52) ->  | Y37: n/a | Z37: n/a
A38: 8331 | B38: =+masterfile!D1243 -> 8331 Erlöse elektr.DL im anderen EU-Land stpf | D38: =-VLOOKUP(A38,'pl-data'!A:F,4) ->  | E38: =-VLOOKUP(A38,'pl-data'!A:F,5) ->  | F38: =-VLOOKUP(A38,'pl-data'!A:F,6) ->  | G38: =-VLOOKUP(A38,'pl-data'!A:G,7) ->  | H38: =-VLOOKUP(A38,'pl-data'!A:V,22) ->  | J38: =-VLOOKUP(A38,'pl-data'!A:BQ,66) ->  | K38: =-VLOOKUP(A38,'pl-data'!A:BQ,68) ->  | L38: =-VLOOKUP(A38,'pl-data'!A:BQ,69) ->  | M38: =-VLOOKUP(A38,'pl-data'!A:BR,70) ->  | N38: =-VLOOKUP(A38,'pl-data'!A:BS,71) ->  | P38: =-VLOOKUP(A38,'pl-data'!A:BQ,21) ->  | Q38: =-VLOOKUP(A38,'pl-data'!A:BQ,51) ->  | R38: =-VLOOKUP(A38,'pl-data'!A:BQ,36) -> 0 | S38: n/a | T38: n/a | W38: =-VLOOKUP(A38,'pl-data'!A:BQ,52) ->  | Y38: n/a | Z38: n/a
A39: 8333 | B39: =+masterfile!D1244 -> 8333 Erlöse 5% USt | D39: =-VLOOKUP(A39,'pl-data'!A:F,4) ->  | E39: =-VLOOKUP(A39,'pl-data'!A:F,5) ->  | F39: =-VLOOKUP(A39,'pl-data'!A:F,6) ->  | G39: =-VLOOKUP(A39,'pl-data'!A:G,7) ->  | H39: =-VLOOKUP(A39,'pl-data'!A:V,22) ->  | J39: =-VLOOKUP(A39,'pl-data'!A:BQ,66) ->  | K39: =-VLOOKUP(A39,'pl-data'!A:BQ,68) ->  | L39: =-VLOOKUP(A39,'pl-data'!A:BQ,69) ->  | M39: =-VLOOKUP(A39,'pl-data'!A:BR,70) ->  | N39: =-VLOOKUP(A39,'pl-data'!A:BS,71) ->  | P39: =-VLOOKUP(A39,'pl-data'!A:BQ,21) ->  | Q39: =-VLOOKUP(A39,'pl-data'!A:BQ,51) ->  | R39: =-VLOOKUP(A39,'pl-data'!A:BQ,36) -> 0 | S39: n/a | T39: n/a | W39: =-VLOOKUP(A39,'pl-data'!A:BQ,52) ->  | Y39: n/a | Z39: n/a
A40: 8334 | B40: =+masterfile!D1245 -> 8334 Erlöse 7% USt | D40: =-VLOOKUP(A40,'pl-data'!A:F,4) ->  | E40: =-VLOOKUP(A40,'pl-data'!A:F,5) ->  | F40: =-VLOOKUP(A40,'pl-data'!A:F,6) ->  | G40: =-VLOOKUP(A40,'pl-data'!A:G,7) ->  | H40: =-VLOOKUP(A40,'pl-data'!A:V,22) ->  | J40: =-VLOOKUP(A40,'pl-data'!A:BQ,66) ->  | K40: =-VLOOKUP(A40,'pl-data'!A:BQ,68) ->  | L40: =-VLOOKUP(A40,'pl-data'!A:BQ,69) ->  | M40: =-VLOOKUP(A40,'pl-data'!A:BR,70) ->  | N40: =-VLOOKUP(A40,'pl-data'!A:BS,71) ->  | P40: =-VLOOKUP(A40,'pl-data'!A:BQ,21) ->  | Q40: =-VLOOKUP(A40,'pl-data'!A:BQ,51) ->  | R40: =-VLOOKUP(A40,'pl-data'!A:BQ,36) -> 0 | S40: n/a | T40: n/a | W40: =-VLOOKUP(A40,'pl-data'!A:BQ,52) ->  | Y40: n/a | Z40: n/a
A41: 8335 | B41: =+masterfile!D1246 -> 8335 Erlöse a.Lieferungen §13b (2) Nr.10 UStG | D41: =-VLOOKUP(A41,'pl-data'!A:F,4) ->  | E41: =-VLOOKUP(A41,'pl-data'!A:F,5) ->  | F41: =-VLOOKUP(A41,'pl-data'!A:F,6) ->  | G41: =-VLOOKUP(A41,'pl-data'!A:G,7) ->  | H41: =-VLOOKUP(A41,'pl-data'!A:V,22) ->  | J41: =-VLOOKUP(A41,'pl-data'!A:BQ,66) ->  | K41: =-VLOOKUP(A41,'pl-data'!A:BQ,68) ->  | L41: =-VLOOKUP(A41,'pl-data'!A:BQ,69) ->  | M41: =-VLOOKUP(A41,'pl-data'!A:BR,70) ->  | N41: =-VLOOKUP(A41,'pl-data'!A:BS,71) ->  | P41: =-VLOOKUP(A41,'pl-data'!A:BQ,21) ->  | Q41: =-VLOOKUP(A41,'pl-data'!A:BQ,51) ->  | R41: =-VLOOKUP(A41,'pl-data'!A:BQ,36) -> 0 | S41: n/a | T41: n/a | W41: =-VLOOKUP(A41,'pl-data'!A:BQ,52) ->  | Y41: n/a | Z41: n/a
A42: 8336 | B42: =+masterfile!D1247 -> 8336 Nicht steuerbare s. Leistung § 18b UStG | D42: =-VLOOKUP(A42,'pl-data'!A:F,4) ->  | E42: =-VLOOKUP(A42,'pl-data'!A:F,5) ->  | F42: =-VLOOKUP(A42,'pl-data'!A:F,6) ->  | G42: =-VLOOKUP(A42,'pl-data'!A:G,7) ->  | H42: =-VLOOKUP(A42,'pl-data'!A:V,22) ->  | J42: =-VLOOKUP(A42,'pl-data'!A:BQ,66) ->  | K42: =-VLOOKUP(A42,'pl-data'!A:BQ,68) ->  | L42: =-VLOOKUP(A42,'pl-data'!A:BQ,69) ->  | M42: =-VLOOKUP(A42,'pl-data'!A:BR,70) ->  | N42: =-VLOOKUP(A42,'pl-data'!A:BS,71) ->  | P42: =-VLOOKUP(A42,'pl-data'!A:BQ,21) ->  | Q42: =-VLOOKUP(A42,'pl-data'!A:BQ,51) ->  | R42: =-VLOOKUP(A42,'pl-data'!A:BQ,36) -> 0 | S42: n/a | T42: n/a | W42: =-VLOOKUP(A42,'pl-data'!A:BQ,52) ->  | Y42: n/a | Z42: n/a
A43: 8337 | B43: =+masterfile!D1248 -> 8337 Erlöse aus Leistungen nach § 13b UStG | D43: =-VLOOKUP(A43,'pl-data'!A:F,4) ->  | E43: =-VLOOKUP(A43,'pl-data'!A:F,5) ->  | F43: =-VLOOKUP(A43,'pl-data'!A:F,6) ->  | G43: =-VLOOKUP(A43,'pl-data'!A:G,7) ->  | H43: =-VLOOKUP(A43,'pl-data'!A:V,22) ->  | J43: =-VLOOKUP(A43,'pl-data'!A:BQ,66) ->  | K43: =-VLOOKUP(A43,'pl-data'!A:BQ,68) ->  | L43: =-VLOOKUP(A43,'pl-data'!A:BQ,69) ->  | M43: =-VLOOKUP(A43,'pl-data'!A:BR,70) ->  | N43: =-VLOOKUP(A43,'pl-data'!A:BS,71) ->  | P43: =-VLOOKUP(A43,'pl-data'!A:BQ,21) ->  | Q43: =-VLOOKUP(A43,'pl-data'!A:BQ,51) ->  | R43: =-VLOOKUP(A43,'pl-data'!A:BQ,36) -> 0 | S43: n/a | T43: n/a | W43: =-VLOOKUP(A43,'pl-data'!A:BQ,52) ->  | Y43: n/a | Z43: n/a
A44: 8338 | B44: =+masterfile!D1249 -> 8338 Nicht steuerbare Umsätze Drittland | D44: =-VLOOKUP(A44,'pl-data'!A:F,4) ->  | E44: =-VLOOKUP(A44,'pl-data'!A:F,5) ->  | F44: =-VLOOKUP(A44,'pl-data'!A:F,6) ->  | G44: =-VLOOKUP(A44,'pl-data'!A:G,7) ->  | H44: =-VLOOKUP(A44,'pl-data'!A:V,22) ->  | J44: =-VLOOKUP(A44,'pl-data'!A:BQ,66) ->  | K44: =-VLOOKUP(A44,'pl-data'!A:BQ,68) ->  | L44: =-VLOOKUP(A44,'pl-data'!A:BQ,69) ->  | M44: =-VLOOKUP(A44,'pl-data'!A:BR,70) ->  | N44: =-VLOOKUP(A44,'pl-data'!A:BS,71) ->  | P44: =-VLOOKUP(A44,'pl-data'!A:BQ,21) ->  | Q44: =-VLOOKUP(A44,'pl-data'!A:BQ,51) ->  | R44: =-VLOOKUP(A44,'pl-data'!A:BQ,36) -> 0 | S44: n/a | T44: n/a | W44: =-VLOOKUP(A44,'pl-data'!A:BQ,52) ->  | Y44: n/a | Z44: n/a
A45: 8339 | B45: =+masterfile!D1250 -> 8339 Nicht steuerbare Umsätze EU-Land | D45: =-VLOOKUP(A45,'pl-data'!A:F,4) ->  | E45: =-VLOOKUP(A45,'pl-data'!A:F,5) ->  | F45: =-VLOOKUP(A45,'pl-data'!A:F,6) ->  | G45: =-VLOOKUP(A45,'pl-data'!A:G,7) ->  | H45: =-VLOOKUP(A45,'pl-data'!A:V,22) ->  | J45: =-VLOOKUP(A45,'pl-data'!A:BQ,66) ->  | K45: =-VLOOKUP(A45,'pl-data'!A:BQ,68) ->  | L45: =-VLOOKUP(A45,'pl-data'!A:BQ,69) ->  | M45: =-VLOOKUP(A45,'pl-data'!A:BR,70) ->  | N45: =-VLOOKUP(A45,'pl-data'!A:BS,71) ->  | P45: =-VLOOKUP(A45,'pl-data'!A:BQ,21) ->  | Q45: =-VLOOKUP(A45,'pl-data'!A:BQ,51) ->  | R45: =-VLOOKUP(A45,'pl-data'!A:BQ,36) -> 0 | S45: n/a | T45: n/a | W45: =-VLOOKUP(A45,'pl-data'!A:BQ,52) ->  | Y45: n/a | Z45: n/a
A46: 8340 | B46: =+masterfile!D1251 -> 8340 Erlöse 16% USt | D46: =-VLOOKUP(A46,'pl-data'!A:F,4) ->  | E46: =-VLOOKUP(A46,'pl-data'!A:F,5) ->  | F46: =-VLOOKUP(A46,'pl-data'!A:F,6) ->  | G46: =-VLOOKUP(A46,'pl-data'!A:G,7) ->  | H46: =-VLOOKUP(A46,'pl-data'!A:V,22) ->  | J46: =-VLOOKUP(A46,'pl-data'!A:BQ,66) ->  | K46: =-VLOOKUP(A46,'pl-data'!A:BQ,68) ->  | L46: =-VLOOKUP(A46,'pl-data'!A:BQ,69) ->  | M46: =-VLOOKUP(A46,'pl-data'!A:BR,70) ->  | N46: =-VLOOKUP(A46,'pl-data'!A:BS,71) ->  | P46: =-VLOOKUP(A46,'pl-data'!A:BQ,21) ->  | Q46: =-VLOOKUP(A46,'pl-data'!A:BQ,51) ->  | R46: =-VLOOKUP(A46,'pl-data'!A:BQ,36) -> 0 | S46: n/a | T46: n/a | W46: =-VLOOKUP(A46,'pl-data'!A:BQ,52) ->  | Y46: n/a | Z46: n/a
A47: 8400 | B47: =+masterfile!D1252 -> 8400 Erlöse 19% USt | D47: =-VLOOKUP(A47,'pl-data'!A:F,4) ->  | E47: =-VLOOKUP(A47,'pl-data'!A:F,5) ->  | F47: =-VLOOKUP(A47,'pl-data'!A:F,6) ->  | G47: =-VLOOKUP(A47,'pl-data'!A:G,7) ->  | H47: =-VLOOKUP(A47,'pl-data'!A:V,22) ->  | J47: =-VLOOKUP(A47,'pl-data'!A:BQ,66) ->  | K47: =-VLOOKUP(A47,'pl-data'!A:BQ,68) ->  | L47: =-VLOOKUP(A47,'pl-data'!A:BQ,69) ->  | M47: =-VLOOKUP(A47,'pl-data'!A:BR,70) ->  | N47: =-VLOOKUP(A47,'pl-data'!A:BS,71) ->  | P47: =-VLOOKUP(A47,'pl-data'!A:BQ,21) ->  | Q47: =-VLOOKUP(A47,'pl-data'!A:BQ,51) ->  | R47: =-VLOOKUP(A47,'pl-data'!A:BQ,36) -> 0 | S47: n/a | T47: n/a | W47: =-VLOOKUP(A47,'pl-data'!A:BQ,52) ->  | Y47: n/a | Z47: n/a
A48: 8401 | B48: =+masterfile!D1253 -> 8401 Erlöse 19% USt | D48: =-VLOOKUP(A48,'pl-data'!A:F,4) ->  | E48: =-VLOOKUP(A48,'pl-data'!A:F,5) ->  | F48: =-VLOOKUP(A48,'pl-data'!A:F,6) ->  | G48: =-VLOOKUP(A48,'pl-data'!A:G,7) ->  | H48: =-VLOOKUP(A48,'pl-data'!A:V,22) ->  | J48: =-VLOOKUP(A48,'pl-data'!A:BQ,66) ->  | K48: =-VLOOKUP(A48,'pl-data'!A:BQ,68) ->  | L48: =-VLOOKUP(A48,'pl-data'!A:BQ,69) ->  | M48: =-VLOOKUP(A48,'pl-data'!A:BR,70) ->  | N48: =-VLOOKUP(A48,'pl-data'!A:BS,71) ->  | P48: =-VLOOKUP(A48,'pl-data'!A:BQ,21) ->  | Q48: =-VLOOKUP(A48,'pl-data'!A:BQ,51) ->  | R48: =-VLOOKUP(A48,'pl-data'!A:BQ,36) -> 0 | S48: n/a | T48: n/a | W48: =-VLOOKUP(A48,'pl-data'!A:BQ,52) ->  | Y48: n/a | Z48: n/a
A49: 8402 | B49: =+masterfile!D1254 -> 8402 Erlöse 19% USt | D49: =-VLOOKUP(A49,'pl-data'!A:F,4) ->  | E49: =-VLOOKUP(A49,'pl-data'!A:F,5) ->  | F49: =-VLOOKUP(A49,'pl-data'!A:F,6) ->  | G49: =-VLOOKUP(A49,'pl-data'!A:G,7) ->  | H49: =-VLOOKUP(A49,'pl-data'!A:V,22) ->  | J49: =-VLOOKUP(A49,'pl-data'!A:BQ,66) ->  | K49: =-VLOOKUP(A49,'pl-data'!A:BQ,68) ->  | L49: =-VLOOKUP(A49,'pl-data'!A:BQ,69) ->  | M49: =-VLOOKUP(A49,'pl-data'!A:BR,70) ->  | N49: =-VLOOKUP(A49,'pl-data'!A:BS,71) ->  | P49: =-VLOOKUP(A49,'pl-data'!A:BQ,21) ->  | Q49: =-VLOOKUP(A49,'pl-data'!A:BQ,51) ->  | R49: =-VLOOKUP(A49,'pl-data'!A:BQ,36) -> 0 | S49: n/a | T49: n/a | W49: =-VLOOKUP(A49,'pl-data'!A:BQ,52) ->  | Y49: n/a | Z49: n/a
A50: 8403 | B50: =+masterfile!D1255 -> 8403 Erlöse 19% USt | D50: =-VLOOKUP(A50,'pl-data'!A:F,4) ->  | E50: =-VLOOKUP(A50,'pl-data'!A:F,5) ->  | F50: =-VLOOKUP(A50,'pl-data'!A:F,6) ->  | G50: =-VLOOKUP(A50,'pl-data'!A:G,7) ->  | H50: =-VLOOKUP(A50,'pl-data'!A:V,22) ->  | J50: =-VLOOKUP(A50,'pl-data'!A:BQ,66) ->  | K50: =-VLOOKUP(A50,'pl-data'!A:BQ,68) ->  | L50: =-VLOOKUP(A50,'pl-data'!A:BQ,69) ->  | M50: =-VLOOKUP(A50,'pl-data'!A:BR,70) ->  | N50: =-VLOOKUP(A50,'pl-data'!A:BS,71) ->  | P50: =-VLOOKUP(A50,'pl-data'!A:BQ,21) ->  | Q50: =-VLOOKUP(A50,'pl-data'!A:BQ,51) ->  | R50: =-VLOOKUP(A50,'pl-data'!A:BQ,36) -> 0 | S50: n/a | T50: n/a | W50: =-VLOOKUP(A50,'pl-data'!A:BQ,52) ->  | Y50: n/a | Z50: n/a
A51: 8404 | B51: =+masterfile!D1256 -> 8404 Erlöse 19% USt | D51: =-VLOOKUP(A51,'pl-data'!A:F,4) ->  | E51: =-VLOOKUP(A51,'pl-data'!A:F,5) ->  | F51: =-VLOOKUP(A51,'pl-data'!A:F,6) ->  | G51: =-VLOOKUP(A51,'pl-data'!A:G,7) ->  | H51: =-VLOOKUP(A51,'pl-data'!A:V,22) ->  | J51: =-VLOOKUP(A51,'pl-data'!A:BQ,66) ->  | K51: =-VLOOKUP(A51,'pl-data'!A:BQ,68) ->  | L51: =-VLOOKUP(A51,'pl-data'!A:BQ,69) ->  | M51: =-VLOOKUP(A51,'pl-data'!A:BR,70) ->  | N51: =-VLOOKUP(A51,'pl-data'!A:BS,71) ->  | P51: =-VLOOKUP(A51,'pl-data'!A:BQ,21) ->  | Q51: =-VLOOKUP(A51,'pl-data'!A:BQ,51) ->  | R51: =-VLOOKUP(A51,'pl-data'!A:BQ,36) -> 0 | S51: n/a | T51: n/a | W51: =-VLOOKUP(A51,'pl-data'!A:BQ,52) ->  | Y51: n/a | Z51: n/a
A52: 8405 | B52: =+masterfile!D1257 -> 8405 Erlöse 19% USt | D52: =-VLOOKUP(A52,'pl-data'!A:F,4) ->  | E52: =-VLOOKUP(A52,'pl-data'!A:F,5) ->  | F52: =-VLOOKUP(A52,'pl-data'!A:F,6) ->  | G52: =-VLOOKUP(A52,'pl-data'!A:G,7) ->  | H52: =-VLOOKUP(A52,'pl-data'!A:V,22) ->  | J52: =-VLOOKUP(A52,'pl-data'!A:BQ,66) ->  | K52: =-VLOOKUP(A52,'pl-data'!A:BQ,68) ->  | L52: =-VLOOKUP(A52,'pl-data'!A:BQ,69) ->  | M52: =-VLOOKUP(A52,'pl-data'!A:BR,70) ->  | N52: =-VLOOKUP(A52,'pl-data'!A:BS,71) ->  | P52: =-VLOOKUP(A52,'pl-data'!A:BQ,21) ->  | Q52: =-VLOOKUP(A52,'pl-data'!A:BQ,51) ->  | R52: =-VLOOKUP(A52,'pl-data'!A:BQ,36) -> 0 | S52: n/a | T52: n/a | W52: =-VLOOKUP(A52,'pl-data'!A:BQ,52) ->  | Y52: n/a | Z52: n/a
A53: 8405 | B53: =+masterfile!D1258 -> 8405 Erlöse 19% USt | D53: =-VLOOKUP(A53,'pl-data'!A:F,4) ->  | E53: =-VLOOKUP(A53,'pl-data'!A:F,5) ->  | F53: =-VLOOKUP(A53,'pl-data'!A:F,6) ->  | G53: =-VLOOKUP(A53,'pl-data'!A:G,7) ->  | H53: =-VLOOKUP(A53,'pl-data'!A:V,22) ->  | J53: =-VLOOKUP(A53,'pl-data'!A:BQ,66) ->  | K53: =-VLOOKUP(A53,'pl-data'!A:BQ,68) ->  | L53: =-VLOOKUP(A53,'pl-data'!A:BQ,69) ->  | M53: =-VLOOKUP(A53,'pl-data'!A:BR,70) ->  | N53: =-VLOOKUP(A53,'pl-data'!A:BS,71) ->  | P53: =-VLOOKUP(A53,'pl-data'!A:BQ,21) ->  | Q53: =-VLOOKUP(A53,'pl-data'!A:BQ,51) ->  | R53: =-VLOOKUP(A53,'pl-data'!A:BQ,36) -> 0 | S53: n/a | T53: n/a | W53: =-VLOOKUP(A53,'pl-data'!A:BQ,52) ->  | Y53: n/a | Z53: n/a
A54: 8406 | B54: =+masterfile!D1259 -> 8406 Erlöse 19% USt | D54: =-VLOOKUP(A54,'pl-data'!A:F,4) ->  | E54: =-VLOOKUP(A54,'pl-data'!A:F,5) ->  | F54: =-VLOOKUP(A54,'pl-data'!A:F,6) ->  | G54: =-VLOOKUP(A54,'pl-data'!A:G,7) ->  | H54: =-VLOOKUP(A54,'pl-data'!A:V,22) ->  | J54: =-VLOOKUP(A54,'pl-data'!A:BQ,66) ->  | K54: =-VLOOKUP(A54,'pl-data'!A:BQ,68) ->  | L54: =-VLOOKUP(A54,'pl-data'!A:BQ,69) ->  | M54: =-VLOOKUP(A54,'pl-data'!A:BR,70) ->  | N54: =-VLOOKUP(A54,'pl-data'!A:BS,71) ->  | P54: =-VLOOKUP(A54,'pl-data'!A:BQ,21) ->  | Q54: =-VLOOKUP(A54,'pl-data'!A:BQ,51) ->  | R54: =-VLOOKUP(A54,'pl-data'!A:BQ,36) -> 0 | S54: n/a | T54: n/a | W54: =-VLOOKUP(A54,'pl-data'!A:BQ,52) ->  | Y54: n/a | Z54: n/a
A55: 8407 | B55: =+masterfile!D1260 -> 8407 Erlöse 19% USt | D55: =-VLOOKUP(A55,'pl-data'!A:F,4) ->  | E55: =-VLOOKUP(A55,'pl-data'!A:F,5) ->  | F55: =-VLOOKUP(A55,'pl-data'!A:F,6) ->  | G55: =-VLOOKUP(A55,'pl-data'!A:G,7) ->  | H55: =-VLOOKUP(A55,'pl-data'!A:V,22) ->  | J55: =-VLOOKUP(A55,'pl-data'!A:BQ,66) ->  | K55: =-VLOOKUP(A55,'pl-data'!A:BQ,68) ->  | L55: =-VLOOKUP(A55,'pl-data'!A:BQ,69) ->  | M55: =-VLOOKUP(A55,'pl-data'!A:BR,70) ->  | N55: =-VLOOKUP(A55,'pl-data'!A:BS,71) ->  | P55: =-VLOOKUP(A55,'pl-data'!A:BQ,21) ->  | Q55: =-VLOOKUP(A55,'pl-data'!A:BQ,51) ->  | R55: =-VLOOKUP(A55,'pl-data'!A:BQ,36) -> 0 | S55: n/a | T55: n/a | W55: =-VLOOKUP(A55,'pl-data'!A:BQ,52) ->  | Y55: n/a | Z55: n/a
A56: 8408 | B56: =+masterfile!D1261 -> 8408 Erlöse 19% USt | D56: =-VLOOKUP(A56,'pl-data'!A:F,4) ->  | E56: =-VLOOKUP(A56,'pl-data'!A:F,5) ->  | F56: =-VLOOKUP(A56,'pl-data'!A:F,6) ->  | G56: =-VLOOKUP(A56,'pl-data'!A:G,7) ->  | H56: =-VLOOKUP(A56,'pl-data'!A:V,22) ->  | J56: =-VLOOKUP(A56,'pl-data'!A:BQ,66) ->  | K56: =-VLOOKUP(A56,'pl-data'!A:BQ,68) ->  | L56: =-VLOOKUP(A56,'pl-data'!A:BQ,69) ->  | M56: =-VLOOKUP(A56,'pl-data'!A:BR,70) ->  | N56: =-VLOOKUP(A56,'pl-data'!A:BS,71) ->  | P56: =-VLOOKUP(A56,'pl-data'!A:BQ,21) ->  | Q56: =-VLOOKUP(A56,'pl-data'!A:BQ,51) ->  | R56: =-VLOOKUP(A56,'pl-data'!A:BQ,36) -> 0 | S56: n/a | T56: n/a | W56: =-VLOOKUP(A56,'pl-data'!A:BQ,52) ->  | Y56: n/a | Z56: n/a
A57: 8409 | B57: =+masterfile!D1262 -> 8409 Erlöse 19% USt | D57: =-VLOOKUP(A57,'pl-data'!A:F,4) ->  | E57: =-VLOOKUP(A57,'pl-data'!A:F,5) ->  | F57: =-VLOOKUP(A57,'pl-data'!A:F,6) ->  | G57: =-VLOOKUP(A57,'pl-data'!A:G,7) ->  | H57: =-VLOOKUP(A57,'pl-data'!A:V,22) ->  | J57: =-VLOOKUP(A57,'pl-data'!A:BQ,66) ->  | K57: =-VLOOKUP(A57,'pl-data'!A:BQ,68) ->  | L57: =-VLOOKUP(A57,'pl-data'!A:BQ,69) ->  | M57: =-VLOOKUP(A57,'pl-data'!A:BR,70) ->  | N57: =-VLOOKUP(A57,'pl-data'!A:BS,71) ->  | P57: =-VLOOKUP(A57,'pl-data'!A:BQ,21) ->  | Q57: =-VLOOKUP(A57,'pl-data'!A:BQ,51) ->  | R57: =-VLOOKUP(A57,'pl-data'!A:BQ,36) -> 0 | S57: n/a | T57: n/a | W57: =-VLOOKUP(A57,'pl-data'!A:BQ,52) ->  | Y57: n/a | Z57: n/a
A58: 8449 | B58: =+masterfile!D1263 -> 8449 Erlöse elektr.DL Inland stpf 19% USt | D58: =-VLOOKUP(A58,'pl-data'!A:F,4) ->  | E58: =-VLOOKUP(A58,'pl-data'!A:F,5) ->  | F58: =-VLOOKUP(A58,'pl-data'!A:F,6) ->  | G58: =-VLOOKUP(A58,'pl-data'!A:G,7) ->  | H58: =-VLOOKUP(A58,'pl-data'!A:V,22) ->  | J58: =-VLOOKUP(A58,'pl-data'!A:BQ,66) ->  | K58: =-VLOOKUP(A58,'pl-data'!A:BQ,68) ->  | L58: =-VLOOKUP(A58,'pl-data'!A:BQ,69) ->  | M58: =-VLOOKUP(A58,'pl-data'!A:BR,70) ->  | N58: =-VLOOKUP(A58,'pl-data'!A:BS,71) ->  | P58: =-VLOOKUP(A58,'pl-data'!A:BQ,21) ->  | Q58: =-VLOOKUP(A58,'pl-data'!A:BQ,51) ->  | R58: =-VLOOKUP(A58,'pl-data'!A:BQ,36) -> 0 | S58: n/a | T58: n/a | W58: =-VLOOKUP(A58,'pl-data'!A:BQ,52) ->  | Y58: n/a | Z58: n/a
A59: 8499 | B59: =+masterfile!D1264 -> 8499 Nebenerlöse (Bezug zu Materialaufwand) | D59: =-VLOOKUP(A59,'pl-data'!A:F,4) ->  | E59: =-VLOOKUP(A59,'pl-data'!A:F,5) ->  | F59: =-VLOOKUP(A59,'pl-data'!A:F,6) ->  | G59: =-VLOOKUP(A59,'pl-data'!A:G,7) ->  | H59: =-VLOOKUP(A59,'pl-data'!A:V,22) ->  | J59: =-VLOOKUP(A59,'pl-data'!A:BQ,66) ->  | K59: =-VLOOKUP(A59,'pl-data'!A:BQ,68) ->  | L59: =-VLOOKUP(A59,'pl-data'!A:BQ,69) ->  | M59: =-VLOOKUP(A59,'pl-data'!A:BR,70) ->  | N59: =-VLOOKUP(A59,'pl-data'!A:BS,71) ->  | P59: =-VLOOKUP(A59,'pl-data'!A:BQ,21) ->  | Q59: =-VLOOKUP(A59,'pl-data'!A:BQ,51) ->  | R59: =-VLOOKUP(A59,'pl-data'!A:BQ,36) -> 0 | S59: n/a | T59: n/a | W59: =-VLOOKUP(A59,'pl-data'!A:BQ,52) ->  | Y59: n/a | Z59: n/a
A60: 8510 | B60: =+masterfile!D1271 -> 8510 Provisionsumsätze | D60: =-VLOOKUP(A60,'pl-data'!A:F,4) ->  | E60: =-VLOOKUP(A60,'pl-data'!A:F,5) ->  | F60: =-VLOOKUP(A60,'pl-data'!A:F,6) ->  | G60: =-VLOOKUP(A60,'pl-data'!A:G,7) ->  | H60: =-VLOOKUP(A60,'pl-data'!A:V,22) ->  | J60: =-VLOOKUP(A60,'pl-data'!A:BQ,66) ->  | K60: =-VLOOKUP(A60,'pl-data'!A:BQ,68) ->  | L60: =-VLOOKUP(A60,'pl-data'!A:BQ,69) ->  | M60: =-VLOOKUP(A60,'pl-data'!A:BR,70) ->  | N60: =-VLOOKUP(A60,'pl-data'!A:BS,71) ->  | P60: =-VLOOKUP(A60,'pl-data'!A:BQ,21) ->  | Q60: =-VLOOKUP(A60,'pl-data'!A:BQ,51) ->  | R60: =-VLOOKUP(A60,'pl-data'!A:BQ,36) -> 0 | S60: n/a | T60: n/a | W60: =-VLOOKUP(A60,'pl-data'!A:BQ,52) ->  | Y60: n/a | Z60: n/a
A61: 8514 | B61: =+masterfile!D1272 -> 8514 Provisionsumsätze, stfr.§4 Nr.8 ff.UStG | D61: =-VLOOKUP(A61,'pl-data'!A:F,4) ->  | E61: =-VLOOKUP(A61,'pl-data'!A:F,5) ->  | F61: =-VLOOKUP(A61,'pl-data'!A:F,6) ->  | G61: =-VLOOKUP(A61,'pl-data'!A:G,7) ->  | H61: =-VLOOKUP(A61,'pl-data'!A:V,22) ->  | J61: =-VLOOKUP(A61,'pl-data'!A:BQ,66) ->  | K61: =-VLOOKUP(A61,'pl-data'!A:BQ,68) ->  | L61: =-VLOOKUP(A61,'pl-data'!A:BQ,69) ->  | M61: =-VLOOKUP(A61,'pl-data'!A:BR,70) ->  | N61: =-VLOOKUP(A61,'pl-data'!A:BS,71) ->  | P61: =-VLOOKUP(A61,'pl-data'!A:BQ,21) ->  | Q61: =-VLOOKUP(A61,'pl-data'!A:BQ,51) ->  | R61: =-VLOOKUP(A61,'pl-data'!A:BQ,36) -> 0 | S61: n/a | T61: n/a | W61: =-VLOOKUP(A61,'pl-data'!A:BQ,52) ->  | Y61: n/a | Z61: n/a
A62: 8515 | B62: =+masterfile!D1273 -> 8515 Provisionsumsätze, stfrei §4 Nr. 5 UStG | D62: =-VLOOKUP(A62,'pl-data'!A:F,4) ->  | E62: =-VLOOKUP(A62,'pl-data'!A:F,5) ->  | F62: =-VLOOKUP(A62,'pl-data'!A:F,6) ->  | G62: =-VLOOKUP(A62,'pl-data'!A:G,7) ->  | H62: =-VLOOKUP(A62,'pl-data'!A:V,22) ->  | J62: =-VLOOKUP(A62,'pl-data'!A:BQ,66) ->  | K62: =-VLOOKUP(A62,'pl-data'!A:BQ,68) ->  | L62: =-VLOOKUP(A62,'pl-data'!A:BQ,69) ->  | M62: =-VLOOKUP(A62,'pl-data'!A:BR,70) ->  | N62: =-VLOOKUP(A62,'pl-data'!A:BS,71) ->  | P62: =-VLOOKUP(A62,'pl-data'!A:BQ,21) ->  | Q62: =-VLOOKUP(A62,'pl-data'!A:BQ,51) ->  | R62: =-VLOOKUP(A62,'pl-data'!A:BQ,36) -> 0 | S62: n/a | T62: n/a | W62: =-VLOOKUP(A62,'pl-data'!A:BQ,52) ->  | Y62: n/a | Z62: n/a
A63: 8516 | B63: =+masterfile!D1274 -> 8516 Provisionsumsätze 7% USt | D63: =-VLOOKUP(A63,'pl-data'!A:F,4) ->  | E63: =-VLOOKUP(A63,'pl-data'!A:F,5) ->  | F63: =-VLOOKUP(A63,'pl-data'!A:F,6) ->  | G63: =-VLOOKUP(A63,'pl-data'!A:G,7) ->  | H63: =-VLOOKUP(A63,'pl-data'!A:V,22) ->  | J63: =-VLOOKUP(A63,'pl-data'!A:BQ,66) ->  | K63: =-VLOOKUP(A63,'pl-data'!A:BQ,68) ->  | L63: =-VLOOKUP(A63,'pl-data'!A:BQ,69) ->  | M63: =-VLOOKUP(A63,'pl-data'!A:BR,70) ->  | N63: =-VLOOKUP(A63,'pl-data'!A:BS,71) ->  | P63: =-VLOOKUP(A63,'pl-data'!A:BQ,21) ->  | Q63: =-VLOOKUP(A63,'pl-data'!A:BQ,51) ->  | R63: =-VLOOKUP(A63,'pl-data'!A:BQ,36) -> 0 | S63: n/a | T63: n/a | W63: =-VLOOKUP(A63,'pl-data'!A:BQ,52) ->  | Y63: n/a | Z63: n/a
A64: 8519 | B64: =+masterfile!D1275 -> 8519 Provisionsumsätze 19% USt | D64: =-VLOOKUP(A64,'pl-data'!A:F,4) ->  | E64: =-VLOOKUP(A64,'pl-data'!A:F,5) ->  | F64: =-VLOOKUP(A64,'pl-data'!A:F,6) ->  | G64: =-VLOOKUP(A64,'pl-data'!A:G,7) ->  | H64: =-VLOOKUP(A64,'pl-data'!A:V,22) ->  | J64: =-VLOOKUP(A64,'pl-data'!A:BQ,66) ->  | K64: =-VLOOKUP(A64,'pl-data'!A:BQ,68) ->  | L64: =-VLOOKUP(A64,'pl-data'!A:BQ,69) ->  | M64: =-VLOOKUP(A64,'pl-data'!A:BR,70) ->  | N64: =-VLOOKUP(A64,'pl-data'!A:BS,71) ->  | P64: =-VLOOKUP(A64,'pl-data'!A:BQ,21) ->  | Q64: =-VLOOKUP(A64,'pl-data'!A:BQ,51) ->  | R64: =-VLOOKUP(A64,'pl-data'!A:BQ,36) -> 0 | S64: n/a | T64: n/a | W64: =-VLOOKUP(A64,'pl-data'!A:BQ,52) ->  | Y64: n/a | Z64: n/a
A65: 8520 | B65: =+masterfile!D1276 -> 8520 Erlöse Abfallverwertung | D65: =-VLOOKUP(A65,'pl-data'!A:F,4) ->  | E65: =-VLOOKUP(A65,'pl-data'!A:F,5) ->  | F65: =-VLOOKUP(A65,'pl-data'!A:F,6) ->  | G65: =-VLOOKUP(A65,'pl-data'!A:G,7) ->  | H65: =-VLOOKUP(A65,'pl-data'!A:V,22) ->  | J65: =-VLOOKUP(A65,'pl-data'!A:BQ,66) ->  | K65: =-VLOOKUP(A65,'pl-data'!A:BQ,68) ->  | L65: =-VLOOKUP(A65,'pl-data'!A:BQ,69) ->  | M65: =-VLOOKUP(A65,'pl-data'!A:BR,70) ->  | N65: =-VLOOKUP(A65,'pl-data'!A:BS,71) ->  | P65: =-VLOOKUP(A65,'pl-data'!A:BQ,21) ->  | Q65: =-VLOOKUP(A65,'pl-data'!A:BQ,51) ->  | R65: =-VLOOKUP(A65,'pl-data'!A:BQ,36) -> 0 | S65: n/a | T65: n/a | W65: =-VLOOKUP(A65,'pl-data'!A:BQ,52) ->  | Y65: n/a | Z65: n/a
A66: 8540 | B66: =+masterfile!D1277 -> 8540 Erlöse Leergut | D66: =-VLOOKUP(A66,'pl-data'!A:F,4) ->  | E66: =-VLOOKUP(A66,'pl-data'!A:F,5) ->  | F66: =-VLOOKUP(A66,'pl-data'!A:F,6) ->  | G66: =-VLOOKUP(A66,'pl-data'!A:G,7) ->  | H66: =-VLOOKUP(A66,'pl-data'!A:V,22) ->  | J66: =-VLOOKUP(A66,'pl-data'!A:BQ,66) ->  | K66: =-VLOOKUP(A66,'pl-data'!A:BQ,68) ->  | L66: =-VLOOKUP(A66,'pl-data'!A:BQ,69) ->  | M66: =-VLOOKUP(A66,'pl-data'!A:BR,70) ->  | N66: =-VLOOKUP(A66,'pl-data'!A:BS,71) ->  | P66: =-VLOOKUP(A66,'pl-data'!A:BQ,21) ->  | Q66: =-VLOOKUP(A66,'pl-data'!A:BQ,51) ->  | R66: =-VLOOKUP(A66,'pl-data'!A:BQ,36) -> 0 | S66: n/a | T66: n/a | W66: =-VLOOKUP(A66,'pl-data'!A:BQ,52) ->  | Y66: n/a | Z66: n/a
A67: 8570 | B67: =+masterfile!D1278 -> 8570 Provision, sonstige Erträge | D67: =-VLOOKUP(A67,'pl-data'!A:F,4) ->  | E67: =-VLOOKUP(A67,'pl-data'!A:F,5) ->  | F67: =-VLOOKUP(A67,'pl-data'!A:F,6) ->  | G67: =-VLOOKUP(A67,'pl-data'!A:G,7) ->  | H67: =-VLOOKUP(A67,'pl-data'!A:V,22) ->  | J67: =-VLOOKUP(A67,'pl-data'!A:BQ,66) ->  | K67: =-VLOOKUP(A67,'pl-data'!A:BQ,68) ->  | L67: =-VLOOKUP(A67,'pl-data'!A:BQ,69) ->  | M67: =-VLOOKUP(A67,'pl-data'!A:BR,70) ->  | N67: =-VLOOKUP(A67,'pl-data'!A:BS,71) ->  | P67: =-VLOOKUP(A67,'pl-data'!A:BQ,21) ->  | Q67: =-VLOOKUP(A67,'pl-data'!A:BQ,51) ->  | R67: =-VLOOKUP(A67,'pl-data'!A:BQ,36) -> 0 | S67: n/a | T67: n/a | W67: =-VLOOKUP(A67,'pl-data'!A:BQ,52) ->  | Y67: n/a | Z67: n/a
A68: 8574 | B68: =+masterfile!D1279 -> 8574 Provision so.Ertr.stfr. § 4 Nr.8 ff UStG | D68: =-VLOOKUP(A68,'pl-data'!A:F,4) ->  | E68: =-VLOOKUP(A68,'pl-data'!A:F,5) ->  | F68: =-VLOOKUP(A68,'pl-data'!A:F,6) ->  | G68: =-VLOOKUP(A68,'pl-data'!A:G,7) ->  | H68: =-VLOOKUP(A68,'pl-data'!A:V,22) ->  | J68: =-VLOOKUP(A68,'pl-data'!A:BQ,66) ->  | K68: =-VLOOKUP(A68,'pl-data'!A:BQ,68) ->  | L68: =-VLOOKUP(A68,'pl-data'!A:BQ,69) ->  | M68: =-VLOOKUP(A68,'pl-data'!A:BR,70) ->  | N68: =-VLOOKUP(A68,'pl-data'!A:BS,71) ->  | P68: =-VLOOKUP(A68,'pl-data'!A:BQ,21) ->  | Q68: =-VLOOKUP(A68,'pl-data'!A:BQ,51) ->  | R68: =-VLOOKUP(A68,'pl-data'!A:BQ,36) -> 0 | S68: n/a | T68: n/a | W68: =-VLOOKUP(A68,'pl-data'!A:BQ,52) ->  | Y68: n/a | Z68: n/a
A69: 8575 | B69: =+masterfile!D1280 -> 8575 Provision so.Ertr.stfr. § 4 Nr. 5 UStG | D69: =-VLOOKUP(A69,'pl-data'!A:F,4) ->  | E69: =-VLOOKUP(A69,'pl-data'!A:F,5) ->  | F69: =-VLOOKUP(A69,'pl-data'!A:F,6) ->  | G69: =-VLOOKUP(A69,'pl-data'!A:G,7) ->  | H69: =-VLOOKUP(A69,'pl-data'!A:V,22) ->  | J69: =-VLOOKUP(A69,'pl-data'!A:BQ,66) ->  | K69: =-VLOOKUP(A69,'pl-data'!A:BQ,68) ->  | L69: =-VLOOKUP(A69,'pl-data'!A:BQ,69) ->  | M69: =-VLOOKUP(A69,'pl-data'!A:BR,70) ->  | N69: =-VLOOKUP(A69,'pl-data'!A:BS,71) ->  | P69: =-VLOOKUP(A69,'pl-data'!A:BQ,21) ->  | Q69: =-VLOOKUP(A69,'pl-data'!A:BQ,51) ->  | R69: =-VLOOKUP(A69,'pl-data'!A:BQ,36) -> 0 | S69: n/a | T69: n/a | W69: =-VLOOKUP(A69,'pl-data'!A:BQ,52) ->  | Y69: n/a | Z69: n/a
A70: 8576 | B70: =+masterfile!D1281 -> 8576 Provision, sonstige Erträge 7% USt | D70: =-VLOOKUP(A70,'pl-data'!A:F,4) ->  | E70: =-VLOOKUP(A70,'pl-data'!A:F,5) ->  | F70: =-VLOOKUP(A70,'pl-data'!A:F,6) ->  | G70: =-VLOOKUP(A70,'pl-data'!A:G,7) ->  | H70: =-VLOOKUP(A70,'pl-data'!A:V,22) ->  | J70: =-VLOOKUP(A70,'pl-data'!A:BQ,66) ->  | K70: =-VLOOKUP(A70,'pl-data'!A:BQ,68) ->  | L70: =-VLOOKUP(A70,'pl-data'!A:BQ,69) ->  | M70: =-VLOOKUP(A70,'pl-data'!A:BR,70) ->  | N70: =-VLOOKUP(A70,'pl-data'!A:BS,71) ->  | P70: =-VLOOKUP(A70,'pl-data'!A:BQ,21) ->  | Q70: =-VLOOKUP(A70,'pl-data'!A:BQ,51) ->  | R70: =-VLOOKUP(A70,'pl-data'!A:BQ,36) -> 0 | S70: n/a | T70: n/a | W70: =-VLOOKUP(A70,'pl-data'!A:BQ,52) ->  | Y70: n/a | Z70: n/a
A71: 8579 | B71: =+masterfile!D1282 -> 8579 Provision, sonstige Erträge 19% USt | D71: =-VLOOKUP(A71,'pl-data'!A:F,4) ->  | E71: =-VLOOKUP(A71,'pl-data'!A:F,5) ->  | F71: =-VLOOKUP(A71,'pl-data'!A:F,6) ->  | G71: =-VLOOKUP(A71,'pl-data'!A:G,7) ->  | H71: =-VLOOKUP(A71,'pl-data'!A:V,22) ->  | I71: =+W71+R71-Q71 ->  | J71: =-VLOOKUP(A71,'pl-data'!A:BQ,66) ->  | K71: =-VLOOKUP(A71,'pl-data'!A:BQ,68) ->  | L71: =-VLOOKUP(A71,'pl-data'!A:BQ,69) ->  | M71: =-VLOOKUP(A71,'pl-data'!A:BR,70) ->  | N71: =-VLOOKUP(A71,'pl-data'!A:BS,71) ->  | P71: =-VLOOKUP(A71,'pl-data'!A:BQ,21) ->  | Q71: =-VLOOKUP(A71,'pl-data'!A:BQ,51) ->  | R71: =-VLOOKUP(A71,'pl-data'!A:BQ,36) -> 0 | S71: =IFERROR(R71/Q71-1,"n/a") -> n/a | T71: =IFERROR(R71/P71-1,"n/a") -> n/a | V71: =+H71 ->  | W71: =-VLOOKUP(A71,'pl-data'!A:BQ,52) ->  | X71: =+I71 ->  | Y71: =IFERROR(X71/W71-1,"n/a") -> n/a | Z71: =IFERROR(X71/V71-1,"n/a") -> n/a
A72: 8607 | B72: =+masterfile!D1295 -> 8607 Andere Nebenerlöse | D72: =-VLOOKUP(A72,'pl-data'!A:F,4) ->  | E72: =-VLOOKUP(A72,'pl-data'!A:F,5) ->  | F72: =-VLOOKUP(A72,'pl-data'!A:F,6) ->  | G72: =-VLOOKUP(A72,'pl-data'!A:G,7) ->  | H72: =-VLOOKUP(A72,'pl-data'!A:V,22) ->  | J72: =-VLOOKUP(A72,'pl-data'!A:BQ,66) ->  | K72: =-VLOOKUP(A72,'pl-data'!A:BQ,68) ->  | L72: =-VLOOKUP(A72,'pl-data'!A:BQ,69) ->  | M72: =-VLOOKUP(A72,'pl-data'!A:BR,70) ->  | N72: =-VLOOKUP(A72,'pl-data'!A:BS,71) ->  | P72: =-VLOOKUP(A72,'pl-data'!A:BQ,21) ->  | Q72: =-VLOOKUP(A72,'pl-data'!A:BQ,51) ->  | R72: =-VLOOKUP(A72,'pl-data'!A:BQ,36) -> 0 | S72: n/a | T72: n/a | W72: =-VLOOKUP(A72,'pl-data'!A:BQ,52) ->  | Y72: n/a | Z72: n/a
A73: 8950 | B73: =+masterfile!D1377 -> 8950 Nicht steuerb.Umsätze (Innenumsätze) | D73: =-VLOOKUP(A73,'pl-data'!A:F,4) ->  | E73: =-VLOOKUP(A73,'pl-data'!A:F,5) ->  | F73: =-VLOOKUP(A73,'pl-data'!A:F,6) ->  | G73: =-VLOOKUP(A73,'pl-data'!A:G,7) ->  | H73: =-VLOOKUP(A73,'pl-data'!A:V,22) ->  | J73: =-VLOOKUP(A73,'pl-data'!A:BQ,66) ->  | K73: =-VLOOKUP(A73,'pl-data'!A:BQ,68) ->  | L73: =-VLOOKUP(A73,'pl-data'!A:BQ,69) ->  | M73: =-VLOOKUP(A73,'pl-data'!A:BR,70) ->  | N73: =-VLOOKUP(A73,'pl-data'!A:BS,71) ->  | P73: =-VLOOKUP(A73,'pl-data'!A:BQ,21) ->  | Q73: =-VLOOKUP(A73,'pl-data'!A:BQ,51) ->  | R73: =-VLOOKUP(A73,'pl-data'!A:BQ,36) -> 0 | S73: n/a | T73: n/a | W73: =-VLOOKUP(A73,'pl-data'!A:BQ,52) ->  | Y73: n/a | Z73: n/a
A74: 8955 | B74: =+masterfile!D1378 -> 8955 USt-Vergütungen, z.B. nach § 24 UStG | D74: =-VLOOKUP(A74,'pl-data'!A:F,4) ->  | E74: =-VLOOKUP(A74,'pl-data'!A:F,5) ->  | F74: =-VLOOKUP(A74,'pl-data'!A:F,6) ->  | G74: =-VLOOKUP(A74,'pl-data'!A:G,7) ->  | H74: =-VLOOKUP(A74,'pl-data'!A:V,22) ->  | J74: =-VLOOKUP(A74,'pl-data'!A:BQ,66) ->  | K74: =-VLOOKUP(A74,'pl-data'!A:BQ,68) ->  | L74: =-VLOOKUP(A74,'pl-data'!A:BQ,69) ->  | M74: =-VLOOKUP(A74,'pl-data'!A:BR,70) ->  | N74: =-VLOOKUP(A74,'pl-data'!A:BS,71) ->  | P74: =-VLOOKUP(A74,'pl-data'!A:BQ,21) ->  | Q74: =-VLOOKUP(A74,'pl-data'!A:BQ,51) ->  | R74: =-VLOOKUP(A74,'pl-data'!A:BQ,36) -> 0 | S74: n/a | T74: n/a | W74: =-VLOOKUP(A74,'pl-data'!A:BQ,52) ->  | Y74: n/a | Z74: n/a
A75: 8959 | B75: =+masterfile!D1379 -> 8959 Direkt mit dem Umsatz verb. Steuern | D75: =-VLOOKUP(A75,'pl-data'!A:F,4) ->  | E75: =-VLOOKUP(A75,'pl-data'!A:F,5) ->  | F75: =-VLOOKUP(A75,'pl-data'!A:F,6) ->  | G75: =-VLOOKUP(A75,'pl-data'!A:G,7) ->  | H75: =-VLOOKUP(A75,'pl-data'!A:V,22) ->  | J75: =-VLOOKUP(A75,'pl-data'!A:BQ,66) ->  | K75: =-VLOOKUP(A75,'pl-data'!A:BQ,68) ->  | L75: =-VLOOKUP(A75,'pl-data'!A:BQ,69) ->  | M75: =-VLOOKUP(A75,'pl-data'!A:BR,70) ->  | N75: =-VLOOKUP(A75,'pl-data'!A:BS,71) ->  | P75: =-VLOOKUP(A75,'pl-data'!A:BQ,21) ->  | Q75: =-VLOOKUP(A75,'pl-data'!A:BQ,51) ->  | R75: =-VLOOKUP(A75,'pl-data'!A:BQ,36) -> 0 | S75: n/a | T75: n/a | W75: =-VLOOKUP(A75,'pl-data'!A:BQ,52) ->  | Y75: n/a | Z75: n/a
A77: Erlösschmälerungen, Skonti, Boni | B77: Erlösschmälerungen, Skonti, Boni | D77: =+SUM(D78:D111) ->  | E77: =+SUM(E78:E111) ->  | F77: =+SUM(F78:F111) ->  | G77: =+SUM(G78:G111) ->  | M77: =+SUM(M78:M111) ->  | P77: =+SUM(P78:P111) ->  | R77: 0 | S77: =IFERROR(R77/Q77-1,"n/a") -> n/a | T77: =IFERROR(R77/P77-1,"n/a") -> n/a | V77: =+SUM(V78:V111) ->  | Y77: =IFERROR(X77/W77-1,"n/a") -> n/a | Z77: =IFERROR(X77/V77-1,"n/a") -> n/a
A78: 8700 | B78: =+masterfile!D1306 -> 8700 Erlösschmälerungen | D78: =-VLOOKUP(A78,'pl-data'!A:F,4) ->  | E78: =-VLOOKUP(A78,'pl-data'!A:F,5) ->  | F78: =-VLOOKUP(A78,'pl-data'!A:F,6) ->  | G78: =-VLOOKUP(A78,'pl-data'!A:G,7) ->  | H78: =-VLOOKUP(A78,'pl-data'!A:V,22) ->  | I78: =+W78+R78-Q78 ->  | J78: =-VLOOKUP(A78,'pl-data'!A:BQ,66) ->  | K78: =-VLOOKUP(A78,'pl-data'!A:BQ,68) ->  | L78: =-VLOOKUP(A78,'pl-data'!A:BQ,69) ->  | M78: =-VLOOKUP(A78,'pl-data'!A:BR,70) ->  | N78: =-VLOOKUP(A78,'pl-data'!A:BS,71) ->  | P78: =-VLOOKUP(A78,'pl-data'!A:BQ,21) ->  | Q78: =-VLOOKUP(A78,'pl-data'!A:BQ,51) ->  | R78: =-VLOOKUP(A78,'pl-data'!A:BQ,36) -> 0 | S78: =IFERROR(R78/Q78-1,"n/a") -> n/a | T78: =IFERROR(R78/P78-1,"n/a") -> n/a | V78: =+H78 ->  | W78: =-VLOOKUP(A78,'pl-data'!A:BQ,52) ->  | X78: =+I78 ->  | Y78: =IFERROR(X78/W78-1,"n/a") -> n/a | Z78: =IFERROR(X78/V78-1,"n/a") -> n/a
A79: 8701 | B79: =+masterfile!D1307 -> 8701 Erlösschmälerungen stfr.§ 4 Nr.8 ff UStG | D79: =-VLOOKUP(A79,'pl-data'!A:F,4) ->  | E79: =-VLOOKUP(A79,'pl-data'!A:F,5) ->  | F79: =-VLOOKUP(A79,'pl-data'!A:F,6) ->  | G79: =-VLOOKUP(A79,'pl-data'!A:G,7) ->  | H79: =-VLOOKUP(A79,'pl-data'!A:V,22) ->  | J79: =-VLOOKUP(A79,'pl-data'!A:BQ,66) ->  | K79: =-VLOOKUP(A79,'pl-data'!A:BQ,68) ->  | L79: =-VLOOKUP(A79,'pl-data'!A:BQ,69) ->  | M79: =-VLOOKUP(A79,'pl-data'!A:BR,70) ->  | N79: =-VLOOKUP(A79,'pl-data'!A:BS,71) ->  | P79: =-VLOOKUP(A79,'pl-data'!A:BQ,21) ->  | Q79: =-VLOOKUP(A79,'pl-data'!A:BQ,51) ->  | R79: =-VLOOKUP(A79,'pl-data'!A:BQ,36) -> 0 | S79: n/a | T79: n/a | W79: =-VLOOKUP(A79,'pl-data'!A:BQ,52) ->  | Y79: n/a | Z79: n/a
A80: 8702 | B80: =+masterfile!D1308 -> 8702 Erlösschmälerungen stfr.§4 Nr. 2-7 UStG | D80: =-VLOOKUP(A80,'pl-data'!A:F,4) ->  | E80: =-VLOOKUP(A80,'pl-data'!A:F,5) ->  | F80: =-VLOOKUP(A80,'pl-data'!A:F,6) ->  | G80: =-VLOOKUP(A80,'pl-data'!A:G,7) ->  | H80: =-VLOOKUP(A80,'pl-data'!A:V,22) ->  | J80: =-VLOOKUP(A80,'pl-data'!A:BQ,66) ->  | K80: =-VLOOKUP(A80,'pl-data'!A:BQ,68) ->  | L80: =-VLOOKUP(A80,'pl-data'!A:BQ,69) ->  | M80: =-VLOOKUP(A80,'pl-data'!A:BR,70) ->  | N80: =-VLOOKUP(A80,'pl-data'!A:BS,71) ->  | P80: =-VLOOKUP(A80,'pl-data'!A:BQ,21) ->  | Q80: =-VLOOKUP(A80,'pl-data'!A:BQ,51) ->  | R80: =-VLOOKUP(A80,'pl-data'!A:BQ,36) -> 0 | S80: n/a | T80: n/a | W80: =-VLOOKUP(A80,'pl-data'!A:BQ,52) ->  | Y80: n/a | Z80: n/a
A81: 8703 | B81: =+masterfile!D1309 -> 8703 Erlösschmälerungen sonst.stfr. ohne VoSt | D81: =-VLOOKUP(A81,'pl-data'!A:F,4) ->  | E81: =-VLOOKUP(A81,'pl-data'!A:F,5) ->  | F81: =-VLOOKUP(A81,'pl-data'!A:F,6) ->  | G81: =-VLOOKUP(A81,'pl-data'!A:G,7) ->  | H81: =-VLOOKUP(A81,'pl-data'!A:V,22) ->  | J81: =-VLOOKUP(A81,'pl-data'!A:BQ,66) ->  | K81: =-VLOOKUP(A81,'pl-data'!A:BQ,68) ->  | L81: =-VLOOKUP(A81,'pl-data'!A:BQ,69) ->  | M81: =-VLOOKUP(A81,'pl-data'!A:BR,70) ->  | N81: =-VLOOKUP(A81,'pl-data'!A:BS,71) ->  | P81: =-VLOOKUP(A81,'pl-data'!A:BQ,21) ->  | Q81: =-VLOOKUP(A81,'pl-data'!A:BQ,51) ->  | R81: =-VLOOKUP(A81,'pl-data'!A:BQ,36) -> 0 | S81: n/a | T81: n/a | W81: =-VLOOKUP(A81,'pl-data'!A:BQ,52) ->  | Y81: n/a | Z81: n/a
A82: 8704 | B82: =+masterfile!D1310 -> 8704 Erlösschmälerungen sonst.stfr. mit VoSt | D82: =-VLOOKUP(A82,'pl-data'!A:F,4) ->  | E82: =-VLOOKUP(A82,'pl-data'!A:F,5) ->  | F82: =-VLOOKUP(A82,'pl-data'!A:F,6) ->  | G82: =-VLOOKUP(A82,'pl-data'!A:G,7) ->  | H82: =-VLOOKUP(A82,'pl-data'!A:V,22) ->  | J82: =-VLOOKUP(A82,'pl-data'!A:BQ,66) ->  | K82: =-VLOOKUP(A82,'pl-data'!A:BQ,68) ->  | L82: =-VLOOKUP(A82,'pl-data'!A:BQ,69) ->  | M82: =-VLOOKUP(A82,'pl-data'!A:BR,70) ->  | N82: =-VLOOKUP(A82,'pl-data'!A:BS,71) ->  | P82: =-VLOOKUP(A82,'pl-data'!A:BQ,21) ->  | Q82: =-VLOOKUP(A82,'pl-data'!A:BQ,51) ->  | R82: =-VLOOKUP(A82,'pl-data'!A:BQ,36) -> 0 | S82: n/a | T82: n/a | W82: =-VLOOKUP(A82,'pl-data'!A:BQ,52) ->  | Y82: n/a | Z82: n/a
A83: 8705 | B83: =+masterfile!D1311 -> 8705 Erlösschmälerungen stfrei §4 Nr.1a UStG | D83: =-VLOOKUP(A83,'pl-data'!A:F,4) ->  | E83: =-VLOOKUP(A83,'pl-data'!A:F,5) ->  | F83: =-VLOOKUP(A83,'pl-data'!A:F,6) ->  | G83: =-VLOOKUP(A83,'pl-data'!A:G,7) ->  | H83: =-VLOOKUP(A83,'pl-data'!A:V,22) ->  | J83: =-VLOOKUP(A83,'pl-data'!A:BQ,66) ->  | K83: =-VLOOKUP(A83,'pl-data'!A:BQ,68) ->  | L83: =-VLOOKUP(A83,'pl-data'!A:BQ,69) ->  | M83: =-VLOOKUP(A83,'pl-data'!A:BR,70) ->  | N83: =-VLOOKUP(A83,'pl-data'!A:BS,71) ->  | P83: =-VLOOKUP(A83,'pl-data'!A:BQ,21) ->  | Q83: =-VLOOKUP(A83,'pl-data'!A:BQ,51) ->  | R83: =-VLOOKUP(A83,'pl-data'!A:BQ,36) -> 0 | S83: n/a | T83: n/a | W83: =-VLOOKUP(A83,'pl-data'!A:BQ,52) ->  | Y83: n/a | Z83: n/a
A84: 8706 | B84: =+masterfile!D1312 -> 8706 Erlösschm.stfr.Dreiecksg.§ 25b(2,4) UStG | D84: =-VLOOKUP(A84,'pl-data'!A:F,4) ->  | E84: =-VLOOKUP(A84,'pl-data'!A:F,5) ->  | F84: =-VLOOKUP(A84,'pl-data'!A:F,6) ->  | G84: =-VLOOKUP(A84,'pl-data'!A:G,7) ->  | H84: =-VLOOKUP(A84,'pl-data'!A:V,22) ->  | J84: =-VLOOKUP(A84,'pl-data'!A:BQ,66) ->  | K84: =-VLOOKUP(A84,'pl-data'!A:BQ,68) ->  | L84: =-VLOOKUP(A84,'pl-data'!A:BQ,69) ->  | M84: =-VLOOKUP(A84,'pl-data'!A:BR,70) ->  | N84: =-VLOOKUP(A84,'pl-data'!A:BS,71) ->  | P84: =-VLOOKUP(A84,'pl-data'!A:BQ,21) ->  | Q84: =-VLOOKUP(A84,'pl-data'!A:BQ,51) ->  | R84: =-VLOOKUP(A84,'pl-data'!A:BQ,36) -> 0 | S84: n/a | T84: n/a | W84: =-VLOOKUP(A84,'pl-data'!A:BQ,52) ->  | Y84: n/a | Z84: n/a
A85: 8710 | B85: =+masterfile!D1313 -> 8710 Erlösschmälerungen 7% USt | D85: =-VLOOKUP(A85,'pl-data'!A:F,4) ->  | E85: =-VLOOKUP(A85,'pl-data'!A:F,5) ->  | F85: =-VLOOKUP(A85,'pl-data'!A:F,6) ->  | G85: =-VLOOKUP(A85,'pl-data'!A:G,7) ->  | H85: =-VLOOKUP(A85,'pl-data'!A:V,22) ->  | J85: =-VLOOKUP(A85,'pl-data'!A:BQ,66) ->  | K85: =-VLOOKUP(A85,'pl-data'!A:BQ,68) ->  | L85: =-VLOOKUP(A85,'pl-data'!A:BQ,69) ->  | M85: =-VLOOKUP(A85,'pl-data'!A:BR,70) ->  | N85: =-VLOOKUP(A85,'pl-data'!A:BS,71) ->  | P85: =-VLOOKUP(A85,'pl-data'!A:BQ,21) ->  | Q85: =-VLOOKUP(A85,'pl-data'!A:BQ,51) ->  | R85: =-VLOOKUP(A85,'pl-data'!A:BQ,36) -> 0 | S85: n/a | T85: n/a | W85: =-VLOOKUP(A85,'pl-data'!A:BQ,52) ->  | Y85: n/a | Z85: n/a
A86: 8720 | B86: =+masterfile!D1314 -> 8720 Erlösschmälerungen 19% USt | D86: =-VLOOKUP(A86,'pl-data'!A:F,4) ->  | E86: =-VLOOKUP(A86,'pl-data'!A:F,5) ->  | F86: =-VLOOKUP(A86,'pl-data'!A:F,6) ->  | G86: =-VLOOKUP(A86,'pl-data'!A:G,7) ->  | H86: =-VLOOKUP(A86,'pl-data'!A:V,22) ->  | J86: =-VLOOKUP(A86,'pl-data'!A:BQ,66) ->  | K86: =-VLOOKUP(A86,'pl-data'!A:BQ,68) ->  | L86: =-VLOOKUP(A86,'pl-data'!A:BQ,69) ->  | M86: =-VLOOKUP(A86,'pl-data'!A:BR,70) ->  | N86: =-VLOOKUP(A86,'pl-data'!A:BS,71) ->  | P86: =-VLOOKUP(A86,'pl-data'!A:BQ,21) ->  | Q86: =-VLOOKUP(A86,'pl-data'!A:BQ,51) ->  | R86: =-VLOOKUP(A86,'pl-data'!A:BQ,36) -> 0 | S86: n/a | T86: n/a | W86: =-VLOOKUP(A86,'pl-data'!A:BQ,52) ->  | Y86: n/a | Z86: n/a
A87: 8724 | B87: =+masterfile!D1315 -> 8724 Erlösschmälerung stfrei innerg.Lieferung | D87: =-VLOOKUP(A87,'pl-data'!A:F,4) ->  | E87: =-VLOOKUP(A87,'pl-data'!A:F,5) ->  | F87: =-VLOOKUP(A87,'pl-data'!A:F,6) ->  | G87: =-VLOOKUP(A87,'pl-data'!A:G,7) ->  | H87: =-VLOOKUP(A87,'pl-data'!A:V,22) ->  | J87: =-VLOOKUP(A87,'pl-data'!A:BQ,66) ->  | K87: =-VLOOKUP(A87,'pl-data'!A:BQ,68) ->  | L87: =-VLOOKUP(A87,'pl-data'!A:BQ,69) ->  | M87: =-VLOOKUP(A87,'pl-data'!A:BR,70) ->  | N87: =-VLOOKUP(A87,'pl-data'!A:BS,71) ->  | P87: =-VLOOKUP(A87,'pl-data'!A:BQ,21) ->  | Q87: =-VLOOKUP(A87,'pl-data'!A:BQ,51) ->  | R87: =-VLOOKUP(A87,'pl-data'!A:BQ,36) -> 0 | S87: n/a | T87: n/a | W87: =-VLOOKUP(A87,'pl-data'!A:BQ,52) ->  | Y87: n/a | Z87: n/a
A88: 8725 | B88: =+masterfile!D1316 -> 8725 Erlösschmälerung EU-Lieferung 7% USt | D88: =-VLOOKUP(A88,'pl-data'!A:F,4) ->  | E88: =-VLOOKUP(A88,'pl-data'!A:F,5) ->  | F88: =-VLOOKUP(A88,'pl-data'!A:F,6) ->  | G88: =-VLOOKUP(A88,'pl-data'!A:G,7) ->  | H88: =-VLOOKUP(A88,'pl-data'!A:V,22) ->  | J88: =-VLOOKUP(A88,'pl-data'!A:BQ,66) ->  | K88: =-VLOOKUP(A88,'pl-data'!A:BQ,68) ->  | L88: =-VLOOKUP(A88,'pl-data'!A:BQ,69) ->  | M88: =-VLOOKUP(A88,'pl-data'!A:BR,70) ->  | N88: =-VLOOKUP(A88,'pl-data'!A:BS,71) ->  | P88: =-VLOOKUP(A88,'pl-data'!A:BQ,21) ->  | Q88: =-VLOOKUP(A88,'pl-data'!A:BQ,51) ->  | R88: =-VLOOKUP(A88,'pl-data'!A:BQ,36) -> 0 | S88: n/a | T88: n/a | W88: =-VLOOKUP(A88,'pl-data'!A:BQ,52) ->  | Y88: n/a | Z88: n/a
A89: 8726 | B89: =+masterfile!D1317 -> 8726 Erlösschmälerung EU-Lieferung 19% USt | D89: =-VLOOKUP(A89,'pl-data'!A:F,4) ->  | E89: =-VLOOKUP(A89,'pl-data'!A:F,5) ->  | F89: =-VLOOKUP(A89,'pl-data'!A:F,6) ->  | G89: =-VLOOKUP(A89,'pl-data'!A:G,7) ->  | H89: =-VLOOKUP(A89,'pl-data'!A:V,22) ->  | J89: =-VLOOKUP(A89,'pl-data'!A:BQ,66) ->  | K89: =-VLOOKUP(A89,'pl-data'!A:BQ,68) ->  | L89: =-VLOOKUP(A89,'pl-data'!A:BQ,69) ->  | M89: =-VLOOKUP(A89,'pl-data'!A:BR,70) ->  | N89: =-VLOOKUP(A89,'pl-data'!A:BS,71) ->  | P89: =-VLOOKUP(A89,'pl-data'!A:BQ,21) ->  | Q89: =-VLOOKUP(A89,'pl-data'!A:BQ,51) ->  | R89: =-VLOOKUP(A89,'pl-data'!A:BQ,36) -> 0 | S89: n/a | T89: n/a | W89: =-VLOOKUP(A89,'pl-data'!A:BQ,52) ->  | Y89: n/a | Z89: n/a
A90: 8727 | B90: =+masterfile!D1318 -> 8727 Erlösschmälg a.i.and.EU-Land stpfl.Liefg | D90: =-VLOOKUP(A90,'pl-data'!A:F,4) ->  | E90: =-VLOOKUP(A90,'pl-data'!A:F,5) ->  | F90: =-VLOOKUP(A90,'pl-data'!A:F,6) ->  | G90: =-VLOOKUP(A90,'pl-data'!A:G,7) ->  | H90: =-VLOOKUP(A90,'pl-data'!A:V,22) ->  | J90: =-VLOOKUP(A90,'pl-data'!A:BQ,66) ->  | K90: =-VLOOKUP(A90,'pl-data'!A:BQ,68) ->  | L90: =-VLOOKUP(A90,'pl-data'!A:BQ,69) ->  | M90: =-VLOOKUP(A90,'pl-data'!A:BR,70) ->  | N90: =-VLOOKUP(A90,'pl-data'!A:BS,71) ->  | P90: =-VLOOKUP(A90,'pl-data'!A:BQ,21) ->  | Q90: =-VLOOKUP(A90,'pl-data'!A:BQ,51) ->  | R90: =-VLOOKUP(A90,'pl-data'!A:BQ,36) -> 0 | S90: n/a | T90: n/a | W90: =-VLOOKUP(A90,'pl-data'!A:BQ,52) ->  | Y90: n/a | Z90: n/a
A91: 8730 | B91: =+masterfile!D1319 -> 8730 Gewährte Skonti | D91: =-VLOOKUP(A91,'pl-data'!A:F,4) ->  | E91: =-VLOOKUP(A91,'pl-data'!A:F,5) ->  | F91: =-VLOOKUP(A91,'pl-data'!A:F,6) ->  | G91: =-VLOOKUP(A91,'pl-data'!A:G,7) ->  | H91: =-VLOOKUP(A91,'pl-data'!A:V,22) ->  | J91: =-VLOOKUP(A91,'pl-data'!A:BQ,66) ->  | K91: =-VLOOKUP(A91,'pl-data'!A:BQ,68) ->  | L91: =-VLOOKUP(A91,'pl-data'!A:BQ,69) ->  | M91: =-VLOOKUP(A91,'pl-data'!A:BR,70) ->  | N91: =-VLOOKUP(A91,'pl-data'!A:BS,71) ->  | P91: =-VLOOKUP(A91,'pl-data'!A:BQ,21) ->  | Q91: =-VLOOKUP(A91,'pl-data'!A:BQ,51) ->  | R91: =-VLOOKUP(A91,'pl-data'!A:BQ,36) -> 0 | S91: n/a | T91: n/a | W91: =-VLOOKUP(A91,'pl-data'!A:BQ,52) ->  | Y91: n/a | Z91: n/a
A92: 8731 | B92: =+masterfile!D1320 -> 8731 Gewährte Skonti 7 % USt | D92: =-VLOOKUP(A92,'pl-data'!A:F,4) ->  | E92: =-VLOOKUP(A92,'pl-data'!A:F,5) ->  | F92: =-VLOOKUP(A92,'pl-data'!A:F,6) ->  | G92: =-VLOOKUP(A92,'pl-data'!A:G,7) ->  | H92: =-VLOOKUP(A92,'pl-data'!A:V,22) ->  | J92: =-VLOOKUP(A92,'pl-data'!A:BQ,66) ->  | K92: =-VLOOKUP(A92,'pl-data'!A:BQ,68) ->  | L92: =-VLOOKUP(A92,'pl-data'!A:BQ,69) ->  | M92: =-VLOOKUP(A92,'pl-data'!A:BR,70) ->  | N92: =-VLOOKUP(A92,'pl-data'!A:BS,71) ->  | P92: =-VLOOKUP(A92,'pl-data'!A:BQ,21) ->  | Q92: =-VLOOKUP(A92,'pl-data'!A:BQ,51) ->  | R92: =-VLOOKUP(A92,'pl-data'!A:BQ,36) -> 0 | S92: n/a | T92: n/a | W92: =-VLOOKUP(A92,'pl-data'!A:BQ,52) ->  | Y92: n/a | Z92: n/a
A93: 8732 | B93: =+masterfile!D1321 -> 8732 Gewährte Skonti 5 % USt | D93: =-VLOOKUP(A93,'pl-data'!A:F,4) ->  | E93: =-VLOOKUP(A93,'pl-data'!A:F,5) ->  | F93: =-VLOOKUP(A93,'pl-data'!A:F,6) ->  | G93: =-VLOOKUP(A93,'pl-data'!A:G,7) ->  | H93: =-VLOOKUP(A93,'pl-data'!A:V,22) ->  | J93: =-VLOOKUP(A93,'pl-data'!A:BQ,66) ->  | K93: =-VLOOKUP(A93,'pl-data'!A:BQ,68) ->  | L93: =-VLOOKUP(A93,'pl-data'!A:BQ,69) ->  | M93: =-VLOOKUP(A93,'pl-data'!A:BR,70) ->  | N93: =-VLOOKUP(A93,'pl-data'!A:BS,71) ->  | P93: =-VLOOKUP(A93,'pl-data'!A:BQ,21) ->  | Q93: =-VLOOKUP(A93,'pl-data'!A:BQ,51) ->  | R93: =-VLOOKUP(A93,'pl-data'!A:BQ,36) -> 0 | S93: n/a | T93: n/a | W93: =-VLOOKUP(A93,'pl-data'!A:BQ,52) ->  | Y93: n/a | Z93: n/a
A94: 8735 | B94: =+masterfile!D1322 -> 8735 Gewährte Skonti 16 % USt | D94: =-VLOOKUP(A94,'pl-data'!A:F,4) ->  | E94: =-VLOOKUP(A94,'pl-data'!A:F,5) ->  | F94: =-VLOOKUP(A94,'pl-data'!A:F,6) ->  | G94: =-VLOOKUP(A94,'pl-data'!A:G,7) ->  | H94: =-VLOOKUP(A94,'pl-data'!A:V,22) ->  | J94: =-VLOOKUP(A94,'pl-data'!A:BQ,66) ->  | K94: =-VLOOKUP(A94,'pl-data'!A:BQ,68) ->  | L94: =-VLOOKUP(A94,'pl-data'!A:BQ,69) ->  | M94: =-VLOOKUP(A94,'pl-data'!A:BR,70) ->  | N94: =-VLOOKUP(A94,'pl-data'!A:BS,71) ->  | P94: =-VLOOKUP(A94,'pl-data'!A:BQ,21) ->  | Q94: =-VLOOKUP(A94,'pl-data'!A:BQ,51) ->  | R94: =-VLOOKUP(A94,'pl-data'!A:BQ,36) -> 0 | S94: n/a | T94: n/a | W94: =-VLOOKUP(A94,'pl-data'!A:BQ,52) ->  | Y94: n/a | Z94: n/a
A95: 8736 | B95: =+masterfile!D1323 -> 8736 Gewährte Skonti 19 % USt | D95: =-VLOOKUP(A95,'pl-data'!A:F,4) ->  | E95: =-VLOOKUP(A95,'pl-data'!A:F,5) ->  | F95: =-VLOOKUP(A95,'pl-data'!A:F,6) ->  | G95: =-VLOOKUP(A95,'pl-data'!A:G,7) ->  | H95: =-VLOOKUP(A95,'pl-data'!A:V,22) ->  | J95: =-VLOOKUP(A95,'pl-data'!A:BQ,66) ->  | K95: =-VLOOKUP(A95,'pl-data'!A:BQ,68) ->  | L95: =-VLOOKUP(A95,'pl-data'!A:BQ,69) ->  | M95: =-VLOOKUP(A95,'pl-data'!A:BR,70) ->  | N95: =-VLOOKUP(A95,'pl-data'!A:BS,71) ->  | P95: =-VLOOKUP(A95,'pl-data'!A:BQ,21) ->  | Q95: =-VLOOKUP(A95,'pl-data'!A:BQ,51) ->  | R95: =-VLOOKUP(A95,'pl-data'!A:BQ,36) -> 0 | S95: n/a | T95: n/a | W95: =-VLOOKUP(A95,'pl-data'!A:BQ,52) ->  | Y95: n/a | Z95: n/a
A96: 8738 | B96: =+masterfile!D1324 -> 8738 Gew.Skonti Leistg.§ 13b (2) Nr.10 UStG | D96: =-VLOOKUP(A96,'pl-data'!A:F,4) ->  | E96: =-VLOOKUP(A96,'pl-data'!A:F,5) ->  | F96: =-VLOOKUP(A96,'pl-data'!A:F,6) ->  | G96: =-VLOOKUP(A96,'pl-data'!A:G,7) ->  | H96: =-VLOOKUP(A96,'pl-data'!A:V,22) ->  | J96: =-VLOOKUP(A96,'pl-data'!A:BQ,66) ->  | K96: =-VLOOKUP(A96,'pl-data'!A:BQ,68) ->  | L96: =-VLOOKUP(A96,'pl-data'!A:BQ,69) ->  | M96: =-VLOOKUP(A96,'pl-data'!A:BR,70) ->  | N96: =-VLOOKUP(A96,'pl-data'!A:BS,71) ->  | P96: =-VLOOKUP(A96,'pl-data'!A:BQ,21) ->  | Q96: =-VLOOKUP(A96,'pl-data'!A:BQ,51) ->  | R96: =-VLOOKUP(A96,'pl-data'!A:BQ,36) -> 0 | S96: n/a | T96: n/a | W96: =-VLOOKUP(A96,'pl-data'!A:BQ,52) ->  | Y96: n/a | Z96: n/a
A97: 8741 | B97: =+masterfile!D1325 -> 8741 Gewährte Skonti Leistungen § 13b UStG | D97: =-VLOOKUP(A97,'pl-data'!A:F,4) ->  | E97: =-VLOOKUP(A97,'pl-data'!A:F,5) ->  | F97: =-VLOOKUP(A97,'pl-data'!A:F,6) ->  | G97: =-VLOOKUP(A97,'pl-data'!A:G,7) ->  | H97: =-VLOOKUP(A97,'pl-data'!A:V,22) ->  | J97: =-VLOOKUP(A97,'pl-data'!A:BQ,66) ->  | K97: =-VLOOKUP(A97,'pl-data'!A:BQ,68) ->  | L97: =-VLOOKUP(A97,'pl-data'!A:BQ,69) ->  | M97: =-VLOOKUP(A97,'pl-data'!A:BR,70) ->  | N97: =-VLOOKUP(A97,'pl-data'!A:BS,71) ->  | P97: =-VLOOKUP(A97,'pl-data'!A:BQ,21) ->  | Q97: =-VLOOKUP(A97,'pl-data'!A:BQ,51) ->  | R97: =-VLOOKUP(A97,'pl-data'!A:BQ,36) -> 0 | S97: n/a | T97: n/a | W97: =-VLOOKUP(A97,'pl-data'!A:BQ,52) ->  | Y97: n/a | Z97: n/a
A98: 8742 | B98: =+masterfile!D1326 -> 8742 Gewährte Skonti s. Leistung § 18b UStG | D98: =-VLOOKUP(A98,'pl-data'!A:F,4) ->  | E98: =-VLOOKUP(A98,'pl-data'!A:F,5) ->  | F98: =-VLOOKUP(A98,'pl-data'!A:F,6) ->  | G98: =-VLOOKUP(A98,'pl-data'!A:G,7) ->  | H98: =-VLOOKUP(A98,'pl-data'!A:V,22) ->  | J98: =-VLOOKUP(A98,'pl-data'!A:BQ,66) ->  | K98: =-VLOOKUP(A98,'pl-data'!A:BQ,68) ->  | L98: =-VLOOKUP(A98,'pl-data'!A:BQ,69) ->  | M98: =-VLOOKUP(A98,'pl-data'!A:BR,70) ->  | N98: =-VLOOKUP(A98,'pl-data'!A:BS,71) ->  | P98: =-VLOOKUP(A98,'pl-data'!A:BQ,21) ->  | Q98: =-VLOOKUP(A98,'pl-data'!A:BQ,51) ->  | R98: =-VLOOKUP(A98,'pl-data'!A:BQ,36) -> 0 | S98: n/a | T98: n/a | W98: =-VLOOKUP(A98,'pl-data'!A:BQ,52) ->  | Y98: n/a | Z98: n/a
A99: 8743 | B99: =+masterfile!D1327 -> 8743 Gewährte Skonti stfreie EU-Lieferung | D99: =-VLOOKUP(A99,'pl-data'!A:F,4) ->  | E99: =-VLOOKUP(A99,'pl-data'!A:F,5) ->  | F99: =-VLOOKUP(A99,'pl-data'!A:F,6) ->  | G99: =-VLOOKUP(A99,'pl-data'!A:G,7) ->  | H99: =-VLOOKUP(A99,'pl-data'!A:V,22) ->  | J99: =-VLOOKUP(A99,'pl-data'!A:BQ,66) ->  | K99: =-VLOOKUP(A99,'pl-data'!A:BQ,68) ->  | L99: =-VLOOKUP(A99,'pl-data'!A:BQ,69) ->  | M99: =-VLOOKUP(A99,'pl-data'!A:BR,70) ->  | N99: =-VLOOKUP(A99,'pl-data'!A:BS,71) ->  | P99: =-VLOOKUP(A99,'pl-data'!A:BQ,21) ->  | Q99: =-VLOOKUP(A99,'pl-data'!A:BQ,51) ->  | R99: =-VLOOKUP(A99,'pl-data'!A:BQ,36) -> 0 | S99: n/a | T99: n/a | W99: =-VLOOKUP(A99,'pl-data'!A:BQ,52) ->  | Y99: n/a | Z99: n/a
A100: 8745 | B100: =+masterfile!D1328 -> 8745 Gewährte Skonti stpfl. EU-Lieferung | D100: =-VLOOKUP(A100,'pl-data'!A:F,4) ->  | E100: =-VLOOKUP(A100,'pl-data'!A:F,5) ->  | F100: =-VLOOKUP(A100,'pl-data'!A:F,6) ->  | G100: =-VLOOKUP(A100,'pl-data'!A:G,7) ->  | H100: =-VLOOKUP(A100,'pl-data'!A:V,22) ->  | J100: =-VLOOKUP(A100,'pl-data'!A:BQ,66) ->  | K100: =-VLOOKUP(A100,'pl-data'!A:BQ,68) ->  | L100: =-VLOOKUP(A100,'pl-data'!A:BQ,69) ->  | M100: =-VLOOKUP(A100,'pl-data'!A:BR,70) ->  | N100: =-VLOOKUP(A100,'pl-data'!A:BS,71) ->  | P100: =-VLOOKUP(A100,'pl-data'!A:BQ,21) ->  | Q100: =-VLOOKUP(A100,'pl-data'!A:BQ,51) ->  | R100: =-VLOOKUP(A100,'pl-data'!A:BQ,36) -> 0 | S100: n/a | T100: n/a | W100: =-VLOOKUP(A100,'pl-data'!A:BQ,52) ->  | Y100: n/a | Z100: n/a
A101: 8746 | B101: =+masterfile!D1329 -> 8746 Gewährte Skonti EU-Lieferungen 7% USt | D101: =-VLOOKUP(A101,'pl-data'!A:F,4) ->  | E101: =-VLOOKUP(A101,'pl-data'!A:F,5) ->  | F101: =-VLOOKUP(A101,'pl-data'!A:F,6) ->  | G101: =-VLOOKUP(A101,'pl-data'!A:G,7) ->  | H101: =-VLOOKUP(A101,'pl-data'!A:V,22) ->  | J101: =-VLOOKUP(A101,'pl-data'!A:BQ,66) ->  | K101: =-VLOOKUP(A101,'pl-data'!A:BQ,68) ->  | L101: =-VLOOKUP(A101,'pl-data'!A:BQ,69) ->  | M101: =-VLOOKUP(A101,'pl-data'!A:BR,70) ->  | N101: =-VLOOKUP(A101,'pl-data'!A:BS,71) ->  | P101: =-VLOOKUP(A101,'pl-data'!A:BQ,21) ->  | Q101: =-VLOOKUP(A101,'pl-data'!A:BQ,51) ->  | R101: =-VLOOKUP(A101,'pl-data'!A:BQ,36) -> 0 | S101: n/a | T101: n/a | W101: =-VLOOKUP(A101,'pl-data'!A:BQ,52) ->  | Y101: n/a | Z101: n/a
A102: 8747 | B102: =+masterfile!D1330 -> 8747 Gewährte Skonti EU-Lieferungen 5% USt | D102: =-VLOOKUP(A102,'pl-data'!A:F,4) ->  | E102: =-VLOOKUP(A102,'pl-data'!A:F,5) ->  | F102: =-VLOOKUP(A102,'pl-data'!A:F,6) ->  | G102: =-VLOOKUP(A102,'pl-data'!A:G,7) ->  | H102: =-VLOOKUP(A102,'pl-data'!A:V,22) ->  | J102: =-VLOOKUP(A102,'pl-data'!A:BQ,66) ->  | K102: =-VLOOKUP(A102,'pl-data'!A:BQ,68) ->  | L102: =-VLOOKUP(A102,'pl-data'!A:BQ,69) ->  | M102: =-VLOOKUP(A102,'pl-data'!A:BR,70) ->  | N102: =-VLOOKUP(A102,'pl-data'!A:BS,71) ->  | P102: =-VLOOKUP(A102,'pl-data'!A:BQ,21) ->  | Q102: =-VLOOKUP(A102,'pl-data'!A:BQ,51) ->  | R102: =-VLOOKUP(A102,'pl-data'!A:BQ,36) -> 0 | S102: n/a | T102: n/a | W102: =-VLOOKUP(A102,'pl-data'!A:BQ,52) ->  | Y102: n/a | Z102: n/a
A103: 8748 | B103: =+masterfile!D1331 -> 8748 Gewährte Skonti EU-Lieferungen 19% USt | D103: =-VLOOKUP(A103,'pl-data'!A:F,4) ->  | E103: =-VLOOKUP(A103,'pl-data'!A:F,5) ->  | F103: =-VLOOKUP(A103,'pl-data'!A:F,6) ->  | G103: =-VLOOKUP(A103,'pl-data'!A:G,7) ->  | H103: =-VLOOKUP(A103,'pl-data'!A:V,22) ->  | J103: =-VLOOKUP(A103,'pl-data'!A:BQ,66) ->  | K103: =-VLOOKUP(A103,'pl-data'!A:BQ,68) ->  | L103: =-VLOOKUP(A103,'pl-data'!A:BQ,69) ->  | M103: =-VLOOKUP(A103,'pl-data'!A:BR,70) ->  | N103: =-VLOOKUP(A103,'pl-data'!A:BS,71) ->  | P103: =-VLOOKUP(A103,'pl-data'!A:BQ,21) ->  | Q103: =-VLOOKUP(A103,'pl-data'!A:BQ,51) ->  | R103: =-VLOOKUP(A103,'pl-data'!A:BQ,36) -> 0 | S103: n/a | T103: n/a | W103: =-VLOOKUP(A103,'pl-data'!A:BQ,52) ->  | Y103: n/a | Z103: n/a
A104: 8749 | B104: =+masterfile!D1332 -> 8749 Gewährte Skonti EU-Lieferungen 16% USt | D104: =-VLOOKUP(A104,'pl-data'!A:F,4) ->  | E104: =-VLOOKUP(A104,'pl-data'!A:F,5) ->  | F104: =-VLOOKUP(A104,'pl-data'!A:F,6) ->  | G104: =-VLOOKUP(A104,'pl-data'!A:G,7) ->  | H104: =-VLOOKUP(A104,'pl-data'!A:V,22) ->  | J104: =-VLOOKUP(A104,'pl-data'!A:BQ,66) ->  | K104: =-VLOOKUP(A104,'pl-data'!A:BQ,68) ->  | L104: =-VLOOKUP(A104,'pl-data'!A:BQ,69) ->  | M104: =-VLOOKUP(A104,'pl-data'!A:BR,70) ->  | N104: =-VLOOKUP(A104,'pl-data'!A:BS,71) ->  | P104: =-VLOOKUP(A104,'pl-data'!A:BQ,21) ->  | Q104: =-VLOOKUP(A104,'pl-data'!A:BQ,51) ->  | R104: =-VLOOKUP(A104,'pl-data'!A:BQ,36) -> 0 | S104: n/a | T104: n/a | W104: =-VLOOKUP(A104,'pl-data'!A:BQ,52) ->  | Y104: n/a | Z104: n/a
A105: 8750 | B105: =+masterfile!D1333 -> 8750 Gewährte Boni 7% USt | D105: =-VLOOKUP(A105,'pl-data'!A:F,4) ->  | E105: =-VLOOKUP(A105,'pl-data'!A:F,5) ->  | F105: =-VLOOKUP(A105,'pl-data'!A:F,6) ->  | G105: =-VLOOKUP(A105,'pl-data'!A:G,7) ->  | H105: =-VLOOKUP(A105,'pl-data'!A:V,22) ->  | J105: =-VLOOKUP(A105,'pl-data'!A:BQ,66) ->  | K105: =-VLOOKUP(A105,'pl-data'!A:BQ,68) ->  | L105: =-VLOOKUP(A105,'pl-data'!A:BQ,69) ->  | M105: =-VLOOKUP(A105,'pl-data'!A:BR,70) ->  | N105: =-VLOOKUP(A105,'pl-data'!A:BS,71) ->  | P105: =-VLOOKUP(A105,'pl-data'!A:BQ,21) ->  | Q105: =-VLOOKUP(A105,'pl-data'!A:BQ,51) ->  | R105: =-VLOOKUP(A105,'pl-data'!A:BQ,36) -> 0 | S105: n/a | T105: n/a | W105: =-VLOOKUP(A105,'pl-data'!A:BQ,52) ->  | Y105: n/a | Z105: n/a
A106: 8760 | B106: =+masterfile!D1334 -> 8760 Gewährte Boni 19% USt | D106: =-VLOOKUP(A106,'pl-data'!A:F,4) ->  | E106: =-VLOOKUP(A106,'pl-data'!A:F,5) ->  | F106: =-VLOOKUP(A106,'pl-data'!A:F,6) ->  | G106: =-VLOOKUP(A106,'pl-data'!A:G,7) ->  | H106: =-VLOOKUP(A106,'pl-data'!A:V,22) ->  | J106: =-VLOOKUP(A106,'pl-data'!A:BQ,66) ->  | K106: =-VLOOKUP(A106,'pl-data'!A:BQ,68) ->  | L106: =-VLOOKUP(A106,'pl-data'!A:BQ,69) ->  | M106: =-VLOOKUP(A106,'pl-data'!A:BR,70) ->  | N106: =-VLOOKUP(A106,'pl-data'!A:BS,71) ->  | P106: =-VLOOKUP(A106,'pl-data'!A:BQ,21) ->  | Q106: =-VLOOKUP(A106,'pl-data'!A:BQ,51) ->  | R106: =-VLOOKUP(A106,'pl-data'!A:BQ,36) -> 0 | S106: n/a | T106: n/a | W106: =-VLOOKUP(A106,'pl-data'!A:BQ,52) ->  | Y106: n/a | Z106: n/a
A107: 8769 | B107: =+masterfile!D1335 -> 8769 Gewährte Boni | D107: =-VLOOKUP(A107,'pl-data'!A:F,4) ->  | E107: =-VLOOKUP(A107,'pl-data'!A:F,5) ->  | F107: =-VLOOKUP(A107,'pl-data'!A:F,6) ->  | G107: =-VLOOKUP(A107,'pl-data'!A:G,7) ->  | H107: =-VLOOKUP(A107,'pl-data'!A:V,22) ->  | J107: =-VLOOKUP(A107,'pl-data'!A:BQ,66) ->  | K107: =-VLOOKUP(A107,'pl-data'!A:BQ,68) ->  | L107: =-VLOOKUP(A107,'pl-data'!A:BQ,69) ->  | M107: =-VLOOKUP(A107,'pl-data'!A:BR,70) ->  | N107: =-VLOOKUP(A107,'pl-data'!A:BS,71) ->  | P107: =-VLOOKUP(A107,'pl-data'!A:BQ,21) ->  | Q107: =-VLOOKUP(A107,'pl-data'!A:BQ,51) ->  | R107: =-VLOOKUP(A107,'pl-data'!A:BQ,36) -> 0 | S107: n/a | T107: n/a | W107: =-VLOOKUP(A107,'pl-data'!A:BQ,52) ->  | Y107: n/a | Z107: n/a
A108: 8770 | B108: =+masterfile!D1336 -> 8770 Gewährte Rabatte | D108: =-VLOOKUP(A108,'pl-data'!A:F,4) ->  | E108: =-VLOOKUP(A108,'pl-data'!A:F,5) ->  | F108: =-VLOOKUP(A108,'pl-data'!A:F,6) ->  | G108: =-VLOOKUP(A108,'pl-data'!A:G,7) ->  | H108: =-VLOOKUP(A108,'pl-data'!A:V,22) ->  | J108: =-VLOOKUP(A108,'pl-data'!A:BQ,66) ->  | K108: =-VLOOKUP(A108,'pl-data'!A:BQ,68) ->  | L108: =-VLOOKUP(A108,'pl-data'!A:BQ,69) ->  | M108: =-VLOOKUP(A108,'pl-data'!A:BR,70) ->  | N108: =-VLOOKUP(A108,'pl-data'!A:BS,71) ->  | P108: =-VLOOKUP(A108,'pl-data'!A:BQ,21) ->  | Q108: =-VLOOKUP(A108,'pl-data'!A:BQ,51) ->  | R108: =-VLOOKUP(A108,'pl-data'!A:BQ,36) -> 0 | S108: n/a | T108: n/a | W108: =-VLOOKUP(A108,'pl-data'!A:BQ,52) ->  | Y108: n/a | Z108: n/a
A109: 8780 | B109: =+masterfile!D1337 -> 8780 Gewährte Rabatte 7 % USt | D109: =-VLOOKUP(A109,'pl-data'!A:F,4) ->  | E109: =-VLOOKUP(A109,'pl-data'!A:F,5) ->  | F109: =-VLOOKUP(A109,'pl-data'!A:F,6) ->  | G109: =-VLOOKUP(A109,'pl-data'!A:G,7) ->  | H109: =-VLOOKUP(A109,'pl-data'!A:V,22) ->  | J109: =-VLOOKUP(A109,'pl-data'!A:BQ,66) ->  | K109: =-VLOOKUP(A109,'pl-data'!A:BQ,68) ->  | L109: =-VLOOKUP(A109,'pl-data'!A:BQ,69) ->  | M109: =-VLOOKUP(A109,'pl-data'!A:BR,70) ->  | N109: =-VLOOKUP(A109,'pl-data'!A:BS,71) ->  | P109: =-VLOOKUP(A109,'pl-data'!A:BQ,21) ->  | Q109: =-VLOOKUP(A109,'pl-data'!A:BQ,51) ->  | R109: =-VLOOKUP(A109,'pl-data'!A:BQ,36) -> 0 | S109: n/a | T109: n/a | W109: =-VLOOKUP(A109,'pl-data'!A:BQ,52) ->  | Y109: n/a | Z109: n/a
A110: 8790 | B110: =+masterfile!D1338 -> 8790 Gewährte Rabatte 19 % USt | D110: =-VLOOKUP(A110,'pl-data'!A:F,4) ->  | E110: =-VLOOKUP(A110,'pl-data'!A:F,5) ->  | F110: =-VLOOKUP(A110,'pl-data'!A:F,6) ->  | G110: =-VLOOKUP(A110,'pl-data'!A:G,7) ->  | H110: =-VLOOKUP(A110,'pl-data'!A:V,22) ->  | J110: =-VLOOKUP(A110,'pl-data'!A:BQ,66) ->  | K110: =-VLOOKUP(A110,'pl-data'!A:BQ,68) ->  | L110: =-VLOOKUP(A110,'pl-data'!A:BQ,69) ->  | M110: =-VLOOKUP(A110,'pl-data'!A:BR,70) ->  | N110: =-VLOOKUP(A110,'pl-data'!A:BS,71) ->  | P110: =-VLOOKUP(A110,'pl-data'!A:BQ,21) ->  | Q110: =-VLOOKUP(A110,'pl-data'!A:BQ,51) ->  | R110: =-VLOOKUP(A110,'pl-data'!A:BQ,36) -> 0 | S110: n/a | T110: n/a | W110: =-VLOOKUP(A110,'pl-data'!A:BQ,52) ->  | Y110: n/a | Z110: n/a
A112: Änderung | B112: Änderung | E112: =+IFERROR(E5/D5-1,"n/a") -> n/a | F112: =+IFERROR(F5/E5-1,"n/a") -> n/a | G112: =+IFERROR(G5/F5-1,"n/a") -> n/a | H112: =+IFERROR(H5/G5-1,"n/a") -> n/a | I112: n/a | J112: n/a | K112: n/a | L112: n/a | M112: =+IFERROR(M5/L5-1,"n/a") -> n/a | N112: =+IFERROR(N5/M5-1,"n/a") -> n/a | Q112: =+IFERROR(Q5/P5-1,"n/a") -> n/a | R112: =+IFERROR(R5/P5-1,"n/a") -> n/a | W112: =+IFERROR(W5/V5-1,"n/a") -> n/a | X112: =+IFERROR(X5/V5-1,"n/a") -> n/a
A114: 2. Erhöhung oder Verminderung des Bestands an fertigen und unfertigen Erzeugnissen | B114: 2. Erhöhung oder Verminderung des Bestands an fertigen und unfertigen Erzeugnissen | D114: =+SUM(D115:D120) ->  | E114: =+SUM(E115:E120) ->  | F114: =+SUM(F115:F120) ->  | G114: =+SUM(G115:G120) ->  | M114: =+SUM(M115:M120) ->  | P114: =+SUM(P115:P120) ->  | R114: 0 | S114: =IFERROR(R114/Q114-1,"n/a") -> n/a | T114: =IFERROR(R114/P114-1,"n/a") -> n/a | V114: =+SUM(V115:V120) ->  | Y114: =IFERROR(X114/W114-1,"n/a") -> n/a | Z114: =IFERROR(X114/V114-1,"n/a") -> n/a
A115: 8960 | B115: =+masterfile!D1380 -> 8960 Bestandsveränd.unfertige Erzeugnisse | D115: =-VLOOKUP(A115,'pl-data'!A:F,4) ->  | E115: =-VLOOKUP(A115,'pl-data'!A:F,5) ->  | F115: =-VLOOKUP(A115,'pl-data'!A:F,6) ->  | G115: =-VLOOKUP(A115,'pl-data'!A:G,7) ->  | H115: =-VLOOKUP(A115,'pl-data'!A:V,22) ->  | I115: =+W115+R115-Q115 ->  | J115: =-VLOOKUP(A115,'pl-data'!A:BQ,66) ->  | K115: =-VLOOKUP(A115,'pl-data'!A:BQ,68) ->  | L115: =-VLOOKUP(A115,'pl-data'!A:BQ,69) ->  | M115: =-VLOOKUP(A115,'pl-data'!A:BR,70) ->  | N115: =-VLOOKUP(A115,'pl-data'!A:BS,71) ->  | P115: =-VLOOKUP(A115,'pl-data'!A:BQ,21) ->  | Q115: =-VLOOKUP(A115,'pl-data'!A:BQ,51) ->  | R115: =-VLOOKUP(A115,'pl-data'!A:BQ,36) -> 0 | S115: =IFERROR(R115/Q115-1,"n/a") -> n/a | T115: =IFERROR(R115/P115-1,"n/a") -> n/a | V115: =+H115 ->  | W115: =-VLOOKUP(A115,'pl-data'!A:BQ,52) ->  | X115: =+I115 ->  | Y115: =IFERROR(X115/W115-1,"n/a") -> n/a | Z115: =IFERROR(X115/V115-1,"n/a") -> n/a
A116: 8970 | B116: =+masterfile!D1381 -> 8970 Bestandsveränderung unfertige Leistung | D116: =-VLOOKUP(A116,'pl-data'!A:F,4) ->  | E116: =-VLOOKUP(A116,'pl-data'!A:F,5) ->  | F116: =-VLOOKUP(A116,'pl-data'!A:F,6) ->  | G116: =-VLOOKUP(A116,'pl-data'!A:G,7) ->  | H116: =-VLOOKUP(A116,'pl-data'!A:V,22) ->  | J116: =-VLOOKUP(A116,'pl-data'!A:BQ,66) ->  | K116: =-VLOOKUP(A116,'pl-data'!A:BQ,68) ->  | L116: =-VLOOKUP(A116,'pl-data'!A:BQ,69) ->  | M116: =-VLOOKUP(A116,'pl-data'!A:BR,70) ->  | N116: =-VLOOKUP(A116,'pl-data'!A:BS,71) ->  | P116: =-VLOOKUP(A116,'pl-data'!A:BQ,21) ->  | Q116: =-VLOOKUP(A116,'pl-data'!A:BQ,51) ->  | R116: =-VLOOKUP(A116,'pl-data'!A:BQ,36) -> 0 | S116: n/a | T116: n/a | W116: =-VLOOKUP(A116,'pl-data'!A:BQ,52) ->  | Y116: n/a | Z116: n/a
A117: 8975 | B117: =+masterfile!D1382 -> 8975 Bestandsveränderung Bauaufträge | D117: =-VLOOKUP(A117,'pl-data'!A:F,4) ->  | E117: =-VLOOKUP(A117,'pl-data'!A:F,5) ->  | F117: =-VLOOKUP(A117,'pl-data'!A:F,6) ->  | G117: =-VLOOKUP(A117,'pl-data'!A:G,7) ->  | H117: =-VLOOKUP(A117,'pl-data'!A:V,22) ->  | J117: =-VLOOKUP(A117,'pl-data'!A:BQ,66) ->  | K117: =-VLOOKUP(A117,'pl-data'!A:BQ,68) ->  | L117: =-VLOOKUP(A117,'pl-data'!A:BQ,69) ->  | M117: =-VLOOKUP(A117,'pl-data'!A:BR,70) ->  | N117: =-VLOOKUP(A117,'pl-data'!A:BS,71) ->  | P117: =-VLOOKUP(A117,'pl-data'!A:BQ,21) ->  | Q117: =-VLOOKUP(A117,'pl-data'!A:BQ,51) ->  | R117: =-VLOOKUP(A117,'pl-data'!A:BQ,36) -> 0 | S117: n/a | T117: n/a | W117: =-VLOOKUP(A117,'pl-data'!A:BQ,52) ->  | Y117: n/a | Z117: n/a
A118: 8977 | B118: =+masterfile!D1383 -> 8977 Bestandsveränderung Aufträge in Arbeit | D118: =-VLOOKUP(A118,'pl-data'!A:F,4) ->  | E118: =-VLOOKUP(A118,'pl-data'!A:F,5) ->  | F118: =-VLOOKUP(A118,'pl-data'!A:F,6) ->  | G118: =-VLOOKUP(A118,'pl-data'!A:G,7) ->  | H118: =-VLOOKUP(A118,'pl-data'!A:V,22) ->  | J118: =-VLOOKUP(A118,'pl-data'!A:BQ,66) ->  | K118: =-VLOOKUP(A118,'pl-data'!A:BQ,68) ->  | L118: =-VLOOKUP(A118,'pl-data'!A:BQ,69) ->  | M118: =-VLOOKUP(A118,'pl-data'!A:BR,70) ->  | N118: =-VLOOKUP(A118,'pl-data'!A:BS,71) ->  | P118: =-VLOOKUP(A118,'pl-data'!A:BQ,21) ->  | Q118: =-VLOOKUP(A118,'pl-data'!A:BQ,51) ->  | R118: =-VLOOKUP(A118,'pl-data'!A:BQ,36) -> 0 | S118: n/a | T118: n/a | W118: =-VLOOKUP(A118,'pl-data'!A:BQ,52) ->  | Y118: n/a | Z118: n/a
A119: 8980 | B119: =+masterfile!D1384 -> 8980 Bestandsveränderung fertige Erzeugnisse | D119: =-VLOOKUP(A119,'pl-data'!A:F,4) ->  | E119: =-VLOOKUP(A119,'pl-data'!A:F,5) ->  | F119: =-VLOOKUP(A119,'pl-data'!A:F,6) ->  | G119: =-VLOOKUP(A119,'pl-data'!A:G,7) ->  | H119: =-VLOOKUP(A119,'pl-data'!A:V,22) ->  | J119: =-VLOOKUP(A119,'pl-data'!A:BQ,66) ->  | K119: =-VLOOKUP(A119,'pl-data'!A:BQ,68) ->  | L119: =-VLOOKUP(A119,'pl-data'!A:BQ,69) ->  | M119: =-VLOOKUP(A119,'pl-data'!A:BR,70) ->  | N119: =-VLOOKUP(A119,'pl-data'!A:BS,71) ->  | P119: =-VLOOKUP(A119,'pl-data'!A:BQ,21) ->  | Q119: =-VLOOKUP(A119,'pl-data'!A:BQ,51) ->  | R119: =-VLOOKUP(A119,'pl-data'!A:BQ,36) -> 0 | S119: n/a | T119: n/a | W119: =-VLOOKUP(A119,'pl-data'!A:BQ,52) ->  | Y119: n/a | Z119: n/a
A121: 3. Andere aktivierte Eigenleistungen | B121: 3. Andere aktivierte Eigenleistungen | D121: =+SUM(D122:D125) ->  | E121: =+SUM(E122:E125) ->  | F121: =+SUM(F122:F125) ->  | G121: =+SUM(G122:G125) ->  | M121: =+SUM(M122:M125) ->  | P121: =+SUM(P122:P125) ->  | R121: 0 | S121: =IFERROR(R121/Q121-1,"n/a") -> n/a | T121: =IFERROR(R121/P121-1,"n/a") -> n/a | V121: =+SUM(V122:V125) ->  | Y121: =IFERROR(X121/W121-1,"n/a") -> n/a | Z121: =IFERROR(X121/V121-1,"n/a") -> n/a
A122: 8990 | B122: =+masterfile!D1385 -> 8990 Andere aktivierte Eigenleistungen | D122: =-VLOOKUP(A122,'pl-data'!A:F,4) ->  | E122: =-VLOOKUP(A122,'pl-data'!A:F,5) ->  | F122: =-VLOOKUP(A122,'pl-data'!A:F,6) ->  | G122: =-VLOOKUP(A122,'pl-data'!A:G,7) ->  | H122: =-VLOOKUP(A122,'pl-data'!A:V,22) ->  | I122: =+W122+R122-Q122 ->  | J122: =-VLOOKUP(A122,'pl-data'!A:BQ,66) ->  | K122: =-VLOOKUP(A122,'pl-data'!A:BQ,68) ->  | L122: =-VLOOKUP(A122,'pl-data'!A:BQ,69) ->  | M122: =-VLOOKUP(A122,'pl-data'!A:BR,70) ->  | N122: =-VLOOKUP(A122,'pl-data'!A:BS,71) ->  | P122: =-VLOOKUP(A122,'pl-data'!A:BQ,21) ->  | Q122: =-VLOOKUP(A122,'pl-data'!A:BQ,51) ->  | R122: =-VLOOKUP(A122,'pl-data'!A:BQ,36) -> 0 | S122: =IFERROR(R122/Q122-1,"n/a") -> n/a | T122: =IFERROR(R122/P122-1,"n/a") -> n/a | V122: =+H122 ->  | W122: =-VLOOKUP(A122,'pl-data'!A:BQ,52) ->  | X122: =+I122 ->  | Y122: =IFERROR(X122/W122-1,"n/a") -> n/a | Z122: =IFERROR(X122/V122-1,"n/a") -> n/a
A123: 8994 | B123: =+masterfile!D1386 -> 8994 Akt.Eigenleistg. FK-Zins zu Herst.kosten | D123: =-VLOOKUP(A123,'pl-data'!A:F,4) ->  | E123: =-VLOOKUP(A123,'pl-data'!A:F,5) ->  | F123: =-VLOOKUP(A123,'pl-data'!A:F,6) ->  | G123: =-VLOOKUP(A123,'pl-data'!A:G,7) ->  | H123: =-VLOOKUP(A123,'pl-data'!A:V,22) ->  | J123: =-VLOOKUP(A123,'pl-data'!A:BQ,66) ->  | K123: =-VLOOKUP(A123,'pl-data'!A:BQ,68) ->  | L123: =-VLOOKUP(A123,'pl-data'!A:BQ,69) ->  | M123: =-VLOOKUP(A123,'pl-data'!A:BR,70) ->  | N123: =-VLOOKUP(A123,'pl-data'!A:BS,71) ->  | P123: =-VLOOKUP(A123,'pl-data'!A:BQ,21) ->  | Q123: =-VLOOKUP(A123,'pl-data'!A:BQ,51) ->  | R123: =-VLOOKUP(A123,'pl-data'!A:BQ,36) -> 0 | S123: n/a | T123: n/a | W123: =-VLOOKUP(A123,'pl-data'!A:BQ,52) ->  | Y123: n/a | Z123: n/a
A124: 8995 | B124: =+masterfile!D1387 -> 8995 Akt. Eigenleistung selbst gesch. imm.VG | D124: =-VLOOKUP(A124,'pl-data'!A:F,4) ->  | E124: =-VLOOKUP(A124,'pl-data'!A:F,5) ->  | F124: =-VLOOKUP(A124,'pl-data'!A:F,6) ->  | G124: =-VLOOKUP(A124,'pl-data'!A:G,7) ->  | H124: =-VLOOKUP(A124,'pl-data'!A:V,22) ->  | J124: =-VLOOKUP(A124,'pl-data'!A:BQ,66) ->  | K124: =-VLOOKUP(A124,'pl-data'!A:BQ,68) ->  | L124: =-VLOOKUP(A124,'pl-data'!A:BQ,69) ->  | M124: =-VLOOKUP(A124,'pl-data'!A:BR,70) ->  | N124: =-VLOOKUP(A124,'pl-data'!A:BS,71) ->  | P124: =-VLOOKUP(A124,'pl-data'!A:BQ,21) ->  | Q124: =-VLOOKUP(A124,'pl-data'!A:BQ,51) ->  | R124: =-VLOOKUP(A124,'pl-data'!A:BQ,36) -> 0 | S124: n/a | T124: n/a | W124: =-VLOOKUP(A124,'pl-data'!A:BQ,52) ->  | Y124: n/a | Z124: n/a
A126: 4. Sonstige betriebliche Erträge (SBE) | B126: 4. Sonstige betriebliche Erträge (SBE) | D126: =+SUM(D127:D158)+D159+D192+D202+D207 ->  | E126: =+SUM(E127:E158)+E159+E192+E202+E207 ->  | F126: =+SUM(F127:F158)+F159+F192+F202+F207 ->  | G126: =+SUM(G127:G158)+G159+G192+G202+G207 ->  | M126: =+SUM(M127:M158)+M159+M192+M202+M207 ->  | P126: =+SUM(P127:P158)+P159+P192+P202+P207 ->  | R126: 0 | S126: =IFERROR(R126/Q126-1,"n/a") -> n/a | T126: =IFERROR(R126/P126-1,"n/a") -> n/a | V126: =+SUM(V127:V158)+V159+V192+V202+V207 ->  | Y126: =IFERROR(X126/W126-1,"n/a") -> n/a | Z126: =IFERROR(X126/V126-1,"n/a") -> n/a
A127: 2510 | B127: =+masterfile!D738 -> 2510 Betriebsfremde Erträge | D127: =-VLOOKUP(A127,'pl-data'!A:F,4) ->  | E127: =-VLOOKUP(A127,'pl-data'!A:F,5) ->  | F127: =-VLOOKUP(A127,'pl-data'!A:F,6) ->  | G127: =-VLOOKUP(A127,'pl-data'!A:G,7) ->  | H127: =-VLOOKUP(A127,'pl-data'!A:V,22) ->  | I127: =+W127+R127-Q127 ->  | J127: =-VLOOKUP(A127,'pl-data'!A:BQ,66) ->  | K127: =-VLOOKUP(A127,'pl-data'!A:BQ,68) ->  | L127: =-VLOOKUP(A127,'pl-data'!A:BQ,69) ->  | M127: =-VLOOKUP(A127,'pl-data'!A:BR,70) ->  | N127: =-VLOOKUP(A127,'pl-data'!A:BS,71) ->  | P127: =-VLOOKUP(A127,'pl-data'!A:BQ,21) ->  | Q127: =-VLOOKUP(A127,'pl-data'!A:BQ,51) ->  | R127: =-VLOOKUP(A127,'pl-data'!A:BQ,36) -> 0 | S127: =IFERROR(R127/Q127-1,"n/a") -> n/a | T127: =IFERROR(R127/P127-1,"n/a") -> n/a | V127: =+H127 ->  | W127: =-VLOOKUP(A127,'pl-data'!A:BQ,52) ->  | X127: =+I127 ->  | Y127: =IFERROR(X127/W127-1,"n/a") -> n/a | Z127: =IFERROR(X127/V127-1,"n/a") -> n/a
A128: 2520 | B128: =+masterfile!D739 -> 2520 Periodenfremde Erträge | D128: =-VLOOKUP(A128,'pl-data'!A:F,4) ->  | E128: =-VLOOKUP(A128,'pl-data'!A:F,5) ->  | F128: =-VLOOKUP(A128,'pl-data'!A:F,6) ->  | G128: =-VLOOKUP(A128,'pl-data'!A:G,7) ->  | H128: =-VLOOKUP(A128,'pl-data'!A:V,22) ->  | J128: =-VLOOKUP(A128,'pl-data'!A:BQ,66) ->  | K128: =-VLOOKUP(A128,'pl-data'!A:BQ,68) ->  | L128: =-VLOOKUP(A128,'pl-data'!A:BQ,69) ->  | M128: =-VLOOKUP(A128,'pl-data'!A:BR,70) ->  | N128: =-VLOOKUP(A128,'pl-data'!A:BS,71) ->  | P128: =-VLOOKUP(A128,'pl-data'!A:BQ,21) ->  | Q128: =-VLOOKUP(A128,'pl-data'!A:BQ,51) ->  | R128: =-VLOOKUP(A128,'pl-data'!A:BQ,36) -> 0 | S128: n/a | T128: n/a | W128: =-VLOOKUP(A128,'pl-data'!A:BQ,52) ->  | Y128: n/a | Z128: n/a
A129: 2660 | B129: =+masterfile!D770 -> 2660 Erträge aus der Währungsumrechnung | D129: =-VLOOKUP(A129,'pl-data'!A:F,4) ->  | E129: =-VLOOKUP(A129,'pl-data'!A:F,5) ->  | F129: =-VLOOKUP(A129,'pl-data'!A:F,6) ->  | G129: =-VLOOKUP(A129,'pl-data'!A:G,7) ->  | H129: =-VLOOKUP(A129,'pl-data'!A:V,22) ->  | J129: =-VLOOKUP(A129,'pl-data'!A:BQ,66) ->  | K129: =-VLOOKUP(A129,'pl-data'!A:BQ,68) ->  | L129: =-VLOOKUP(A129,'pl-data'!A:BQ,69) ->  | M129: =-VLOOKUP(A129,'pl-data'!A:BR,70) ->  | N129: =-VLOOKUP(A129,'pl-data'!A:BS,71) ->  | P129: =-VLOOKUP(A129,'pl-data'!A:BQ,21) ->  | Q129: =-VLOOKUP(A129,'pl-data'!A:BQ,51) ->  | R129: =-VLOOKUP(A129,'pl-data'!A:BQ,36) -> 0 | S129: n/a | T129: n/a | W129: =-VLOOKUP(A129,'pl-data'!A:BQ,52) ->  | Y129: n/a | Z129: n/a
A130: 2661 | B130: =+masterfile!D771 -> 2661 Ertr.Währungsumrechnung nicht § 256a HGB | D130: =-VLOOKUP(A130,'pl-data'!A:F,4) ->  | E130: =-VLOOKUP(A130,'pl-data'!A:F,5) ->  | F130: =-VLOOKUP(A130,'pl-data'!A:F,6) ->  | G130: =-VLOOKUP(A130,'pl-data'!A:G,7) ->  | H130: =-VLOOKUP(A130,'pl-data'!A:V,22) ->  | J130: =-VLOOKUP(A130,'pl-data'!A:BQ,66) ->  | K130: =-VLOOKUP(A130,'pl-data'!A:BQ,68) ->  | L130: =-VLOOKUP(A130,'pl-data'!A:BQ,69) ->  | M130: =-VLOOKUP(A130,'pl-data'!A:BR,70) ->  | N130: =-VLOOKUP(A130,'pl-data'!A:BS,71) ->  | P130: =-VLOOKUP(A130,'pl-data'!A:BQ,21) ->  | Q130: =-VLOOKUP(A130,'pl-data'!A:BQ,51) ->  | R130: =-VLOOKUP(A130,'pl-data'!A:BQ,36) -> 0 | S130: n/a | T130: n/a | W130: =-VLOOKUP(A130,'pl-data'!A:BQ,52) ->  | Y130: n/a | Z130: n/a
A131: 2666 | B131: =+masterfile!D772 -> 2666 Erträge Bewertung Finanzmittelfonds | D131: =-VLOOKUP(A131,'pl-data'!A:F,4) ->  | E131: =-VLOOKUP(A131,'pl-data'!A:F,5) ->  | F131: =-VLOOKUP(A131,'pl-data'!A:F,6) ->  | G131: =-VLOOKUP(A131,'pl-data'!A:G,7) ->  | H131: =-VLOOKUP(A131,'pl-data'!A:V,22) ->  | J131: =-VLOOKUP(A131,'pl-data'!A:BQ,66) ->  | K131: =-VLOOKUP(A131,'pl-data'!A:BQ,68) ->  | L131: =-VLOOKUP(A131,'pl-data'!A:BQ,69) ->  | M131: =-VLOOKUP(A131,'pl-data'!A:BR,70) ->  | N131: =-VLOOKUP(A131,'pl-data'!A:BS,71) ->  | P131: =-VLOOKUP(A131,'pl-data'!A:BQ,21) ->  | Q131: =-VLOOKUP(A131,'pl-data'!A:BQ,51) ->  | R131: =-VLOOKUP(A131,'pl-data'!A:BQ,36) -> 0 | S131: n/a | T131: n/a | W131: =-VLOOKUP(A131,'pl-data'!A:BQ,52) ->  | Y131: n/a | Z131: n/a
A132: 2700 | B132: =+masterfile!D783 -> 2700 Sonstige Erträge betriebs/periodenfremd | D132: =-VLOOKUP(A132,'pl-data'!A:F,4) ->  | E132: =-VLOOKUP(A132,'pl-data'!A:F,5) ->  | F132: =-VLOOKUP(A132,'pl-data'!A:F,6) ->  | G132: =-VLOOKUP(A132,'pl-data'!A:G,7) ->  | H132: =-VLOOKUP(A132,'pl-data'!A:V,22) ->  | J132: =-VLOOKUP(A132,'pl-data'!A:BQ,66) ->  | K132: =-VLOOKUP(A132,'pl-data'!A:BQ,68) ->  | L132: =-VLOOKUP(A132,'pl-data'!A:BQ,69) ->  | M132: =-VLOOKUP(A132,'pl-data'!A:BR,70) ->  | N132: =-VLOOKUP(A132,'pl-data'!A:BS,71) ->  | P132: =-VLOOKUP(A132,'pl-data'!A:BQ,21) ->  | Q132: =-VLOOKUP(A132,'pl-data'!A:BQ,51) ->  | R132: =-VLOOKUP(A132,'pl-data'!A:BQ,36) -> 0 | S132: n/a | T132: n/a | W132: =-VLOOKUP(A132,'pl-data'!A:BQ,52) ->  | Y132: n/a | Z132: n/a
A133: 2705 | B133: =+masterfile!D784 -> 2705 Sonstige betriebl. regelm. Erträge | D133: =-VLOOKUP(A133,'pl-data'!A:F,4) ->  | E133: =-VLOOKUP(A133,'pl-data'!A:F,5) ->  | F133: =-VLOOKUP(A133,'pl-data'!A:F,6) ->  | G133: =-VLOOKUP(A133,'pl-data'!A:G,7) ->  | H133: =-VLOOKUP(A133,'pl-data'!A:V,22) ->  | J133: =-VLOOKUP(A133,'pl-data'!A:BQ,66) ->  | K133: =-VLOOKUP(A133,'pl-data'!A:BQ,68) ->  | L133: =-VLOOKUP(A133,'pl-data'!A:BQ,69) ->  | M133: =-VLOOKUP(A133,'pl-data'!A:BR,70) ->  | N133: =-VLOOKUP(A133,'pl-data'!A:BS,71) ->  | P133: =-VLOOKUP(A133,'pl-data'!A:BQ,21) ->  | Q133: =-VLOOKUP(A133,'pl-data'!A:BQ,51) ->  | R133: =-VLOOKUP(A133,'pl-data'!A:BQ,36) -> 0 | S133: n/a | T133: n/a | W133: =-VLOOKUP(A133,'pl-data'!A:BQ,52) ->  | Y133: n/a | Z133: n/a
A134: 2707 | B134: =+masterfile!D785 -> 2707 Sonstige betriebsfr.regelm. Erträge | D134: =-VLOOKUP(A134,'pl-data'!A:F,4) ->  | E134: =-VLOOKUP(A134,'pl-data'!A:F,5) ->  | F134: =-VLOOKUP(A134,'pl-data'!A:F,6) ->  | G134: =-VLOOKUP(A134,'pl-data'!A:G,7) ->  | H134: =-VLOOKUP(A134,'pl-data'!A:V,22) ->  | J134: =-VLOOKUP(A134,'pl-data'!A:BQ,66) ->  | K134: =-VLOOKUP(A134,'pl-data'!A:BQ,68) ->  | L134: =-VLOOKUP(A134,'pl-data'!A:BQ,69) ->  | M134: =-VLOOKUP(A134,'pl-data'!A:BR,70) ->  | N134: =-VLOOKUP(A134,'pl-data'!A:BS,71) ->  | P134: =-VLOOKUP(A134,'pl-data'!A:BQ,21) ->  | Q134: =-VLOOKUP(A134,'pl-data'!A:BQ,51) ->  | R134: =-VLOOKUP(A134,'pl-data'!A:BQ,36) -> 0 | S134: n/a | T134: n/a | W134: =-VLOOKUP(A134,'pl-data'!A:BQ,52) ->  | Y134: n/a | Z134: n/a
A135: 2709 | B135: =+masterfile!D786 -> 2709 Sonstige Erträge unregelmäßig | D135: =-VLOOKUP(A135,'pl-data'!A:F,4) ->  | E135: =-VLOOKUP(A135,'pl-data'!A:F,5) ->  | F135: =-VLOOKUP(A135,'pl-data'!A:F,6) ->  | G135: =-VLOOKUP(A135,'pl-data'!A:G,7) ->  | H135: =-VLOOKUP(A135,'pl-data'!A:V,22) ->  | J135: =-VLOOKUP(A135,'pl-data'!A:BQ,66) ->  | K135: =-VLOOKUP(A135,'pl-data'!A:BQ,68) ->  | L135: =-VLOOKUP(A135,'pl-data'!A:BQ,69) ->  | M135: =-VLOOKUP(A135,'pl-data'!A:BR,70) ->  | N135: =-VLOOKUP(A135,'pl-data'!A:BS,71) ->  | P135: =-VLOOKUP(A135,'pl-data'!A:BQ,21) ->  | Q135: =-VLOOKUP(A135,'pl-data'!A:BQ,51) ->  | R135: =-VLOOKUP(A135,'pl-data'!A:BQ,36) -> 0 | S135: n/a | T135: n/a | W135: =-VLOOKUP(A135,'pl-data'!A:BQ,52) ->  | Y135: n/a | Z135: n/a
A136: 2736 | B136: =+masterfile!D805 -> 2736 Erträge Herabsetzung Verbindlichkeit | D136: =-VLOOKUP(A136,'pl-data'!A:F,4) ->  | E136: =-VLOOKUP(A136,'pl-data'!A:F,5) ->  | F136: =-VLOOKUP(A136,'pl-data'!A:F,6) ->  | G136: =-VLOOKUP(A136,'pl-data'!A:G,7) ->  | H136: =-VLOOKUP(A136,'pl-data'!A:V,22) ->  | J136: =-VLOOKUP(A136,'pl-data'!A:BQ,66) ->  | K136: =-VLOOKUP(A136,'pl-data'!A:BQ,68) ->  | L136: =-VLOOKUP(A136,'pl-data'!A:BQ,69) ->  | M136: =-VLOOKUP(A136,'pl-data'!A:BR,70) ->  | N136: =-VLOOKUP(A136,'pl-data'!A:BS,71) ->  | P136: =-VLOOKUP(A136,'pl-data'!A:BQ,21) ->  | Q136: =-VLOOKUP(A136,'pl-data'!A:BQ,51) ->  | R136: =-VLOOKUP(A136,'pl-data'!A:BQ,36) -> 0 | S136: n/a | T136: n/a | W136: =-VLOOKUP(A136,'pl-data'!A:BQ,52) ->  | Y136: n/a | Z136: n/a
A137: 2742 | B137: =+masterfile!D809 -> 2742 Versich.entschädigung, Schadenersatz | D137: =-VLOOKUP(A137,'pl-data'!A:F,4) ->  | E137: =-VLOOKUP(A137,'pl-data'!A:F,5) ->  | F137: =-VLOOKUP(A137,'pl-data'!A:F,6) ->  | G137: =-VLOOKUP(A137,'pl-data'!A:G,7) ->  | H137: =-VLOOKUP(A137,'pl-data'!A:V,22) ->  | J137: =-VLOOKUP(A137,'pl-data'!A:BQ,66) ->  | K137: =-VLOOKUP(A137,'pl-data'!A:BQ,68) ->  | L137: =-VLOOKUP(A137,'pl-data'!A:BQ,69) ->  | M137: =-VLOOKUP(A137,'pl-data'!A:BR,70) ->  | N137: =-VLOOKUP(A137,'pl-data'!A:BS,71) ->  | P137: =-VLOOKUP(A137,'pl-data'!A:BQ,21) ->  | Q137: =-VLOOKUP(A137,'pl-data'!A:BQ,51) ->  | R137: =-VLOOKUP(A137,'pl-data'!A:BQ,36) -> 0 | S137: n/a | T137: n/a | W137: =-VLOOKUP(A137,'pl-data'!A:BQ,52) ->  | Y137: n/a | Z137: n/a
A138: 2743 | B138: =+masterfile!D810 -> 2743 Investitionszuschüsse | D138: =-VLOOKUP(A138,'pl-data'!A:F,4) ->  | E138: =-VLOOKUP(A138,'pl-data'!A:F,5) ->  | F138: =-VLOOKUP(A138,'pl-data'!A:F,6) ->  | G138: =-VLOOKUP(A138,'pl-data'!A:G,7) ->  | H138: =-VLOOKUP(A138,'pl-data'!A:V,22) ->  | J138: =-VLOOKUP(A138,'pl-data'!A:BQ,66) ->  | K138: =-VLOOKUP(A138,'pl-data'!A:BQ,68) ->  | L138: =-VLOOKUP(A138,'pl-data'!A:BQ,69) ->  | M138: =-VLOOKUP(A138,'pl-data'!A:BR,70) ->  | N138: =-VLOOKUP(A138,'pl-data'!A:BS,71) ->  | P138: =-VLOOKUP(A138,'pl-data'!A:BQ,21) ->  | Q138: =-VLOOKUP(A138,'pl-data'!A:BQ,51) ->  | R138: =-VLOOKUP(A138,'pl-data'!A:BQ,36) -> 0 | S138: n/a | T138: n/a | W138: =-VLOOKUP(A138,'pl-data'!A:BQ,52) ->  | Y138: n/a | Z138: n/a
A139: 2744 | B139: =+masterfile!D811 -> 2744 Investitionszulage | D139: =-VLOOKUP(A139,'pl-data'!A:F,4) ->  | E139: =-VLOOKUP(A139,'pl-data'!A:F,5) ->  | F139: =-VLOOKUP(A139,'pl-data'!A:F,6) ->  | G139: =-VLOOKUP(A139,'pl-data'!A:G,7) ->  | H139: =-VLOOKUP(A139,'pl-data'!A:V,22) ->  | J139: =-VLOOKUP(A139,'pl-data'!A:BQ,66) ->  | K139: =-VLOOKUP(A139,'pl-data'!A:BQ,68) ->  | L139: =-VLOOKUP(A139,'pl-data'!A:BQ,69) ->  | M139: =-VLOOKUP(A139,'pl-data'!A:BR,70) ->  | N139: =-VLOOKUP(A139,'pl-data'!A:BS,71) ->  | P139: =-VLOOKUP(A139,'pl-data'!A:BQ,21) ->  | Q139: =-VLOOKUP(A139,'pl-data'!A:BQ,51) ->  | R139: =-VLOOKUP(A139,'pl-data'!A:BQ,36) -> 0 | S139: n/a | T139: n/a | W139: =-VLOOKUP(A139,'pl-data'!A:BQ,52) ->  | Y139: n/a | Z139: n/a
A140: 2747 | B140: =+masterfile!D814 -> 2747 Sonstige steuerfr. Betriebseinnahmen | D140: =-VLOOKUP(A140,'pl-data'!A:F,4) ->  | E140: =-VLOOKUP(A140,'pl-data'!A:F,5) ->  | F140: =-VLOOKUP(A140,'pl-data'!A:F,6) ->  | G140: =-VLOOKUP(A140,'pl-data'!A:G,7) ->  | H140: =-VLOOKUP(A140,'pl-data'!A:V,22) ->  | J140: =-VLOOKUP(A140,'pl-data'!A:BQ,66) ->  | K140: =-VLOOKUP(A140,'pl-data'!A:BQ,68) ->  | L140: =-VLOOKUP(A140,'pl-data'!A:BQ,69) ->  | M140: =-VLOOKUP(A140,'pl-data'!A:BR,70) ->  | N140: =-VLOOKUP(A140,'pl-data'!A:BS,71) ->  | P140: =-VLOOKUP(A140,'pl-data'!A:BQ,21) ->  | Q140: =-VLOOKUP(A140,'pl-data'!A:BQ,51) ->  | R140: =-VLOOKUP(A140,'pl-data'!A:BQ,36) -> 0 | S140: n/a | T140: n/a | W140: =-VLOOKUP(A140,'pl-data'!A:BQ,52) ->  | Y140: n/a | Z140: n/a
A141: 2749 | B141: =+masterfile!D815 -> 2749 Erstattungen AufwendungsausgleichsG | D141: =-VLOOKUP(A141,'pl-data'!A:F,4) ->  | E141: =-VLOOKUP(A141,'pl-data'!A:F,5) ->  | F141: =-VLOOKUP(A141,'pl-data'!A:F,6) ->  | G141: =-VLOOKUP(A141,'pl-data'!A:G,7) ->  | H141: =-VLOOKUP(A141,'pl-data'!A:V,22) ->  | J141: =-VLOOKUP(A141,'pl-data'!A:BQ,66) ->  | K141: =-VLOOKUP(A141,'pl-data'!A:BQ,68) ->  | L141: =-VLOOKUP(A141,'pl-data'!A:BQ,69) ->  | M141: =-VLOOKUP(A141,'pl-data'!A:BR,70) ->  | N141: =-VLOOKUP(A141,'pl-data'!A:BS,71) ->  | P141: =-VLOOKUP(A141,'pl-data'!A:BQ,21) ->  | Q141: =-VLOOKUP(A141,'pl-data'!A:BQ,51) ->  | R141: =-VLOOKUP(A141,'pl-data'!A:BQ,36) -> 0 | S141: n/a | T141: n/a | W141: =-VLOOKUP(A141,'pl-data'!A:BQ,52) ->  | Y141: n/a | Z141: n/a
A142: 8590 | B142: =+masterfile!D1287 -> 8590 Verr. sonstige Sachbezüge (keine Waren) | D142: =-VLOOKUP(A142,'pl-data'!A:F,4) ->  | E142: =-VLOOKUP(A142,'pl-data'!A:F,5) ->  | F142: =-VLOOKUP(A142,'pl-data'!A:F,6) ->  | G142: =-VLOOKUP(A142,'pl-data'!A:G,7) ->  | H142: =-VLOOKUP(A142,'pl-data'!A:V,22) ->  | J142: =-VLOOKUP(A142,'pl-data'!A:BQ,66) ->  | K142: =-VLOOKUP(A142,'pl-data'!A:BQ,68) ->  | L142: =-VLOOKUP(A142,'pl-data'!A:BQ,69) ->  | M142: =-VLOOKUP(A142,'pl-data'!A:BR,70) ->  | N142: =-VLOOKUP(A142,'pl-data'!A:BS,71) ->  | P142: =-VLOOKUP(A142,'pl-data'!A:BQ,21) ->  | Q142: =-VLOOKUP(A142,'pl-data'!A:BQ,51) ->  | R142: =-VLOOKUP(A142,'pl-data'!A:BQ,36) -> 0 | S142: n/a | T142: n/a | W142: =-VLOOKUP(A142,'pl-data'!A:BQ,52) ->  | Y142: n/a | Z142: n/a
A143: 8591 | B143: =+masterfile!D1288 -> 8591 Sachbezüge 7% USt (Waren) | D143: =-VLOOKUP(A143,'pl-data'!A:F,4) ->  | E143: =-VLOOKUP(A143,'pl-data'!A:F,5) ->  | F143: =-VLOOKUP(A143,'pl-data'!A:F,6) ->  | G143: =-VLOOKUP(A143,'pl-data'!A:G,7) ->  | H143: =-VLOOKUP(A143,'pl-data'!A:V,22) ->  | J143: =-VLOOKUP(A143,'pl-data'!A:BQ,66) ->  | K143: =-VLOOKUP(A143,'pl-data'!A:BQ,68) ->  | L143: =-VLOOKUP(A143,'pl-data'!A:BQ,69) ->  | M143: =-VLOOKUP(A143,'pl-data'!A:BR,70) ->  | N143: =-VLOOKUP(A143,'pl-data'!A:BS,71) ->  | P143: =-VLOOKUP(A143,'pl-data'!A:BQ,21) ->  | Q143: =-VLOOKUP(A143,'pl-data'!A:BQ,51) ->  | R143: =-VLOOKUP(A143,'pl-data'!A:BQ,36) -> 0 | S143: n/a | T143: n/a | W143: =-VLOOKUP(A143,'pl-data'!A:BQ,52) ->  | Y143: n/a | Z143: n/a
A144: 8595 | B144: =+masterfile!D1289 -> 8595 Sachbezüge 19% USt (Waren) | D144: =-VLOOKUP(A144,'pl-data'!A:F,4) ->  | E144: =-VLOOKUP(A144,'pl-data'!A:F,5) ->  | F144: =-VLOOKUP(A144,'pl-data'!A:F,6) ->  | G144: =-VLOOKUP(A144,'pl-data'!A:G,7) ->  | H144: =-VLOOKUP(A144,'pl-data'!A:V,22) ->  | J144: =-VLOOKUP(A144,'pl-data'!A:BQ,66) ->  | K144: =-VLOOKUP(A144,'pl-data'!A:BQ,68) ->  | L144: =-VLOOKUP(A144,'pl-data'!A:BQ,69) ->  | M144: =-VLOOKUP(A144,'pl-data'!A:BR,70) ->  | N144: =-VLOOKUP(A144,'pl-data'!A:BS,71) ->  | P144: =-VLOOKUP(A144,'pl-data'!A:BQ,21) ->  | Q144: =-VLOOKUP(A144,'pl-data'!A:BQ,51) ->  | R144: =-VLOOKUP(A144,'pl-data'!A:BQ,36) -> 0 | S144: n/a | T144: n/a | W144: =-VLOOKUP(A144,'pl-data'!A:BQ,52) ->  | Y144: n/a | Z144: n/a
A145: 8600 | B145: =+masterfile!D1290 -> 8600 Sonst. Erlöse betr. u. regelmäßig | D145: =-VLOOKUP(A145,'pl-data'!A:F,4) ->  | E145: =-VLOOKUP(A145,'pl-data'!A:F,5) ->  | F145: =-VLOOKUP(A145,'pl-data'!A:F,6) ->  | G145: =-VLOOKUP(A145,'pl-data'!A:G,7) ->  | H145: =-VLOOKUP(A145,'pl-data'!A:V,22) ->  | J145: =-VLOOKUP(A145,'pl-data'!A:BQ,66) ->  | K145: =-VLOOKUP(A145,'pl-data'!A:BQ,68) ->  | L145: =-VLOOKUP(A145,'pl-data'!A:BQ,69) ->  | M145: =-VLOOKUP(A145,'pl-data'!A:BR,70) ->  | N145: =-VLOOKUP(A145,'pl-data'!A:BS,71) ->  | P145: =-VLOOKUP(A145,'pl-data'!A:BQ,21) ->  | Q145: =-VLOOKUP(A145,'pl-data'!A:BQ,51) ->  | R145: =-VLOOKUP(A145,'pl-data'!A:BQ,36) -> 0 | S145: n/a | T145: n/a | W145: =-VLOOKUP(A145,'pl-data'!A:BQ,52) ->  | Y145: n/a | Z145: n/a
A146: 8603 | B146: =+masterfile!D1291 -> 8603 Sonstige betriebliche Erträge | D146: =-VLOOKUP(A146,'pl-data'!A:F,4) ->  | E146: =-VLOOKUP(A146,'pl-data'!A:F,5) ->  | F146: =-VLOOKUP(A146,'pl-data'!A:F,6) ->  | G146: =-VLOOKUP(A146,'pl-data'!A:G,7) ->  | H146: =-VLOOKUP(A146,'pl-data'!A:V,22) ->  | J146: =-VLOOKUP(A146,'pl-data'!A:BQ,66) ->  | K146: =-VLOOKUP(A146,'pl-data'!A:BQ,68) ->  | L146: =-VLOOKUP(A146,'pl-data'!A:BQ,69) ->  | M146: =-VLOOKUP(A146,'pl-data'!A:BR,70) ->  | N146: =-VLOOKUP(A146,'pl-data'!A:BS,71) ->  | P146: =-VLOOKUP(A146,'pl-data'!A:BQ,21) ->  | Q146: =-VLOOKUP(A146,'pl-data'!A:BQ,51) ->  | R146: =-VLOOKUP(A146,'pl-data'!A:BQ,36) -> 0 | S146: n/a | T146: n/a | W146: =-VLOOKUP(A146,'pl-data'!A:BQ,52) ->  | Y146: n/a | Z146: n/a
A147: 8604 | B147: =+masterfile!D1292 -> 8604 Erstattete Vorsteuer anderer Länder | D147: =-VLOOKUP(A147,'pl-data'!A:F,4) ->  | E147: =-VLOOKUP(A147,'pl-data'!A:F,5) ->  | F147: =-VLOOKUP(A147,'pl-data'!A:F,6) ->  | G147: =-VLOOKUP(A147,'pl-data'!A:G,7) ->  | H147: =-VLOOKUP(A147,'pl-data'!A:V,22) ->  | J147: =-VLOOKUP(A147,'pl-data'!A:BQ,66) ->  | K147: =-VLOOKUP(A147,'pl-data'!A:BQ,68) ->  | L147: =-VLOOKUP(A147,'pl-data'!A:BQ,69) ->  | M147: =-VLOOKUP(A147,'pl-data'!A:BR,70) ->  | N147: =-VLOOKUP(A147,'pl-data'!A:BS,71) ->  | P147: =-VLOOKUP(A147,'pl-data'!A:BQ,21) ->  | Q147: =-VLOOKUP(A147,'pl-data'!A:BQ,51) ->  | R147: =-VLOOKUP(A147,'pl-data'!A:BQ,36) -> 0 | S147: n/a | T147: n/a | W147: =-VLOOKUP(A147,'pl-data'!A:BQ,52) ->  | Y147: n/a | Z147: n/a
A148: 8605 | B148: =+masterfile!D1293 -> 8605 Sonst. Erträge betriebl. und regelmäßig | D148: =-VLOOKUP(A148,'pl-data'!A:F,4) ->  | E148: =-VLOOKUP(A148,'pl-data'!A:F,5) ->  | F148: =-VLOOKUP(A148,'pl-data'!A:F,6) ->  | G148: =-VLOOKUP(A148,'pl-data'!A:G,7) ->  | H148: =-VLOOKUP(A148,'pl-data'!A:V,22) ->  | J148: =-VLOOKUP(A148,'pl-data'!A:BQ,66) ->  | K148: =-VLOOKUP(A148,'pl-data'!A:BQ,68) ->  | L148: =-VLOOKUP(A148,'pl-data'!A:BQ,69) ->  | M148: =-VLOOKUP(A148,'pl-data'!A:BR,70) ->  | N148: =-VLOOKUP(A148,'pl-data'!A:BS,71) ->  | P148: =-VLOOKUP(A148,'pl-data'!A:BQ,21) ->  | Q148: =-VLOOKUP(A148,'pl-data'!A:BQ,51) ->  | R148: =-VLOOKUP(A148,'pl-data'!A:BQ,36) -> 0 | S148: n/a | T148: n/a | W148: =-VLOOKUP(A148,'pl-data'!A:BQ,52) ->  | Y148: n/a | Z148: n/a
A149: 8606 | B149: =+masterfile!D1294 -> 8606 Sonstige betriebliche Erträge verbUN | D149: =-VLOOKUP(A149,'pl-data'!A:F,4) ->  | E149: =-VLOOKUP(A149,'pl-data'!A:F,5) ->  | F149: =-VLOOKUP(A149,'pl-data'!A:F,6) ->  | G149: =-VLOOKUP(A149,'pl-data'!A:G,7) ->  | H149: =-VLOOKUP(A149,'pl-data'!A:V,22) ->  | J149: =-VLOOKUP(A149,'pl-data'!A:BQ,66) ->  | K149: =-VLOOKUP(A149,'pl-data'!A:BQ,68) ->  | L149: =-VLOOKUP(A149,'pl-data'!A:BQ,69) ->  | M149: =-VLOOKUP(A149,'pl-data'!A:BR,70) ->  | N149: =-VLOOKUP(A149,'pl-data'!A:BS,71) ->  | P149: =-VLOOKUP(A149,'pl-data'!A:BQ,21) ->  | Q149: =-VLOOKUP(A149,'pl-data'!A:BQ,51) ->  | R149: =-VLOOKUP(A149,'pl-data'!A:BQ,36) -> 0 | S149: n/a | T149: n/a | W149: =-VLOOKUP(A149,'pl-data'!A:BQ,52) ->  | Y149: n/a | Z149: n/a
A150: 8609 | B150: =+masterfile!D1296 -> 8609 Sonstige Erträge stfrei §4 Nr.8 ff.UStG | D150: =-VLOOKUP(A150,'pl-data'!A:F,4) ->  | E150: =-VLOOKUP(A150,'pl-data'!A:F,5) ->  | F150: =-VLOOKUP(A150,'pl-data'!A:F,6) ->  | G150: =-VLOOKUP(A150,'pl-data'!A:G,7) ->  | H150: =-VLOOKUP(A150,'pl-data'!A:V,22) ->  | J150: =-VLOOKUP(A150,'pl-data'!A:BQ,66) ->  | K150: =-VLOOKUP(A150,'pl-data'!A:BQ,68) ->  | L150: =-VLOOKUP(A150,'pl-data'!A:BQ,69) ->  | M150: =-VLOOKUP(A150,'pl-data'!A:BR,70) ->  | N150: =-VLOOKUP(A150,'pl-data'!A:BS,71) ->  | P150: =-VLOOKUP(A150,'pl-data'!A:BQ,21) ->  | Q150: =-VLOOKUP(A150,'pl-data'!A:BQ,51) ->  | R150: =-VLOOKUP(A150,'pl-data'!A:BQ,36) -> 0 | S150: n/a | T150: n/a | W150: =-VLOOKUP(A150,'pl-data'!A:BQ,52) ->  | Y150: n/a | Z150: n/a
A151: 8610 | B151: =+masterfile!D1297 -> 8610 Verrechnete sonstige Sachbezüge | D151: =-VLOOKUP(A151,'pl-data'!A:F,4) ->  | E151: =-VLOOKUP(A151,'pl-data'!A:F,5) ->  | F151: =-VLOOKUP(A151,'pl-data'!A:F,6) ->  | G151: =-VLOOKUP(A151,'pl-data'!A:G,7) ->  | H151: =-VLOOKUP(A151,'pl-data'!A:V,22) ->  | J151: =-VLOOKUP(A151,'pl-data'!A:BQ,66) ->  | K151: =-VLOOKUP(A151,'pl-data'!A:BQ,68) ->  | L151: =-VLOOKUP(A151,'pl-data'!A:BQ,69) ->  | M151: =-VLOOKUP(A151,'pl-data'!A:BR,70) ->  | N151: =-VLOOKUP(A151,'pl-data'!A:BS,71) ->  | P151: =-VLOOKUP(A151,'pl-data'!A:BQ,21) ->  | Q151: =-VLOOKUP(A151,'pl-data'!A:BQ,51) ->  | R151: =-VLOOKUP(A151,'pl-data'!A:BQ,36) -> 0 | S151: n/a | T151: n/a | W151: =-VLOOKUP(A151,'pl-data'!A:BQ,52) ->  | Y151: n/a | Z151: n/a
A152: 8611 | B152: =+masterfile!D1298 -> 8611 Verrech. sonstige Sachbezüge Kfz 19% USt | D152: =-VLOOKUP(A152,'pl-data'!A:F,4) ->  | E152: =-VLOOKUP(A152,'pl-data'!A:F,5) ->  | F152: =-VLOOKUP(A152,'pl-data'!A:F,6) ->  | G152: =-VLOOKUP(A152,'pl-data'!A:G,7) ->  | H152: =-VLOOKUP(A152,'pl-data'!A:V,22) ->  | J152: =-VLOOKUP(A152,'pl-data'!A:BQ,66) ->  | K152: =-VLOOKUP(A152,'pl-data'!A:BQ,68) ->  | L152: =-VLOOKUP(A152,'pl-data'!A:BQ,69) ->  | M152: =-VLOOKUP(A152,'pl-data'!A:BR,70) ->  | N152: =-VLOOKUP(A152,'pl-data'!A:BS,71) ->  | P152: =-VLOOKUP(A152,'pl-data'!A:BQ,21) ->  | Q152: =-VLOOKUP(A152,'pl-data'!A:BQ,51) ->  | R152: =-VLOOKUP(A152,'pl-data'!A:BQ,36) -> 0 | S152: n/a | T152: n/a | W152: =-VLOOKUP(A152,'pl-data'!A:BQ,52) ->  | Y152: n/a | Z152: n/a
A153: 8613 | B153: =+masterfile!D1299 -> 8613 Verrechn. sonstige Sachbezüge 19% USt | D153: =-VLOOKUP(A153,'pl-data'!A:F,4) ->  | E153: =-VLOOKUP(A153,'pl-data'!A:F,5) ->  | F153: =-VLOOKUP(A153,'pl-data'!A:F,6) ->  | G153: =-VLOOKUP(A153,'pl-data'!A:G,7) ->  | H153: =-VLOOKUP(A153,'pl-data'!A:V,22) ->  | J153: =-VLOOKUP(A153,'pl-data'!A:BQ,66) ->  | K153: =-VLOOKUP(A153,'pl-data'!A:BQ,68) ->  | L153: =-VLOOKUP(A153,'pl-data'!A:BQ,69) ->  | M153: =-VLOOKUP(A153,'pl-data'!A:BR,70) ->  | N153: =-VLOOKUP(A153,'pl-data'!A:BS,71) ->  | P153: =-VLOOKUP(A153,'pl-data'!A:BQ,21) ->  | Q153: =-VLOOKUP(A153,'pl-data'!A:BQ,51) ->  | R153: =-VLOOKUP(A153,'pl-data'!A:BQ,36) -> 0 | S153: n/a | T153: n/a | W153: =-VLOOKUP(A153,'pl-data'!A:BQ,52) ->  | Y153: n/a | Z153: n/a
A154: 8614 | B154: =+masterfile!D1300 -> 8614 Verrechn. sonstige Sachbezüge ohne USt | D154: =-VLOOKUP(A154,'pl-data'!A:F,4) ->  | E154: =-VLOOKUP(A154,'pl-data'!A:F,5) ->  | F154: =-VLOOKUP(A154,'pl-data'!A:F,6) ->  | G154: =-VLOOKUP(A154,'pl-data'!A:G,7) ->  | H154: =-VLOOKUP(A154,'pl-data'!A:V,22) ->  | J154: =-VLOOKUP(A154,'pl-data'!A:BQ,66) ->  | K154: =-VLOOKUP(A154,'pl-data'!A:BQ,68) ->  | L154: =-VLOOKUP(A154,'pl-data'!A:BQ,69) ->  | M154: =-VLOOKUP(A154,'pl-data'!A:BR,70) ->  | N154: =-VLOOKUP(A154,'pl-data'!A:BS,71) ->  | P154: =-VLOOKUP(A154,'pl-data'!A:BQ,21) ->  | Q154: =-VLOOKUP(A154,'pl-data'!A:BQ,51) ->  | R154: =-VLOOKUP(A154,'pl-data'!A:BQ,36) -> 0 | S154: n/a | T154: n/a | W154: =-VLOOKUP(A154,'pl-data'!A:BQ,52) ->  | Y154: n/a | Z154: n/a
A155: 8625 | B155: =+masterfile!D1301 -> 8625 Sonst. Erträge betr.u. regelmäßig stfrei | D155: =-VLOOKUP(A155,'pl-data'!A:F,4) ->  | E155: =-VLOOKUP(A155,'pl-data'!A:F,5) ->  | F155: =-VLOOKUP(A155,'pl-data'!A:F,6) ->  | G155: =-VLOOKUP(A155,'pl-data'!A:G,7) ->  | H155: =-VLOOKUP(A155,'pl-data'!A:V,22) ->  | J155: =-VLOOKUP(A155,'pl-data'!A:BQ,66) ->  | K155: =-VLOOKUP(A155,'pl-data'!A:BQ,68) ->  | L155: =-VLOOKUP(A155,'pl-data'!A:BQ,69) ->  | M155: =-VLOOKUP(A155,'pl-data'!A:BR,70) ->  | N155: =-VLOOKUP(A155,'pl-data'!A:BS,71) ->  | P155: =-VLOOKUP(A155,'pl-data'!A:BQ,21) ->  | Q155: =-VLOOKUP(A155,'pl-data'!A:BQ,51) ->  | R155: =-VLOOKUP(A155,'pl-data'!A:BQ,36) -> 0 | S155: n/a | T155: n/a | W155: =-VLOOKUP(A155,'pl-data'!A:BQ,52) ->  | Y155: n/a | Z155: n/a
A156: 8630 | B156: =+masterfile!D1302 -> 8630 Sonst. Erträge betriebl., regelm.7% USt | D156: =-VLOOKUP(A156,'pl-data'!A:F,4) ->  | E156: =-VLOOKUP(A156,'pl-data'!A:F,5) ->  | F156: =-VLOOKUP(A156,'pl-data'!A:F,6) ->  | G156: =-VLOOKUP(A156,'pl-data'!A:G,7) ->  | H156: =-VLOOKUP(A156,'pl-data'!A:V,22) ->  | J156: =-VLOOKUP(A156,'pl-data'!A:BQ,66) ->  | K156: =-VLOOKUP(A156,'pl-data'!A:BQ,68) ->  | L156: =-VLOOKUP(A156,'pl-data'!A:BQ,69) ->  | M156: =-VLOOKUP(A156,'pl-data'!A:BR,70) ->  | N156: =-VLOOKUP(A156,'pl-data'!A:BS,71) ->  | P156: =-VLOOKUP(A156,'pl-data'!A:BQ,21) ->  | Q156: =-VLOOKUP(A156,'pl-data'!A:BQ,51) ->  | R156: =-VLOOKUP(A156,'pl-data'!A:BQ,36) -> 0 | S156: n/a | T156: n/a | W156: =-VLOOKUP(A156,'pl-data'!A:BQ,52) ->  | Y156: n/a | Z156: n/a
A157: 8640 | B157: =+masterfile!D1303 -> 8640 Sonst. Erträge betriebl,, regelm.19% USt | D157: =-VLOOKUP(A157,'pl-data'!A:F,4) ->  | E157: =-VLOOKUP(A157,'pl-data'!A:F,5) ->  | F157: =-VLOOKUP(A157,'pl-data'!A:F,6) ->  | G157: =-VLOOKUP(A157,'pl-data'!A:G,7) ->  | H157: =-VLOOKUP(A157,'pl-data'!A:V,22) ->  | J157: =-VLOOKUP(A157,'pl-data'!A:BQ,66) ->  | K157: =-VLOOKUP(A157,'pl-data'!A:BQ,68) ->  | L157: =-VLOOKUP(A157,'pl-data'!A:BQ,69) ->  | M157: =-VLOOKUP(A157,'pl-data'!A:BR,70) ->  | N157: =-VLOOKUP(A157,'pl-data'!A:BS,71) ->  | P157: =-VLOOKUP(A157,'pl-data'!A:BQ,21) ->  | Q157: =-VLOOKUP(A157,'pl-data'!A:BQ,51) ->  | R157: =-VLOOKUP(A157,'pl-data'!A:BQ,36) -> 0 | S157: n/a | T157: n/a | W157: =-VLOOKUP(A157,'pl-data'!A:BQ,52) ->  | Y157: n/a | Z157: n/a
A159: Erträge aus Abgängen | B159: Erträge aus Abgängen | D159: =+SUM(D160:D191) ->  | E159: =+SUM(E160:E191) ->  | F159: =+SUM(F160:F191) ->  | G159: =+SUM(G160:G191) ->  | M159: =+SUM(M160:M191) ->  | P159: =+SUM(P160:P191) ->  | R159: 0 | S159: =IFERROR(R159/Q159-1,"n/a") -> n/a | T159: =IFERROR(R159/P159-1,"n/a") -> n/a | V159: =+SUM(V160:V191) ->  | Y159: =IFERROR(X159/W159-1,"n/a") -> n/a | Z159: =IFERROR(X159/V159-1,"n/a") -> n/a
A160: 2315 | B160: =+masterfile!D680 -> 2315 Abgänge Sachanlagen Restbuchwert bei BG | D160: =-VLOOKUP(A160,'pl-data'!A:F,4) ->  | E160: =-VLOOKUP(A160,'pl-data'!A:F,5) ->  | F160: =-VLOOKUP(A160,'pl-data'!A:F,6) ->  | G160: =-VLOOKUP(A160,'pl-data'!A:G,7) ->  | H160: =-VLOOKUP(A160,'pl-data'!A:V,22) ->  | I160: =+W160+R160-Q160 ->  | J160: =-VLOOKUP(A160,'pl-data'!A:BQ,66) ->  | K160: =-VLOOKUP(A160,'pl-data'!A:BQ,68) ->  | L160: =-VLOOKUP(A160,'pl-data'!A:BQ,69) ->  | M160: =-VLOOKUP(A160,'pl-data'!A:BR,70) ->  | N160: =-VLOOKUP(A160,'pl-data'!A:BS,71) ->  | P160: =-VLOOKUP(A160,'pl-data'!A:BQ,21) ->  | Q160: =-VLOOKUP(A160,'pl-data'!A:BQ,51) ->  | R160: =-VLOOKUP(A160,'pl-data'!A:BQ,36) -> 0 | S160: n/a | T160: n/a | V160: =+H160 ->  | W160: =-VLOOKUP(A160,'pl-data'!A:BQ,52) ->  | X160: =+I160 ->  | Y160: n/a | Z160: n/a
A161: 2316 | B161: =+masterfile!D681 -> 2316 Abgang immaterielle VermögensG, RBW, BG | D161: =-VLOOKUP(A161,'pl-data'!A:F,4) ->  | E161: =-VLOOKUP(A161,'pl-data'!A:F,5) ->  | F161: =-VLOOKUP(A161,'pl-data'!A:F,6) ->  | G161: =-VLOOKUP(A161,'pl-data'!A:G,7) ->  | H161: =-VLOOKUP(A161,'pl-data'!A:V,22) ->  | J161: =-VLOOKUP(A161,'pl-data'!A:BQ,66) ->  | K161: =-VLOOKUP(A161,'pl-data'!A:BQ,68) ->  | L161: =-VLOOKUP(A161,'pl-data'!A:BQ,69) ->  | M161: =-VLOOKUP(A161,'pl-data'!A:BR,70) ->  | N161: =-VLOOKUP(A161,'pl-data'!A:BS,71) ->  | P161: =-VLOOKUP(A161,'pl-data'!A:BQ,21) ->  | Q161: =-VLOOKUP(A161,'pl-data'!A:BQ,51) ->  | R161: =-VLOOKUP(A161,'pl-data'!A:BQ,36) -> 0 | S161: n/a | T161: n/a | W161: =-VLOOKUP(A161,'pl-data'!A:BQ,52) ->  | Y161: n/a | Z161: n/a
A162: 2317 | B162: =+masterfile!D682 -> 2317 Abgänge Finanzanlagen Restbuchwert, BG | D162: =-VLOOKUP(A162,'pl-data'!A:F,4) ->  | E162: =-VLOOKUP(A162,'pl-data'!A:F,5) ->  | F162: =-VLOOKUP(A162,'pl-data'!A:F,6) ->  | G162: =-VLOOKUP(A162,'pl-data'!A:G,7) ->  | H162: =-VLOOKUP(A162,'pl-data'!A:V,22) ->  | J162: =-VLOOKUP(A162,'pl-data'!A:BQ,66) ->  | K162: =-VLOOKUP(A162,'pl-data'!A:BQ,68) ->  | L162: =-VLOOKUP(A162,'pl-data'!A:BQ,69) ->  | M162: =-VLOOKUP(A162,'pl-data'!A:BR,70) ->  | N162: =-VLOOKUP(A162,'pl-data'!A:BS,71) ->  | P162: =-VLOOKUP(A162,'pl-data'!A:BQ,21) ->  | Q162: =-VLOOKUP(A162,'pl-data'!A:BQ,51) ->  | R162: =-VLOOKUP(A162,'pl-data'!A:BQ,36) -> 0 | S162: n/a | T162: n/a | W162: =-VLOOKUP(A162,'pl-data'!A:BQ,52) ->  | Y162: n/a | Z162: n/a
A163: 2318 | B163: =+masterfile!D683 -> 2318 Abgänge Finanzanlagen RBW z.T. stf.,BG | D163: =-VLOOKUP(A163,'pl-data'!A:F,4) ->  | E163: =-VLOOKUP(A163,'pl-data'!A:F,5) ->  | F163: =-VLOOKUP(A163,'pl-data'!A:F,6) ->  | G163: =-VLOOKUP(A163,'pl-data'!A:G,7) ->  | H163: =-VLOOKUP(A163,'pl-data'!A:V,22) ->  | J163: =-VLOOKUP(A163,'pl-data'!A:BQ,66) ->  | K163: =-VLOOKUP(A163,'pl-data'!A:BQ,68) ->  | L163: =-VLOOKUP(A163,'pl-data'!A:BQ,69) ->  | M163: =-VLOOKUP(A163,'pl-data'!A:BR,70) ->  | N163: =-VLOOKUP(A163,'pl-data'!A:BS,71) ->  | P163: =-VLOOKUP(A163,'pl-data'!A:BQ,21) ->  | Q163: =-VLOOKUP(A163,'pl-data'!A:BQ,51) ->  | R163: =-VLOOKUP(A163,'pl-data'!A:BQ,36) -> 0 | S163: n/a | T163: n/a | W163: =-VLOOKUP(A163,'pl-data'!A:BQ,52) ->  | Y163: n/a | Z163: n/a
A164: 2720 | B164: =+masterfile!D794 -> 2720 Erträge aus Abgang von AV-Gegenständen | D164: =-VLOOKUP(A164,'pl-data'!A:F,4) ->  | E164: =-VLOOKUP(A164,'pl-data'!A:F,5) ->  | F164: =-VLOOKUP(A164,'pl-data'!A:F,6) ->  | G164: =-VLOOKUP(A164,'pl-data'!A:G,7) ->  | H164: =-VLOOKUP(A164,'pl-data'!A:V,22) ->  | J164: =-VLOOKUP(A164,'pl-data'!A:BQ,66) ->  | K164: =-VLOOKUP(A164,'pl-data'!A:BQ,68) ->  | L164: =-VLOOKUP(A164,'pl-data'!A:BQ,69) ->  | M164: =-VLOOKUP(A164,'pl-data'!A:BR,70) ->  | N164: =-VLOOKUP(A164,'pl-data'!A:BS,71) ->  | P164: =-VLOOKUP(A164,'pl-data'!A:BQ,21) ->  | Q164: =-VLOOKUP(A164,'pl-data'!A:BQ,51) ->  | R164: =-VLOOKUP(A164,'pl-data'!A:BQ,36) -> 0 | S164: n/a | T164: n/a | W164: =-VLOOKUP(A164,'pl-data'!A:BQ,52) ->  | Y164: n/a | Z164: n/a
A165: 2723 | B165: =+masterfile!D795 -> 2723 Erträge Veräuß.Ant. KapGes z.T. stfrei | D165: =-VLOOKUP(A165,'pl-data'!A:F,4) ->  | E165: =-VLOOKUP(A165,'pl-data'!A:F,5) ->  | F165: =-VLOOKUP(A165,'pl-data'!A:F,6) ->  | G165: =-VLOOKUP(A165,'pl-data'!A:G,7) ->  | H165: =-VLOOKUP(A165,'pl-data'!A:V,22) ->  | J165: =-VLOOKUP(A165,'pl-data'!A:BQ,66) ->  | K165: =-VLOOKUP(A165,'pl-data'!A:BQ,68) ->  | L165: =-VLOOKUP(A165,'pl-data'!A:BQ,69) ->  | M165: =-VLOOKUP(A165,'pl-data'!A:BR,70) ->  | N165: =-VLOOKUP(A165,'pl-data'!A:BS,71) ->  | P165: =-VLOOKUP(A165,'pl-data'!A:BQ,21) ->  | Q165: =-VLOOKUP(A165,'pl-data'!A:BQ,51) ->  | R165: =-VLOOKUP(A165,'pl-data'!A:BQ,36) -> 0 | S165: n/a | T165: n/a | W165: =-VLOOKUP(A165,'pl-data'!A:BQ,52) ->  | Y165: n/a | Z165: n/a
A166: 2725 | B166: =+masterfile!D796 -> 2725 Erträge aus Abgang von UV-Gegenständen | D166: =-VLOOKUP(A166,'pl-data'!A:F,4) ->  | E166: =-VLOOKUP(A166,'pl-data'!A:F,5) ->  | F166: =-VLOOKUP(A166,'pl-data'!A:F,6) ->  | G166: =-VLOOKUP(A166,'pl-data'!A:G,7) ->  | H166: =-VLOOKUP(A166,'pl-data'!A:V,22) ->  | J166: =-VLOOKUP(A166,'pl-data'!A:BQ,66) ->  | K166: =-VLOOKUP(A166,'pl-data'!A:BQ,68) ->  | L166: =-VLOOKUP(A166,'pl-data'!A:BQ,69) ->  | M166: =-VLOOKUP(A166,'pl-data'!A:BR,70) ->  | N166: =-VLOOKUP(A166,'pl-data'!A:BS,71) ->  | P166: =-VLOOKUP(A166,'pl-data'!A:BQ,21) ->  | Q166: =-VLOOKUP(A166,'pl-data'!A:BQ,51) ->  | R166: =-VLOOKUP(A166,'pl-data'!A:BQ,36) -> 0 | S166: n/a | T166: n/a | W166: =-VLOOKUP(A166,'pl-data'!A:BQ,52) ->  | Y166: n/a | Z166: n/a
A167: 2726 | B167: =+masterfile!D797 -> 2726 Erträge aus Abgang UV z.T. steuerfrei | D167: =-VLOOKUP(A167,'pl-data'!A:F,4) ->  | E167: =-VLOOKUP(A167,'pl-data'!A:F,5) ->  | F167: =-VLOOKUP(A167,'pl-data'!A:F,6) ->  | G167: =-VLOOKUP(A167,'pl-data'!A:G,7) ->  | H167: =-VLOOKUP(A167,'pl-data'!A:V,22) ->  | J167: =-VLOOKUP(A167,'pl-data'!A:BQ,66) ->  | K167: =-VLOOKUP(A167,'pl-data'!A:BQ,68) ->  | L167: =-VLOOKUP(A167,'pl-data'!A:BQ,69) ->  | M167: =-VLOOKUP(A167,'pl-data'!A:BR,70) ->  | N167: =-VLOOKUP(A167,'pl-data'!A:BS,71) ->  | P167: =-VLOOKUP(A167,'pl-data'!A:BQ,21) ->  | Q167: =-VLOOKUP(A167,'pl-data'!A:BQ,51) ->  | R167: =-VLOOKUP(A167,'pl-data'!A:BQ,36) -> 0 | S167: n/a | T167: n/a | W167: =-VLOOKUP(A167,'pl-data'!A:BQ,52) ->  | Y167: n/a | Z167: n/a
A168: 2762 | B168: =+masterfile!D820 -> 2762 Kostenerstatt.,Rückvergütg. früh. Jahre | D168: =-VLOOKUP(A168,'pl-data'!A:F,4) ->  | E168: =-VLOOKUP(A168,'pl-data'!A:F,5) ->  | F168: =-VLOOKUP(A168,'pl-data'!A:F,6) ->  | G168: =-VLOOKUP(A168,'pl-data'!A:G,7) ->  | H168: =-VLOOKUP(A168,'pl-data'!A:V,22) ->  | J168: =-VLOOKUP(A168,'pl-data'!A:BQ,66) ->  | K168: =-VLOOKUP(A168,'pl-data'!A:BQ,68) ->  | L168: =-VLOOKUP(A168,'pl-data'!A:BQ,69) ->  | M168: =-VLOOKUP(A168,'pl-data'!A:BR,70) ->  | N168: =-VLOOKUP(A168,'pl-data'!A:BS,71) ->  | P168: =-VLOOKUP(A168,'pl-data'!A:BQ,21) ->  | Q168: =-VLOOKUP(A168,'pl-data'!A:BQ,51) ->  | R168: =-VLOOKUP(A168,'pl-data'!A:BQ,36) -> 0 | S168: n/a | T168: n/a | W168: =-VLOOKUP(A168,'pl-data'!A:BQ,52) ->  | Y168: n/a | Z168: n/a
A169: 8820 | B169: =+masterfile!D1346 -> 8820 Erlöse Sachanlageverkäufe 19% USt, BG | D169: =-VLOOKUP(A169,'pl-data'!A:F,4) ->  | E169: =-VLOOKUP(A169,'pl-data'!A:F,5) ->  | F169: =-VLOOKUP(A169,'pl-data'!A:F,6) ->  | G169: =-VLOOKUP(A169,'pl-data'!A:G,7) ->  | H169: =-VLOOKUP(A169,'pl-data'!A:V,22) ->  | J169: =-VLOOKUP(A169,'pl-data'!A:BQ,66) ->  | K169: =-VLOOKUP(A169,'pl-data'!A:BQ,68) ->  | L169: =-VLOOKUP(A169,'pl-data'!A:BQ,69) ->  | M169: =-VLOOKUP(A169,'pl-data'!A:BR,70) ->  | N169: =-VLOOKUP(A169,'pl-data'!A:BS,71) ->  | P169: =-VLOOKUP(A169,'pl-data'!A:BQ,21) ->  | Q169: =-VLOOKUP(A169,'pl-data'!A:BQ,51) ->  | R169: =-VLOOKUP(A169,'pl-data'!A:BQ,36) -> 0 | S169: n/a | T169: n/a | W169: =-VLOOKUP(A169,'pl-data'!A:BQ,52) ->  | Y169: n/a | Z169: n/a
A170: 8827 | B170: =+masterfile!D1347 -> 8827 Erl. Sachanlageverk.§ 4 Nr.1a UStG,Buchg | D170: =-VLOOKUP(A170,'pl-data'!A:F,4) ->  | E170: =-VLOOKUP(A170,'pl-data'!A:F,5) ->  | F170: =-VLOOKUP(A170,'pl-data'!A:F,6) ->  | G170: =-VLOOKUP(A170,'pl-data'!A:G,7) ->  | H170: =-VLOOKUP(A170,'pl-data'!A:V,22) ->  | J170: =-VLOOKUP(A170,'pl-data'!A:BQ,66) ->  | K170: =-VLOOKUP(A170,'pl-data'!A:BQ,68) ->  | L170: =-VLOOKUP(A170,'pl-data'!A:BQ,69) ->  | M170: =-VLOOKUP(A170,'pl-data'!A:BR,70) ->  | N170: =-VLOOKUP(A170,'pl-data'!A:BS,71) ->  | P170: =-VLOOKUP(A170,'pl-data'!A:BQ,21) ->  | Q170: =-VLOOKUP(A170,'pl-data'!A:BQ,51) ->  | R170: =-VLOOKUP(A170,'pl-data'!A:BQ,36) -> 0 | S170: n/a | T170: n/a | W170: =-VLOOKUP(A170,'pl-data'!A:BQ,52) ->  | Y170: n/a | Z170: n/a
A171: 8828 | B171: =+masterfile!D1348 -> 8828 Erl. Sachanlageverk.§ 4 Nr.1b UStG,Buchg | D171: =-VLOOKUP(A171,'pl-data'!A:F,4) ->  | E171: =-VLOOKUP(A171,'pl-data'!A:F,5) ->  | F171: =-VLOOKUP(A171,'pl-data'!A:F,6) ->  | G171: =-VLOOKUP(A171,'pl-data'!A:G,7) ->  | H171: =-VLOOKUP(A171,'pl-data'!A:V,22) ->  | J171: =-VLOOKUP(A171,'pl-data'!A:BQ,66) ->  | K171: =-VLOOKUP(A171,'pl-data'!A:BQ,68) ->  | L171: =-VLOOKUP(A171,'pl-data'!A:BQ,69) ->  | M171: =-VLOOKUP(A171,'pl-data'!A:BR,70) ->  | N171: =-VLOOKUP(A171,'pl-data'!A:BS,71) ->  | P171: =-VLOOKUP(A171,'pl-data'!A:BQ,21) ->  | Q171: =-VLOOKUP(A171,'pl-data'!A:BQ,51) ->  | R171: =-VLOOKUP(A171,'pl-data'!A:BQ,36) -> 0 | S171: n/a | T171: n/a | W171: =-VLOOKUP(A171,'pl-data'!A:BQ,52) ->  | Y171: n/a | Z171: n/a
A172: 8829 | B172: =+masterfile!D1349 -> 8829 Erlöse Sachanlageverkäufe Buchgewinn | D172: =-VLOOKUP(A172,'pl-data'!A:F,4) ->  | E172: =-VLOOKUP(A172,'pl-data'!A:F,5) ->  | F172: =-VLOOKUP(A172,'pl-data'!A:F,6) ->  | G172: =-VLOOKUP(A172,'pl-data'!A:G,7) ->  | H172: =-VLOOKUP(A172,'pl-data'!A:V,22) ->  | J172: =-VLOOKUP(A172,'pl-data'!A:BQ,66) ->  | K172: =-VLOOKUP(A172,'pl-data'!A:BQ,68) ->  | L172: =-VLOOKUP(A172,'pl-data'!A:BQ,69) ->  | M172: =-VLOOKUP(A172,'pl-data'!A:BR,70) ->  | N172: =-VLOOKUP(A172,'pl-data'!A:BS,71) ->  | P172: =-VLOOKUP(A172,'pl-data'!A:BQ,21) ->  | Q172: =-VLOOKUP(A172,'pl-data'!A:BQ,51) ->  | R172: =-VLOOKUP(A172,'pl-data'!A:BQ,36) -> 0 | S172: n/a | T172: n/a | W172: =-VLOOKUP(A172,'pl-data'!A:BQ,52) ->  | Y172: n/a | Z172: n/a
A173: 8837 | B173: =+masterfile!D1350 -> 8837 Erlöse Verkäufe immaterielle VermG, BG | D173: =-VLOOKUP(A173,'pl-data'!A:F,4) ->  | E173: =-VLOOKUP(A173,'pl-data'!A:F,5) ->  | F173: =-VLOOKUP(A173,'pl-data'!A:F,6) ->  | G173: =-VLOOKUP(A173,'pl-data'!A:G,7) ->  | H173: =-VLOOKUP(A173,'pl-data'!A:V,22) ->  | J173: =-VLOOKUP(A173,'pl-data'!A:BQ,66) ->  | K173: =-VLOOKUP(A173,'pl-data'!A:BQ,68) ->  | L173: =-VLOOKUP(A173,'pl-data'!A:BQ,69) ->  | M173: =-VLOOKUP(A173,'pl-data'!A:BR,70) ->  | N173: =-VLOOKUP(A173,'pl-data'!A:BS,71) ->  | P173: =-VLOOKUP(A173,'pl-data'!A:BQ,21) ->  | Q173: =-VLOOKUP(A173,'pl-data'!A:BQ,51) ->  | R173: =-VLOOKUP(A173,'pl-data'!A:BQ,36) -> 0 | S173: n/a | T173: n/a | W173: =-VLOOKUP(A173,'pl-data'!A:BQ,52) ->  | Y173: n/a | Z173: n/a
A174: 8838 | B174: =+masterfile!D1351 -> 8838 Erlöse Verkäufe Finanzanlagen, BG | D174: =-VLOOKUP(A174,'pl-data'!A:F,4) ->  | E174: =-VLOOKUP(A174,'pl-data'!A:F,5) ->  | F174: =-VLOOKUP(A174,'pl-data'!A:F,6) ->  | G174: =-VLOOKUP(A174,'pl-data'!A:G,7) ->  | H174: =-VLOOKUP(A174,'pl-data'!A:V,22) ->  | J174: =-VLOOKUP(A174,'pl-data'!A:BQ,66) ->  | K174: =-VLOOKUP(A174,'pl-data'!A:BQ,68) ->  | L174: =-VLOOKUP(A174,'pl-data'!A:BQ,69) ->  | M174: =-VLOOKUP(A174,'pl-data'!A:BR,70) ->  | N174: =-VLOOKUP(A174,'pl-data'!A:BS,71) ->  | P174: =-VLOOKUP(A174,'pl-data'!A:BQ,21) ->  | Q174: =-VLOOKUP(A174,'pl-data'!A:BQ,51) ->  | R174: =-VLOOKUP(A174,'pl-data'!A:BQ,36) -> 0 | S174: n/a | T174: n/a | W174: =-VLOOKUP(A174,'pl-data'!A:BQ,52) ->  | Y174: n/a | Z174: n/a
A175: 8839 | B175: =+masterfile!D1352 -> 8839 Erlöse Verkäufe Finanzanl. z.T.stfr,BG | D175: =-VLOOKUP(A175,'pl-data'!A:F,4) ->  | E175: =-VLOOKUP(A175,'pl-data'!A:F,5) ->  | F175: =-VLOOKUP(A175,'pl-data'!A:F,6) ->  | G175: =-VLOOKUP(A175,'pl-data'!A:G,7) ->  | H175: =-VLOOKUP(A175,'pl-data'!A:V,22) ->  | J175: =-VLOOKUP(A175,'pl-data'!A:BQ,66) ->  | K175: =-VLOOKUP(A175,'pl-data'!A:BQ,68) ->  | L175: =-VLOOKUP(A175,'pl-data'!A:BQ,69) ->  | M175: =-VLOOKUP(A175,'pl-data'!A:BR,70) ->  | N175: =-VLOOKUP(A175,'pl-data'!A:BS,71) ->  | P175: =-VLOOKUP(A175,'pl-data'!A:BQ,21) ->  | Q175: =-VLOOKUP(A175,'pl-data'!A:BQ,51) ->  | R175: =-VLOOKUP(A175,'pl-data'!A:BQ,36) -> 0 | S175: n/a | T175: n/a | W175: =-VLOOKUP(A175,'pl-data'!A:BQ,52) ->  | Y175: n/a | Z175: n/a
A176: 8850 | B176: =+masterfile!D1353 -> 8850 Erl.Verk. WG UV § 4 (3) EStG,19% USt | D176: =-VLOOKUP(A176,'pl-data'!A:F,4) ->  | E176: =-VLOOKUP(A176,'pl-data'!A:F,5) ->  | F176: =-VLOOKUP(A176,'pl-data'!A:F,6) ->  | G176: =-VLOOKUP(A176,'pl-data'!A:G,7) ->  | H176: =-VLOOKUP(A176,'pl-data'!A:V,22) ->  | J176: =-VLOOKUP(A176,'pl-data'!A:BQ,66) ->  | K176: =-VLOOKUP(A176,'pl-data'!A:BQ,68) ->  | L176: =-VLOOKUP(A176,'pl-data'!A:BQ,69) ->  | M176: =-VLOOKUP(A176,'pl-data'!A:BR,70) ->  | N176: =-VLOOKUP(A176,'pl-data'!A:BS,71) ->  | P176: =-VLOOKUP(A176,'pl-data'!A:BQ,21) ->  | Q176: =-VLOOKUP(A176,'pl-data'!A:BQ,51) ->  | R176: =-VLOOKUP(A176,'pl-data'!A:BQ,36) -> 0 | S176: n/a | T176: n/a | W176: =-VLOOKUP(A176,'pl-data'!A:BQ,52) ->  | Y176: n/a | Z176: n/a
A177: 8851 | B177: =+masterfile!D1354 -> 8851 Erl. Verkauf WG UV § 4 (3) EStG stfrei | D177: =-VLOOKUP(A177,'pl-data'!A:F,4) ->  | E177: =-VLOOKUP(A177,'pl-data'!A:F,5) ->  | F177: =-VLOOKUP(A177,'pl-data'!A:F,6) ->  | G177: =-VLOOKUP(A177,'pl-data'!A:G,7) ->  | H177: =-VLOOKUP(A177,'pl-data'!A:V,22) ->  | J177: =-VLOOKUP(A177,'pl-data'!A:BQ,66) ->  | K177: =-VLOOKUP(A177,'pl-data'!A:BQ,68) ->  | L177: =-VLOOKUP(A177,'pl-data'!A:BQ,69) ->  | M177: =-VLOOKUP(A177,'pl-data'!A:BR,70) ->  | N177: =-VLOOKUP(A177,'pl-data'!A:BS,71) ->  | P177: =-VLOOKUP(A177,'pl-data'!A:BQ,21) ->  | Q177: =-VLOOKUP(A177,'pl-data'!A:BQ,51) ->  | R177: =-VLOOKUP(A177,'pl-data'!A:BQ,36) -> 0 | S177: n/a | T177: n/a | W177: =-VLOOKUP(A177,'pl-data'!A:BQ,52) ->  | Y177: n/a | Z177: n/a
A178: 8852 | B178: =+masterfile!D1355 -> 8852 Verkauf WG UV §4 Nr.8ff UStG,f.§4(3)EStG | D178: =-VLOOKUP(A178,'pl-data'!A:F,4) ->  | E178: =-VLOOKUP(A178,'pl-data'!A:F,5) ->  | F178: =-VLOOKUP(A178,'pl-data'!A:F,6) ->  | G178: =-VLOOKUP(A178,'pl-data'!A:G,7) ->  | H178: =-VLOOKUP(A178,'pl-data'!A:V,22) ->  | J178: =-VLOOKUP(A178,'pl-data'!A:BQ,66) ->  | K178: =-VLOOKUP(A178,'pl-data'!A:BQ,68) ->  | L178: =-VLOOKUP(A178,'pl-data'!A:BQ,69) ->  | M178: =-VLOOKUP(A178,'pl-data'!A:BR,70) ->  | N178: =-VLOOKUP(A178,'pl-data'!A:BS,71) ->  | P178: =-VLOOKUP(A178,'pl-data'!A:BQ,21) ->  | Q178: =-VLOOKUP(A178,'pl-data'!A:BQ,51) ->  | R178: =-VLOOKUP(A178,'pl-data'!A:BQ,36) -> 0 | S178: n/a | T178: n/a | W178: =-VLOOKUP(A178,'pl-data'!A:BQ,52) ->  | Y178: n/a | Z178: n/a
A179: 8853 | B179: =+masterfile!D1356 -> 8853 Erlöse Verkauf WG UV § 4 (3) EStG | D179: =-VLOOKUP(A179,'pl-data'!A:F,4) ->  | E179: =-VLOOKUP(A179,'pl-data'!A:F,5) ->  | F179: =-VLOOKUP(A179,'pl-data'!A:F,6) ->  | G179: =-VLOOKUP(A179,'pl-data'!A:G,7) ->  | H179: =-VLOOKUP(A179,'pl-data'!A:V,22) ->  | J179: =-VLOOKUP(A179,'pl-data'!A:BQ,66) ->  | K179: =-VLOOKUP(A179,'pl-data'!A:BQ,68) ->  | L179: =-VLOOKUP(A179,'pl-data'!A:BQ,69) ->  | M179: =-VLOOKUP(A179,'pl-data'!A:BR,70) ->  | N179: =-VLOOKUP(A179,'pl-data'!A:BS,71) ->  | P179: =-VLOOKUP(A179,'pl-data'!A:BQ,21) ->  | Q179: =-VLOOKUP(A179,'pl-data'!A:BQ,51) ->  | R179: =-VLOOKUP(A179,'pl-data'!A:BQ,36) -> 0 | S179: n/a | T179: n/a | W179: =-VLOOKUP(A179,'pl-data'!A:BQ,52) ->  | Y179: n/a | Z179: n/a
A180: 8900 | B180: =+masterfile!D1357 -> 8900 Unentgeltliche Wertabgaben | D180: =-VLOOKUP(A180,'pl-data'!A:F,4) ->  | E180: =-VLOOKUP(A180,'pl-data'!A:F,5) ->  | F180: =-VLOOKUP(A180,'pl-data'!A:F,6) ->  | G180: =-VLOOKUP(A180,'pl-data'!A:G,7) ->  | H180: =-VLOOKUP(A180,'pl-data'!A:V,22) ->  | J180: =-VLOOKUP(A180,'pl-data'!A:BQ,66) ->  | K180: =-VLOOKUP(A180,'pl-data'!A:BQ,68) ->  | L180: =-VLOOKUP(A180,'pl-data'!A:BQ,69) ->  | M180: =-VLOOKUP(A180,'pl-data'!A:BR,70) ->  | N180: =-VLOOKUP(A180,'pl-data'!A:BS,71) ->  | P180: =-VLOOKUP(A180,'pl-data'!A:BQ,21) ->  | Q180: =-VLOOKUP(A180,'pl-data'!A:BQ,51) ->  | R180: =-VLOOKUP(A180,'pl-data'!A:BQ,36) -> 0 | S180: n/a | T180: n/a | W180: =-VLOOKUP(A180,'pl-data'!A:BQ,52) ->  | Y180: n/a | Z180: n/a
A181: 8905 | B181: =+masterfile!D1358 -> 8905 Entnahme von Gegenständen ohne USt | D181: =-VLOOKUP(A181,'pl-data'!A:F,4) ->  | E181: =-VLOOKUP(A181,'pl-data'!A:F,5) ->  | F181: =-VLOOKUP(A181,'pl-data'!A:F,6) ->  | G181: =-VLOOKUP(A181,'pl-data'!A:G,7) ->  | H181: =-VLOOKUP(A181,'pl-data'!A:V,22) ->  | J181: =-VLOOKUP(A181,'pl-data'!A:BQ,66) ->  | K181: =-VLOOKUP(A181,'pl-data'!A:BQ,68) ->  | L181: =-VLOOKUP(A181,'pl-data'!A:BQ,69) ->  | M181: =-VLOOKUP(A181,'pl-data'!A:BR,70) ->  | N181: =-VLOOKUP(A181,'pl-data'!A:BS,71) ->  | P181: =-VLOOKUP(A181,'pl-data'!A:BQ,21) ->  | Q181: =-VLOOKUP(A181,'pl-data'!A:BQ,51) ->  | R181: =-VLOOKUP(A181,'pl-data'!A:BQ,36) -> 0 | S181: n/a | T181: n/a | W181: =-VLOOKUP(A181,'pl-data'!A:BQ,52) ->  | Y181: n/a | Z181: n/a
A182: 8906 | B182: =+masterfile!D1359 -> 8906 Verwendung von Gegenständen ohne USt | D182: =-VLOOKUP(A182,'pl-data'!A:F,4) ->  | E182: =-VLOOKUP(A182,'pl-data'!A:F,5) ->  | F182: =-VLOOKUP(A182,'pl-data'!A:F,6) ->  | G182: =-VLOOKUP(A182,'pl-data'!A:G,7) ->  | H182: =-VLOOKUP(A182,'pl-data'!A:V,22) ->  | J182: =-VLOOKUP(A182,'pl-data'!A:BQ,66) ->  | K182: =-VLOOKUP(A182,'pl-data'!A:BQ,68) ->  | L182: =-VLOOKUP(A182,'pl-data'!A:BQ,69) ->  | M182: =-VLOOKUP(A182,'pl-data'!A:BR,70) ->  | N182: =-VLOOKUP(A182,'pl-data'!A:BS,71) ->  | P182: =-VLOOKUP(A182,'pl-data'!A:BQ,21) ->  | Q182: =-VLOOKUP(A182,'pl-data'!A:BQ,51) ->  | R182: =-VLOOKUP(A182,'pl-data'!A:BQ,36) -> 0 | S182: n/a | T182: n/a | W182: =-VLOOKUP(A182,'pl-data'!A:BQ,52) ->  | Y182: n/a | Z182: n/a
A183: 8910 | B183: =+masterfile!D1360 -> 8910 Entnahme Unternehmer (Waren) 19% USt | D183: =-VLOOKUP(A183,'pl-data'!A:F,4) ->  | E183: =-VLOOKUP(A183,'pl-data'!A:F,5) ->  | F183: =-VLOOKUP(A183,'pl-data'!A:F,6) ->  | G183: =-VLOOKUP(A183,'pl-data'!A:G,7) ->  | H183: =-VLOOKUP(A183,'pl-data'!A:V,22) ->  | J183: =-VLOOKUP(A183,'pl-data'!A:BQ,66) ->  | K183: =-VLOOKUP(A183,'pl-data'!A:BQ,68) ->  | L183: =-VLOOKUP(A183,'pl-data'!A:BQ,69) ->  | M183: =-VLOOKUP(A183,'pl-data'!A:BR,70) ->  | N183: =-VLOOKUP(A183,'pl-data'!A:BS,71) ->  | P183: =-VLOOKUP(A183,'pl-data'!A:BQ,21) ->  | Q183: =-VLOOKUP(A183,'pl-data'!A:BQ,51) ->  | R183: =-VLOOKUP(A183,'pl-data'!A:BQ,36) -> 0 | S183: n/a | T183: n/a | W183: =-VLOOKUP(A183,'pl-data'!A:BQ,52) ->  | Y183: n/a | Z183: n/a
A184: 8915 | B184: =+masterfile!D1361 -> 8915 Entnahme Unternehmer (Waren) 7% USt | D184: =-VLOOKUP(A184,'pl-data'!A:F,4) ->  | E184: =-VLOOKUP(A184,'pl-data'!A:F,5) ->  | F184: =-VLOOKUP(A184,'pl-data'!A:F,6) ->  | G184: =-VLOOKUP(A184,'pl-data'!A:G,7) ->  | H184: =-VLOOKUP(A184,'pl-data'!A:V,22) ->  | J184: =-VLOOKUP(A184,'pl-data'!A:BQ,66) ->  | K184: =-VLOOKUP(A184,'pl-data'!A:BQ,68) ->  | L184: =-VLOOKUP(A184,'pl-data'!A:BQ,69) ->  | M184: =-VLOOKUP(A184,'pl-data'!A:BR,70) ->  | N184: =-VLOOKUP(A184,'pl-data'!A:BS,71) ->  | P184: =-VLOOKUP(A184,'pl-data'!A:BQ,21) ->  | Q184: =-VLOOKUP(A184,'pl-data'!A:BQ,51) ->  | R184: =-VLOOKUP(A184,'pl-data'!A:BQ,36) -> 0 | S184: n/a | T184: n/a | W184: =-VLOOKUP(A184,'pl-data'!A:BQ,52) ->  | Y184: n/a | Z184: n/a
A185: 8918 | B185: =+masterfile!D1362 -> 8918 Verwendung von Gegenst.(Tel) ohne USt | D185: =-VLOOKUP(A185,'pl-data'!A:F,4) ->  | E185: =-VLOOKUP(A185,'pl-data'!A:F,5) ->  | F185: =-VLOOKUP(A185,'pl-data'!A:F,6) ->  | G185: =-VLOOKUP(A185,'pl-data'!A:G,7) ->  | H185: =-VLOOKUP(A185,'pl-data'!A:V,22) ->  | J185: =-VLOOKUP(A185,'pl-data'!A:BQ,66) ->  | K185: =-VLOOKUP(A185,'pl-data'!A:BQ,68) ->  | L185: =-VLOOKUP(A185,'pl-data'!A:BQ,69) ->  | M185: =-VLOOKUP(A185,'pl-data'!A:BR,70) ->  | N185: =-VLOOKUP(A185,'pl-data'!A:BS,71) ->  | P185: =-VLOOKUP(A185,'pl-data'!A:BQ,21) ->  | Q185: =-VLOOKUP(A185,'pl-data'!A:BQ,51) ->  | R185: =-VLOOKUP(A185,'pl-data'!A:BQ,36) -> 0 | S185: n/a | T185: n/a | W185: =-VLOOKUP(A185,'pl-data'!A:BQ,52) ->  | Y185: n/a | Z185: n/a
A186: 8919 | B186: =+masterfile!D1363 -> 8919 Entnahme Unternehmer (Waren) ohne USt | D186: =-VLOOKUP(A186,'pl-data'!A:F,4) ->  | E186: =-VLOOKUP(A186,'pl-data'!A:F,5) ->  | F186: =-VLOOKUP(A186,'pl-data'!A:F,6) ->  | G186: =-VLOOKUP(A186,'pl-data'!A:G,7) ->  | H186: =-VLOOKUP(A186,'pl-data'!A:V,22) ->  | J186: =-VLOOKUP(A186,'pl-data'!A:BQ,66) ->  | K186: =-VLOOKUP(A186,'pl-data'!A:BQ,68) ->  | L186: =-VLOOKUP(A186,'pl-data'!A:BQ,69) ->  | M186: =-VLOOKUP(A186,'pl-data'!A:BR,70) ->  | N186: =-VLOOKUP(A186,'pl-data'!A:BS,71) ->  | P186: =-VLOOKUP(A186,'pl-data'!A:BQ,21) ->  | Q186: =-VLOOKUP(A186,'pl-data'!A:BQ,51) ->  | R186: =-VLOOKUP(A186,'pl-data'!A:BQ,36) -> 0 | S186: n/a | T186: n/a | W186: =-VLOOKUP(A186,'pl-data'!A:BQ,52) ->  | Y186: n/a | Z186: n/a
A187: 8920 | B187: =+masterfile!D1364 -> 8920 Verwendung von Gegenständen 19% USt | D187: =-VLOOKUP(A187,'pl-data'!A:F,4) ->  | E187: =-VLOOKUP(A187,'pl-data'!A:F,5) ->  | F187: =-VLOOKUP(A187,'pl-data'!A:F,6) ->  | G187: =-VLOOKUP(A187,'pl-data'!A:G,7) ->  | H187: =-VLOOKUP(A187,'pl-data'!A:V,22) ->  | J187: =-VLOOKUP(A187,'pl-data'!A:BQ,66) ->  | K187: =-VLOOKUP(A187,'pl-data'!A:BQ,68) ->  | L187: =-VLOOKUP(A187,'pl-data'!A:BQ,69) ->  | M187: =-VLOOKUP(A187,'pl-data'!A:BR,70) ->  | N187: =-VLOOKUP(A187,'pl-data'!A:BS,71) ->  | P187: =-VLOOKUP(A187,'pl-data'!A:BQ,21) ->  | Q187: =-VLOOKUP(A187,'pl-data'!A:BQ,51) ->  | R187: =-VLOOKUP(A187,'pl-data'!A:BQ,36) -> 0 | S187: n/a | T187: n/a | W187: =-VLOOKUP(A187,'pl-data'!A:BQ,52) ->  | Y187: n/a | Z187: n/a
A188: 8921 | B188: =+masterfile!D1365 -> 8921 Verwendung von Gegenst. (Kfz) 19% USt | D188: =-VLOOKUP(A188,'pl-data'!A:F,4) ->  | E188: =-VLOOKUP(A188,'pl-data'!A:F,5) ->  | F188: =-VLOOKUP(A188,'pl-data'!A:F,6) ->  | G188: =-VLOOKUP(A188,'pl-data'!A:G,7) ->  | H188: =-VLOOKUP(A188,'pl-data'!A:V,22) ->  | J188: =-VLOOKUP(A188,'pl-data'!A:BQ,66) ->  | K188: =-VLOOKUP(A188,'pl-data'!A:BQ,68) ->  | L188: =-VLOOKUP(A188,'pl-data'!A:BQ,69) ->  | M188: =-VLOOKUP(A188,'pl-data'!A:BR,70) ->  | N188: =-VLOOKUP(A188,'pl-data'!A:BS,71) ->  | P188: =-VLOOKUP(A188,'pl-data'!A:BQ,21) ->  | Q188: =-VLOOKUP(A188,'pl-data'!A:BQ,51) ->  | R188: =-VLOOKUP(A188,'pl-data'!A:BQ,36) -> 0 | S188: n/a | T188: n/a | W188: =-VLOOKUP(A188,'pl-data'!A:BQ,52) ->  | Y188: n/a | Z188: n/a
A189: 8922 | B189: =+masterfile!D1366 -> 8922 Verwendung von Gegenst. (Tel) 19% USt | D189: =-VLOOKUP(A189,'pl-data'!A:F,4) ->  | E189: =-VLOOKUP(A189,'pl-data'!A:F,5) ->  | F189: =-VLOOKUP(A189,'pl-data'!A:F,6) ->  | G189: =-VLOOKUP(A189,'pl-data'!A:G,7) ->  | H189: =-VLOOKUP(A189,'pl-data'!A:V,22) ->  | J189: =-VLOOKUP(A189,'pl-data'!A:BQ,66) ->  | K189: =-VLOOKUP(A189,'pl-data'!A:BQ,68) ->  | L189: =-VLOOKUP(A189,'pl-data'!A:BQ,69) ->  | M189: =-VLOOKUP(A189,'pl-data'!A:BR,70) ->  | N189: =-VLOOKUP(A189,'pl-data'!A:BS,71) ->  | P189: =-VLOOKUP(A189,'pl-data'!A:BQ,21) ->  | Q189: =-VLOOKUP(A189,'pl-data'!A:BQ,51) ->  | R189: =-VLOOKUP(A189,'pl-data'!A:BQ,36) -> 0 | S189: n/a | T189: n/a | W189: =-VLOOKUP(A189,'pl-data'!A:BQ,52) ->  | Y189: n/a | Z189: n/a
A190: 8924 | B190: =+masterfile!D1367 -> 8924 Verwendung von Gegenst.(Kfz) ohne USt | D190: =-VLOOKUP(A190,'pl-data'!A:F,4) ->  | E190: =-VLOOKUP(A190,'pl-data'!A:F,5) ->  | F190: =-VLOOKUP(A190,'pl-data'!A:F,6) ->  | G190: =-VLOOKUP(A190,'pl-data'!A:G,7) ->  | H190: =-VLOOKUP(A190,'pl-data'!A:V,22) ->  | J190: =-VLOOKUP(A190,'pl-data'!A:BQ,66) ->  | K190: =-VLOOKUP(A190,'pl-data'!A:BQ,68) ->  | L190: =-VLOOKUP(A190,'pl-data'!A:BQ,69) ->  | M190: =-VLOOKUP(A190,'pl-data'!A:BR,70) ->  | N190: =-VLOOKUP(A190,'pl-data'!A:BS,71) ->  | P190: =-VLOOKUP(A190,'pl-data'!A:BQ,21) ->  | Q190: =-VLOOKUP(A190,'pl-data'!A:BQ,51) ->  | R190: =-VLOOKUP(A190,'pl-data'!A:BQ,36) -> 0 | S190: n/a | T190: n/a | W190: =-VLOOKUP(A190,'pl-data'!A:BQ,52) ->  | Y190: n/a | Z190: n/a
A192: Erträge aus Zuschreibungen | B192: Erträge aus Zuschreibungen | D192: =+SUM(D193:D201) ->  | E192: =+SUM(E193:E201) ->  | F192: =+SUM(F193:F201) ->  | G192: =+SUM(G193:G201) ->  | M192: =+SUM(M193:M201) ->  | P192: =+SUM(P193:P201) ->  | R192: 0 | S192: =IFERROR(R192/Q192-1,"n/a") -> n/a | T192: =IFERROR(R192/P192-1,"n/a") -> n/a | V192: =+SUM(V193:V201) ->  | Y192: =IFERROR(X192/W192-1,"n/a") -> n/a | Z192: =IFERROR(X192/V192-1,"n/a") -> n/a
A193: 2710 | B193: =+masterfile!D787 -> 2710 Erträge Zuschreibg. Sachanlagevermögen | D193: =-VLOOKUP(A193,'pl-data'!A:F,4) ->  | E193: =-VLOOKUP(A193,'pl-data'!A:F,5) ->  | F193: =-VLOOKUP(A193,'pl-data'!A:F,6) ->  | G193: =-VLOOKUP(A193,'pl-data'!A:G,7) ->  | H193: =-VLOOKUP(A193,'pl-data'!A:V,22) ->  | I193: =+W193+R193-Q193 ->  | J193: =-VLOOKUP(A193,'pl-data'!A:BQ,66) ->  | K193: =-VLOOKUP(A193,'pl-data'!A:BQ,68) ->  | L193: =-VLOOKUP(A193,'pl-data'!A:BQ,69) ->  | M193: =-VLOOKUP(A193,'pl-data'!A:BR,70) ->  | N193: =-VLOOKUP(A193,'pl-data'!A:BS,71) ->  | P193: =-VLOOKUP(A193,'pl-data'!A:BQ,21) ->  | Q193: =-VLOOKUP(A193,'pl-data'!A:BQ,51) ->  | R193: =-VLOOKUP(A193,'pl-data'!A:BQ,36) -> 0 | S193: =IFERROR(R193/Q193-1,"n/a") -> n/a | T193: =IFERROR(R193/P193-1,"n/a") -> n/a | V193: =+H193 ->  | W193: =-VLOOKUP(A193,'pl-data'!A:BQ,52) ->  | X193: =+I193 ->  | Y193: =IFERROR(X193/W193-1,"n/a") -> n/a | Z193: =IFERROR(X193/V193-1,"n/a") -> n/a
A194: 2711 | B194: =+masterfile!D788 -> 2711 Erträge Zuschreibg. immat. Anlagevermög. | D194: =-VLOOKUP(A194,'pl-data'!A:F,4) ->  | E194: =-VLOOKUP(A194,'pl-data'!A:F,5) ->  | F194: =-VLOOKUP(A194,'pl-data'!A:F,6) ->  | G194: =-VLOOKUP(A194,'pl-data'!A:G,7) ->  | H194: =-VLOOKUP(A194,'pl-data'!A:V,22) ->  | J194: =-VLOOKUP(A194,'pl-data'!A:BQ,66) ->  | K194: =-VLOOKUP(A194,'pl-data'!A:BQ,68) ->  | L194: =-VLOOKUP(A194,'pl-data'!A:BQ,69) ->  | M194: =-VLOOKUP(A194,'pl-data'!A:BR,70) ->  | N194: =-VLOOKUP(A194,'pl-data'!A:BS,71) ->  | P194: =-VLOOKUP(A194,'pl-data'!A:BQ,21) ->  | Q194: =-VLOOKUP(A194,'pl-data'!A:BQ,51) ->  | R194: =-VLOOKUP(A194,'pl-data'!A:BQ,36) -> 0 | S194: n/a | T194: n/a | W194: =-VLOOKUP(A194,'pl-data'!A:BQ,52) ->  | Y194: n/a | Z194: n/a
A195: 2712 | B195: =+masterfile!D789 -> 2712 Erträge Zuschreibg. Finanzanlagevermögen | D195: =-VLOOKUP(A195,'pl-data'!A:F,4) ->  | E195: =-VLOOKUP(A195,'pl-data'!A:F,5) ->  | F195: =-VLOOKUP(A195,'pl-data'!A:F,6) ->  | G195: =-VLOOKUP(A195,'pl-data'!A:G,7) ->  | H195: =-VLOOKUP(A195,'pl-data'!A:V,22) ->  | J195: =-VLOOKUP(A195,'pl-data'!A:BQ,66) ->  | K195: =-VLOOKUP(A195,'pl-data'!A:BQ,68) ->  | L195: =-VLOOKUP(A195,'pl-data'!A:BQ,69) ->  | M195: =-VLOOKUP(A195,'pl-data'!A:BR,70) ->  | N195: =-VLOOKUP(A195,'pl-data'!A:BS,71) ->  | P195: =-VLOOKUP(A195,'pl-data'!A:BQ,21) ->  | Q195: =-VLOOKUP(A195,'pl-data'!A:BQ,51) ->  | R195: =-VLOOKUP(A195,'pl-data'!A:BQ,36) -> 0 | S195: n/a | T195: n/a | W195: =-VLOOKUP(A195,'pl-data'!A:BQ,52) ->  | Y195: n/a | Z195: n/a
A196: 2713 | B196: =+masterfile!D790 -> 2713 Erträge Zuschreibg. FAV z.T. steuerfrei | D196: =-VLOOKUP(A196,'pl-data'!A:F,4) ->  | E196: =-VLOOKUP(A196,'pl-data'!A:F,5) ->  | F196: =-VLOOKUP(A196,'pl-data'!A:F,6) ->  | G196: =-VLOOKUP(A196,'pl-data'!A:G,7) ->  | H196: =-VLOOKUP(A196,'pl-data'!A:V,22) ->  | J196: =-VLOOKUP(A196,'pl-data'!A:BQ,66) ->  | K196: =-VLOOKUP(A196,'pl-data'!A:BQ,68) ->  | L196: =-VLOOKUP(A196,'pl-data'!A:BQ,69) ->  | M196: =-VLOOKUP(A196,'pl-data'!A:BR,70) ->  | N196: =-VLOOKUP(A196,'pl-data'!A:BS,71) ->  | P196: =-VLOOKUP(A196,'pl-data'!A:BQ,21) ->  | Q196: =-VLOOKUP(A196,'pl-data'!A:BQ,51) ->  | R196: =-VLOOKUP(A196,'pl-data'!A:BQ,36) -> 0 | S196: n/a | T196: n/a | W196: =-VLOOKUP(A196,'pl-data'!A:BQ,52) ->  | Y196: n/a | Z196: n/a
A197: 2714 | B197: =+masterfile!D791 -> 2714 Erträge Zuschreibg. z.T. steuerfrei | D197: =-VLOOKUP(A197,'pl-data'!A:F,4) ->  | E197: =-VLOOKUP(A197,'pl-data'!A:F,5) ->  | F197: =-VLOOKUP(A197,'pl-data'!A:F,6) ->  | G197: =-VLOOKUP(A197,'pl-data'!A:G,7) ->  | H197: =-VLOOKUP(A197,'pl-data'!A:V,22) ->  | J197: =-VLOOKUP(A197,'pl-data'!A:BQ,66) ->  | K197: =-VLOOKUP(A197,'pl-data'!A:BQ,68) ->  | L197: =-VLOOKUP(A197,'pl-data'!A:BQ,69) ->  | M197: =-VLOOKUP(A197,'pl-data'!A:BR,70) ->  | N197: =-VLOOKUP(A197,'pl-data'!A:BS,71) ->  | P197: =-VLOOKUP(A197,'pl-data'!A:BQ,21) ->  | Q197: =-VLOOKUP(A197,'pl-data'!A:BQ,51) ->  | R197: =-VLOOKUP(A197,'pl-data'!A:BQ,36) -> 0 | S197: n/a | T197: n/a | W197: =-VLOOKUP(A197,'pl-data'!A:BQ,52) ->  | Y197: n/a | Z197: n/a
A198: 2715 | B198: =+masterfile!D792 -> 2715 Erträge a.Zuschreibung Umlaufvermögen | D198: =-VLOOKUP(A198,'pl-data'!A:F,4) ->  | E198: =-VLOOKUP(A198,'pl-data'!A:F,5) ->  | F198: =-VLOOKUP(A198,'pl-data'!A:F,6) ->  | G198: =-VLOOKUP(A198,'pl-data'!A:G,7) ->  | H198: =-VLOOKUP(A198,'pl-data'!A:V,22) ->  | J198: =-VLOOKUP(A198,'pl-data'!A:BQ,66) ->  | K198: =-VLOOKUP(A198,'pl-data'!A:BQ,68) ->  | L198: =-VLOOKUP(A198,'pl-data'!A:BQ,69) ->  | M198: =-VLOOKUP(A198,'pl-data'!A:BR,70) ->  | N198: =-VLOOKUP(A198,'pl-data'!A:BS,71) ->  | P198: =-VLOOKUP(A198,'pl-data'!A:BQ,21) ->  | Q198: =-VLOOKUP(A198,'pl-data'!A:BQ,51) ->  | R198: =-VLOOKUP(A198,'pl-data'!A:BQ,36) -> 0 | S198: n/a | T198: n/a | W198: =-VLOOKUP(A198,'pl-data'!A:BQ,52) ->  | Y198: n/a | Z198: n/a
A199: 2716 | B199: =+masterfile!D793 -> 2716 Erträge Zuschreibg. UV z.T. steuerfrei | D199: =-VLOOKUP(A199,'pl-data'!A:F,4) ->  | E199: =-VLOOKUP(A199,'pl-data'!A:F,5) ->  | F199: =-VLOOKUP(A199,'pl-data'!A:F,6) ->  | G199: =-VLOOKUP(A199,'pl-data'!A:G,7) ->  | H199: =-VLOOKUP(A199,'pl-data'!A:V,22) ->  | J199: =-VLOOKUP(A199,'pl-data'!A:BQ,66) ->  | K199: =-VLOOKUP(A199,'pl-data'!A:BQ,68) ->  | L199: =-VLOOKUP(A199,'pl-data'!A:BQ,69) ->  | M199: =-VLOOKUP(A199,'pl-data'!A:BR,70) ->  | N199: =-VLOOKUP(A199,'pl-data'!A:BS,71) ->  | P199: =-VLOOKUP(A199,'pl-data'!A:BQ,21) ->  | Q199: =-VLOOKUP(A199,'pl-data'!A:BQ,51) ->  | R199: =-VLOOKUP(A199,'pl-data'!A:BQ,36) -> 0 | S199: n/a | T199: n/a | W199: =-VLOOKUP(A199,'pl-data'!A:BQ,52) ->  | Y199: n/a | Z199: n/a
A200: 2760 | B200: =+masterfile!D819 -> 2760 Erträge Aktivierung unentgeltl.erworb VG | D200: =-VLOOKUP(A200,'pl-data'!A:F,4) ->  | E200: =-VLOOKUP(A200,'pl-data'!A:F,5) ->  | F200: =-VLOOKUP(A200,'pl-data'!A:F,6) ->  | G200: =-VLOOKUP(A200,'pl-data'!A:G,7) ->  | H200: =-VLOOKUP(A200,'pl-data'!A:V,22) ->  | J200: =-VLOOKUP(A200,'pl-data'!A:BQ,66) ->  | K200: =-VLOOKUP(A200,'pl-data'!A:BQ,68) ->  | L200: =-VLOOKUP(A200,'pl-data'!A:BQ,69) ->  | M200: =-VLOOKUP(A200,'pl-data'!A:BR,70) ->  | N200: =-VLOOKUP(A200,'pl-data'!A:BS,71) ->  | P200: =-VLOOKUP(A200,'pl-data'!A:BQ,21) ->  | Q200: =-VLOOKUP(A200,'pl-data'!A:BQ,51) ->  | R200: =-VLOOKUP(A200,'pl-data'!A:BQ,36) -> 0 | S200: n/a | T200: n/a | W200: =-VLOOKUP(A200,'pl-data'!A:BQ,52) ->  | Y200: n/a | Z200: n/a
A202: Erträge aus Forderungen | B202: Erträge aus Forderungen | D202: =+SUM(D203:D206) ->  | E202: =+SUM(E203:E206) ->  | F202: =+SUM(F203:F206) ->  | G202: =+SUM(G203:G206) ->  | M202: =+SUM(M203:M206) ->  | R202: 0 | S202: =IFERROR(R202/Q202-1,"n/a") -> n/a | T202: =IFERROR(R202/P202-1,"n/a") -> n/a | V202: =+SUM(V203:V206) ->  | Y202: =IFERROR(X202/W202-1,"n/a") -> n/a | Z202: =IFERROR(X202/V202-1,"n/a") -> n/a
A203: 2730 | B203: =+masterfile!D801 -> 2730 Erträge aus Herabsetzung PWB auf Ford | D203: =-VLOOKUP(A203,'pl-data'!A:F,4) ->  | E203: =-VLOOKUP(A203,'pl-data'!A:F,5) ->  | F203: =-VLOOKUP(A203,'pl-data'!A:F,6) ->  | G203: =-VLOOKUP(A203,'pl-data'!A:G,7) ->  | H203: =-VLOOKUP(A203,'pl-data'!A:V,22) ->  | I203: =+W203+R203-Q203 ->  | J203: =-VLOOKUP(A203,'pl-data'!A:BQ,66) ->  | K203: =-VLOOKUP(A203,'pl-data'!A:BQ,68) ->  | L203: =-VLOOKUP(A203,'pl-data'!A:BQ,69) ->  | M203: =-VLOOKUP(A203,'pl-data'!A:BR,70) ->  | N203: =-VLOOKUP(A203,'pl-data'!A:BS,71) ->  | P203: =-VLOOKUP(A203,'pl-data'!A:BQ,21) ->  | Q203: =-VLOOKUP(A203,'pl-data'!A:BQ,51) ->  | R203: =-VLOOKUP(A203,'pl-data'!A:BQ,36) -> 0 | S203: =IFERROR(R203/Q203-1,"n/a") -> n/a | T203: =IFERROR(R203/P203-1,"n/a") -> n/a | V203: =+H203 ->  | W203: =-VLOOKUP(A203,'pl-data'!A:BQ,52) ->  | X203: =+I203 ->  | Y203: =IFERROR(X203/W203-1,"n/a") -> n/a | Z203: =IFERROR(X203/V203-1,"n/a") -> n/a
A204: 2731 | B204: =+masterfile!D802 -> 2731 Erträge aus Herabsetzung EWB auf Ford | D204: =-VLOOKUP(A204,'pl-data'!A:F,4) ->  | E204: =-VLOOKUP(A204,'pl-data'!A:F,5) ->  | F204: =-VLOOKUP(A204,'pl-data'!A:F,6) ->  | G204: =-VLOOKUP(A204,'pl-data'!A:G,7) ->  | H204: =-VLOOKUP(A204,'pl-data'!A:V,22) ->  | J204: =-VLOOKUP(A204,'pl-data'!A:BQ,66) ->  | K204: =-VLOOKUP(A204,'pl-data'!A:BQ,68) ->  | L204: =-VLOOKUP(A204,'pl-data'!A:BQ,69) ->  | M204: =-VLOOKUP(A204,'pl-data'!A:BR,70) ->  | N204: =-VLOOKUP(A204,'pl-data'!A:BS,71) ->  | P204: =-VLOOKUP(A204,'pl-data'!A:BQ,21) ->  | Q204: =-VLOOKUP(A204,'pl-data'!A:BQ,51) ->  | R204: =-VLOOKUP(A204,'pl-data'!A:BQ,36) -> 0 | S204: n/a | T204: n/a | W204: =-VLOOKUP(A204,'pl-data'!A:BQ,52) ->  | Y204: n/a | Z204: n/a
A205: 2732 | B205: =+masterfile!D803 -> 2732 Erträge aus abgeschriebenen Forderg. | D205: =-VLOOKUP(A205,'pl-data'!A:F,4) ->  | E205: =-VLOOKUP(A205,'pl-data'!A:F,5) ->  | F205: =-VLOOKUP(A205,'pl-data'!A:F,6) ->  | G205: =-VLOOKUP(A205,'pl-data'!A:G,7) ->  | H205: =-VLOOKUP(A205,'pl-data'!A:V,22) ->  | J205: =-VLOOKUP(A205,'pl-data'!A:BQ,66) ->  | K205: =-VLOOKUP(A205,'pl-data'!A:BQ,68) ->  | L205: =-VLOOKUP(A205,'pl-data'!A:BQ,69) ->  | M205: =-VLOOKUP(A205,'pl-data'!A:BR,70) ->  | N205: =-VLOOKUP(A205,'pl-data'!A:BS,71) ->  | P205: =-VLOOKUP(A205,'pl-data'!A:BQ,21) ->  | Q205: =-VLOOKUP(A205,'pl-data'!A:BQ,51) ->  | R205: =-VLOOKUP(A205,'pl-data'!A:BQ,36) -> 0 | S205: n/a | T205: n/a | W205: =-VLOOKUP(A205,'pl-data'!A:BQ,52) ->  | Y205: n/a | Z205: n/a
A207: Erträge aus Auflösungen | B207: Erträge aus Auflösungen | D207: =+SUM(D208:D216) ->  | E207: =+SUM(E208:E216) ->  | F207: =+SUM(F208:F216) ->  | G207: =+SUM(G208:G216) ->  | M207: =+SUM(M208:M216) ->  | P207: =+SUM(P208:P216) ->  | R207: 0 | S207: =IFERROR(R207/Q207-1,"n/a") -> n/a | T207: =IFERROR(R207/P207-1,"n/a") -> n/a | V207: =+SUM(V208:V216) ->  | Y207: =IFERROR(X207/W207-1,"n/a") -> n/a | Z207: =IFERROR(X207/V207-1,"n/a") -> n/a
A208: 2727 | B208: =+masterfile!D798 -> 2727 Ertr.Auflösg stl. Rücklage § 6b (3) EStG | D208: =-VLOOKUP(A208,'pl-data'!A:F,4) ->  | E208: =-VLOOKUP(A208,'pl-data'!A:F,5) ->  | F208: =-VLOOKUP(A208,'pl-data'!A:F,6) ->  | G208: =-VLOOKUP(A208,'pl-data'!A:G,7) ->  | H208: =-VLOOKUP(A208,'pl-data'!A:V,22) ->  | I208: =+W208+R208-Q208 ->  | J208: =-VLOOKUP(A208,'pl-data'!A:BQ,66) ->  | K208: =-VLOOKUP(A208,'pl-data'!A:BQ,68) ->  | L208: =-VLOOKUP(A208,'pl-data'!A:BQ,69) ->  | M208: =-VLOOKUP(A208,'pl-data'!A:BR,70) ->  | N208: =-VLOOKUP(A208,'pl-data'!A:BS,71) ->  | P208: =-VLOOKUP(A208,'pl-data'!A:BQ,21) ->  | Q208: =-VLOOKUP(A208,'pl-data'!A:BQ,51) ->  | R208: =-VLOOKUP(A208,'pl-data'!A:BQ,36) -> 0 | S208: =IFERROR(R208/Q208-1,"n/a") -> n/a | T208: =IFERROR(R208/P208-1,"n/a") -> n/a | V208: =+H208 ->  | W208: =-VLOOKUP(A208,'pl-data'!A:BQ,52) ->  | X208: =+I208 ->  | Y208: =IFERROR(X208/W208-1,"n/a") -> n/a | Z208: =IFERROR(X208/V208-1,"n/a") -> n/a
A209: 2728 | B209: =+masterfile!D799 -> 2728 Ertr.Auflösg stl.Rücklage § 6b(10) EStG | D209: =-VLOOKUP(A209,'pl-data'!A:F,4) ->  | E209: =-VLOOKUP(A209,'pl-data'!A:F,5) ->  | F209: =-VLOOKUP(A209,'pl-data'!A:F,6) ->  | G209: =-VLOOKUP(A209,'pl-data'!A:G,7) ->  | H209: =-VLOOKUP(A209,'pl-data'!A:V,22) ->  | J209: =-VLOOKUP(A209,'pl-data'!A:BQ,66) ->  | K209: =-VLOOKUP(A209,'pl-data'!A:BQ,68) ->  | L209: =-VLOOKUP(A209,'pl-data'!A:BQ,69) ->  | M209: =-VLOOKUP(A209,'pl-data'!A:BR,70) ->  | N209: =-VLOOKUP(A209,'pl-data'!A:BS,71) ->  | P209: =-VLOOKUP(A209,'pl-data'!A:BQ,21) ->  | Q209: =-VLOOKUP(A209,'pl-data'!A:BQ,51) ->  | R209: =-VLOOKUP(A209,'pl-data'!A:BQ,36) -> 0 | S209: n/a | T209: n/a | W209: =-VLOOKUP(A209,'pl-data'!A:BQ,52) ->  | Y209: n/a | Z209: n/a
A210: 2729 | B210: =+masterfile!D800 -> 2729 Erträge Auflösung stl. Rücklage R 6.6 | D210: =-VLOOKUP(A210,'pl-data'!A:F,4) ->  | E210: =-VLOOKUP(A210,'pl-data'!A:F,5) ->  | F210: =-VLOOKUP(A210,'pl-data'!A:F,6) ->  | G210: =-VLOOKUP(A210,'pl-data'!A:G,7) ->  | H210: =-VLOOKUP(A210,'pl-data'!A:V,22) ->  | J210: =-VLOOKUP(A210,'pl-data'!A:BQ,66) ->  | K210: =-VLOOKUP(A210,'pl-data'!A:BQ,68) ->  | L210: =-VLOOKUP(A210,'pl-data'!A:BQ,69) ->  | M210: =-VLOOKUP(A210,'pl-data'!A:BR,70) ->  | N210: =-VLOOKUP(A210,'pl-data'!A:BS,71) ->  | P210: =-VLOOKUP(A210,'pl-data'!A:BQ,21) ->  | Q210: =-VLOOKUP(A210,'pl-data'!A:BQ,51) ->  | R210: =-VLOOKUP(A210,'pl-data'!A:BQ,36) -> 0 | S210: n/a | T210: n/a | W210: =-VLOOKUP(A210,'pl-data'!A:BQ,52) ->  | Y210: n/a | Z210: n/a
A211: 2735 | B211: =+masterfile!D804 -> 2735 Erträge Auflösung von Rückstellungen | D211: =-VLOOKUP(A211,'pl-data'!A:F,4) ->  | E211: =-VLOOKUP(A211,'pl-data'!A:F,5) ->  | F211: =-VLOOKUP(A211,'pl-data'!A:F,6) ->  | G211: =-VLOOKUP(A211,'pl-data'!A:G,7) ->  | H211: =-VLOOKUP(A211,'pl-data'!A:V,22) ->  | J211: =-VLOOKUP(A211,'pl-data'!A:BQ,66) ->  | K211: =-VLOOKUP(A211,'pl-data'!A:BQ,68) ->  | L211: =-VLOOKUP(A211,'pl-data'!A:BQ,69) ->  | M211: =-VLOOKUP(A211,'pl-data'!A:BR,70) ->  | N211: =-VLOOKUP(A211,'pl-data'!A:BS,71) ->  | P211: =-VLOOKUP(A211,'pl-data'!A:BQ,21) ->  | Q211: =-VLOOKUP(A211,'pl-data'!A:BQ,51) ->  | R211: =-VLOOKUP(A211,'pl-data'!A:BQ,36) -> 0 | S211: n/a | T211: n/a | W211: =-VLOOKUP(A211,'pl-data'!A:BQ,52) ->  | Y211: n/a | Z211: n/a
... 513 more rows

Sheet PL-tc-m
A2: GuV | B2: =+dict!C1733 -> GuV | D2: =+dict!C1662 -> VJ | E2: =+dict!C1664 -> B | F2: =+dict!C1665 -> A | G2: Budget | H2: VJ | J2: =+$D$2 -> VJ | K2: =+$E$2 -> B | L2: =+$F$2 -> A | M2: =+$G$2 -> Budget | N2: =+$H$2 -> VJ | P2: =+$D$2 -> VJ | Q2: =+$E$2 -> B | R2: =+$F$2 -> A | S2: =+$G$2 -> Budget | T2: =+$H$2 -> VJ | V2: =+$D$2 -> VJ | W2: =+$E$2 -> B | X2: =+$F$2 -> A | Y2: =+$G$2 -> Budget | Z2: =+$H$2 -> VJ | AB2: =+$D$2 -> VJ | AC2: =+$E$2 -> B | AD2: =+$F$2 -> A | AE2: =+$G$2 -> Budget | AF2: =+$H$2 -> VJ | AH2: =+$D$2 -> VJ | AI2: =+$E$2 -> B | AJ2: =+$F$2 -> A | AK2: =+$G$2 -> Budget | AL2: =+$H$2 -> VJ | AN2: =+$D$2 -> VJ | AO2: =+$E$2 -> B | AP2: =+$F$2 -> A | AQ2: =+$G$2 -> Budget | AR2: =+$H$2 -> VJ | AT2: =+$D$2 -> VJ | AU2: =+$E$2 -> B | AV2: =+$F$2 -> A | AW2: =+$G$2 -> Budget | AX2: =+$H$2 -> VJ | AZ2: =+$D$2 -> VJ | BA2: =+$E$2 -> B | BB2: =+$F$2 -> A | BC2: =+$G$2 -> Budget | BD2: =+$H$2 -> VJ | BF2: =+$D$2 -> VJ | BG2: =+$E$2 -> B | BH2: =+$F$2 -> A | BI2: =+$G$2 -> Budget | BJ2: =+$H$2 -> VJ | BL2: =+$D$2 -> VJ | BM2: =+$E$2 -> B | BN2: =+$F$2 -> A | BO2: =+$G$2 -> Budget | BP2: =+$H$2 -> VJ | BR2: =+$D$2 -> VJ | BS2: =+$E$2 -> B | BT2: =+$F$2 -> A | BU2: =+$G$2 -> Budget | BV2: =+$H$2 -> VJ | BX2: =+$D$2 -> VJ | BY2: =+$E$2 -> B | BZ2: =+$F$2 -> A | CA2: =+$G$2 -> Budget | CB2: =+$H$2 -> VJ | CD2: Check
A3: in TEUR | B3: =+dict!$C$1734 -> in TEUR | D3: 1 | E3: 1 | F3: 1 | G3: Δ % | H3: Δ % | J3: 2 | K3: 2 | L3: 2 | M3: Δ % | N3: Δ % | P3: 3 | Q3: 3 | R3: 3 | S3: Δ % | T3: Δ % | V3: 4 | W3: 4 | X3: 4 | Y3: Δ % | Z3: Δ % | AB3: 5 | AC3: 5 | AD3: 5 | AE3: Δ % | AF3: Δ % | AH3: 6 | AI3: 6 | AJ3: 6 | AK3: Δ % | AL3: Δ % | AN3: 7 | AO3: 7 | AP3: 7 | AQ3: Δ % | AR3: Δ % | AT3: 8 | AU3: 8 | AV3: 8 | AW3: Δ % | AX3: Δ % | AZ3: 9 | BA3: 9 | BB3: 9 | BC3: Δ % | BD3: Δ % | BF3: 10 | BG3: 10 | BH3: 10 | BI3: Δ % | BJ3: Δ % | BL3: 11 | BM3: 11 | BN3: 11 | BO3: Δ % | BP3: Δ % | BR3: 12 | BS3: 12 | BT3: 12 | BU3: Δ % | BV3: Δ % | CA3: Δ % | CB3: Δ %
A5: 1. Umsatzerlöse | B5: 1. Umsatzerlöse | D5: =+SUM(D6:D76)+D77 ->  | G5: =IFERROR(F5/E5-1,"n/a") -> n/a | H5: =IFERROR(F5/D5-1,"n/a") -> n/a | J5: =+SUM(J6:J76)+J77 ->  | M5: =IFERROR(L5/K5-1,"n/a") -> n/a | N5: =IFERROR(L5/J5-1,"n/a") -> n/a | P5: =+SUM(P6:P76)+P77 ->  | S5: =IFERROR(R5/Q5-1,"n/a") -> n/a | T5: =IFERROR(R5/P5-1,"n/a") -> n/a | V5: =+SUM(V6:V76)+V77 ->  | Y5: =IFERROR(X5/W5-1,"n/a") -> n/a | Z5: =IFERROR(X5/V5-1,"n/a") -> n/a | AB5: =+SUM(AB6:AB76)+AB77 ->  | AE5: =IFERROR(AD5/AC5-1,"n/a") -> n/a | AF5: =IFERROR(AD5/AB5-1,"n/a") -> n/a | AH5: =+SUM(AH6:AH76)+AH77 ->  | AK5: =IFERROR(AJ5/AI5-1,"n/a") -> n/a | AL5: =IFERROR(AJ5/AH5-1,"n/a") -> n/a | AN5: =+SUM(AN6:AN76)+AN77 ->  | AQ5: =IFERROR(AP5/AO5-1,"n/a") -> n/a | AR5: =IFERROR(AP5/AN5-1,"n/a") -> n/a | AT5: =+SUM(AT6:AT76)+AT77 ->  | AW5: =IFERROR(AV5/AU5-1,"n/a") -> n/a | AX5: =IFERROR(AV5/AT5-1,"n/a") -> n/a | AZ5: =+SUM(AZ6:AZ76)+AZ77 ->  | BC5: =IFERROR(BB5/BA5-1,"n/a") -> n/a | BD5: =IFERROR(BB5/AZ5-1,"n/a") -> n/a | BF5: =+SUM(BF6:BF76)+BF77 ->  | BI5: =IFERROR(BH5/BG5-1,"n/a") -> n/a | BJ5: =IFERROR(BH5/BF5-1,"n/a") -> n/a | BL5: =+SUM(BL6:BL76)+BL77 ->  | BO5: =IFERROR(BN5/BM5-1,"n/a") -> n/a | BP5: =IFERROR(BN5/BL5-1,"n/a") -> n/a | BR5: =+SUM(BR6:BR76)+BR77 ->  | BU5: =IFERROR(BT5/BS5-1,"n/a") -> n/a | BV5: =IFERROR(BT5/BR5-1,"n/a") -> n/a | BX5: =+BR5+BL5+BF5+AZ5+AT5+AN5+AH5+AB5+V5+P5+J5+D5 ->  | BY5: =+BS5+BM5+BG5+BA5+AU5+AO5+AI5+AC5+W5+Q5+K5+E5 ->  | BZ5: =+BT5+BN5+BH5+BB5+AV5+AP5+AJ5+AD5+X5+R5+L5+F5 ->  | CA5: =IFERROR(BZ5/BY5-1,"n/a") -> n/a | CB5: =IFERROR(BZ5/BX5-1,"n/a") -> n/a | CD5: =+ABS(BX5-'PL-tc'!P5+'PL-tc-m'!BY5-'PL-tc'!Q5+'PL-tc-m'!BZ5-'PL-tc'!R5)<0.001 -> 
A6: 8000 | B6: =+masterfile!D1211 -> 8000 Umsatzerlöse Allemein | D6: =-VLOOKUP($A6,'pl-data'!$A:$BQ,8+D$3) ->  | E6: =-VLOOKUP($A6,'pl-data'!$A:$BQ,38+E$3) ->  | F6: =-VLOOKUP($A6,'pl-data'!$A:$BQ,23+F$3) ->  | G6: =IFERROR(F6/E6-1,"n/a") -> n/a | H6: =IFERROR(F6/D6-1,"n/a") -> n/a | J6: =-VLOOKUP($A6,'pl-data'!$A:$BQ,8+J$3) ->  | K6: =-VLOOKUP($A6,'pl-data'!$A:$BQ,38+K$3) ->  | L6: =-VLOOKUP($A6,'pl-data'!$A:$BQ,23+L$3) ->  | M6: =IFERROR(L6/K6-1,"n/a") -> n/a | N6: =IFERROR(L6/J6-1,"n/a") -> n/a | P6: =-VLOOKUP($A6,'pl-data'!$A:$BQ,8+P$3) ->  | Q6: =-VLOOKUP($A6,'pl-data'!$A:$BQ,38+Q$3) ->  | R6: =-VLOOKUP($A6,'pl-data'!$A:$BQ,23+R$3) ->  | S6: =IFERROR(R6/Q6-1,"n/a") -> n/a | T6: =IFERROR(R6/P6-1,"n/a") -> n/a | V6: =-VLOOKUP($A6,'pl-data'!$A:$BQ,8+V$3) ->  | W6: =-VLOOKUP($A6,'pl-data'!$A:$BQ,38+W$3) ->  | X6: =-VLOOKUP($A6,'pl-data'!$A:$BQ,23+X$3) ->  | Y6: =IFERROR(X6/W6-1,"n/a") -> n/a | Z6: =IFERROR(X6/V6-1,"n/a") -> n/a | AB6: =-VLOOKUP($A6,'pl-data'!$A:$BQ,8+AB$3) ->  | AC6: =-VLOOKUP($A6,'pl-data'!$A:$BQ,38+AC$3) ->  | AD6: =-VLOOKUP($A6,'pl-data'!$A:$BQ,23+AD$3) ->  | AE6: =IFERROR(AD6/AC6-1,"n/a") -> n/a | AF6: =IFERROR(AD6/AB6-1,"n/a") -> n/a | AH6: =-VLOOKUP($A6,'pl-data'!$A:$BQ,8+AH$3) ->  | AI6: =-VLOOKUP($A6,'pl-data'!$A:$BQ,38+AI$3) ->  | AJ6: =-VLOOKUP($A6,'pl-data'!$A:$BQ,23+AJ$3) ->  | AK6: =IFERROR(AJ6/AI6-1,"n/a") -> n/a | AL6: =IFERROR(AJ6/AH6-1,"n/a") -> n/a | AN6: =-VLOOKUP($A6,'pl-data'!$A:$BQ,8+AN$3) ->  | AO6: =-VLOOKUP($A6,'pl-data'!$A:$BQ,38+AO$3) ->  | AP6: =-VLOOKUP($A6,'pl-data'!$A:$BQ,23+AP$3) ->  | AQ6: =IFERROR(AP6/AO6-1,"n/a") -> n/a | AR6: =IFERROR(AP6/AN6-1,"n/a") -> n/a | AT6: =-VLOOKUP($A6,'pl-data'!$A:$BQ,8+AT$3) ->  | AU6: =-VLOOKUP($A6,'pl-data'!$A:$BQ,38+AU$3) ->  | AV6: =-VLOOKUP($A6,'pl-data'!$A:$BQ,23+AV$3) ->  | AW6: =IFERROR(AV6/AU6-1,"n/a") -> n/a | AX6: =IFERROR(AV6/AT6-1,"n/a") -> n/a | AZ6: =-VLOOKUP($A6,'pl-data'!$A:$BQ,8+AZ$3) ->  | BA6: =-VLOOKUP($A6,'pl-data'!$A:$BQ,38+BA$3) ->  | BB6: =-VLOOKUP($A6,'pl-data'!$A:$BQ,23+BB$3) ->  | BC6: =IFERROR(BB6/BA6-1,"n/a") -> n/a | BD6: =IFERROR(BB6/AZ6-1,"n/a") -> n/a | BF6: =-VLOOKUP($A6,'pl-data'!$A:$BQ,8+BF$3) ->  | BG6: =-VLOOKUP($A6,'pl-data'!$A:$BQ,38+BG$3) ->  | BH6: =-VLOOKUP($A6,'pl-data'!$A:$BQ,23+BH$3) ->  | BI6: =IFERROR(BH6/BG6-1,"n/a") -> n/a | BJ6: =IFERROR(BH6/BF6-1,"n/a") -> n/a | BL6: =-VLOOKUP($A6,'pl-data'!$A:$BQ,8+BL$3) ->  | BM6: =-VLOOKUP($A6,'pl-data'!$A:$BQ,38+BM$3) ->  | BN6: =-VLOOKUP($A6,'pl-data'!$A:$BQ,23+BN$3) ->  | BO6: =IFERROR(BN6/BM6-1,"n/a") -> n/a | BP6: =IFERROR(BN6/BL6-1,"n/a") -> n/a | BR6: =-VLOOKUP($A6,'pl-data'!$A:$BQ,8+BR$3) ->  | BS6: =-VLOOKUP($A6,'pl-data'!$A:$BQ,38+BS$3) ->  | BT6: =-VLOOKUP($A6,'pl-data'!$A:$BQ,23+BT$3) ->  | BU6: =IFERROR(BT6/BS6-1,"n/a") -> n/a | BV6: =IFERROR(BT6/BR6-1,"n/a") -> n/a | BX6: =+BR6+BL6+BF6+AZ6+AT6+AN6+AH6+AB6+V6+P6+J6+D6 ->  | BY6: =+BS6+BM6+BG6+BA6+AU6+AO6+AI6+AC6+W6+Q6+K6+E6 ->  | BZ6: =+BT6+BN6+BH6+BB6+AV6+AP6+AJ6+AD6+X6+R6+L6+F6 ->  | CA6: =IFERROR(BZ6/BY6-1,"n/a") -> n/a | CB6: =IFERROR(BZ6/BX6-1,"n/a") -> n/a
A7: 8001 | B7: =+masterfile!D1212 -> 8001 Umsatzerlöse Software | D7: =-VLOOKUP($A7,'pl-data'!$A:$BQ,8+D$3) ->  | E7: =-VLOOKUP($A7,'pl-data'!$A:$BQ,38+E$3) ->  | F7: =-VLOOKUP($A7,'pl-data'!$A:$BQ,23+F$3) -> 0 | G7: =IFERROR(F7/E7-1,"n/a") -> n/a | H7: =IFERROR(F7/D7-1,"n/a") -> n/a | J7: =-VLOOKUP($A7,'pl-data'!$A:$BQ,8+J$3) ->  | K7: =-VLOOKUP($A7,'pl-data'!$A:$BQ,38+K$3) ->  | L7: =-VLOOKUP($A7,'pl-data'!$A:$BQ,23+L$3) -> 0 | M7: =IFERROR(L7/K7-1,"n/a") -> n/a | N7: =IFERROR(L7/J7-1,"n/a") -> n/a | P7: =-VLOOKUP($A7,'pl-data'!$A:$BQ,8+P$3) ->  | Q7: =-VLOOKUP($A7,'pl-data'!$A:$BQ,38+Q$3) ->  | R7: =-VLOOKUP($A7,'pl-data'!$A:$BQ,23+R$3) -> 0 | S7: =IFERROR(R7/Q7-1,"n/a") -> n/a | T7: =IFERROR(R7/P7-1,"n/a") -> n/a | V7: =-VLOOKUP($A7,'pl-data'!$A:$BQ,8+V$3) ->  | W7: =-VLOOKUP($A7,'pl-data'!$A:$BQ,38+W$3) ->  | X7: =-VLOOKUP($A7,'pl-data'!$A:$BQ,23+X$3) -> 0 | Y7: =IFERROR(X7/W7-1,"n/a") -> n/a | Z7: =IFERROR(X7/V7-1,"n/a") -> n/a | AB7: =-VLOOKUP($A7,'pl-data'!$A:$BQ,8+AB$3) ->  | AC7: =-VLOOKUP($A7,'pl-data'!$A:$BQ,38+AC$3) ->  | AD7: =-VLOOKUP($A7,'pl-data'!$A:$BQ,23+AD$3) -> 0 | AE7: =IFERROR(AD7/AC7-1,"n/a") -> n/a | AF7: =IFERROR(AD7/AB7-1,"n/a") -> n/a | AH7: =-VLOOKUP($A7,'pl-data'!$A:$BQ,8+AH$3) ->  | AI7: =-VLOOKUP($A7,'pl-data'!$A:$BQ,38+AI$3) ->  | AJ7: =-VLOOKUP($A7,'pl-data'!$A:$BQ,23+AJ$3) -> 0 | AK7: =IFERROR(AJ7/AI7-1,"n/a") -> n/a | AL7: =IFERROR(AJ7/AH7-1,"n/a") -> n/a | AN7: =-VLOOKUP($A7,'pl-data'!$A:$BQ,8+AN$3) ->  | AO7: =-VLOOKUP($A7,'pl-data'!$A:$BQ,38+AO$3) ->  | AP7: =-VLOOKUP($A7,'pl-data'!$A:$BQ,23+AP$3) -> 0 | AQ7: =IFERROR(AP7/AO7-1,"n/a") -> n/a | AR7: =IFERROR(AP7/AN7-1,"n/a") -> n/a | AT7: =-VLOOKUP($A7,'pl-data'!$A:$BQ,8+AT$3) ->  | AU7: =-VLOOKUP($A7,'pl-data'!$A:$BQ,38+AU$3) ->  | AV7: =-VLOOKUP($A7,'pl-data'!$A:$BQ,23+AV$3) -> 0 | AW7: =IFERROR(AV7/AU7-1,"n/a") -> n/a | AX7: =IFERROR(AV7/AT7-1,"n/a") -> n/a | AZ7: =-VLOOKUP($A7,'pl-data'!$A:$BQ,8+AZ$3) ->  | BA7: =-VLOOKUP($A7,'pl-data'!$A:$BQ,38+BA$3) ->  | BB7: =-VLOOKUP($A7,'pl-data'!$A:$BQ,23+BB$3) -> 0 | BC7: =IFERROR(BB7/BA7-1,"n/a") -> n/a | BD7: =IFERROR(BB7/AZ7-1,"n/a") -> n/a | BF7: =-VLOOKUP($A7,'pl-data'!$A:$BQ,8+BF$3) ->  | BG7: =-VLOOKUP($A7,'pl-data'!$A:$BQ,38+BG$3) ->  | BH7: =-VLOOKUP($A7,'pl-data'!$A:$BQ,23+BH$3) -> 0 | BI7: =IFERROR(BH7/BG7-1,"n/a") -> n/a | BJ7: =IFERROR(BH7/BF7-1,"n/a") -> n/a | BL7: =-VLOOKUP($A7,'pl-data'!$A:$BQ,8+BL$3) ->  | BM7: =-VLOOKUP($A7,'pl-data'!$A:$BQ,38+BM$3) ->  | BN7: =-VLOOKUP($A7,'pl-data'!$A:$BQ,23+BN$3) -> 0 | BO7: =IFERROR(BN7/BM7-1,"n/a") -> n/a | BP7: =IFERROR(BN7/BL7-1,"n/a") -> n/a | BR7: =-VLOOKUP($A7,'pl-data'!$A:$BQ,8+BR$3) ->  | BS7: =-VLOOKUP($A7,'pl-data'!$A:$BQ,38+BS$3) ->  | BT7: =-VLOOKUP($A7,'pl-data'!$A:$BQ,23+BT$3) -> 0 | BU7: =IFERROR(BT7/BS7-1,"n/a") -> n/a | BV7: =IFERROR(BT7/BR7-1,"n/a") -> n/a | BZ7: 0 | CA7: n/a | CB7: n/a
A8: 8002 | B8: =+masterfile!D1213 -> 8002 Umsatzerlöse Customization | D8: =-VLOOKUP($A8,'pl-data'!$A:$BQ,8+D$3) ->  | E8: =-VLOOKUP($A8,'pl-data'!$A:$BQ,38+E$3) ->  | F8: =-VLOOKUP($A8,'pl-data'!$A:$BQ,23+F$3) -> 0 | G8: n/a | H8: n/a | J8: =-VLOOKUP($A8,'pl-data'!$A:$BQ,8+J$3) ->  | K8: =-VLOOKUP($A8,'pl-data'!$A:$BQ,38+K$3) ->  | L8: =-VLOOKUP($A8,'pl-data'!$A:$BQ,23+L$3) -> 0 | M8: n/a | N8: n/a | P8: =-VLOOKUP($A8,'pl-data'!$A:$BQ,8+P$3) ->  | Q8: =-VLOOKUP($A8,'pl-data'!$A:$BQ,38+Q$3) ->  | R8: =-VLOOKUP($A8,'pl-data'!$A:$BQ,23+R$3) -> 0 | S8: n/a | T8: n/a | V8: =-VLOOKUP($A8,'pl-data'!$A:$BQ,8+V$3) ->  | W8: =-VLOOKUP($A8,'pl-data'!$A:$BQ,38+W$3) ->  | X8: =-VLOOKUP($A8,'pl-data'!$A:$BQ,23+X$3) -> 0 | Y8: n/a | Z8: n/a | AB8: =-VLOOKUP($A8,'pl-data'!$A:$BQ,8+AB$3) ->  | AC8: =-VLOOKUP($A8,'pl-data'!$A:$BQ,38+AC$3) ->  | AD8: =-VLOOKUP($A8,'pl-data'!$A:$BQ,23+AD$3) -> 0 | AE8: n/a | AF8: n/a | AH8: =-VLOOKUP($A8,'pl-data'!$A:$BQ,8+AH$3) ->  | AI8: =-VLOOKUP($A8,'pl-data'!$A:$BQ,38+AI$3) ->  | AJ8: =-VLOOKUP($A8,'pl-data'!$A:$BQ,23+AJ$3) -> 0 | AK8: n/a | AL8: n/a | AN8: =-VLOOKUP($A8,'pl-data'!$A:$BQ,8+AN$3) ->  | AO8: =-VLOOKUP($A8,'pl-data'!$A:$BQ,38+AO$3) ->  | AP8: =-VLOOKUP($A8,'pl-data'!$A:$BQ,23+AP$3) -> 0 | AQ8: n/a | AR8: n/a | AT8: =-VLOOKUP($A8,'pl-data'!$A:$BQ,8+AT$3) ->  | AU8: =-VLOOKUP($A8,'pl-data'!$A:$BQ,38+AU$3) ->  | AV8: =-VLOOKUP($A8,'pl-data'!$A:$BQ,23+AV$3) -> 0 | AW8: n/a | AX8: n/a | AZ8: =-VLOOKUP($A8,'pl-data'!$A:$BQ,8+AZ$3) ->  | BA8: =-VLOOKUP($A8,'pl-data'!$A:$BQ,38+BA$3) ->  | BB8: =-VLOOKUP($A8,'pl-data'!$A:$BQ,23+BB$3) -> 0 | BC8: n/a | BD8: n/a | BF8: =-VLOOKUP($A8,'pl-data'!$A:$BQ,8+BF$3) ->  | BG8: =-VLOOKUP($A8,'pl-data'!$A:$BQ,38+BG$3) ->  | BH8: =-VLOOKUP($A8,'pl-data'!$A:$BQ,23+BH$3) -> 0 | BI8: n/a | BJ8: n/a | BL8: =-VLOOKUP($A8,'pl-data'!$A:$BQ,8+BL$3) ->  | BM8: =-VLOOKUP($A8,'pl-data'!$A:$BQ,38+BM$3) ->  | BN8: =-VLOOKUP($A8,'pl-data'!$A:$BQ,23+BN$3) -> 0 | BO8: n/a | BP8: n/a | BR8: =-VLOOKUP($A8,'pl-data'!$A:$BQ,8+BR$3) ->  | BS8: =-VLOOKUP($A8,'pl-data'!$A:$BQ,38+BS$3) ->  | BT8: =-VLOOKUP($A8,'pl-data'!$A:$BQ,23+BT$3) -> 0 | BU8: n/a | BV8: n/a | BZ8: 0 | CA8: n/a | CB8: n/a
A9: 8003 | B9: =+masterfile!D1214 -> 8003 Umsatzerlöse Schulung, Wartung & Support | D9: =-VLOOKUP($A9,'pl-data'!$A:$BQ,8+D$3) ->  | E9: =-VLOOKUP($A9,'pl-data'!$A:$BQ,38+E$3) ->  | F9: =-VLOOKUP($A9,'pl-data'!$A:$BQ,23+F$3) -> 0 | G9: n/a | H9: n/a | J9: =-VLOOKUP($A9,'pl-data'!$A:$BQ,8+J$3) ->  | K9: =-VLOOKUP($A9,'pl-data'!$A:$BQ,38+K$3) ->  | L9: =-VLOOKUP($A9,'pl-data'!$A:$BQ,23+L$3) -> 0 | M9: n/a | N9: n/a | P9: =-VLOOKUP($A9,'pl-data'!$A:$BQ,8+P$3) ->  | Q9: =-VLOOKUP($A9,'pl-data'!$A:$BQ,38+Q$3) ->  | R9: =-VLOOKUP($A9,'pl-data'!$A:$BQ,23+R$3) -> 0 | S9: n/a | T9: n/a | V9: =-VLOOKUP($A9,'pl-data'!$A:$BQ,8+V$3) ->  | W9: =-VLOOKUP($A9,'pl-data'!$A:$BQ,38+W$3) ->  | X9: =-VLOOKUP($A9,'pl-data'!$A:$BQ,23+X$3) -> 0 | Y9: n/a | Z9: n/a | AB9: =-VLOOKUP($A9,'pl-data'!$A:$BQ,8+AB$3) ->  | AC9: =-VLOOKUP($A9,'pl-data'!$A:$BQ,38+AC$3) ->  | AD9: =-VLOOKUP($A9,'pl-data'!$A:$BQ,23+AD$3) -> 0 | AE9: n/a | AF9: n/a | AH9: =-VLOOKUP($A9,'pl-data'!$A:$BQ,8+AH$3) ->  | AI9: =-VLOOKUP($A9,'pl-data'!$A:$BQ,38+AI$3) ->  | AJ9: =-VLOOKUP($A9,'pl-data'!$A:$BQ,23+AJ$3) -> 0 | AK9: n/a | AL9: n/a | AN9: =-VLOOKUP($A9,'pl-data'!$A:$BQ,8+AN$3) ->  | AO9: =-VLOOKUP($A9,'pl-data'!$A:$BQ,38+AO$3) ->  | AP9: =-VLOOKUP($A9,'pl-data'!$A:$BQ,23+AP$3) -> 0 | AQ9: n/a | AR9: n/a | AT9: =-VLOOKUP($A9,'pl-data'!$A:$BQ,8+AT$3) ->  | AU9: =-VLOOKUP($A9,'pl-data'!$A:$BQ,38+AU$3) ->  | AV9: =-VLOOKUP($A9,'pl-data'!$A:$BQ,23+AV$3) -> 0 | AW9: n/a | AX9: n/a | AZ9: =-VLOOKUP($A9,'pl-data'!$A:$BQ,8+AZ$3) ->  | BA9: =-VLOOKUP($A9,'pl-data'!$A:$BQ,38+BA$3) ->  | BB9: =-VLOOKUP($A9,'pl-data'!$A:$BQ,23+BB$3) -> 0 | BC9: n/a | BD9: n/a | BF9: =-VLOOKUP($A9,'pl-data'!$A:$BQ,8+BF$3) ->  | BG9: =-VLOOKUP($A9,'pl-data'!$A:$BQ,38+BG$3) ->  | BH9: =-VLOOKUP($A9,'pl-data'!$A:$BQ,23+BH$3) -> 0 | BI9: n/a | BJ9: n/a | BL9: =-VLOOKUP($A9,'pl-data'!$A:$BQ,8+BL$3) ->  | BM9: =-VLOOKUP($A9,'pl-data'!$A:$BQ,38+BM$3) ->  | BN9: =-VLOOKUP($A9,'pl-data'!$A:$BQ,23+BN$3) -> 0 | BO9: n/a | BP9: n/a | BR9: =-VLOOKUP($A9,'pl-data'!$A:$BQ,8+BR$3) ->  | BS9: =-VLOOKUP($A9,'pl-data'!$A:$BQ,38+BS$3) ->  | BT9: =-VLOOKUP($A9,'pl-data'!$A:$BQ,23+BT$3) -> 0 | BU9: n/a | BV9: n/a | BZ9: 0 | CA9: n/a | CB9: n/a
A10: 8004 | B10: =+masterfile!D1215 -> 8004 Umsatzerlöse Hardware | D10: =-VLOOKUP($A10,'pl-data'!$A:$BQ,8+D$3) ->  | E10: =-VLOOKUP($A10,'pl-data'!$A:$BQ,38+E$3) ->  | F10: =-VLOOKUP($A10,'pl-data'!$A:$BQ,23+F$3) -> 0 | G10: n/a | H10: n/a | J10: =-VLOOKUP($A10,'pl-data'!$A:$BQ,8+J$3) ->  | K10: =-VLOOKUP($A10,'pl-data'!$A:$BQ,38+K$3) ->  | L10: =-VLOOKUP($A10,'pl-data'!$A:$BQ,23+L$3) -> 0 | M10: n/a | N10: n/a | P10: =-VLOOKUP($A10,'pl-data'!$A:$BQ,8+P$3) ->  | Q10: =-VLOOKUP($A10,'pl-data'!$A:$BQ,38+Q$3) ->  | R10: =-VLOOKUP($A10,'pl-data'!$A:$BQ,23+R$3) -> 0 | S10: n/a | T10: n/a | V10: =-VLOOKUP($A10,'pl-data'!$A:$BQ,8+V$3) ->  | W10: =-VLOOKUP($A10,'pl-data'!$A:$BQ,38+W$3) ->  | X10: =-VLOOKUP($A10,'pl-data'!$A:$BQ,23+X$3) -> 0 | Y10: n/a | Z10: n/a | AB10: =-VLOOKUP($A10,'pl-data'!$A:$BQ,8+AB$3) ->  | AC10: =-VLOOKUP($A10,'pl-data'!$A:$BQ,38+AC$3) ->  | AD10: =-VLOOKUP($A10,'pl-data'!$A:$BQ,23+AD$3) -> 0 | AE10: n/a | AF10: n/a | AH10: =-VLOOKUP($A10,'pl-data'!$A:$BQ,8+AH$3) ->  | AI10: =-VLOOKUP($A10,'pl-data'!$A:$BQ,38+AI$3) ->  | AJ10: =-VLOOKUP($A10,'pl-data'!$A:$BQ,23+AJ$3) -> 0 | AK10: n/a | AL10: n/a | AN10: =-VLOOKUP($A10,'pl-data'!$A:$BQ,8+AN$3) ->  | AO10: =-VLOOKUP($A10,'pl-data'!$A:$BQ,38+AO$3) ->  | AP10: =-VLOOKUP($A10,'pl-data'!$A:$BQ,23+AP$3) -> 0 | AQ10: n/a | AR10: n/a | AT10: =-VLOOKUP($A10,'pl-data'!$A:$BQ,8+AT$3) ->  | AU10: =-VLOOKUP($A10,'pl-data'!$A:$BQ,38+AU$3) ->  | AV10: =-VLOOKUP($A10,'pl-data'!$A:$BQ,23+AV$3) -> 0 | AW10: n/a | AX10: n/a | AZ10: =-VLOOKUP($A10,'pl-data'!$A:$BQ,8+AZ$3) ->  | BA10: =-VLOOKUP($A10,'pl-data'!$A:$BQ,38+BA$3) ->  | BB10: =-VLOOKUP($A10,'pl-data'!$A:$BQ,23+BB$3) -> 0 | BC10: n/a | BD10: n/a | BF10: =-VLOOKUP($A10,'pl-data'!$A:$BQ,8+BF$3) ->  | BG10: =-VLOOKUP($A10,'pl-data'!$A:$BQ,38+BG$3) ->  | BH10: =-VLOOKUP($A10,'pl-data'!$A:$BQ,23+BH$3) -> 0 | BI10: n/a | BJ10: n/a | BL10: =-VLOOKUP($A10,'pl-data'!$A:$BQ,8+BL$3) ->  | BM10: =-VLOOKUP($A10,'pl-data'!$A:$BQ,38+BM$3) ->  | BN10: =-VLOOKUP($A10,'pl-data'!$A:$BQ,23+BN$3) -> 0 | BO10: n/a | BP10: n/a | BR10: =-VLOOKUP($A10,'pl-data'!$A:$BQ,8+BR$3) ->  | BS10: =-VLOOKUP($A10,'pl-data'!$A:$BQ,38+BS$3) ->  | BT10: =-VLOOKUP($A10,'pl-data'!$A:$BQ,23+BT$3) -> 0 | BU10: n/a | BV10: n/a | BZ10: 0 | CA10: n/a | CB10: n/a
A11: 8005 | B11: =+masterfile!D1216 -> 8005 Umsatzerlöse Sonstiges | D11: =-VLOOKUP($A11,'pl-data'!$A:$BQ,8+D$3) ->  | E11: =-VLOOKUP($A11,'pl-data'!$A:$BQ,38+E$3) ->  | F11: =-VLOOKUP($A11,'pl-data'!$A:$BQ,23+F$3) -> 0 | G11: n/a | H11: n/a | J11: =-VLOOKUP($A11,'pl-data'!$A:$BQ,8+J$3) ->  | K11: =-VLOOKUP($A11,'pl-data'!$A:$BQ,38+K$3) ->  | L11: =-VLOOKUP($A11,'pl-data'!$A:$BQ,23+L$3) -> 0 | M11: n/a | N11: n/a | P11: =-VLOOKUP($A11,'pl-data'!$A:$BQ,8+P$3) ->  | Q11: =-VLOOKUP($A11,'pl-data'!$A:$BQ,38+Q$3) ->  | R11: =-VLOOKUP($A11,'pl-data'!$A:$BQ,23+R$3) -> 0 | S11: n/a | T11: n/a | V11: =-VLOOKUP($A11,'pl-data'!$A:$BQ,8+V$3) ->  | W11: =-VLOOKUP($A11,'pl-data'!$A:$BQ,38+W$3) ->  | X11: =-VLOOKUP($A11,'pl-data'!$A:$BQ,23+X$3) -> 0 | Y11: n/a | Z11: n/a | AB11: =-VLOOKUP($A11,'pl-data'!$A:$BQ,8+AB$3) ->  | AC11: =-VLOOKUP($A11,'pl-data'!$A:$BQ,38+AC$3) ->  | AD11: =-VLOOKUP($A11,'pl-data'!$A:$BQ,23+AD$3) -> 0 | AE11: n/a | AF11: n/a | AH11: =-VLOOKUP($A11,'pl-data'!$A:$BQ,8+AH$3) ->  | AI11: =-VLOOKUP($A11,'pl-data'!$A:$BQ,38+AI$3) ->  | AJ11: =-VLOOKUP($A11,'pl-data'!$A:$BQ,23+AJ$3) -> 0 | AK11: n/a | AL11: n/a | AN11: =-VLOOKUP($A11,'pl-data'!$A:$BQ,8+AN$3) ->  | AO11: =-VLOOKUP($A11,'pl-data'!$A:$BQ,38+AO$3) ->  | AP11: =-VLOOKUP($A11,'pl-data'!$A:$BQ,23+AP$3) -> 0 | AQ11: n/a | AR11: n/a | AT11: =-VLOOKUP($A11,'pl-data'!$A:$BQ,8+AT$3) ->  | AU11: =-VLOOKUP($A11,'pl-data'!$A:$BQ,38+AU$3) ->  | AV11: =-VLOOKUP($A11,'pl-data'!$A:$BQ,23+AV$3) -> 0 | AW11: n/a | AX11: n/a | AZ11: =-VLOOKUP($A11,'pl-data'!$A:$BQ,8+AZ$3) ->  | BA11: =-VLOOKUP($A11,'pl-data'!$A:$BQ,38+BA$3) ->  | BB11: =-VLOOKUP($A11,'pl-data'!$A:$BQ,23+BB$3) -> 0 | BC11: n/a | BD11: n/a | BF11: =-VLOOKUP($A11,'pl-data'!$A:$BQ,8+BF$3) ->  | BG11: =-VLOOKUP($A11,'pl-data'!$A:$BQ,38+BG$3) ->  | BH11: =-VLOOKUP($A11,'pl-data'!$A:$BQ,23+BH$3) -> 0 | BI11: n/a | BJ11: n/a | BL11: =-VLOOKUP($A11,'pl-data'!$A:$BQ,8+BL$3) ->  | BM11: =-VLOOKUP($A11,'pl-data'!$A:$BQ,38+BM$3) ->  | BN11: =-VLOOKUP($A11,'pl-data'!$A:$BQ,23+BN$3) -> 0 | BO11: n/a | BP11: n/a | BR11: =-VLOOKUP($A11,'pl-data'!$A:$BQ,8+BR$3) ->  | BS11: =-VLOOKUP($A11,'pl-data'!$A:$BQ,38+BS$3) ->  | BT11: =-VLOOKUP($A11,'pl-data'!$A:$BQ,23+BT$3) -> 0 | BU11: n/a | BV11: n/a | BZ11: 0 | CA11: n/a | CB11: n/a
A12: 8006 | B12: =+masterfile!D1217 -> 8006 Umsatzerlöse | D12: =-VLOOKUP($A12,'pl-data'!$A:$BQ,8+D$3) ->  | E12: =-VLOOKUP($A12,'pl-data'!$A:$BQ,38+E$3) ->  | F12: =-VLOOKUP($A12,'pl-data'!$A:$BQ,23+F$3) -> 0 | G12: n/a | H12: n/a | J12: =-VLOOKUP($A12,'pl-data'!$A:$BQ,8+J$3) ->  | K12: =-VLOOKUP($A12,'pl-data'!$A:$BQ,38+K$3) ->  | L12: =-VLOOKUP($A12,'pl-data'!$A:$BQ,23+L$3) -> 0 | M12: n/a | N12: n/a | P12: =-VLOOKUP($A12,'pl-data'!$A:$BQ,8+P$3) ->  | Q12: =-VLOOKUP($A12,'pl-data'!$A:$BQ,38+Q$3) ->  | R12: =-VLOOKUP($A12,'pl-data'!$A:$BQ,23+R$3) -> 0 | S12: n/a | T12: n/a | V12: =-VLOOKUP($A12,'pl-data'!$A:$BQ,8+V$3) ->  | W12: =-VLOOKUP($A12,'pl-data'!$A:$BQ,38+W$3) ->  | X12: =-VLOOKUP($A12,'pl-data'!$A:$BQ,23+X$3) -> 0 | Y12: n/a | Z12: n/a | AB12: =-VLOOKUP($A12,'pl-data'!$A:$BQ,8+AB$3) ->  | AC12: =-VLOOKUP($A12,'pl-data'!$A:$BQ,38+AC$3) ->  | AD12: =-VLOOKUP($A12,'pl-data'!$A:$BQ,23+AD$3) -> 0 | AE12: n/a | AF12: n/a | AH12: =-VLOOKUP($A12,'pl-data'!$A:$BQ,8+AH$3) ->  | AI12: =-VLOOKUP($A12,'pl-data'!$A:$BQ,38+AI$3) ->  | AJ12: =-VLOOKUP($A12,'pl-data'!$A:$BQ,23+AJ$3) -> 0 | AK12: n/a | AL12: n/a | AN12: =-VLOOKUP($A12,'pl-data'!$A:$BQ,8+AN$3) ->  | AO12: =-VLOOKUP($A12,'pl-data'!$A:$BQ,38+AO$3) ->  | AP12: =-VLOOKUP($A12,'pl-data'!$A:$BQ,23+AP$3) -> 0 | AQ12: n/a | AR12: n/a | AT12: =-VLOOKUP($A12,'pl-data'!$A:$BQ,8+AT$3) ->  | AU12: =-VLOOKUP($A12,'pl-data'!$A:$BQ,38+AU$3) ->  | AV12: =-VLOOKUP($A12,'pl-data'!$A:$BQ,23+AV$3) -> 0 | AW12: n/a | AX12: n/a | AZ12: =-VLOOKUP($A12,'pl-data'!$A:$BQ,8+AZ$3) ->  | BA12: =-VLOOKUP($A12,'pl-data'!$A:$BQ,38+BA$3) ->  | BB12: =-VLOOKUP($A12,'pl-data'!$A:$BQ,23+BB$3) -> 0 | BC12: n/a | BD12: n/a | BF12: =-VLOOKUP($A12,'pl-data'!$A:$BQ,8+BF$3) ->  | BG12: =-VLOOKUP($A12,'pl-data'!$A:$BQ,38+BG$3) ->  | BH12: =-VLOOKUP($A12,'pl-data'!$A:$BQ,23+BH$3) -> 0 | BI12: n/a | BJ12: n/a | BL12: =-VLOOKUP($A12,'pl-data'!$A:$BQ,8+BL$3) ->  | BM12: =-VLOOKUP($A12,'pl-data'!$A:$BQ,38+BM$3) ->  | BN12: =-VLOOKUP($A12,'pl-data'!$A:$BQ,23+BN$3) -> 0 | BO12: n/a | BP12: n/a | BR12: =-VLOOKUP($A12,'pl-data'!$A:$BQ,8+BR$3) ->  | BS12: =-VLOOKUP($A12,'pl-data'!$A:$BQ,38+BS$3) ->  | BT12: =-VLOOKUP($A12,'pl-data'!$A:$BQ,23+BT$3) -> 0 | BU12: n/a | BV12: n/a | BZ12: 0 | CA12: n/a | CB12: n/a
A13: 8007 | B13: =+masterfile!D1218 -> 8007 Umsatzerlöse | D13: =-VLOOKUP($A13,'pl-data'!$A:$BQ,8+D$3) ->  | E13: =-VLOOKUP($A13,'pl-data'!$A:$BQ,38+E$3) ->  | F13: =-VLOOKUP($A13,'pl-data'!$A:$BQ,23+F$3) -> 0 | G13: n/a | H13: n/a | J13: =-VLOOKUP($A13,'pl-data'!$A:$BQ,8+J$3) ->  | K13: =-VLOOKUP($A13,'pl-data'!$A:$BQ,38+K$3) ->  | L13: =-VLOOKUP($A13,'pl-data'!$A:$BQ,23+L$3) -> 0 | M13: n/a | N13: n/a | P13: =-VLOOKUP($A13,'pl-data'!$A:$BQ,8+P$3) ->  | Q13: =-VLOOKUP($A13,'pl-data'!$A:$BQ,38+Q$3) ->  | R13: =-VLOOKUP($A13,'pl-data'!$A:$BQ,23+R$3) -> 0 | S13: n/a | T13: n/a | V13: =-VLOOKUP($A13,'pl-data'!$A:$BQ,8+V$3) ->  | W13: =-VLOOKUP($A13,'pl-data'!$A:$BQ,38+W$3) ->  | X13: =-VLOOKUP($A13,'pl-data'!$A:$BQ,23+X$3) -> 0 | Y13: n/a | Z13: n/a | AB13: =-VLOOKUP($A13,'pl-data'!$A:$BQ,8+AB$3) ->  | AC13: =-VLOOKUP($A13,'pl-data'!$A:$BQ,38+AC$3) ->  | AD13: =-VLOOKUP($A13,'pl-data'!$A:$BQ,23+AD$3) -> 0 | AE13: n/a | AF13: n/a | AH13: =-VLOOKUP($A13,'pl-data'!$A:$BQ,8+AH$3) ->  | AI13: =-VLOOKUP($A13,'pl-data'!$A:$BQ,38+AI$3) ->  | AJ13: =-VLOOKUP($A13,'pl-data'!$A:$BQ,23+AJ$3) -> 0 | AK13: n/a | AL13: n/a | AN13: =-VLOOKUP($A13,'pl-data'!$A:$BQ,8+AN$3) ->  | AO13: =-VLOOKUP($A13,'pl-data'!$A:$BQ,38+AO$3) ->  | AP13: =-VLOOKUP($A13,'pl-data'!$A:$BQ,23+AP$3) -> 0 | AQ13: n/a | AR13: n/a | AT13: =-VLOOKUP($A13,'pl-data'!$A:$BQ,8+AT$3) ->  | AU13: =-VLOOKUP($A13,'pl-data'!$A:$BQ,38+AU$3) ->  | AV13: =-VLOOKUP($A13,'pl-data'!$A:$BQ,23+AV$3) -> 0 | AW13: n/a | AX13: n/a | AZ13: =-VLOOKUP($A13,'pl-data'!$A:$BQ,8+AZ$3) ->  | BA13: =-VLOOKUP($A13,'pl-data'!$A:$BQ,38+BA$3) ->  | BB13: =-VLOOKUP($A13,'pl-data'!$A:$BQ,23+BB$3) -> 0 | BC13: n/a | BD13: n/a | BF13: =-VLOOKUP($A13,'pl-data'!$A:$BQ,8+BF$3) ->  | BG13: =-VLOOKUP($A13,'pl-data'!$A:$BQ,38+BG$3) ->  | BH13: =-VLOOKUP($A13,'pl-data'!$A:$BQ,23+BH$3) -> 0 | BI13: n/a | BJ13: n/a | BL13: =-VLOOKUP($A13,'pl-data'!$A:$BQ,8+BL$3) ->  | BM13: =-VLOOKUP($A13,'pl-data'!$A:$BQ,38+BM$3) ->  | BN13: =-VLOOKUP($A13,'pl-data'!$A:$BQ,23+BN$3) -> 0 | BO13: n/a | BP13: n/a | BR13: =-VLOOKUP($A13,'pl-data'!$A:$BQ,8+BR$3) ->  | BS13: =-VLOOKUP($A13,'pl-data'!$A:$BQ,38+BS$3) ->  | BT13: =-VLOOKUP($A13,'pl-data'!$A:$BQ,23+BT$3) -> 0 | BU13: n/a | BV13: n/a | BZ13: 0 | CA13: n/a | CB13: n/a
A14: 8008 | B14: =+masterfile!D1219 -> 8008 Umsatzerlöse | D14: =-VLOOKUP($A14,'pl-data'!$A:$BQ,8+D$3) ->  | E14: =-VLOOKUP($A14,'pl-data'!$A:$BQ,38+E$3) ->  | F14: =-VLOOKUP($A14,'pl-data'!$A:$BQ,23+F$3) -> 0 | G14: n/a | H14: n/a | J14: =-VLOOKUP($A14,'pl-data'!$A:$BQ,8+J$3) ->  | K14: =-VLOOKUP($A14,'pl-data'!$A:$BQ,38+K$3) ->  | L14: =-VLOOKUP($A14,'pl-data'!$A:$BQ,23+L$3) -> 0 | M14: n/a | N14: n/a | P14: =-VLOOKUP($A14,'pl-data'!$A:$BQ,8+P$3) ->  | Q14: =-VLOOKUP($A14,'pl-data'!$A:$BQ,38+Q$3) ->  | R14: =-VLOOKUP($A14,'pl-data'!$A:$BQ,23+R$3) -> 0 | S14: n/a | T14: n/a | V14: =-VLOOKUP($A14,'pl-data'!$A:$BQ,8+V$3) ->  | W14: =-VLOOKUP($A14,'pl-data'!$A:$BQ,38+W$3) ->  | X14: =-VLOOKUP($A14,'pl-data'!$A:$BQ,23+X$3) -> 0 | Y14: n/a | Z14: n/a | AB14: =-VLOOKUP($A14,'pl-data'!$A:$BQ,8+AB$3) ->  | AC14: =-VLOOKUP($A14,'pl-data'!$A:$BQ,38+AC$3) ->  | AD14: =-VLOOKUP($A14,'pl-data'!$A:$BQ,23+AD$3) -> 0 | AE14: n/a | AF14: n/a | AH14: =-VLOOKUP($A14,'pl-data'!$A:$BQ,8+AH$3) ->  | AI14: =-VLOOKUP($A14,'pl-data'!$A:$BQ,38+AI$3) ->  | AJ14: =-VLOOKUP($A14,'pl-data'!$A:$BQ,23+AJ$3) -> 0 | AK14: n/a | AL14: n/a | AN14: =-VLOOKUP($A14,'pl-data'!$A:$BQ,8+AN$3) ->  | AO14: =-VLOOKUP($A14,'pl-data'!$A:$BQ,38+AO$3) ->  | AP14: =-VLOOKUP($A14,'pl-data'!$A:$BQ,23+AP$3) -> 0 | AQ14: n/a | AR14: n/a | AT14: =-VLOOKUP($A14,'pl-data'!$A:$BQ,8+AT$3) ->  | AU14: =-VLOOKUP($A14,'pl-data'!$A:$BQ,38+AU$3) ->  | AV14: =-VLOOKUP($A14,'pl-data'!$A:$BQ,23+AV$3) -> 0 | AW14: n/a | AX14: n/a | AZ14: =-VLOOKUP($A14,'pl-data'!$A:$BQ,8+AZ$3) ->  | BA14: =-VLOOKUP($A14,'pl-data'!$A:$BQ,38+BA$3) ->  | BB14: =-VLOOKUP($A14,'pl-data'!$A:$BQ,23+BB$3) -> 0 | BC14: n/a | BD14: n/a | BF14: =-VLOOKUP($A14,'pl-data'!$A:$BQ,8+BF$3) ->  | BG14: =-VLOOKUP($A14,'pl-data'!$A:$BQ,38+BG$3) ->  | BH14: =-VLOOKUP($A14,'pl-data'!$A:$BQ,23+BH$3) -> 0 | BI14: n/a | BJ14: n/a | BL14: =-VLOOKUP($A14,'pl-data'!$A:$BQ,8+BL$3) ->  | BM14: =-VLOOKUP($A14,'pl-data'!$A:$BQ,38+BM$3) ->  | BN14: =-VLOOKUP($A14,'pl-data'!$A:$BQ,23+BN$3) -> 0 | BO14: n/a | BP14: n/a | BR14: =-VLOOKUP($A14,'pl-data'!$A:$BQ,8+BR$3) ->  | BS14: =-VLOOKUP($A14,'pl-data'!$A:$BQ,38+BS$3) ->  | BT14: =-VLOOKUP($A14,'pl-data'!$A:$BQ,23+BT$3) -> 0 | BU14: n/a | BV14: n/a | BZ14: 0 | CA14: n/a | CB14: n/a
A15: 8009 | B15: =+masterfile!D1220 -> 8009 Umsatzerlöse | D15: =-VLOOKUP($A15,'pl-data'!$A:$BQ,8+D$3) ->  | E15: =-VLOOKUP($A15,'pl-data'!$A:$BQ,38+E$3) ->  | F15: =-VLOOKUP($A15,'pl-data'!$A:$BQ,23+F$3) -> 0 | G15: n/a | H15: n/a | J15: =-VLOOKUP($A15,'pl-data'!$A:$BQ,8+J$3) ->  | K15: =-VLOOKUP($A15,'pl-data'!$A:$BQ,38+K$3) ->  | L15: =-VLOOKUP($A15,'pl-data'!$A:$BQ,23+L$3) -> 0 | M15: n/a | N15: n/a | P15: =-VLOOKUP($A15,'pl-data'!$A:$BQ,8+P$3) ->  | Q15: =-VLOOKUP($A15,'pl-data'!$A:$BQ,38+Q$3) ->  | R15: =-VLOOKUP($A15,'pl-data'!$A:$BQ,23+R$3) -> 0 | S15: n/a | T15: n/a | V15: =-VLOOKUP($A15,'pl-data'!$A:$BQ,8+V$3) ->  | W15: =-VLOOKUP($A15,'pl-data'!$A:$BQ,38+W$3) ->  | X15: =-VLOOKUP($A15,'pl-data'!$A:$BQ,23+X$3) -> 0 | Y15: n/a | Z15: n/a | AB15: =-VLOOKUP($A15,'pl-data'!$A:$BQ,8+AB$3) ->  | AC15: =-VLOOKUP($A15,'pl-data'!$A:$BQ,38+AC$3) ->  | AD15: =-VLOOKUP($A15,'pl-data'!$A:$BQ,23+AD$3) -> 0 | AE15: n/a | AF15: n/a | AH15: =-VLOOKUP($A15,'pl-data'!$A:$BQ,8+AH$3) ->  | AI15: =-VLOOKUP($A15,'pl-data'!$A:$BQ,38+AI$3) ->  | AJ15: =-VLOOKUP($A15,'pl-data'!$A:$BQ,23+AJ$3) -> 0 | AK15: n/a | AL15: n/a | AN15: =-VLOOKUP($A15,'pl-data'!$A:$BQ,8+AN$3) ->  | AO15: =-VLOOKUP($A15,'pl-data'!$A:$BQ,38+AO$3) ->  | AP15: =-VLOOKUP($A15,'pl-data'!$A:$BQ,23+AP$3) -> 0 | AQ15: n/a | AR15: n/a | AT15: =-VLOOKUP($A15,'pl-data'!$A:$BQ,8+AT$3) ->  | AU15: =-VLOOKUP($A15,'pl-data'!$A:$BQ,38+AU$3) ->  | AV15: =-VLOOKUP($A15,'pl-data'!$A:$BQ,23+AV$3) -> 0 | AW15: n/a | AX15: n/a | AZ15: =-VLOOKUP($A15,'pl-data'!$A:$BQ,8+AZ$3) ->  | BA15: =-VLOOKUP($A15,'pl-data'!$A:$BQ,38+BA$3) ->  | BB15: =-VLOOKUP($A15,'pl-data'!$A:$BQ,23+BB$3) -> 0 | BC15: n/a | BD15: n/a | BF15: =-VLOOKUP($A15,'pl-data'!$A:$BQ,8+BF$3) ->  | BG15: =-VLOOKUP($A15,'pl-data'!$A:$BQ,38+BG$3) ->  | BH15: =-VLOOKUP($A15,'pl-data'!$A:$BQ,23+BH$3) -> 0 | BI15: n/a | BJ15: n/a | BL15: =-VLOOKUP($A15,'pl-data'!$A:$BQ,8+BL$3) ->  | BM15: =-VLOOKUP($A15,'pl-data'!$A:$BQ,38+BM$3) ->  | BN15: =-VLOOKUP($A15,'pl-data'!$A:$BQ,23+BN$3) -> 0 | BO15: n/a | BP15: n/a | BR15: =-VLOOKUP($A15,'pl-data'!$A:$BQ,8+BR$3) ->  | BS15: =-VLOOKUP($A15,'pl-data'!$A:$BQ,38+BS$3) ->  | BT15: =-VLOOKUP($A15,'pl-data'!$A:$BQ,23+BT$3) -> 0 | BU15: n/a | BV15: n/a | BZ15: 0 | CA15: n/a | CB15: n/a
A16: 8100 | B16: =+masterfile!D1221 -> 8100 Steuerfreie Umsätze § 4 Nr. 8 ff. UStG | D16: =-VLOOKUP($A16,'pl-data'!$A:$BQ,8+D$3) ->  | E16: =-VLOOKUP($A16,'pl-data'!$A:$BQ,38+E$3) ->  | F16: =-VLOOKUP($A16,'pl-data'!$A:$BQ,23+F$3) -> 0 | G16: n/a | H16: n/a | J16: =-VLOOKUP($A16,'pl-data'!$A:$BQ,8+J$3) ->  | K16: =-VLOOKUP($A16,'pl-data'!$A:$BQ,38+K$3) ->  | L16: =-VLOOKUP($A16,'pl-data'!$A:$BQ,23+L$3) -> 0 | M16: n/a | N16: n/a | P16: =-VLOOKUP($A16,'pl-data'!$A:$BQ,8+P$3) ->  | Q16: =-VLOOKUP($A16,'pl-data'!$A:$BQ,38+Q$3) ->  | R16: =-VLOOKUP($A16,'pl-data'!$A:$BQ,23+R$3) -> 0 | S16: n/a | T16: n/a | V16: =-VLOOKUP($A16,'pl-data'!$A:$BQ,8+V$3) ->  | W16: =-VLOOKUP($A16,'pl-data'!$A:$BQ,38+W$3) ->  | X16: =-VLOOKUP($A16,'pl-data'!$A:$BQ,23+X$3) -> 0 | Y16: n/a | Z16: n/a | AB16: =-VLOOKUP($A16,'pl-data'!$A:$BQ,8+AB$3) ->  | AC16: =-VLOOKUP($A16,'pl-data'!$A:$BQ,38+AC$3) ->  | AD16: =-VLOOKUP($A16,'pl-data'!$A:$BQ,23+AD$3) -> 0 | AE16: n/a | AF16: n/a | AH16: =-VLOOKUP($A16,'pl-data'!$A:$BQ,8+AH$3) ->  | AI16: =-VLOOKUP($A16,'pl-data'!$A:$BQ,38+AI$3) ->  | AJ16: =-VLOOKUP($A16,'pl-data'!$A:$BQ,23+AJ$3) -> 0 | AK16: n/a | AL16: n/a | AN16: =-VLOOKUP($A16,'pl-data'!$A:$BQ,8+AN$3) ->  | AO16: =-VLOOKUP($A16,'pl-data'!$A:$BQ,38+AO$3) ->  | AP16: =-VLOOKUP($A16,'pl-data'!$A:$BQ,23+AP$3) -> 0 | AQ16: n/a | AR16: n/a | AT16: =-VLOOKUP($A16,'pl-data'!$A:$BQ,8+AT$3) ->  | AU16: =-VLOOKUP($A16,'pl-data'!$A:$BQ,38+AU$3) ->  | AV16: =-VLOOKUP($A16,'pl-data'!$A:$BQ,23+AV$3) -> 0 | AW16: n/a | AX16: n/a | AZ16: =-VLOOKUP($A16,'pl-data'!$A:$BQ,8+AZ$3) ->  | BA16: =-VLOOKUP($A16,'pl-data'!$A:$BQ,38+BA$3) ->  | BB16: =-VLOOKUP($A16,'pl-data'!$A:$BQ,23+BB$3) -> 0 | BC16: n/a | BD16: n/a | BF16: =-VLOOKUP($A16,'pl-data'!$A:$BQ,8+BF$3) ->  | BG16: =-VLOOKUP($A16,'pl-data'!$A:$BQ,38+BG$3) ->  | BH16: =-VLOOKUP($A16,'pl-data'!$A:$BQ,23+BH$3) -> 0 | BI16: n/a | BJ16: n/a | BL16: =-VLOOKUP($A16,'pl-data'!$A:$BQ,8+BL$3) ->  | BM16: =-VLOOKUP($A16,'pl-data'!$A:$BQ,38+BM$3) ->  | BN16: =-VLOOKUP($A16,'pl-data'!$A:$BQ,23+BN$3) -> 0 | BO16: n/a | BP16: n/a | BR16: =-VLOOKUP($A16,'pl-data'!$A:$BQ,8+BR$3) ->  | BS16: =-VLOOKUP($A16,'pl-data'!$A:$BQ,38+BS$3) ->  | BT16: =-VLOOKUP($A16,'pl-data'!$A:$BQ,23+BT$3) -> 0 | BU16: n/a | BV16: n/a | BZ16: 0 | CA16: n/a | CB16: n/a
A17: 8105 | B17: =+masterfile!D1222 -> 8105 Steuerfreie Umsätze V+V § 4 Nr. 12 UStG | D17: =-VLOOKUP($A17,'pl-data'!$A:$BQ,8+D$3) ->  | E17: =-VLOOKUP($A17,'pl-data'!$A:$BQ,38+E$3) ->  | F17: =-VLOOKUP($A17,'pl-data'!$A:$BQ,23+F$3) -> 0 | G17: n/a | H17: n/a | J17: =-VLOOKUP($A17,'pl-data'!$A:$BQ,8+J$3) ->  | K17: =-VLOOKUP($A17,'pl-data'!$A:$BQ,38+K$3) ->  | L17: =-VLOOKUP($A17,'pl-data'!$A:$BQ,23+L$3) -> 0 | M17: n/a | N17: n/a | P17: =-VLOOKUP($A17,'pl-data'!$A:$BQ,8+P$3) ->  | Q17: =-VLOOKUP($A17,'pl-data'!$A:$BQ,38+Q$3) ->  | R17: =-VLOOKUP($A17,'pl-data'!$A:$BQ,23+R$3) -> 0 | S17: n/a | T17: n/a | V17: =-VLOOKUP($A17,'pl-data'!$A:$BQ,8+V$3) ->  | W17: =-VLOOKUP($A17,'pl-data'!$A:$BQ,38+W$3) ->  | X17: =-VLOOKUP($A17,'pl-data'!$A:$BQ,23+X$3) -> 0 | Y17: n/a | Z17: n/a | AB17: =-VLOOKUP($A17,'pl-data'!$A:$BQ,8+AB$3) ->  | AC17: =-VLOOKUP($A17,'pl-data'!$A:$BQ,38+AC$3) ->  | AD17: =-VLOOKUP($A17,'pl-data'!$A:$BQ,23+AD$3) -> 0 | AE17: n/a | AF17: n/a | AH17: =-VLOOKUP($A17,'pl-data'!$A:$BQ,8+AH$3) ->  | AI17: =-VLOOKUP($A17,'pl-data'!$A:$BQ,38+AI$3) ->  | AJ17: =-VLOOKUP($A17,'pl-data'!$A:$BQ,23+AJ$3) -> 0 | AK17: n/a | AL17: n/a | AN17: =-VLOOKUP($A17,'pl-data'!$A:$BQ,8+AN$3) ->  | AO17: =-VLOOKUP($A17,'pl-data'!$A:$BQ,38+AO$3) ->  | AP17: =-VLOOKUP($A17,'pl-data'!$A:$BQ,23+AP$3) -> 0 | AQ17: n/a | AR17: n/a | AT17: =-VLOOKUP($A17,'pl-data'!$A:$BQ,8+AT$3) ->  | AU17: =-VLOOKUP($A17,'pl-data'!$A:$BQ,38+AU$3) ->  | AV17: =-VLOOKUP($A17,'pl-data'!$A:$BQ,23+AV$3) -> 0 | AW17: n/a | AX17: n/a | AZ17: =-VLOOKUP($A17,'pl-data'!$A:$BQ,8+AZ$3) ->  | BA17: =-VLOOKUP($A17,'pl-data'!$A:$BQ,38+BA$3) ->  | BB17: =-VLOOKUP($A17,'pl-data'!$A:$BQ,23+BB$3) -> 0 | BC17: n/a | BD17: n/a | BF17: =-VLOOKUP($A17,'pl-data'!$A:$BQ,8+BF$3) ->  | BG17: =-VLOOKUP($A17,'pl-data'!$A:$BQ,38+BG$3) ->  | BH17: =-VLOOKUP($A17,'pl-data'!$A:$BQ,23+BH$3) -> 0 | BI17: n/a | BJ17: n/a | BL17: =-VLOOKUP($A17,'pl-data'!$A:$BQ,8+BL$3) ->  | BM17: =-VLOOKUP($A17,'pl-data'!$A:$BQ,38+BM$3) ->  | BN17: =-VLOOKUP($A17,'pl-data'!$A:$BQ,23+BN$3) -> 0 | BO17: n/a | BP17: n/a | BR17: =-VLOOKUP($A17,'pl-data'!$A:$BQ,8+BR$3) ->  | BS17: =-VLOOKUP($A17,'pl-data'!$A:$BQ,38+BS$3) ->  | BT17: =-VLOOKUP($A17,'pl-data'!$A:$BQ,23+BT$3) -> 0 | BU17: n/a | BV17: n/a | BZ17: 0 | CA17: n/a | CB17: n/a
A18: 8110 | B18: =+masterfile!D1223 -> 8110 Sonstige steuerfr. Umsätze Inland | D18: =-VLOOKUP($A18,'pl-data'!$A:$BQ,8+D$3) ->  | E18: =-VLOOKUP($A18,'pl-data'!$A:$BQ,38+E$3) ->  | F18: =-VLOOKUP($A18,'pl-data'!$A:$BQ,23+F$3) -> 0 | G18: n/a | H18: n/a | J18: =-VLOOKUP($A18,'pl-data'!$A:$BQ,8+J$3) ->  | K18: =-VLOOKUP($A18,'pl-data'!$A:$BQ,38+K$3) ->  | L18: =-VLOOKUP($A18,'pl-data'!$A:$BQ,23+L$3) -> 0 | M18: n/a | N18: n/a | P18: =-VLOOKUP($A18,'pl-data'!$A:$BQ,8+P$3) ->  | Q18: =-VLOOKUP($A18,'pl-data'!$A:$BQ,38+Q$3) ->  | R18: =-VLOOKUP($A18,'pl-data'!$A:$BQ,23+R$3) -> 0 | S18: n/a | T18: n/a | V18: =-VLOOKUP($A18,'pl-data'!$A:$BQ,8+V$3) ->  | W18: =-VLOOKUP($A18,'pl-data'!$A:$BQ,38+W$3) ->  | X18: =-VLOOKUP($A18,'pl-data'!$A:$BQ,23+X$3) -> 0 | Y18: n/a | Z18: n/a | AB18: =-VLOOKUP($A18,'pl-data'!$A:$BQ,8+AB$3) ->  | AC18: =-VLOOKUP($A18,'pl-data'!$A:$BQ,38+AC$3) ->  | AD18: =-VLOOKUP($A18,'pl-data'!$A:$BQ,23+AD$3) -> 0 | AE18: n/a | AF18: n/a | AH18: =-VLOOKUP($A18,'pl-data'!$A:$BQ,8+AH$3) ->  | AI18: =-VLOOKUP($A18,'pl-data'!$A:$BQ,38+AI$3) ->  | AJ18: =-VLOOKUP($A18,'pl-data'!$A:$BQ,23+AJ$3) -> 0 | AK18: n/a | AL18: n/a | AN18: =-VLOOKUP($A18,'pl-data'!$A:$BQ,8+AN$3) ->  | AO18: =-VLOOKUP($A18,'pl-data'!$A:$BQ,38+AO$3) ->  | AP18: =-VLOOKUP($A18,'pl-data'!$A:$BQ,23+AP$3) -> 0 | AQ18: n/a | AR18: n/a | AT18: =-VLOOKUP($A18,'pl-data'!$A:$BQ,8+AT$3) ->  | AU18: =-VLOOKUP($A18,'pl-data'!$A:$BQ,38+AU$3) ->  | AV18: =-VLOOKUP($A18,'pl-data'!$A:$BQ,23+AV$3) -> 0 | AW18: n/a | AX18: n/a | AZ18: =-VLOOKUP($A18,'pl-data'!$A:$BQ,8+AZ$3) ->  | BA18: =-VLOOKUP($A18,'pl-data'!$A:$BQ,38+BA$3) ->  | BB18: =-VLOOKUP($A18,'pl-data'!$A:$BQ,23+BB$3) -> 0 | BC18: n/a | BD18: n/a | BF18: =-VLOOKUP($A18,'pl-data'!$A:$BQ,8+BF$3) ->  | BG18: =-VLOOKUP($A18,'pl-data'!$A:$BQ,38+BG$3) ->  | BH18: =-VLOOKUP($A18,'pl-data'!$A:$BQ,23+BH$3) -> 0 | BI18: n/a | BJ18: n/a | BL18: =-VLOOKUP($A18,'pl-data'!$A:$BQ,8+BL$3) ->  | BM18: =-VLOOKUP($A18,'pl-data'!$A:$BQ,38+BM$3) ->  | BN18: =-VLOOKUP($A18,'pl-data'!$A:$BQ,23+BN$3) -> 0 | BO18: n/a | BP18: n/a | BR18: =-VLOOKUP($A18,'pl-data'!$A:$BQ,8+BR$3) ->  | BS18: =-VLOOKUP($A18,'pl-data'!$A:$BQ,38+BS$3) ->  | BT18: =-VLOOKUP($A18,'pl-data'!$A:$BQ,23+BT$3) -> 0 | BU18: n/a | BV18: n/a | BZ18: 0 | CA18: n/a | CB18: n/a
A19: 8120 | B19: =+masterfile!D1224 -> 8120 Steuerfreie Umsätze § 4 Nr. 1a UStG | D19: =-VLOOKUP($A19,'pl-data'!$A:$BQ,8+D$3) ->  | E19: =-VLOOKUP($A19,'pl-data'!$A:$BQ,38+E$3) ->  | F19: =-VLOOKUP($A19,'pl-data'!$A:$BQ,23+F$3) -> 0 | G19: n/a | H19: n/a | J19: =-VLOOKUP($A19,'pl-data'!$A:$BQ,8+J$3) ->  | K19: =-VLOOKUP($A19,'pl-data'!$A:$BQ,38+K$3) ->  | L19: =-VLOOKUP($A19,'pl-data'!$A:$BQ,23+L$3) -> 0 | M19: n/a | N19: n/a | P19: =-VLOOKUP($A19,'pl-data'!$A:$BQ,8+P$3) ->  | Q19: =-VLOOKUP($A19,'pl-data'!$A:$BQ,38+Q$3) ->  | R19: =-VLOOKUP($A19,'pl-data'!$A:$BQ,23+R$3) -> 0 | S19: n/a | T19: n/a | V19: =-VLOOKUP($A19,'pl-data'!$A:$BQ,8+V$3) ->  | W19: =-VLOOKUP($A19,'pl-data'!$A:$BQ,38+W$3) ->  | X19: =-VLOOKUP($A19,'pl-data'!$A:$BQ,23+X$3) -> 0 | Y19: n/a | Z19: n/a | AB19: =-VLOOKUP($A19,'pl-data'!$A:$BQ,8+AB$3) ->  | AC19: =-VLOOKUP($A19,'pl-data'!$A:$BQ,38+AC$3) ->  | AD19: =-VLOOKUP($A19,'pl-data'!$A:$BQ,23+AD$3) -> 0 | AE19: n/a | AF19: n/a | AH19: =-VLOOKUP($A19,'pl-data'!$A:$BQ,8+AH$3) ->  | AI19: =-VLOOKUP($A19,'pl-data'!$A:$BQ,38+AI$3) ->  | AJ19: =-VLOOKUP($A19,'pl-data'!$A:$BQ,23+AJ$3) -> 0 | AK19: n/a | AL19: n/a | AN19: =-VLOOKUP($A19,'pl-data'!$A:$BQ,8+AN$3) ->  | AO19: =-VLOOKUP($A19,'pl-data'!$A:$BQ,38+AO$3) ->  | AP19: =-VLOOKUP($A19,'pl-data'!$A:$BQ,23+AP$3) -> 0 | AQ19: n/a | AR19: n/a | AT19: =-VLOOKUP($A19,'pl-data'!$A:$BQ,8+AT$3) ->  | AU19: =-VLOOKUP($A19,'pl-data'!$A:$BQ,38+AU$3) ->  | AV19: =-VLOOKUP($A19,'pl-data'!$A:$BQ,23+AV$3) -> 0 | AW19: n/a | AX19: n/a | AZ19: =-VLOOKUP($A19,'pl-data'!$A:$BQ,8+AZ$3) ->  | BA19: =-VLOOKUP($A19,'pl-data'!$A:$BQ,38+BA$3) ->  | BB19: =-VLOOKUP($A19,'pl-data'!$A:$BQ,23+BB$3) -> 0 | BC19: n/a | BD19: n/a | BF19: =-VLOOKUP($A19,'pl-data'!$A:$BQ,8+BF$3) ->  | BG19: =-VLOOKUP($A19,'pl-data'!$A:$BQ,38+BG$3) ->  | BH19: =-VLOOKUP($A19,'pl-data'!$A:$BQ,23+BH$3) -> 0 | BI19: n/a | BJ19: n/a | BL19: =-VLOOKUP($A19,'pl-data'!$A:$BQ,8+BL$3) ->  | BM19: =-VLOOKUP($A19,'pl-data'!$A:$BQ,38+BM$3) ->  | BN19: =-VLOOKUP($A19,'pl-data'!$A:$BQ,23+BN$3) -> 0 | BO19: n/a | BP19: n/a | BR19: =-VLOOKUP($A19,'pl-data'!$A:$BQ,8+BR$3) ->  | BS19: =-VLOOKUP($A19,'pl-data'!$A:$BQ,38+BS$3) ->  | BT19: =-VLOOKUP($A19,'pl-data'!$A:$BQ,23+BT$3) -> 0 | BU19: n/a | BV19: n/a | BZ19: 0 | CA19: n/a | CB19: n/a
A20: 8125 | B20: =+masterfile!D1225 -> 8125 Steuerfr. EU-Lieferungen § 4 Nr. 1b UStG | D20: =-VLOOKUP($A20,'pl-data'!$A:$BQ,8+D$3) ->  | E20: =-VLOOKUP($A20,'pl-data'!$A:$BQ,38+E$3) ->  | F20: =-VLOOKUP($A20,'pl-data'!$A:$BQ,23+F$3) -> 0 | G20: n/a | H20: n/a | J20: =-VLOOKUP($A20,'pl-data'!$A:$BQ,8+J$3) ->  | K20: =-VLOOKUP($A20,'pl-data'!$A:$BQ,38+K$3) ->  | L20: =-VLOOKUP($A20,'pl-data'!$A:$BQ,23+L$3) -> 0 | M20: n/a | N20: n/a | P20: =-VLOOKUP($A20,'pl-data'!$A:$BQ,8+P$3) ->  | Q20: =-VLOOKUP($A20,'pl-data'!$A:$BQ,38+Q$3) ->  | R20: =-VLOOKUP($A20,'pl-data'!$A:$BQ,23+R$3) -> 0 | S20: n/a | T20: n/a | V20: =-VLOOKUP($A20,'pl-data'!$A:$BQ,8+V$3) ->  | W20: =-VLOOKUP($A20,'pl-data'!$A:$BQ,38+W$3) ->  | X20: =-VLOOKUP($A20,'pl-data'!$A:$BQ,23+X$3) -> 0 | Y20: n/a | Z20: n/a | AB20: =-VLOOKUP($A20,'pl-data'!$A:$BQ,8+AB$3) ->  | AC20: =-VLOOKUP($A20,'pl-data'!$A:$BQ,38+AC$3) ->  | AD20: =-VLOOKUP($A20,'pl-data'!$A:$BQ,23+AD$3) -> 0 | AE20: n/a | AF20: n/a | AH20: =-VLOOKUP($A20,'pl-data'!$A:$BQ,8+AH$3) ->  | AI20: =-VLOOKUP($A20,'pl-data'!$A:$BQ,38+AI$3) ->  | AJ20: =-VLOOKUP($A20,'pl-data'!$A:$BQ,23+AJ$3) -> 0 | AK20: n/a | AL20: n/a | AN20: =-VLOOKUP($A20,'pl-data'!$A:$BQ,8+AN$3) ->  | AO20: =-VLOOKUP($A20,'pl-data'!$A:$BQ,38+AO$3) ->  | AP20: =-VLOOKUP($A20,'pl-data'!$A:$BQ,23+AP$3) -> 0 | AQ20: n/a | AR20: n/a | AT20: =-VLOOKUP($A20,'pl-data'!$A:$BQ,8+AT$3) ->  | AU20: =-VLOOKUP($A20,'pl-data'!$A:$BQ,38+AU$3) ->  | AV20: =-VLOOKUP($A20,'pl-data'!$A:$BQ,23+AV$3) -> 0 | AW20: n/a | AX20: n/a | AZ20: =-VLOOKUP($A20,'pl-data'!$A:$BQ,8+AZ$3) ->  | BA20: =-VLOOKUP($A20,'pl-data'!$A:$BQ,38+BA$3) ->  | BB20: =-VLOOKUP($A20,'pl-data'!$A:$BQ,23+BB$3) -> 0 | BC20: n/a | BD20: n/a | BF20: =-VLOOKUP($A20,'pl-data'!$A:$BQ,8+BF$3) ->  | BG20: =-VLOOKUP($A20,'pl-data'!$A:$BQ,38+BG$3) ->  | BH20: =-VLOOKUP($A20,'pl-data'!$A:$BQ,23+BH$3) -> 0 | BI20: n/a | BJ20: n/a | BL20: =-VLOOKUP($A20,'pl-data'!$A:$BQ,8+BL$3) ->  | BM20: =-VLOOKUP($A20,'pl-data'!$A:$BQ,38+BM$3) ->  | BN20: =-VLOOKUP($A20,'pl-data'!$A:$BQ,23+BN$3) -> 0 | BO20: n/a | BP20: n/a | BR20: =-VLOOKUP($A20,'pl-data'!$A:$BQ,8+BR$3) ->  | BS20: =-VLOOKUP($A20,'pl-data'!$A:$BQ,38+BS$3) ->  | BT20: =-VLOOKUP($A20,'pl-data'!$A:$BQ,23+BT$3) -> 0 | BU20: n/a | BV20: n/a | BZ20: 0 | CA20: n/a | CB20: n/a
A21: 8130 | B21: =+masterfile!D1226 -> 8130 Innergemeinschaftl. Dreiecksgeschäft | D21: =-VLOOKUP($A21,'pl-data'!$A:$BQ,8+D$3) ->  | E21: =-VLOOKUP($A21,'pl-data'!$A:$BQ,38+E$3) ->  | F21: =-VLOOKUP($A21,'pl-data'!$A:$BQ,23+F$3) -> 0 | G21: n/a | H21: n/a | J21: =-VLOOKUP($A21,'pl-data'!$A:$BQ,8+J$3) ->  | K21: =-VLOOKUP($A21,'pl-data'!$A:$BQ,38+K$3) ->  | L21: =-VLOOKUP($A21,'pl-data'!$A:$BQ,23+L$3) -> 0 | M21: n/a | N21: n/a | P21: =-VLOOKUP($A21,'pl-data'!$A:$BQ,8+P$3) ->  | Q21: =-VLOOKUP($A21,'pl-data'!$A:$BQ,38+Q$3) ->  | R21: =-VLOOKUP($A21,'pl-data'!$A:$BQ,23+R$3) -> 0 | S21: n/a | T21: n/a | V21: =-VLOOKUP($A21,'pl-data'!$A:$BQ,8+V$3) ->  | W21: =-VLOOKUP($A21,'pl-data'!$A:$BQ,38+W$3) ->  | X21: =-VLOOKUP($A21,'pl-data'!$A:$BQ,23+X$3) -> 0 | Y21: n/a | Z21: n/a | AB21: =-VLOOKUP($A21,'pl-data'!$A:$BQ,8+AB$3) ->  | AC21: =-VLOOKUP($A21,'pl-data'!$A:$BQ,38+AC$3) ->  | AD21: =-VLOOKUP($A21,'pl-data'!$A:$BQ,23+AD$3) -> 0 | AE21: n/a | AF21: n/a | AH21: =-VLOOKUP($A21,'pl-data'!$A:$BQ,8+AH$3) ->  | AI21: =-VLOOKUP($A21,'pl-data'!$A:$BQ,38+AI$3) ->  | AJ21: =-VLOOKUP($A21,'pl-data'!$A:$BQ,23+AJ$3) -> 0 | AK21: n/a | AL21: n/a | AN21: =-VLOOKUP($A21,'pl-data'!$A:$BQ,8+AN$3) ->  | AO21: =-VLOOKUP($A21,'pl-data'!$A:$BQ,38+AO$3) ->  | AP21: =-VLOOKUP($A21,'pl-data'!$A:$BQ,23+AP$3) -> 0 | AQ21: n/a | AR21: n/a | AT21: =-VLOOKUP($A21,'pl-data'!$A:$BQ,8+AT$3) ->  | AU21: =-VLOOKUP($A21,'pl-data'!$A:$BQ,38+AU$3) ->  | AV21: =-VLOOKUP($A21,'pl-data'!$A:$BQ,23+AV$3) -> 0 | AW21: n/a | AX21: n/a | AZ21: =-VLOOKUP($A21,'pl-data'!$A:$BQ,8+AZ$3) ->  | BA21: =-VLOOKUP($A21,'pl-data'!$A:$BQ,38+BA$3) ->  | BB21: =-VLOOKUP($A21,'pl-data'!$A:$BQ,23+BB$3) -> 0 | BC21: n/a | BD21: n/a | BF21: =-VLOOKUP($A21,'pl-data'!$A:$BQ,8+BF$3) ->  | BG21: =-VLOOKUP($A21,'pl-data'!$A:$BQ,38+BG$3) ->  | BH21: =-VLOOKUP($A21,'pl-data'!$A:$BQ,23+BH$3) -> 0 | BI21: n/a | BJ21: n/a | BL21: =-VLOOKUP($A21,'pl-data'!$A:$BQ,8+BL$3) ->  | BM21: =-VLOOKUP($A21,'pl-data'!$A:$BQ,38+BM$3) ->  | BN21: =-VLOOKUP($A21,'pl-data'!$A:$BQ,23+BN$3) -> 0 | BO21: n/a | BP21: n/a | BR21: =-VLOOKUP($A21,'pl-data'!$A:$BQ,8+BR$3) ->  | BS21: =-VLOOKUP($A21,'pl-data'!$A:$BQ,38+BS$3) ->  | BT21: =-VLOOKUP($A21,'pl-data'!$A:$BQ,23+BT$3) -> 0 | BU21: n/a | BV21: n/a | BZ21: 0 | CA21: n/a | CB21: n/a
A22: 8135 | B22: =+masterfile!D1227 -> 8135 Steuerfr. EU-Lief.v.Neufahrzg.ohne UStID | D22: =-VLOOKUP($A22,'pl-data'!$A:$BQ,8+D$3) ->  | E22: =-VLOOKUP($A22,'pl-data'!$A:$BQ,38+E$3) ->  | F22: =-VLOOKUP($A22,'pl-data'!$A:$BQ,23+F$3) -> 0 | G22: n/a | H22: n/a | J22: =-VLOOKUP($A22,'pl-data'!$A:$BQ,8+J$3) ->  | K22: =-VLOOKUP($A22,'pl-data'!$A:$BQ,38+K$3) ->  | L22: =-VLOOKUP($A22,'pl-data'!$A:$BQ,23+L$3) -> 0 | M22: n/a | N22: n/a | P22: =-VLOOKUP($A22,'pl-data'!$A:$BQ,8+P$3) ->  | Q22: =-VLOOKUP($A22,'pl-data'!$A:$BQ,38+Q$3) ->  | R22: =-VLOOKUP($A22,'pl-data'!$A:$BQ,23+R$3) -> 0 | S22: n/a | T22: n/a | V22: =-VLOOKUP($A22,'pl-data'!$A:$BQ,8+V$3) ->  | W22: =-VLOOKUP($A22,'pl-data'!$A:$BQ,38+W$3) ->  | X22: =-VLOOKUP($A22,'pl-data'!$A:$BQ,23+X$3) -> 0 | Y22: n/a | Z22: n/a | AB22: =-VLOOKUP($A22,'pl-data'!$A:$BQ,8+AB$3) ->  | AC22: =-VLOOKUP($A22,'pl-data'!$A:$BQ,38+AC$3) ->  | AD22: =-VLOOKUP($A22,'pl-data'!$A:$BQ,23+AD$3) -> 0 | AE22: n/a | AF22: n/a | AH22: =-VLOOKUP($A22,'pl-data'!$A:$BQ,8+AH$3) ->  | AI22: =-VLOOKUP($A22,'pl-data'!$A:$BQ,38+AI$3) ->  | AJ22: =-VLOOKUP($A22,'pl-data'!$A:$BQ,23+AJ$3) -> 0 | AK22: n/a | AL22: n/a | AN22: =-VLOOKUP($A22,'pl-data'!$A:$BQ,8+AN$3) ->  | AO22: =-VLOOKUP($A22,'pl-data'!$A:$BQ,38+AO$3) ->  | AP22: =-VLOOKUP($A22,'pl-data'!$A:$BQ,23+AP$3) -> 0 | AQ22: n/a | AR22: n/a | AT22: =-VLOOKUP($A22,'pl-data'!$A:$BQ,8+AT$3) ->  | AU22: =-VLOOKUP($A22,'pl-data'!$A:$BQ,38+AU$3) ->  | AV22: =-VLOOKUP($A22,'pl-data'!$A:$BQ,23+AV$3) -> 0 | AW22: n/a | AX22: n/a | AZ22: =-VLOOKUP($A22,'pl-data'!$A:$BQ,8+AZ$3) ->  | BA22: =-VLOOKUP($A22,'pl-data'!$A:$BQ,38+BA$3) ->  | BB22: =-VLOOKUP($A22,'pl-data'!$A:$BQ,23+BB$3) -> 0 | BC22: n/a | BD22: n/a | BF22: =-VLOOKUP($A22,'pl-data'!$A:$BQ,8+BF$3) ->  | BG22: =-VLOOKUP($A22,'pl-data'!$A:$BQ,38+BG$3) ->  | BH22: =-VLOOKUP($A22,'pl-data'!$A:$BQ,23+BH$3) -> 0 | BI22: n/a | BJ22: n/a | BL22: =-VLOOKUP($A22,'pl-data'!$A:$BQ,8+BL$3) ->  | BM22: =-VLOOKUP($A22,'pl-data'!$A:$BQ,38+BM$3) ->  | BN22: =-VLOOKUP($A22,'pl-data'!$A:$BQ,23+BN$3) -> 0 | BO22: n/a | BP22: n/a | BR22: =-VLOOKUP($A22,'pl-data'!$A:$BQ,8+BR$3) ->  | BS22: =-VLOOKUP($A22,'pl-data'!$A:$BQ,38+BS$3) ->  | BT22: =-VLOOKUP($A22,'pl-data'!$A:$BQ,23+BT$3) -> 0 | BU22: n/a | BV22: n/a | BZ22: 0 | CA22: n/a | CB22: n/a
A23: 8140 | B23: =+masterfile!D1228 -> 8140 Steuerfreie Umsätze Offshore usw. | D23: =-VLOOKUP($A23,'pl-data'!$A:$BQ,8+D$3) ->  | E23: =-VLOOKUP($A23,'pl-data'!$A:$BQ,38+E$3) ->  | F23: =-VLOOKUP($A23,'pl-data'!$A:$BQ,23+F$3) -> 0 | G23: n/a | H23: n/a | J23: =-VLOOKUP($A23,'pl-data'!$A:$BQ,8+J$3) ->  | K23: =-VLOOKUP($A23,'pl-data'!$A:$BQ,38+K$3) ->  | L23: =-VLOOKUP($A23,'pl-data'!$A:$BQ,23+L$3) -> 0 | M23: n/a | N23: n/a | P23: =-VLOOKUP($A23,'pl-data'!$A:$BQ,8+P$3) ->  | Q23: =-VLOOKUP($A23,'pl-data'!$A:$BQ,38+Q$3) ->  | R23: =-VLOOKUP($A23,'pl-data'!$A:$BQ,23+R$3) -> 0 | S23: n/a | T23: n/a | V23: =-VLOOKUP($A23,'pl-data'!$A:$BQ,8+V$3) ->  | W23: =-VLOOKUP($A23,'pl-data'!$A:$BQ,38+W$3) ->  | X23: =-VLOOKUP($A23,'pl-data'!$A:$BQ,23+X$3) -> 0 | Y23: n/a | Z23: n/a | AB23: =-VLOOKUP($A23,'pl-data'!$A:$BQ,8+AB$3) ->  | AC23: =-VLOOKUP($A23,'pl-data'!$A:$BQ,38+AC$3) ->  | AD23: =-VLOOKUP($A23,'pl-data'!$A:$BQ,23+AD$3) -> 0 | AE23: n/a | AF23: n/a | AH23: =-VLOOKUP($A23,'pl-data'!$A:$BQ,8+AH$3) ->  | AI23: =-VLOOKUP($A23,'pl-data'!$A:$BQ,38+AI$3) ->  | AJ23: =-VLOOKUP($A23,'pl-data'!$A:$BQ,23+AJ$3) -> 0 | AK23: n/a | AL23: n/a | AN23: =-VLOOKUP($A23,'pl-data'!$A:$BQ,8+AN$3) ->  | AO23: =-VLOOKUP($A23,'pl-data'!$A:$BQ,38+AO$3) ->  | AP23: =-VLOOKUP($A23,'pl-data'!$A:$BQ,23+AP$3) -> 0 | AQ23: n/a | AR23: n/a | AT23: =-VLOOKUP($A23,'pl-data'!$A:$BQ,8+AT$3) ->  | AU23: =-VLOOKUP($A23,'pl-data'!$A:$BQ,38+AU$3) ->  | AV23: =-VLOOKUP($A23,'pl-data'!$A:$BQ,23+AV$3) -> 0 | AW23: n/a | AX23: n/a | AZ23: =-VLOOKUP($A23,'pl-data'!$A:$BQ,8+AZ$3) ->  | BA23: =-VLOOKUP($A23,'pl-data'!$A:$BQ,38+BA$3) ->  | BB23: =-VLOOKUP($A23,'pl-data'!$A:$BQ,23+BB$3) -> 0 | BC23: n/a | BD23: n/a | BF23: =-VLOOKUP($A23,'pl-data'!$A:$BQ,8+BF$3) ->  | BG23: =-VLOOKUP($A23,'pl-data'!$A:$BQ,38+BG$3) ->  | BH23: =-VLOOKUP($A23,'pl-data'!$A:$BQ,23+BH$3) -> 0 | BI23: n/a | BJ23: n/a | BL23: =-VLOOKUP($A23,'pl-data'!$A:$BQ,8+BL$3) ->  | BM23: =-VLOOKUP($A23,'pl-data'!$A:$BQ,38+BM$3) ->  | BN23: =-VLOOKUP($A23,'pl-data'!$A:$BQ,23+BN$3) -> 0 | BO23: n/a | BP23: n/a | BR23: =-VLOOKUP($A23,'pl-data'!$A:$BQ,8+BR$3) ->  | BS23: =-VLOOKUP($A23,'pl-data'!$A:$BQ,38+BS$3) ->  | BT23: =-VLOOKUP($A23,'pl-data'!$A:$BQ,23+BT$3) -> 0 | BU23: n/a | BV23: n/a | BZ23: 0 | CA23: n/a | CB23: n/a
A24: 8150 | B24: =+masterfile!D1229 -> 8150 Steuerfreie Umsätze § 4 Nr. 2-7 UStG | D24: =-VLOOKUP($A24,'pl-data'!$A:$BQ,8+D$3) ->  | E24: =-VLOOKUP($A24,'pl-data'!$A:$BQ,38+E$3) ->  | F24: =-VLOOKUP($A24,'pl-data'!$A:$BQ,23+F$3) -> 0 | G24: n/a | H24: n/a | J24: =-VLOOKUP($A24,'pl-data'!$A:$BQ,8+J$3) ->  | K24: =-VLOOKUP($A24,'pl-data'!$A:$BQ,38+K$3) ->  | L24: =-VLOOKUP($A24,'pl-data'!$A:$BQ,23+L$3) -> 0 | M24: n/a | N24: n/a | P24: =-VLOOKUP($A24,'pl-data'!$A:$BQ,8+P$3) ->  | Q24: =-VLOOKUP($A24,'pl-data'!$A:$BQ,38+Q$3) ->  | R24: =-VLOOKUP($A24,'pl-data'!$A:$BQ,23+R$3) -> 0 | S24: n/a | T24: n/a | V24: =-VLOOKUP($A24,'pl-data'!$A:$BQ,8+V$3) ->  | W24: =-VLOOKUP($A24,'pl-data'!$A:$BQ,38+W$3) ->  | X24: =-VLOOKUP($A24,'pl-data'!$A:$BQ,23+X$3) -> 0 | Y24: n/a | Z24: n/a | AB24: =-VLOOKUP($A24,'pl-data'!$A:$BQ,8+AB$3) ->  | AC24: =-VLOOKUP($A24,'pl-data'!$A:$BQ,38+AC$3) ->  | AD24: =-VLOOKUP($A24,'pl-data'!$A:$BQ,23+AD$3) -> 0 | AE24: n/a | AF24: n/a | AH24: =-VLOOKUP($A24,'pl-data'!$A:$BQ,8+AH$3) ->  | AI24: =-VLOOKUP($A24,'pl-data'!$A:$BQ,38+AI$3) ->  | AJ24: =-VLOOKUP($A24,'pl-data'!$A:$BQ,23+AJ$3) -> 0 | AK24: n/a | AL24: n/a | AN24: =-VLOOKUP($A24,'pl-data'!$A:$BQ,8+AN$3) ->  | AO24: =-VLOOKUP($A24,'pl-data'!$A:$BQ,38+AO$3) ->  | AP24: =-VLOOKUP($A24,'pl-data'!$A:$BQ,23+AP$3) -> 0 | AQ24: n/a | AR24: n/a | AT24: =-VLOOKUP($A24,'pl-data'!$A:$BQ,8+AT$3) ->  | AU24: =-VLOOKUP($A24,'pl-data'!$A:$BQ,38+AU$3) ->  | AV24: =-VLOOKUP($A24,'pl-data'!$A:$BQ,23+AV$3) -> 0 | AW24: n/a | AX24: n/a | AZ24: =-VLOOKUP($A24,'pl-data'!$A:$BQ,8+AZ$3) ->  | BA24: =-VLOOKUP($A24,'pl-data'!$A:$BQ,38+BA$3) ->  | BB24: =-VLOOKUP($A24,'pl-data'!$A:$BQ,23+BB$3) -> 0 | BC24: n/a | BD24: n/a | BF24: =-VLOOKUP($A24,'pl-data'!$A:$BQ,8+BF$3) ->  | BG24: =-VLOOKUP($A24,'pl-data'!$A:$BQ,38+BG$3) ->  | BH24: =-VLOOKUP($A24,'pl-data'!$A:$BQ,23+BH$3) -> 0 | BI24: n/a | BJ24: n/a | BL24: =-VLOOKUP($A24,'pl-data'!$A:$BQ,8+BL$3) ->  | BM24: =-VLOOKUP($A24,'pl-data'!$A:$BQ,38+BM$3) ->  | BN24: =-VLOOKUP($A24,'pl-data'!$A:$BQ,23+BN$3) -> 0 | BO24: n/a | BP24: n/a | BR24: =-VLOOKUP($A24,'pl-data'!$A:$BQ,8+BR$3) ->  | BS24: =-VLOOKUP($A24,'pl-data'!$A:$BQ,38+BS$3) ->  | BT24: =-VLOOKUP($A24,'pl-data'!$A:$BQ,23+BT$3) -> 0 | BU24: n/a | BV24: n/a | BZ24: 0 | CA24: n/a | CB24: n/a
A25: 8160 | B25: =+masterfile!D1230 -> 8160 Stfreie Umsätze ohne VoSt-Abzug § 4 UStG | D25: =-VLOOKUP($A25,'pl-data'!$A:$BQ,8+D$3) ->  | E25: =-VLOOKUP($A25,'pl-data'!$A:$BQ,38+E$3) ->  | F25: =-VLOOKUP($A25,'pl-data'!$A:$BQ,23+F$3) -> 0 | G25: n/a | H25: n/a | J25: =-VLOOKUP($A25,'pl-data'!$A:$BQ,8+J$3) ->  | K25: =-VLOOKUP($A25,'pl-data'!$A:$BQ,38+K$3) ->  | L25: =-VLOOKUP($A25,'pl-data'!$A:$BQ,23+L$3) -> 0 | M25: n/a | N25: n/a | P25: =-VLOOKUP($A25,'pl-data'!$A:$BQ,8+P$3) ->  | Q25: =-VLOOKUP($A25,'pl-data'!$A:$BQ,38+Q$3) ->  | R25: =-VLOOKUP($A25,'pl-data'!$A:$BQ,23+R$3) -> 0 | S25: n/a | T25: n/a | V25: =-VLOOKUP($A25,'pl-data'!$A:$BQ,8+V$3) ->  | W25: =-VLOOKUP($A25,'pl-data'!$A:$BQ,38+W$3) ->  | X25: =-VLOOKUP($A25,'pl-data'!$A:$BQ,23+X$3) -> 0 | Y25: n/a | Z25: n/a | AB25: =-VLOOKUP($A25,'pl-data'!$A:$BQ,8+AB$3) ->  | AC25: =-VLOOKUP($A25,'pl-data'!$A:$BQ,38+AC$3) ->  | AD25: =-VLOOKUP($A25,'pl-data'!$A:$BQ,23+AD$3) -> 0 | AE25: n/a | AF25: n/a | AH25: =-VLOOKUP($A25,'pl-data'!$A:$BQ,8+AH$3) ->  | AI25: =-VLOOKUP($A25,'pl-data'!$A:$BQ,38+AI$3) ->  | AJ25: =-VLOOKUP($A25,'pl-data'!$A:$BQ,23+AJ$3) -> 0 | AK25: n/a | AL25: n/a | AN25: =-VLOOKUP($A25,'pl-data'!$A:$BQ,8+AN$3) ->  | AO25: =-VLOOKUP($A25,'pl-data'!$A:$BQ,38+AO$3) ->  | AP25: =-VLOOKUP($A25,'pl-data'!$A:$BQ,23+AP$3) -> 0 | AQ25: n/a | AR25: n/a | AT25: =-VLOOKUP($A25,'pl-data'!$A:$BQ,8+AT$3) ->  | AU25: =-VLOOKUP($A25,'pl-data'!$A:$BQ,38+AU$3) ->  | AV25: =-VLOOKUP($A25,'pl-data'!$A:$BQ,23+AV$3) -> 0 | AW25: n/a | AX25: n/a | AZ25: =-VLOOKUP($A25,'pl-data'!$A:$BQ,8+AZ$3) ->  | BA25: =-VLOOKUP($A25,'pl-data'!$A:$BQ,38+BA$3) ->  | BB25: =-VLOOKUP($A25,'pl-data'!$A:$BQ,23+BB$3) -> 0 | BC25: n/a | BD25: n/a | BF25: =-VLOOKUP($A25,'pl-data'!$A:$BQ,8+BF$3) ->  | BG25: =-VLOOKUP($A25,'pl-data'!$A:$BQ,38+BG$3) ->  | BH25: =-VLOOKUP($A25,'pl-data'!$A:$BQ,23+BH$3) -> 0 | BI25: n/a | BJ25: n/a | BL25: =-VLOOKUP($A25,'pl-data'!$A:$BQ,8+BL$3) ->  | BM25: =-VLOOKUP($A25,'pl-data'!$A:$BQ,38+BM$3) ->  | BN25: =-VLOOKUP($A25,'pl-data'!$A:$BQ,23+BN$3) -> 0 | BO25: n/a | BP25: n/a | BR25: =-VLOOKUP($A25,'pl-data'!$A:$BQ,8+BR$3) ->  | BS25: =-VLOOKUP($A25,'pl-data'!$A:$BQ,38+BS$3) ->  | BT25: =-VLOOKUP($A25,'pl-data'!$A:$BQ,23+BT$3) -> 0 | BU25: n/a | BV25: n/a | BZ25: 0 | CA25: n/a | CB25: n/a
A26: 8165 | B26: =+masterfile!D1231 -> 8165 Steuerfreie Umsätze ohne Vorsteuerabzug | D26: =-VLOOKUP($A26,'pl-data'!$A:$BQ,8+D$3) ->  | E26: =-VLOOKUP($A26,'pl-data'!$A:$BQ,38+E$3) ->  | F26: =-VLOOKUP($A26,'pl-data'!$A:$BQ,23+F$3) -> 0 | G26: n/a | H26: n/a | J26: =-VLOOKUP($A26,'pl-data'!$A:$BQ,8+J$3) ->  | K26: =-VLOOKUP($A26,'pl-data'!$A:$BQ,38+K$3) ->  | L26: =-VLOOKUP($A26,'pl-data'!$A:$BQ,23+L$3) -> 0 | M26: n/a | N26: n/a | P26: =-VLOOKUP($A26,'pl-data'!$A:$BQ,8+P$3) ->  | Q26: =-VLOOKUP($A26,'pl-data'!$A:$BQ,38+Q$3) ->  | R26: =-VLOOKUP($A26,'pl-data'!$A:$BQ,23+R$3) -> 0 | S26: n/a | T26: n/a | V26: =-VLOOKUP($A26,'pl-data'!$A:$BQ,8+V$3) ->  | W26: =-VLOOKUP($A26,'pl-data'!$A:$BQ,38+W$3) ->  | X26: =-VLOOKUP($A26,'pl-data'!$A:$BQ,23+X$3) -> 0 | Y26: n/a | Z26: n/a | AB26: =-VLOOKUP($A26,'pl-data'!$A:$BQ,8+AB$3) ->  | AC26: =-VLOOKUP($A26,'pl-data'!$A:$BQ,38+AC$3) ->  | AD26: =-VLOOKUP($A26,'pl-data'!$A:$BQ,23+AD$3) -> 0 | AE26: n/a | AF26: n/a | AH26: =-VLOOKUP($A26,'pl-data'!$A:$BQ,8+AH$3) ->  | AI26: =-VLOOKUP($A26,'pl-data'!$A:$BQ,38+AI$3) ->  | AJ26: =-VLOOKUP($A26,'pl-data'!$A:$BQ,23+AJ$3) -> 0 | AK26: n/a | AL26: n/a | AN26: =-VLOOKUP($A26,'pl-data'!$A:$BQ,8+AN$3) ->  | AO26: =-VLOOKUP($A26,'pl-data'!$A:$BQ,38+AO$3) ->  | AP26: =-VLOOKUP($A26,'pl-data'!$A:$BQ,23+AP$3) -> 0 | AQ26: n/a | AR26: n/a | AT26: =-VLOOKUP($A26,'pl-data'!$A:$BQ,8+AT$3) ->  | AU26: =-VLOOKUP($A26,'pl-data'!$A:$BQ,38+AU$3) ->  | AV26: =-VLOOKUP($A26,'pl-data'!$A:$BQ,23+AV$3) -> 0 | AW26: n/a | AX26: n/a | AZ26: =-VLOOKUP($A26,'pl-data'!$A:$BQ,8+AZ$3) ->  | BA26: =-VLOOKUP($A26,'pl-data'!$A:$BQ,38+BA$3) ->  | BB26: =-VLOOKUP($A26,'pl-data'!$A:$BQ,23+BB$3) -> 0 | BC26: n/a | BD26: n/a | BF26: =-VLOOKUP($A26,'pl-data'!$A:$BQ,8+BF$3) ->  | BG26: =-VLOOKUP($A26,'pl-data'!$A:$BQ,38+BG$3) ->  | BH26: =-VLOOKUP($A26,'pl-data'!$A:$BQ,23+BH$3) -> 0 | BI26: n/a | BJ26: n/a | BL26: =-VLOOKUP($A26,'pl-data'!$A:$BQ,8+BL$3) ->  | BM26: =-VLOOKUP($A26,'pl-data'!$A:$BQ,38+BM$3) ->  | BN26: =-VLOOKUP($A26,'pl-data'!$A:$BQ,23+BN$3) -> 0 | BO26: n/a | BP26: n/a | BR26: =-VLOOKUP($A26,'pl-data'!$A:$BQ,8+BR$3) ->  | BS26: =-VLOOKUP($A26,'pl-data'!$A:$BQ,38+BS$3) ->  | BT26: =-VLOOKUP($A26,'pl-data'!$A:$BQ,23+BT$3) -> 0 | BU26: n/a | BV26: n/a | BZ26: 0 | CA26: n/a | CB26: n/a
A27: 8190 | B27: =+masterfile!D1232 -> 8190 Erlöse nach § 24 UStG | D27: =-VLOOKUP($A27,'pl-data'!$A:$BQ,8+D$3) ->  | E27: =-VLOOKUP($A27,'pl-data'!$A:$BQ,38+E$3) ->  | F27: =-VLOOKUP($A27,'pl-data'!$A:$BQ,23+F$3) -> 0 | G27: n/a | H27: n/a | J27: =-VLOOKUP($A27,'pl-data'!$A:$BQ,8+J$3) ->  | K27: =-VLOOKUP($A27,'pl-data'!$A:$BQ,38+K$3) ->  | L27: =-VLOOKUP($A27,'pl-data'!$A:$BQ,23+L$3) -> 0 | M27: n/a | N27: n/a | P27: =-VLOOKUP($A27,'pl-data'!$A:$BQ,8+P$3) ->  | Q27: =-VLOOKUP($A27,'pl-data'!$A:$BQ,38+Q$3) ->  | R27: =-VLOOKUP($A27,'pl-data'!$A:$BQ,23+R$3) -> 0 | S27: n/a | T27: n/a | V27: =-VLOOKUP($A27,'pl-data'!$A:$BQ,8+V$3) ->  | W27: =-VLOOKUP($A27,'pl-data'!$A:$BQ,38+W$3) ->  | X27: =-VLOOKUP($A27,'pl-data'!$A:$BQ,23+X$3) -> 0 | Y27: n/a | Z27: n/a | AB27: =-VLOOKUP($A27,'pl-data'!$A:$BQ,8+AB$3) ->  | AC27: =-VLOOKUP($A27,'pl-data'!$A:$BQ,38+AC$3) ->  | AD27: =-VLOOKUP($A27,'pl-data'!$A:$BQ,23+AD$3) -> 0 | AE27: n/a | AF27: n/a | AH27: =-VLOOKUP($A27,'pl-data'!$A:$BQ,8+AH$3) ->  | AI27: =-VLOOKUP($A27,'pl-data'!$A:$BQ,38+AI$3) ->  | AJ27: =-VLOOKUP($A27,'pl-data'!$A:$BQ,23+AJ$3) -> 0 | AK27: n/a | AL27: n/a | AN27: =-VLOOKUP($A27,'pl-data'!$A:$BQ,8+AN$3) ->  | AO27: =-VLOOKUP($A27,'pl-data'!$A:$BQ,38+AO$3) ->  | AP27: =-VLOOKUP($A27,'pl-data'!$A:$BQ,23+AP$3) -> 0 | AQ27: n/a | AR27: n/a | AT27: =-VLOOKUP($A27,'pl-data'!$A:$BQ,8+AT$3) ->  | AU27: =-VLOOKUP($A27,'pl-data'!$A:$BQ,38+AU$3) ->  | AV27: =-VLOOKUP($A27,'pl-data'!$A:$BQ,23+AV$3) -> 0 | AW27: n/a | AX27: n/a | AZ27: =-VLOOKUP($A27,'pl-data'!$A:$BQ,8+AZ$3) ->  | BA27: =-VLOOKUP($A27,'pl-data'!$A:$BQ,38+BA$3) ->  | BB27: =-VLOOKUP($A27,'pl-data'!$A:$BQ,23+BB$3) -> 0 | BC27: n/a | BD27: n/a | BF27: =-VLOOKUP($A27,'pl-data'!$A:$BQ,8+BF$3) ->  | BG27: =-VLOOKUP($A27,'pl-data'!$A:$BQ,38+BG$3) ->  | BH27: =-VLOOKUP($A27,'pl-data'!$A:$BQ,23+BH$3) -> 0 | BI27: n/a | BJ27: n/a | BL27: =-VLOOKUP($A27,'pl-data'!$A:$BQ,8+BL$3) ->  | BM27: =-VLOOKUP($A27,'pl-data'!$A:$BQ,38+BM$3) ->  | BN27: =-VLOOKUP($A27,'pl-data'!$A:$BQ,23+BN$3) -> 0 | BO27: n/a | BP27: n/a | BR27: =-VLOOKUP($A27,'pl-data'!$A:$BQ,8+BR$3) ->  | BS27: =-VLOOKUP($A27,'pl-data'!$A:$BQ,38+BS$3) ->  | BT27: =-VLOOKUP($A27,'pl-data'!$A:$BQ,23+BT$3) -> 0 | BU27: n/a | BV27: n/a | BZ27: 0 | CA27: n/a | CB27: n/a
A28: 8191 | B28: =+masterfile!D1233 -> 8191 Umsatzerlöse §§ 25 und 25a UStG 19% USt | D28: =-VLOOKUP($A28,'pl-data'!$A:$BQ,8+D$3) ->  | E28: =-VLOOKUP($A28,'pl-data'!$A:$BQ,38+E$3) ->  | F28: =-VLOOKUP($A28,'pl-data'!$A:$BQ,23+F$3) -> 0 | G28: n/a | H28: n/a | J28: =-VLOOKUP($A28,'pl-data'!$A:$BQ,8+J$3) ->  | K28: =-VLOOKUP($A28,'pl-data'!$A:$BQ,38+K$3) ->  | L28: =-VLOOKUP($A28,'pl-data'!$A:$BQ,23+L$3) -> 0 | M28: n/a | N28: n/a | P28: =-VLOOKUP($A28,'pl-data'!$A:$BQ,8+P$3) ->  | Q28: =-VLOOKUP($A28,'pl-data'!$A:$BQ,38+Q$3) ->  | R28: =-VLOOKUP($A28,'pl-data'!$A:$BQ,23+R$3) -> 0 | S28: n/a | T28: n/a | V28: =-VLOOKUP($A28,'pl-data'!$A:$BQ,8+V$3) ->  | W28: =-VLOOKUP($A28,'pl-data'!$A:$BQ,38+W$3) ->  | X28: =-VLOOKUP($A28,'pl-data'!$A:$BQ,23+X$3) -> 0 | Y28: n/a | Z28: n/a | AB28: =-VLOOKUP($A28,'pl-data'!$A:$BQ,8+AB$3) ->  | AC28: =-VLOOKUP($A28,'pl-data'!$A:$BQ,38+AC$3) ->  | AD28: =-VLOOKUP($A28,'pl-data'!$A:$BQ,23+AD$3) -> 0 | AE28: n/a | AF28: n/a | AH28: =-VLOOKUP($A28,'pl-data'!$A:$BQ,8+AH$3) ->  | AI28: =-VLOOKUP($A28,'pl-data'!$A:$BQ,38+AI$3) ->  | AJ28: =-VLOOKUP($A28,'pl-data'!$A:$BQ,23+AJ$3) -> 0 | AK28: n/a | AL28: n/a | AN28: =-VLOOKUP($A28,'pl-data'!$A:$BQ,8+AN$3) ->  | AO28: =-VLOOKUP($A28,'pl-data'!$A:$BQ,38+AO$3) ->  | AP28: =-VLOOKUP($A28,'pl-data'!$A:$BQ,23+AP$3) -> 0 | AQ28: n/a | AR28: n/a | AT28: =-VLOOKUP($A28,'pl-data'!$A:$BQ,8+AT$3) ->  | AU28: =-VLOOKUP($A28,'pl-data'!$A:$BQ,38+AU$3) ->  | AV28: =-VLOOKUP($A28,'pl-data'!$A:$BQ,23+AV$3) -> 0 | AW28: n/a | AX28: n/a | AZ28: =-VLOOKUP($A28,'pl-data'!$A:$BQ,8+AZ$3) ->  | BA28: =-VLOOKUP($A28,'pl-data'!$A:$BQ,38+BA$3) ->  | BB28: =-VLOOKUP($A28,'pl-data'!$A:$BQ,23+BB$3) -> 0 | BC28: n/a | BD28: n/a | BF28: =-VLOOKUP($A28,'pl-data'!$A:$BQ,8+BF$3) ->  | BG28: =-VLOOKUP($A28,'pl-data'!$A:$BQ,38+BG$3) ->  | BH28: =-VLOOKUP($A28,'pl-data'!$A:$BQ,23+BH$3) -> 0 | BI28: n/a | BJ28: n/a | BL28: =-VLOOKUP($A28,'pl-data'!$A:$BQ,8+BL$3) ->  | BM28: =-VLOOKUP($A28,'pl-data'!$A:$BQ,38+BM$3) ->  | BN28: =-VLOOKUP($A28,'pl-data'!$A:$BQ,23+BN$3) -> 0 | BO28: n/a | BP28: n/a | BR28: =-VLOOKUP($A28,'pl-data'!$A:$BQ,8+BR$3) ->  | BS28: =-VLOOKUP($A28,'pl-data'!$A:$BQ,38+BS$3) ->  | BT28: =-VLOOKUP($A28,'pl-data'!$A:$BQ,23+BT$3) -> 0 | BU28: n/a | BV28: n/a | BZ28: 0 | CA28: n/a | CB28: n/a
A29: 8193 | B29: =+masterfile!D1234 -> 8193 Umsatzerlöse §§ 25 u. 25a UStG ohne USt | D29: =-VLOOKUP($A29,'pl-data'!$A:$BQ,8+D$3) ->  | E29: =-VLOOKUP($A29,'pl-data'!$A:$BQ,38+E$3) ->  | F29: =-VLOOKUP($A29,'pl-data'!$A:$BQ,23+F$3) -> 0 | G29: n/a | H29: n/a | J29: =-VLOOKUP($A29,'pl-data'!$A:$BQ,8+J$3) ->  | K29: =-VLOOKUP($A29,'pl-data'!$A:$BQ,38+K$3) ->  | L29: =-VLOOKUP($A29,'pl-data'!$A:$BQ,23+L$3) -> 0 | M29: n/a | N29: n/a | P29: =-VLOOKUP($A29,'pl-data'!$A:$BQ,8+P$3) ->  | Q29: =-VLOOKUP($A29,'pl-data'!$A:$BQ,38+Q$3) ->  | R29: =-VLOOKUP($A29,'pl-data'!$A:$BQ,23+R$3) -> 0 | S29: n/a | T29: n/a | V29: =-VLOOKUP($A29,'pl-data'!$A:$BQ,8+V$3) ->  | W29: =-VLOOKUP($A29,'pl-data'!$A:$BQ,38+W$3) ->  | X29: =-VLOOKUP($A29,'pl-data'!$A:$BQ,23+X$3) -> 0 | Y29: n/a | Z29: n/a | AB29: =-VLOOKUP($A29,'pl-data'!$A:$BQ,8+AB$3) ->  | AC29: =-VLOOKUP($A29,'pl-data'!$A:$BQ,38+AC$3) ->  | AD29: =-VLOOKUP($A29,'pl-data'!$A:$BQ,23+AD$3) -> 0 | AE29: n/a | AF29: n/a | AH29: =-VLOOKUP($A29,'pl-data'!$A:$BQ,8+AH$3) ->  | AI29: =-VLOOKUP($A29,'pl-data'!$A:$BQ,38+AI$3) ->  | AJ29: =-VLOOKUP($A29,'pl-data'!$A:$BQ,23+AJ$3) -> 0 | AK29: n/a | AL29: n/a | AN29: =-VLOOKUP($A29,'pl-data'!$A:$BQ,8+AN$3) ->  | AO29: =-VLOOKUP($A29,'pl-data'!$A:$BQ,38+AO$3) ->  | AP29: =-VLOOKUP($A29,'pl-data'!$A:$BQ,23+AP$3) -> 0 | AQ29: n/a | AR29: n/a | AT29: =-VLOOKUP($A29,'pl-data'!$A:$BQ,8+AT$3) ->  | AU29: =-VLOOKUP($A29,'pl-data'!$A:$BQ,38+AU$3) ->  | AV29: =-VLOOKUP($A29,'pl-data'!$A:$BQ,23+AV$3) -> 0 | AW29: n/a | AX29: n/a | AZ29: =-VLOOKUP($A29,'pl-data'!$A:$BQ,8+AZ$3) ->  | BA29: =-VLOOKUP($A29,'pl-data'!$A:$BQ,38+BA$3) ->  | BB29: =-VLOOKUP($A29,'pl-data'!$A:$BQ,23+BB$3) -> 0 | BC29: n/a | BD29: n/a | BF29: =-VLOOKUP($A29,'pl-data'!$A:$BQ,8+BF$3) ->  | BG29: =-VLOOKUP($A29,'pl-data'!$A:$BQ,38+BG$3) ->  | BH29: =-VLOOKUP($A29,'pl-data'!$A:$BQ,23+BH$3) -> 0 | BI29: n/a | BJ29: n/a | BL29: =-VLOOKUP($A29,'pl-data'!$A:$BQ,8+BL$3) ->  | BM29: =-VLOOKUP($A29,'pl-data'!$A:$BQ,38+BM$3) ->  | BN29: =-VLOOKUP($A29,'pl-data'!$A:$BQ,23+BN$3) -> 0 | BO29: n/a | BP29: n/a | BR29: =-VLOOKUP($A29,'pl-data'!$A:$BQ,8+BR$3) ->  | BS29: =-VLOOKUP($A29,'pl-data'!$A:$BQ,38+BS$3) ->  | BT29: =-VLOOKUP($A29,'pl-data'!$A:$BQ,23+BT$3) -> 0 | BU29: n/a | BV29: n/a | BZ29: 0 | CA29: n/a | CB29: n/a
A30: 8194 | B30: =+masterfile!D1235 -> 8194 Umsatzerl.Reiseleist § 25(2) UStG stfrei | D30: =-VLOOKUP($A30,'pl-data'!$A:$BQ,8+D$3) ->  | E30: =-VLOOKUP($A30,'pl-data'!$A:$BQ,38+E$3) ->  | F30: =-VLOOKUP($A30,'pl-data'!$A:$BQ,23+F$3) -> 0 | G30: n/a | H30: n/a | J30: =-VLOOKUP($A30,'pl-data'!$A:$BQ,8+J$3) ->  | K30: =-VLOOKUP($A30,'pl-data'!$A:$BQ,38+K$3) ->  | L30: =-VLOOKUP($A30,'pl-data'!$A:$BQ,23+L$3) -> 0 | M30: n/a | N30: n/a | P30: =-VLOOKUP($A30,'pl-data'!$A:$BQ,8+P$3) ->  | Q30: =-VLOOKUP($A30,'pl-data'!$A:$BQ,38+Q$3) ->  | R30: =-VLOOKUP($A30,'pl-data'!$A:$BQ,23+R$3) -> 0 | S30: n/a | T30: n/a | V30: =-VLOOKUP($A30,'pl-data'!$A:$BQ,8+V$3) ->  | W30: =-VLOOKUP($A30,'pl-data'!$A:$BQ,38+W$3) ->  | X30: =-VLOOKUP($A30,'pl-data'!$A:$BQ,23+X$3) -> 0 | Y30: n/a | Z30: n/a | AB30: =-VLOOKUP($A30,'pl-data'!$A:$BQ,8+AB$3) ->  | AC30: =-VLOOKUP($A30,'pl-data'!$A:$BQ,38+AC$3) ->  | AD30: =-VLOOKUP($A30,'pl-data'!$A:$BQ,23+AD$3) -> 0 | AE30: n/a | AF30: n/a | AH30: =-VLOOKUP($A30,'pl-data'!$A:$BQ,8+AH$3) ->  | AI30: =-VLOOKUP($A30,'pl-data'!$A:$BQ,38+AI$3) ->  | AJ30: =-VLOOKUP($A30,'pl-data'!$A:$BQ,23+AJ$3) -> 0 | AK30: n/a | AL30: n/a | AN30: =-VLOOKUP($A30,'pl-data'!$A:$BQ,8+AN$3) ->  | AO30: =-VLOOKUP($A30,'pl-data'!$A:$BQ,38+AO$3) ->  | AP30: =-VLOOKUP($A30,'pl-data'!$A:$BQ,23+AP$3) -> 0 | AQ30: n/a | AR30: n/a | AT30: =-VLOOKUP($A30,'pl-data'!$A:$BQ,8+AT$3) ->  | AU30: =-VLOOKUP($A30,'pl-data'!$A:$BQ,38+AU$3) ->  | AV30: =-VLOOKUP($A30,'pl-data'!$A:$BQ,23+AV$3) -> 0 | AW30: n/a | AX30: n/a | AZ30: =-VLOOKUP($A30,'pl-data'!$A:$BQ,8+AZ$3) ->  | BA30: =-VLOOKUP($A30,'pl-data'!$A:$BQ,38+BA$3) ->  | BB30: =-VLOOKUP($A30,'pl-data'!$A:$BQ,23+BB$3) -> 0 | BC30: n/a | BD30: n/a | BF30: =-VLOOKUP($A30,'pl-data'!$A:$BQ,8+BF$3) ->  | BG30: =-VLOOKUP($A30,'pl-data'!$A:$BQ,38+BG$3) ->  | BH30: =-VLOOKUP($A30,'pl-data'!$A:$BQ,23+BH$3) -> 0 | BI30: n/a | BJ30: n/a | BL30: =-VLOOKUP($A30,'pl-data'!$A:$BQ,8+BL$3) ->  | BM30: =-VLOOKUP($A30,'pl-data'!$A:$BQ,38+BM$3) ->  | BN30: =-VLOOKUP($A30,'pl-data'!$A:$BQ,23+BN$3) -> 0 | BO30: n/a | BP30: n/a | BR30: =-VLOOKUP($A30,'pl-data'!$A:$BQ,8+BR$3) ->  | BS30: =-VLOOKUP($A30,'pl-data'!$A:$BQ,38+BS$3) ->  | BT30: =-VLOOKUP($A30,'pl-data'!$A:$BQ,23+BT$3) -> 0 | BU30: n/a | BV30: n/a | BZ30: 0 | CA30: n/a | CB30: n/a
A31: 8195 | B31: =+masterfile!D1236 -> 8195 Erlöse Kleinunternehmer § 19 (1) UStG | D31: =-VLOOKUP($A31,'pl-data'!$A:$BQ,8+D$3) ->  | E31: =-VLOOKUP($A31,'pl-data'!$A:$BQ,38+E$3) ->  | F31: =-VLOOKUP($A31,'pl-data'!$A:$BQ,23+F$3) -> 0 | G31: n/a | H31: n/a | J31: =-VLOOKUP($A31,'pl-data'!$A:$BQ,8+J$3) ->  | K31: =-VLOOKUP($A31,'pl-data'!$A:$BQ,38+K$3) ->  | L31: =-VLOOKUP($A31,'pl-data'!$A:$BQ,23+L$3) -> 0 | M31: n/a | N31: n/a | P31: =-VLOOKUP($A31,'pl-data'!$A:$BQ,8+P$3) ->  | Q31: =-VLOOKUP($A31,'pl-data'!$A:$BQ,38+Q$3) ->  | R31: =-VLOOKUP($A31,'pl-data'!$A:$BQ,23+R$3) -> 0 | S31: n/a | T31: n/a | V31: =-VLOOKUP($A31,'pl-data'!$A:$BQ,8+V$3) ->  | W31: =-VLOOKUP($A31,'pl-data'!$A:$BQ,38+W$3) ->  | X31: =-VLOOKUP($A31,'pl-data'!$A:$BQ,23+X$3) -> 0 | Y31: n/a | Z31: n/a | AB31: =-VLOOKUP($A31,'pl-data'!$A:$BQ,8+AB$3) ->  | AC31: =-VLOOKUP($A31,'pl-data'!$A:$BQ,38+AC$3) ->  | AD31: =-VLOOKUP($A31,'pl-data'!$A:$BQ,23+AD$3) -> 0 | AE31: n/a | AF31: n/a | AH31: =-VLOOKUP($A31,'pl-data'!$A:$BQ,8+AH$3) ->  | AI31: =-VLOOKUP($A31,'pl-data'!$A:$BQ,38+AI$3) ->  | AJ31: =-VLOOKUP($A31,'pl-data'!$A:$BQ,23+AJ$3) -> 0 | AK31: n/a | AL31: n/a | AN31: =-VLOOKUP($A31,'pl-data'!$A:$BQ,8+AN$3) ->  | AO31: =-VLOOKUP($A31,'pl-data'!$A:$BQ,38+AO$3) ->  | AP31: =-VLOOKUP($A31,'pl-data'!$A:$BQ,23+AP$3) -> 0 | AQ31: n/a | AR31: n/a | AT31: =-VLOOKUP($A31,'pl-data'!$A:$BQ,8+AT$3) ->  | AU31: =-VLOOKUP($A31,'pl-data'!$A:$BQ,38+AU$3) ->  | AV31: =-VLOOKUP($A31,'pl-data'!$A:$BQ,23+AV$3) -> 0 | AW31: n/a | AX31: n/a | AZ31: =-VLOOKUP($A31,'pl-data'!$A:$BQ,8+AZ$3) ->  | BA31: =-VLOOKUP($A31,'pl-data'!$A:$BQ,38+BA$3) ->  | BB31: =-VLOOKUP($A31,'pl-data'!$A:$BQ,23+BB$3) -> 0 | BC31: n/a | BD31: n/a | BF31: =-VLOOKUP($A31,'pl-data'!$A:$BQ,8+BF$3) ->  | BG31: =-VLOOKUP($A31,'pl-data'!$A:$BQ,38+BG$3) ->  | BH31: =-VLOOKUP($A31,'pl-data'!$A:$BQ,23+BH$3) -> 0 | BI31: n/a | BJ31: n/a | BL31: =-VLOOKUP($A31,'pl-data'!$A:$BQ,8+BL$3) ->  | BM31: =-VLOOKUP($A31,'pl-data'!$A:$BQ,38+BM$3) ->  | BN31: =-VLOOKUP($A31,'pl-data'!$A:$BQ,23+BN$3) -> 0 | BO31: n/a | BP31: n/a | BR31: =-VLOOKUP($A31,'pl-data'!$A:$BQ,8+BR$3) ->  | BS31: =-VLOOKUP($A31,'pl-data'!$A:$BQ,38+BS$3) ->  | BT31: =-VLOOKUP($A31,'pl-data'!$A:$BQ,23+BT$3) -> 0 | BU31: n/a | BV31: n/a | BZ31: 0 | CA31: n/a | CB31: n/a
A32: 8196 | B32: =+masterfile!D1237 -> 8196 Erlöse Geldspielautomaten 19% USt | D32: =-VLOOKUP($A32,'pl-data'!$A:$BQ,8+D$3) ->  | E32: =-VLOOKUP($A32,'pl-data'!$A:$BQ,38+E$3) ->  | F32: =-VLOOKUP($A32,'pl-data'!$A:$BQ,23+F$3) -> 0 | G32: n/a | H32: n/a | J32: =-VLOOKUP($A32,'pl-data'!$A:$BQ,8+J$3) ->  | K32: =-VLOOKUP($A32,'pl-data'!$A:$BQ,38+K$3) ->  | L32: =-VLOOKUP($A32,'pl-data'!$A:$BQ,23+L$3) -> 0 | M32: n/a | N32: n/a | P32: =-VLOOKUP($A32,'pl-data'!$A:$BQ,8+P$3) ->  | Q32: =-VLOOKUP($A32,'pl-data'!$A:$BQ,38+Q$3) ->  | R32: =-VLOOKUP($A32,'pl-data'!$A:$BQ,23+R$3) -> 0 | S32: n/a | T32: n/a | V32: =-VLOOKUP($A32,'pl-data'!$A:$BQ,8+V$3) ->  | W32: =-VLOOKUP($A32,'pl-data'!$A:$BQ,38+W$3) ->  | X32: =-VLOOKUP($A32,'pl-data'!$A:$BQ,23+X$3) -> 0 | Y32: n/a | Z32: n/a | AB32: =-VLOOKUP($A32,'pl-data'!$A:$BQ,8+AB$3) ->  | AC32: =-VLOOKUP($A32,'pl-data'!$A:$BQ,38+AC$3) ->  | AD32: =-VLOOKUP($A32,'pl-data'!$A:$BQ,23+AD$3) -> 0 | AE32: n/a | AF32: n/a | AH32: =-VLOOKUP($A32,'pl-data'!$A:$BQ,8+AH$3) ->  | AI32: =-VLOOKUP($A32,'pl-data'!$A:$BQ,38+AI$3) ->  | AJ32: =-VLOOKUP($A32,'pl-data'!$A:$BQ,23+AJ$3) -> 0 | AK32: n/a | AL32: n/a | AN32: =-VLOOKUP($A32,'pl-data'!$A:$BQ,8+AN$3) ->  | AO32: =-VLOOKUP($A32,'pl-data'!$A:$BQ,38+AO$3) ->  | AP32: =-VLOOKUP($A32,'pl-data'!$A:$BQ,23+AP$3) -> 0 | AQ32: n/a | AR32: n/a | AT32: =-VLOOKUP($A32,'pl-data'!$A:$BQ,8+AT$3) ->  | AU32: =-VLOOKUP($A32,'pl-data'!$A:$BQ,38+AU$3) ->  | AV32: =-VLOOKUP($A32,'pl-data'!$A:$BQ,23+AV$3) -> 0 | AW32: n/a | AX32: n/a | AZ32: =-VLOOKUP($A32,'pl-data'!$A:$BQ,8+AZ$3) ->  | BA32: =-VLOOKUP($A32,'pl-data'!$A:$BQ,38+BA$3) ->  | BB32: =-VLOOKUP($A32,'pl-data'!$A:$BQ,23+BB$3) -> 0 | BC32: n/a | BD32: n/a | BF32: =-VLOOKUP($A32,'pl-data'!$A:$BQ,8+BF$3) ->  | BG32: =-VLOOKUP($A32,'pl-data'!$A:$BQ,38+BG$3) ->  | BH32: =-VLOOKUP($A32,'pl-data'!$A:$BQ,23+BH$3) -> 0 | BI32: n/a | BJ32: n/a | BL32: =-VLOOKUP($A32,'pl-data'!$A:$BQ,8+BL$3) ->  | BM32: =-VLOOKUP($A32,'pl-data'!$A:$BQ,38+BM$3) ->  | BN32: =-VLOOKUP($A32,'pl-data'!$A:$BQ,23+BN$3) -> 0 | BO32: n/a | BP32: n/a | BR32: =-VLOOKUP($A32,'pl-data'!$A:$BQ,8+BR$3) ->  | BS32: =-VLOOKUP($A32,'pl-data'!$A:$BQ,38+BS$3) ->  | BT32: =-VLOOKUP($A32,'pl-data'!$A:$BQ,23+BT$3) -> 0 | BU32: n/a | BV32: n/a | BZ32: 0 | CA32: n/a | CB32: n/a
A33: 8200 | B33: =+masterfile!D1238 -> 8200 Erlöse | D33: =-VLOOKUP($A33,'pl-data'!$A:$BQ,8+D$3) ->  | E33: =-VLOOKUP($A33,'pl-data'!$A:$BQ,38+E$3) ->  | F33: =-VLOOKUP($A33,'pl-data'!$A:$BQ,23+F$3) -> 0 | G33: n/a | H33: n/a | J33: =-VLOOKUP($A33,'pl-data'!$A:$BQ,8+J$3) ->  | K33: =-VLOOKUP($A33,'pl-data'!$A:$BQ,38+K$3) ->  | L33: =-VLOOKUP($A33,'pl-data'!$A:$BQ,23+L$3) -> 0 | M33: n/a | N33: n/a | P33: =-VLOOKUP($A33,'pl-data'!$A:$BQ,8+P$3) ->  | Q33: =-VLOOKUP($A33,'pl-data'!$A:$BQ,38+Q$3) ->  | R33: =-VLOOKUP($A33,'pl-data'!$A:$BQ,23+R$3) -> 0 | S33: n/a | T33: n/a | V33: =-VLOOKUP($A33,'pl-data'!$A:$BQ,8+V$3) ->  | W33: =-VLOOKUP($A33,'pl-data'!$A:$BQ,38+W$3) ->  | X33: =-VLOOKUP($A33,'pl-data'!$A:$BQ,23+X$3) -> 0 | Y33: n/a | Z33: n/a | AB33: =-VLOOKUP($A33,'pl-data'!$A:$BQ,8+AB$3) ->  | AC33: =-VLOOKUP($A33,'pl-data'!$A:$BQ,38+AC$3) ->  | AD33: =-VLOOKUP($A33,'pl-data'!$A:$BQ,23+AD$3) -> 0 | AE33: n/a | AF33: n/a | AH33: =-VLOOKUP($A33,'pl-data'!$A:$BQ,8+AH$3) ->  | AI33: =-VLOOKUP($A33,'pl-data'!$A:$BQ,38+AI$3) ->  | AJ33: =-VLOOKUP($A33,'pl-data'!$A:$BQ,23+AJ$3) -> 0 | AK33: n/a | AL33: n/a | AN33: =-VLOOKUP($A33,'pl-data'!$A:$BQ,8+AN$3) ->  | AO33: =-VLOOKUP($A33,'pl-data'!$A:$BQ,38+AO$3) ->  | AP33: =-VLOOKUP($A33,'pl-data'!$A:$BQ,23+AP$3) -> 0 | AQ33: n/a | AR33: n/a | AT33: =-VLOOKUP($A33,'pl-data'!$A:$BQ,8+AT$3) ->  | AU33: =-VLOOKUP($A33,'pl-data'!$A:$BQ,38+AU$3) ->  | AV33: =-VLOOKUP($A33,'pl-data'!$A:$BQ,23+AV$3) -> 0 | AW33: n/a | AX33: n/a | AZ33: =-VLOOKUP($A33,'pl-data'!$A:$BQ,8+AZ$3) ->  | BA33: =-VLOOKUP($A33,'pl-data'!$A:$BQ,38+BA$3) ->  | BB33: =-VLOOKUP($A33,'pl-data'!$A:$BQ,23+BB$3) -> 0 | BC33: n/a | BD33: n/a | BF33: =-VLOOKUP($A33,'pl-data'!$A:$BQ,8+BF$3) ->  | BG33: =-VLOOKUP($A33,'pl-data'!$A:$BQ,38+BG$3) ->  | BH33: =-VLOOKUP($A33,'pl-data'!$A:$BQ,23+BH$3) -> 0 | BI33: n/a | BJ33: n/a | BL33: =-VLOOKUP($A33,'pl-data'!$A:$BQ,8+BL$3) ->  | BM33: =-VLOOKUP($A33,'pl-data'!$A:$BQ,38+BM$3) ->  | BN33: =-VLOOKUP($A33,'pl-data'!$A:$BQ,23+BN$3) -> 0 | BO33: n/a | BP33: n/a | BR33: =-VLOOKUP($A33,'pl-data'!$A:$BQ,8+BR$3) ->  | BS33: =-VLOOKUP($A33,'pl-data'!$A:$BQ,38+BS$3) ->  | BT33: =-VLOOKUP($A33,'pl-data'!$A:$BQ,23+BT$3) -> 0 | BU33: n/a | BV33: n/a | BZ33: 0 | CA33: n/a | CB33: n/a
A34: 8300 | B34: =+masterfile!D1239 -> 8300 Erlöse 7% USt | D34: =-VLOOKUP($A34,'pl-data'!$A:$BQ,8+D$3) ->  | E34: =-VLOOKUP($A34,'pl-data'!$A:$BQ,38+E$3) ->  | F34: =-VLOOKUP($A34,'pl-data'!$A:$BQ,23+F$3) -> 0 | G34: n/a | H34: n/a | J34: =-VLOOKUP($A34,'pl-data'!$A:$BQ,8+J$3) ->  | K34: =-VLOOKUP($A34,'pl-data'!$A:$BQ,38+K$3) ->  | L34: =-VLOOKUP($A34,'pl-data'!$A:$BQ,23+L$3) -> 0 | M34: n/a | N34: n/a | P34: =-VLOOKUP($A34,'pl-data'!$A:$BQ,8+P$3) ->  | Q34: =-VLOOKUP($A34,'pl-data'!$A:$BQ,38+Q$3) ->  | R34: =-VLOOKUP($A34,'pl-data'!$A:$BQ,23+R$3) -> 0 | S34: n/a | T34: n/a | V34: =-VLOOKUP($A34,'pl-data'!$A:$BQ,8+V$3) ->  | W34: =-VLOOKUP($A34,'pl-data'!$A:$BQ,38+W$3) ->  | X34: =-VLOOKUP($A34,'pl-data'!$A:$BQ,23+X$3) -> 0 | Y34: n/a | Z34: n/a | AB34: =-VLOOKUP($A34,'pl-data'!$A:$BQ,8+AB$3) ->  | AC34: =-VLOOKUP($A34,'pl-data'!$A:$BQ,38+AC$3) ->  | AD34: =-VLOOKUP($A34,'pl-data'!$A:$BQ,23+AD$3) -> 0 | AE34: n/a | AF34: n/a | AH34: =-VLOOKUP($A34,'pl-data'!$A:$BQ,8+AH$3) ->  | AI34: =-VLOOKUP($A34,'pl-data'!$A:$BQ,38+AI$3) ->  | AJ34: =-VLOOKUP($A34,'pl-data'!$A:$BQ,23+AJ$3) -> 0 | AK34: n/a | AL34: n/a | AN34: =-VLOOKUP($A34,'pl-data'!$A:$BQ,8+AN$3) ->  | AO34: =-VLOOKUP($A34,'pl-data'!$A:$BQ,38+AO$3) ->  | AP34: =-VLOOKUP($A34,'pl-data'!$A:$BQ,23+AP$3) -> 0 | AQ34: n/a | AR34: n/a | AT34: =-VLOOKUP($A34,'pl-data'!$A:$BQ,8+AT$3) ->  | AU34: =-VLOOKUP($A34,'pl-data'!$A:$BQ,38+AU$3) ->  | AV34: =-VLOOKUP($A34,'pl-data'!$A:$BQ,23+AV$3) -> 0 | AW34: n/a | AX34: n/a | AZ34: =-VLOOKUP($A34,'pl-data'!$A:$BQ,8+AZ$3) ->  | BA34: =-VLOOKUP($A34,'pl-data'!$A:$BQ,38+BA$3) ->  | BB34: =-VLOOKUP($A34,'pl-data'!$A:$BQ,23+BB$3) -> 0 | BC34: n/a | BD34: n/a | BF34: =-VLOOKUP($A34,'pl-data'!$A:$BQ,8+BF$3) ->  | BG34: =-VLOOKUP($A34,'pl-data'!$A:$BQ,38+BG$3) ->  | BH34: =-VLOOKUP($A34,'pl-data'!$A:$BQ,23+BH$3) -> 0 | BI34: n/a | BJ34: n/a | BL34: =-VLOOKUP($A34,'pl-data'!$A:$BQ,8+BL$3) ->  | BM34: =-VLOOKUP($A34,'pl-data'!$A:$BQ,38+BM$3) ->  | BN34: =-VLOOKUP($A34,'pl-data'!$A:$BQ,23+BN$3) -> 0 | BO34: n/a | BP34: n/a | BR34: =-VLOOKUP($A34,'pl-data'!$A:$BQ,8+BR$3) ->  | BS34: =-VLOOKUP($A34,'pl-data'!$A:$BQ,38+BS$3) ->  | BT34: =-VLOOKUP($A34,'pl-data'!$A:$BQ,23+BT$3) -> 0 | BU34: n/a | BV34: n/a | BZ34: 0 | CA34: n/a | CB34: n/a
A35: 8310 | B35: =+masterfile!D1240 -> 8310 Erlöse EU-Lieferungen 7% USt | D35: =-VLOOKUP($A35,'pl-data'!$A:$BQ,8+D$3) ->  | E35: =-VLOOKUP($A35,'pl-data'!$A:$BQ,38+E$3) ->  | F35: =-VLOOKUP($A35,'pl-data'!$A:$BQ,23+F$3) -> 0 | G35: n/a | H35: n/a | J35: =-VLOOKUP($A35,'pl-data'!$A:$BQ,8+J$3) ->  | K35: =-VLOOKUP($A35,'pl-data'!$A:$BQ,38+K$3) ->  | L35: =-VLOOKUP($A35,'pl-data'!$A:$BQ,23+L$3) -> 0 | M35: n/a | N35: n/a | P35: =-VLOOKUP($A35,'pl-data'!$A:$BQ,8+P$3) ->  | Q35: =-VLOOKUP($A35,'pl-data'!$A:$BQ,38+Q$3) ->  | R35: =-VLOOKUP($A35,'pl-data'!$A:$BQ,23+R$3) -> 0 | S35: n/a | T35: n/a | V35: =-VLOOKUP($A35,'pl-data'!$A:$BQ,8+V$3) ->  | W35: =-VLOOKUP($A35,'pl-data'!$A:$BQ,38+W$3) ->  | X35: =-VLOOKUP($A35,'pl-data'!$A:$BQ,23+X$3) -> 0 | Y35: n/a | Z35: n/a | AB35: =-VLOOKUP($A35,'pl-data'!$A:$BQ,8+AB$3) ->  | AC35: =-VLOOKUP($A35,'pl-data'!$A:$BQ,38+AC$3) ->  | AD35: =-VLOOKUP($A35,'pl-data'!$A:$BQ,23+AD$3) -> 0 | AE35: n/a | AF35: n/a | AH35: =-VLOOKUP($A35,'pl-data'!$A:$BQ,8+AH$3) ->  | AI35: =-VLOOKUP($A35,'pl-data'!$A:$BQ,38+AI$3) ->  | AJ35: =-VLOOKUP($A35,'pl-data'!$A:$BQ,23+AJ$3) -> 0 | AK35: n/a | AL35: n/a | AN35: =-VLOOKUP($A35,'pl-data'!$A:$BQ,8+AN$3) ->  | AO35: =-VLOOKUP($A35,'pl-data'!$A:$BQ,38+AO$3) ->  | AP35: =-VLOOKUP($A35,'pl-data'!$A:$BQ,23+AP$3) -> 0 | AQ35: n/a | AR35: n/a | AT35: =-VLOOKUP($A35,'pl-data'!$A:$BQ,8+AT$3) ->  | AU35: =-VLOOKUP($A35,'pl-data'!$A:$BQ,38+AU$3) ->  | AV35: =-VLOOKUP($A35,'pl-data'!$A:$BQ,23+AV$3) -> 0 | AW35: n/a | AX35: n/a | AZ35: =-VLOOKUP($A35,'pl-data'!$A:$BQ,8+AZ$3) ->  | BA35: =-VLOOKUP($A35,'pl-data'!$A:$BQ,38+BA$3) ->  | BB35: =-VLOOKUP($A35,'pl-data'!$A:$BQ,23+BB$3) -> 0 | BC35: n/a | BD35: n/a | BF35: =-VLOOKUP($A35,'pl-data'!$A:$BQ,8+BF$3) ->  | BG35: =-VLOOKUP($A35,'pl-data'!$A:$BQ,38+BG$3) ->  | BH35: =-VLOOKUP($A35,'pl-data'!$A:$BQ,23+BH$3) -> 0 | BI35: n/a | BJ35: n/a | BL35: =-VLOOKUP($A35,'pl-data'!$A:$BQ,8+BL$3) ->  | BM35: =-VLOOKUP($A35,'pl-data'!$A:$BQ,38+BM$3) ->  | BN35: =-VLOOKUP($A35,'pl-data'!$A:$BQ,23+BN$3) -> 0 | BO35: n/a | BP35: n/a | BR35: =-VLOOKUP($A35,'pl-data'!$A:$BQ,8+BR$3) ->  | BS35: =-VLOOKUP($A35,'pl-data'!$A:$BQ,38+BS$3) ->  | BT35: =-VLOOKUP($A35,'pl-data'!$A:$BQ,23+BT$3) -> 0 | BU35: n/a | BV35: n/a | BZ35: 0 | CA35: n/a | CB35: n/a
A36: 8315 | B36: =+masterfile!D1241 -> 8315 Erlöse EU-Lieferungen 19% USt | D36: =-VLOOKUP($A36,'pl-data'!$A:$BQ,8+D$3) ->  | E36: =-VLOOKUP($A36,'pl-data'!$A:$BQ,38+E$3) ->  | F36: =-VLOOKUP($A36,'pl-data'!$A:$BQ,23+F$3) -> 0 | G36: n/a | H36: n/a | J36: =-VLOOKUP($A36,'pl-data'!$A:$BQ,8+J$3) ->  | K36: =-VLOOKUP($A36,'pl-data'!$A:$BQ,38+K$3) ->  | L36: =-VLOOKUP($A36,'pl-data'!$A:$BQ,23+L$3) -> 0 | M36: n/a | N36: n/a | P36: =-VLOOKUP($A36,'pl-data'!$A:$BQ,8+P$3) ->  | Q36: =-VLOOKUP($A36,'pl-data'!$A:$BQ,38+Q$3) ->  | R36: =-VLOOKUP($A36,'pl-data'!$A:$BQ,23+R$3) -> 0 | S36: n/a | T36: n/a | V36: =-VLOOKUP($A36,'pl-data'!$A:$BQ,8+V$3) ->  | W36: =-VLOOKUP($A36,'pl-data'!$A:$BQ,38+W$3) ->  | X36: =-VLOOKUP($A36,'pl-data'!$A:$BQ,23+X$3) -> 0 | Y36: n/a | Z36: n/a | AB36: =-VLOOKUP($A36,'pl-data'!$A:$BQ,8+AB$3) ->  | AC36: =-VLOOKUP($A36,'pl-data'!$A:$BQ,38+AC$3) ->  | AD36: =-VLOOKUP($A36,'pl-data'!$A:$BQ,23+AD$3) -> 0 | AE36: n/a | AF36: n/a | AH36: =-VLOOKUP($A36,'pl-data'!$A:$BQ,8+AH$3) ->  | AI36: =-VLOOKUP($A36,'pl-data'!$A:$BQ,38+AI$3) ->  | AJ36: =-VLOOKUP($A36,'pl-data'!$A:$BQ,23+AJ$3) -> 0 | AK36: n/a | AL36: n/a | AN36: =-VLOOKUP($A36,'pl-data'!$A:$BQ,8+AN$3) ->  | AO36: =-VLOOKUP($A36,'pl-data'!$A:$BQ,38+AO$3) ->  | AP36: =-VLOOKUP($A36,'pl-data'!$A:$BQ,23+AP$3) -> 0 | AQ36: n/a | AR36: n/a | AT36: =-VLOOKUP($A36,'pl-data'!$A:$BQ,8+AT$3) ->  | AU36: =-VLOOKUP($A36,'pl-data'!$A:$BQ,38+AU$3) ->  | AV36: =-VLOOKUP($A36,'pl-data'!$A:$BQ,23+AV$3) -> 0 | AW36: n/a | AX36: n/a | AZ36: =-VLOOKUP($A36,'pl-data'!$A:$BQ,8+AZ$3) ->  | BA36: =-VLOOKUP($A36,'pl-data'!$A:$BQ,38+BA$3) ->  | BB36: =-VLOOKUP($A36,'pl-data'!$A:$BQ,23+BB$3) -> 0 | BC36: n/a | BD36: n/a | BF36: =-VLOOKUP($A36,'pl-data'!$A:$BQ,8+BF$3) ->  | BG36: =-VLOOKUP($A36,'pl-data'!$A:$BQ,38+BG$3) ->  | BH36: =-VLOOKUP($A36,'pl-data'!$A:$BQ,23+BH$3) -> 0 | BI36: n/a | BJ36: n/a | BL36: =-VLOOKUP($A36,'pl-data'!$A:$BQ,8+BL$3) ->  | BM36: =-VLOOKUP($A36,'pl-data'!$A:$BQ,38+BM$3) ->  | BN36: =-VLOOKUP($A36,'pl-data'!$A:$BQ,23+BN$3) -> 0 | BO36: n/a | BP36: n/a | BR36: =-VLOOKUP($A36,'pl-data'!$A:$BQ,8+BR$3) ->  | BS36: =-VLOOKUP($A36,'pl-data'!$A:$BQ,38+BS$3) ->  | BT36: =-VLOOKUP($A36,'pl-data'!$A:$BQ,23+BT$3) -> 0 | BU36: n/a | BV36: n/a | BZ36: 0 | CA36: n/a | CB36: n/a
A37: 8320 | B37: =+masterfile!D1242 -> 8320 Erl.a.im and.EU-Land stpfl.Lieferungen | D37: =-VLOOKUP($A37,'pl-data'!$A:$BQ,8+D$3) ->  | E37: =-VLOOKUP($A37,'pl-data'!$A:$BQ,38+E$3) ->  | F37: =-VLOOKUP($A37,'pl-data'!$A:$BQ,23+F$3) -> 0 | G37: n/a | H37: n/a | J37: =-VLOOKUP($A37,'pl-data'!$A:$BQ,8+J$3) ->  | K37: =-VLOOKUP($A37,'pl-data'!$A:$BQ,38+K$3) ->  | L37: =-VLOOKUP($A37,'pl-data'!$A:$BQ,23+L$3) -> 0 | M37: n/a | N37: n/a | P37: =-VLOOKUP($A37,'pl-data'!$A:$BQ,8+P$3) ->  | Q37: =-VLOOKUP($A37,'pl-data'!$A:$BQ,38+Q$3) ->  | R37: =-VLOOKUP($A37,'pl-data'!$A:$BQ,23+R$3) -> 0 | S37: n/a | T37: n/a | V37: =-VLOOKUP($A37,'pl-data'!$A:$BQ,8+V$3) ->  | W37: =-VLOOKUP($A37,'pl-data'!$A:$BQ,38+W$3) ->  | X37: =-VLOOKUP($A37,'pl-data'!$A:$BQ,23+X$3) -> 0 | Y37: n/a | Z37: n/a | AB37: =-VLOOKUP($A37,'pl-data'!$A:$BQ,8+AB$3) ->  | AC37: =-VLOOKUP($A37,'pl-data'!$A:$BQ,38+AC$3) ->  | AD37: =-VLOOKUP($A37,'pl-data'!$A:$BQ,23+AD$3) -> 0 | AE37: n/a | AF37: n/a | AH37: =-VLOOKUP($A37,'pl-data'!$A:$BQ,8+AH$3) ->  | AI37: =-VLOOKUP($A37,'pl-data'!$A:$BQ,38+AI$3) ->  | AJ37: =-VLOOKUP($A37,'pl-data'!$A:$BQ,23+AJ$3) -> 0 | AK37: n/a | AL37: n/a | AN37: =-VLOOKUP($A37,'pl-data'!$A:$BQ,8+AN$3) ->  | AO37: =-VLOOKUP($A37,'pl-data'!$A:$BQ,38+AO$3) ->  | AP37: =-VLOOKUP($A37,'pl-data'!$A:$BQ,23+AP$3) -> 0 | AQ37: n/a | AR37: n/a | AT37: =-VLOOKUP($A37,'pl-data'!$A:$BQ,8+AT$3) ->  | AU37: =-VLOOKUP($A37,'pl-data'!$A:$BQ,38+AU$3) ->  | AV37: =-VLOOKUP($A37,'pl-data'!$A:$BQ,23+AV$3) -> 0 | AW37: n/a | AX37: n/a | AZ37: =-VLOOKUP($A37,'pl-data'!$A:$BQ,8+AZ$3) ->  | BA37: =-VLOOKUP($A37,'pl-data'!$A:$BQ,38+BA$3) ->  | BB37: =-VLOOKUP($A37,'pl-data'!$A:$BQ,23+BB$3) -> 0 | BC37: n/a | BD37: n/a | BF37: =-VLOOKUP($A37,'pl-data'!$A:$BQ,8+BF$3) ->  | BG37: =-VLOOKUP($A37,'pl-data'!$A:$BQ,38+BG$3) ->  | BH37: =-VLOOKUP($A37,'pl-data'!$A:$BQ,23+BH$3) -> 0 | BI37: n/a | BJ37: n/a | BL37: =-VLOOKUP($A37,'pl-data'!$A:$BQ,8+BL$3) ->  | BM37: =-VLOOKUP($A37,'pl-data'!$A:$BQ,38+BM$3) ->  | BN37: =-VLOOKUP($A37,'pl-data'!$A:$BQ,23+BN$3) -> 0 | BO37: n/a | BP37: n/a | BR37: =-VLOOKUP($A37,'pl-data'!$A:$BQ,8+BR$3) ->  | BS37: =-VLOOKUP($A37,'pl-data'!$A:$BQ,38+BS$3) ->  | BT37: =-VLOOKUP($A37,'pl-data'!$A:$BQ,23+BT$3) -> 0 | BU37: n/a | BV37: n/a | BZ37: 0 | CA37: n/a | CB37: n/a
A38: 8331 | B38: =+masterfile!D1243 -> 8331 Erlöse elektr.DL im anderen EU-Land stpf | D38: =-VLOOKUP($A38,'pl-data'!$A:$BQ,8+D$3) ->  | E38: =-VLOOKUP($A38,'pl-data'!$A:$BQ,38+E$3) ->  | F38: =-VLOOKUP($A38,'pl-data'!$A:$BQ,23+F$3) -> 0 | G38: n/a | H38: n/a | J38: =-VLOOKUP($A38,'pl-data'!$A:$BQ,8+J$3) ->  | K38: =-VLOOKUP($A38,'pl-data'!$A:$BQ,38+K$3) ->  | L38: =-VLOOKUP($A38,'pl-data'!$A:$BQ,23+L$3) -> 0 | M38: n/a | N38: n/a | P38: =-VLOOKUP($A38,'pl-data'!$A:$BQ,8+P$3) ->  | Q38: =-VLOOKUP($A38,'pl-data'!$A:$BQ,38+Q$3) ->  | R38: =-VLOOKUP($A38,'pl-data'!$A:$BQ,23+R$3) -> 0 | S38: n/a | T38: n/a | V38: =-VLOOKUP($A38,'pl-data'!$A:$BQ,8+V$3) ->  | W38: =-VLOOKUP($A38,'pl-data'!$A:$BQ,38+W$3) ->  | X38: =-VLOOKUP($A38,'pl-data'!$A:$BQ,23+X$3) -> 0 | Y38: n/a | Z38: n/a | AB38: =-VLOOKUP($A38,'pl-data'!$A:$BQ,8+AB$3) ->  | AC38: =-VLOOKUP($A38,'pl-data'!$A:$BQ,38+AC$3) ->  | AD38: =-VLOOKUP($A38,'pl-data'!$A:$BQ,23+AD$3) -> 0 | AE38: n/a | AF38: n/a | AH38: =-VLOOKUP($A38,'pl-data'!$A:$BQ,8+AH$3) ->  | AI38: =-VLOOKUP($A38,'pl-data'!$A:$BQ,38+AI$3) ->  | AJ38: =-VLOOKUP($A38,'pl-data'!$A:$BQ,23+AJ$3) -> 0 | AK38: n/a | AL38: n/a | AN38: =-VLOOKUP($A38,'pl-data'!$A:$BQ,8+AN$3) ->  | AO38: =-VLOOKUP($A38,'pl-data'!$A:$BQ,38+AO$3) ->  | AP38: =-VLOOKUP($A38,'pl-data'!$A:$BQ,23+AP$3) -> 0 | AQ38: n/a | AR38: n/a | AT38: =-VLOOKUP($A38,'pl-data'!$A:$BQ,8+AT$3) ->  | AU38: =-VLOOKUP($A38,'pl-data'!$A:$BQ,38+AU$3) ->  | AV38: =-VLOOKUP($A38,'pl-data'!$A:$BQ,23+AV$3) -> 0 | AW38: n/a | AX38: n/a | AZ38: =-VLOOKUP($A38,'pl-data'!$A:$BQ,8+AZ$3) ->  | BA38: =-VLOOKUP($A38,'pl-data'!$A:$BQ,38+BA$3) ->  | BB38: =-VLOOKUP($A38,'pl-data'!$A:$BQ,23+BB$3) -> 0 | BC38: n/a | BD38: n/a | BF38: =-VLOOKUP($A38,'pl-data'!$A:$BQ,8+BF$3) ->  | BG38: =-VLOOKUP($A38,'pl-data'!$A:$BQ,38+BG$3) ->  | BH38: =-VLOOKUP($A38,'pl-data'!$A:$BQ,23+BH$3) -> 0 | BI38: n/a | BJ38: n/a | BL38: =-VLOOKUP($A38,'pl-data'!$A:$BQ,8+BL$3) ->  | BM38: =-VLOOKUP($A38,'pl-data'!$A:$BQ,38+BM$3) ->  | BN38: =-VLOOKUP($A38,'pl-data'!$A:$BQ,23+BN$3) -> 0 | BO38: n/a | BP38: n/a | BR38: =-VLOOKUP($A38,'pl-data'!$A:$BQ,8+BR$3) ->  | BS38: =-VLOOKUP($A38,'pl-data'!$A:$BQ,38+BS$3) ->  | BT38: =-VLOOKUP($A38,'pl-data'!$A:$BQ,23+BT$3) -> 0 | BU38: n/a | BV38: n/a | BZ38: 0 | CA38: n/a | CB38: n/a
A39: 8333 | B39: =+masterfile!D1244 -> 8333 Erlöse 5% USt | D39: =-VLOOKUP($A39,'pl-data'!$A:$BQ,8+D$3) ->  | E39: =-VLOOKUP($A39,'pl-data'!$A:$BQ,38+E$3) ->  | F39: =-VLOOKUP($A39,'pl-data'!$A:$BQ,23+F$3) -> 0 | G39: n/a | H39: n/a | J39: =-VLOOKUP($A39,'pl-data'!$A:$BQ,8+J$3) ->  | K39: =-VLOOKUP($A39,'pl-data'!$A:$BQ,38+K$3) ->  | L39: =-VLOOKUP($A39,'pl-data'!$A:$BQ,23+L$3) -> 0 | M39: n/a | N39: n/a | P39: =-VLOOKUP($A39,'pl-data'!$A:$BQ,8+P$3) ->  | Q39: =-VLOOKUP($A39,'pl-data'!$A:$BQ,38+Q$3) ->  | R39: =-VLOOKUP($A39,'pl-data'!$A:$BQ,23+R$3) -> 0 | S39: n/a | T39: n/a | V39: =-VLOOKUP($A39,'pl-data'!$A:$BQ,8+V$3) ->  | W39: =-VLOOKUP($A39,'pl-data'!$A:$BQ,38+W$3) ->  | X39: =-VLOOKUP($A39,'pl-data'!$A:$BQ,23+X$3) -> 0 | Y39: n/a | Z39: n/a | AB39: =-VLOOKUP($A39,'pl-data'!$A:$BQ,8+AB$3) ->  | AC39: =-VLOOKUP($A39,'pl-data'!$A:$BQ,38+AC$3) ->  | AD39: =-VLOOKUP($A39,'pl-data'!$A:$BQ,23+AD$3) -> 0 | AE39: n/a | AF39: n/a | AH39: =-VLOOKUP($A39,'pl-data'!$A:$BQ,8+AH$3) ->  | AI39: =-VLOOKUP($A39,'pl-data'!$A:$BQ,38+AI$3) ->  | AJ39: =-VLOOKUP($A39,'pl-data'!$A:$BQ,23+AJ$3) -> 0 | AK39: n/a | AL39: n/a | AN39: =-VLOOKUP($A39,'pl-data'!$A:$BQ,8+AN$3) ->  | AO39: =-VLOOKUP($A39,'pl-data'!$A:$BQ,38+AO$3) ->  | AP39: =-VLOOKUP($A39,'pl-data'!$A:$BQ,23+AP$3) -> 0 | AQ39: n/a | AR39: n/a | AT39: =-VLOOKUP($A39,'pl-data'!$A:$BQ,8+AT$3) ->  | AU39: =-VLOOKUP($A39,'pl-data'!$A:$BQ,38+AU$3) ->  | AV39: =-VLOOKUP($A39,'pl-data'!$A:$BQ,23+AV$3) -> 0 | AW39: n/a | AX39: n/a | AZ39: =-VLOOKUP($A39,'pl-data'!$A:$BQ,8+AZ$3) ->  | BA39: =-VLOOKUP($A39,'pl-data'!$A:$BQ,38+BA$3) ->  | BB39: =-VLOOKUP($A39,'pl-data'!$A:$BQ,23+BB$3) -> 0 | BC39: n/a | BD39: n/a | BF39: =-VLOOKUP($A39,'pl-data'!$A:$BQ,8+BF$3) ->  | BG39: =-VLOOKUP($A39,'pl-data'!$A:$BQ,38+BG$3) ->  | BH39: =-VLOOKUP($A39,'pl-data'!$A:$BQ,23+BH$3) -> 0 | BI39: n/a | BJ39: n/a | BL39: =-VLOOKUP($A39,'pl-data'!$A:$BQ,8+BL$3) ->  | BM39: =-VLOOKUP($A39,'pl-data'!$A:$BQ,38+BM$3) ->  | BN39: =-VLOOKUP($A39,'pl-data'!$A:$BQ,23+BN$3) -> 0 | BO39: n/a | BP39: n/a | BR39: =-VLOOKUP($A39,'pl-data'!$A:$BQ,8+BR$3) ->  | BS39: =-VLOOKUP($A39,'pl-data'!$A:$BQ,38+BS$3) ->  | BT39: =-VLOOKUP($A39,'pl-data'!$A:$BQ,23+BT$3) -> 0 | BU39: n/a | BV39: n/a | BZ39: 0 | CA39: n/a | CB39: n/a
A40: 8334 | B40: =+masterfile!D1245 -> 8334 Erlöse 7% USt | D40: =-VLOOKUP($A40,'pl-data'!$A:$BQ,8+D$3) ->  | E40: =-VLOOKUP($A40,'pl-data'!$A:$BQ,38+E$3) ->  | F40: =-VLOOKUP($A40,'pl-data'!$A:$BQ,23+F$3) -> 0 | G40: n/a | H40: n/a | J40: =-VLOOKUP($A40,'pl-data'!$A:$BQ,8+J$3) ->  | K40: =-VLOOKUP($A40,'pl-data'!$A:$BQ,38+K$3) ->  | L40: =-VLOOKUP($A40,'pl-data'!$A:$BQ,23+L$3) -> 0 | M40: n/a | N40: n/a | P40: =-VLOOKUP($A40,'pl-data'!$A:$BQ,8+P$3) ->  | Q40: =-VLOOKUP($A40,'pl-data'!$A:$BQ,38+Q$3) ->  | R40: =-VLOOKUP($A40,'pl-data'!$A:$BQ,23+R$3) -> 0 | S40: n/a | T40: n/a | V40: =-VLOOKUP($A40,'pl-data'!$A:$BQ,8+V$3) ->  | W40: =-VLOOKUP($A40,'pl-data'!$A:$BQ,38+W$3) ->  | X40: =-VLOOKUP($A40,'pl-data'!$A:$BQ,23+X$3) -> 0 | Y40: n/a | Z40: n/a | AB40: =-VLOOKUP($A40,'pl-data'!$A:$BQ,8+AB$3) ->  | AC40: =-VLOOKUP($A40,'pl-data'!$A:$BQ,38+AC$3) ->  | AD40: =-VLOOKUP($A40,'pl-data'!$A:$BQ,23+AD$3) -> 0 | AE40: n/a | AF40: n/a | AH40: =-VLOOKUP($A40,'pl-data'!$A:$BQ,8+AH$3) ->  | AI40: =-VLOOKUP($A40,'pl-data'!$A:$BQ,38+AI$3) ->  | AJ40: =-VLOOKUP($A40,'pl-data'!$A:$BQ,23+AJ$3) -> 0 | AK40: n/a | AL40: n/a | AN40: =-VLOOKUP($A40,'pl-data'!$A:$BQ,8+AN$3) ->  | AO40: =-VLOOKUP($A40,'pl-data'!$A:$BQ,38+AO$3) ->  | AP40: =-VLOOKUP($A40,'pl-data'!$A:$BQ,23+AP$3) -> 0 | AQ40: n/a | AR40: n/a | AT40: =-VLOOKUP($A40,'pl-data'!$A:$BQ,8+AT$3) ->  | AU40: =-VLOOKUP($A40,'pl-data'!$A:$BQ,38+AU$3) ->  | AV40: =-VLOOKUP($A40,'pl-data'!$A:$BQ,23+AV$3) -> 0 | AW40: n/a | AX40: n/a | AZ40: =-VLOOKUP($A40,'pl-data'!$A:$BQ,8+AZ$3) ->  | BA40: =-VLOOKUP($A40,'pl-data'!$A:$BQ,38+BA$3) ->  | BB40: =-VLOOKUP($A40,'pl-data'!$A:$BQ,23+BB$3) -> 0 | BC40: n/a | BD40: n/a | BF40: =-VLOOKUP($A40,'pl-data'!$A:$BQ,8+BF$3) ->  | BG40: =-VLOOKUP($A40,'pl-data'!$A:$BQ,38+BG$3) ->  | BH40: =-VLOOKUP($A40,'pl-data'!$A:$BQ,23+BH$3) -> 0 | BI40: n/a | BJ40: n/a | BL40: =-VLOOKUP($A40,'pl-data'!$A:$BQ,8+BL$3) ->  | BM40: =-VLOOKUP($A40,'pl-data'!$A:$BQ,38+BM$3) ->  | BN40: =-VLOOKUP($A40,'pl-data'!$A:$BQ,23+BN$3) -> 0 | BO40: n/a | BP40: n/a | BR40: =-VLOOKUP($A40,'pl-data'!$A:$BQ,8+BR$3) ->  | BS40: =-VLOOKUP($A40,'pl-data'!$A:$BQ,38+BS$3) ->  | BT40: =-VLOOKUP($A40,'pl-data'!$A:$BQ,23+BT$3) -> 0 | BU40: n/a | BV40: n/a | BZ40: 0 | CA40: n/a | CB40: n/a
A41: 8335 | B41: =+masterfile!D1246 -> 8335 Erlöse a.Lieferungen §13b (2) Nr.10 UStG | D41: =-VLOOKUP($A41,'pl-data'!$A:$BQ,8+D$3) ->  | E41: =-VLOOKUP($A41,'pl-data'!$A:$BQ,38+E$3) ->  | F41: =-VLOOKUP($A41,'pl-data'!$A:$BQ,23+F$3) -> 0 | G41: n/a | H41: n/a | J41: =-VLOOKUP($A41,'pl-data'!$A:$BQ,8+J$3) ->  | K41: =-VLOOKUP($A41,'pl-data'!$A:$BQ,38+K$3) ->  | L41: =-VLOOKUP($A41,'pl-data'!$A:$BQ,23+L$3) -> 0 | M41: n/a | N41: n/a | P41: =-VLOOKUP($A41,'pl-data'!$A:$BQ,8+P$3) ->  | Q41: =-VLOOKUP($A41,'pl-data'!$A:$BQ,38+Q$3) ->  | R41: =-VLOOKUP($A41,'pl-data'!$A:$BQ,23+R$3) -> 0 | S41: n/a | T41: n/a | V41: =-VLOOKUP($A41,'pl-data'!$A:$BQ,8+V$3) ->  | W41: =-VLOOKUP($A41,'pl-data'!$A:$BQ,38+W$3) ->  | X41: =-VLOOKUP($A41,'pl-data'!$A:$BQ,23+X$3) -> 0 | Y41: n/a | Z41: n/a | AB41: =-VLOOKUP($A41,'pl-data'!$A:$BQ,8+AB$3) ->  | AC41: =-VLOOKUP($A41,'pl-data'!$A:$BQ,38+AC$3) ->  | AD41: =-VLOOKUP($A41,'pl-data'!$A:$BQ,23+AD$3) -> 0 | AE41: n/a | AF41: n/a | AH41: =-VLOOKUP($A41,'pl-data'!$A:$BQ,8+AH$3) ->  | AI41: =-VLOOKUP($A41,'pl-data'!$A:$BQ,38+AI$3) ->  | AJ41: =-VLOOKUP($A41,'pl-data'!$A:$BQ,23+AJ$3) -> 0 | AK41: n/a | AL41: n/a | AN41: =-VLOOKUP($A41,'pl-data'!$A:$BQ,8+AN$3) ->  | AO41: =-VLOOKUP($A41,'pl-data'!$A:$BQ,38+AO$3) ->  | AP41: =-VLOOKUP($A41,'pl-data'!$A:$BQ,23+AP$3) -> 0 | AQ41: n/a | AR41: n/a | AT41: =-VLOOKUP($A41,'pl-data'!$A:$BQ,8+AT$3) ->  | AU41: =-VLOOKUP($A41,'pl-data'!$A:$BQ,38+AU$3) ->  | AV41: =-VLOOKUP($A41,'pl-data'!$A:$BQ,23+AV$3) -> 0 | AW41: n/a | AX41: n/a | AZ41: =-VLOOKUP($A41,'pl-data'!$A:$BQ,8+AZ$3) ->  | BA41: =-VLOOKUP($A41,'pl-data'!$A:$BQ,38+BA$3) ->  | BB41: =-VLOOKUP($A41,'pl-data'!$A:$BQ,23+BB$3) -> 0 | BC41: n/a | BD41: n/a | BF41: =-VLOOKUP($A41,'pl-data'!$A:$BQ,8+BF$3) ->  | BG41: =-VLOOKUP($A41,'pl-data'!$A:$BQ,38+BG$3) ->  | BH41: =-VLOOKUP($A41,'pl-data'!$A:$BQ,23+BH$3) -> 0 | BI41: n/a | BJ41: n/a | BL41: =-VLOOKUP($A41,'pl-data'!$A:$BQ,8+BL$3) ->  | BM41: =-VLOOKUP($A41,'pl-data'!$A:$BQ,38+BM$3) ->  | BN41: =-VLOOKUP($A41,'pl-data'!$A:$BQ,23+BN$3) -> 0 | BO41: n/a | BP41: n/a | BR41: =-VLOOKUP($A41,'pl-data'!$A:$BQ,8+BR$3) ->  | BS41: =-VLOOKUP($A41,'pl-data'!$A:$BQ,38+BS$3) ->  | BT41: =-VLOOKUP($A41,'pl-data'!$A:$BQ,23+BT$3) -> 0 | BU41: n/a | BV41: n/a | BZ41: 0 | CA41: n/a | CB41: n/a
A42: 8336 | B42: =+masterfile!D1247 -> 8336 Nicht steuerbare s. Leistung § 18b UStG | D42: =-VLOOKUP($A42,'pl-data'!$A:$BQ,8+D$3) ->  | E42: =-VLOOKUP($A42,'pl-data'!$A:$BQ,38+E$3) ->  | F42: =-VLOOKUP($A42,'pl-data'!$A:$BQ,23+F$3) -> 0 | G42: n/a | H42: n/a | J42: =-VLOOKUP($A42,'pl-data'!$A:$BQ,8+J$3) ->  | K42: =-VLOOKUP($A42,'pl-data'!$A:$BQ,38+K$3) ->  | L42: =-VLOOKUP($A42,'pl-data'!$A:$BQ,23+L$3) -> 0 | M42: n/a | N42: n/a | P42: =-VLOOKUP($A42,'pl-data'!$A:$BQ,8+P$3) ->  | Q42: =-VLOOKUP($A42,'pl-data'!$A:$BQ,38+Q$3) ->  | R42: =-VLOOKUP($A42,'pl-data'!$A:$BQ,23+R$3) -> 0 | S42: n/a | T42: n/a | V42: =-VLOOKUP($A42,'pl-data'!$A:$BQ,8+V$3) ->  | W42: =-VLOOKUP($A42,'pl-data'!$A:$BQ,38+W$3) ->  | X42: =-VLOOKUP($A42,'pl-data'!$A:$BQ,23+X$3) -> 0 | Y42: n/a | Z42: n/a | AB42: =-VLOOKUP($A42,'pl-data'!$A:$BQ,8+AB$3) ->  | AC42: =-VLOOKUP($A42,'pl-data'!$A:$BQ,38+AC$3) ->  | AD42: =-VLOOKUP($A42,'pl-data'!$A:$BQ,23+AD$3) -> 0 | AE42: n/a | AF42: n/a | AH42: =-VLOOKUP($A42,'pl-data'!$A:$BQ,8+AH$3) ->  | AI42: =-VLOOKUP($A42,'pl-data'!$A:$BQ,38+AI$3) ->  | AJ42: =-VLOOKUP($A42,'pl-data'!$A:$BQ,23+AJ$3) -> 0 | AK42: n/a | AL42: n/a | AN42: =-VLOOKUP($A42,'pl-data'!$A:$BQ,8+AN$3) ->  | AO42: =-VLOOKUP($A42,'pl-data'!$A:$BQ,38+AO$3) ->  | AP42: =-VLOOKUP($A42,'pl-data'!$A:$BQ,23+AP$3) -> 0 | AQ42: n/a | AR42: n/a | AT42: =-VLOOKUP($A42,'pl-data'!$A:$BQ,8+AT$3) ->  | AU42: =-VLOOKUP($A42,'pl-data'!$A:$BQ,38+AU$3) ->  | AV42: =-VLOOKUP($A42,'pl-data'!$A:$BQ,23+AV$3) -> 0 | AW42: n/a | AX42: n/a | AZ42: =-VLOOKUP($A42,'pl-data'!$A:$BQ,8+AZ$3) ->  | BA42: =-VLOOKUP($A42,'pl-data'!$A:$BQ,38+BA$3) ->  | BB42: =-VLOOKUP($A42,'pl-data'!$A:$BQ,23+BB$3) -> 0 | BC42: n/a | BD42: n/a | BF42: =-VLOOKUP($A42,'pl-data'!$A:$BQ,8+BF$3) ->  | BG42: =-VLOOKUP($A42,'pl-data'!$A:$BQ,38+BG$3) ->  | BH42: =-VLOOKUP($A42,'pl-data'!$A:$BQ,23+BH$3) -> 0 | BI42: n/a | BJ42: n/a | BL42: =-VLOOKUP($A42,'pl-data'!$A:$BQ,8+BL$3) ->  | BM42: =-VLOOKUP($A42,'pl-data'!$A:$BQ,38+BM$3) ->  | BN42: =-VLOOKUP($A42,'pl-data'!$A:$BQ,23+BN$3) -> 0 | BO42: n/a | BP42: n/a | BR42: =-VLOOKUP($A42,'pl-data'!$A:$BQ,8+BR$3) ->  | BS42: =-VLOOKUP($A42,'pl-data'!$A:$BQ,38+BS$3) ->  | BT42: =-VLOOKUP($A42,'pl-data'!$A:$BQ,23+BT$3) -> 0 | BU42: n/a | BV42: n/a | BZ42: 0 | CA42: n/a | CB42: n/a
A43: 8337 | B43: =+masterfile!D1248 -> 8337 Erlöse aus Leistungen nach § 13b UStG | D43: =-VLOOKUP($A43,'pl-data'!$A:$BQ,8+D$3) ->  | E43: =-VLOOKUP($A43,'pl-data'!$A:$BQ,38+E$3) ->  | F43: =-VLOOKUP($A43,'pl-data'!$A:$BQ,23+F$3) -> 0 | G43: n/a | H43: n/a | J43: =-VLOOKUP($A43,'pl-data'!$A:$BQ,8+J$3) ->  | K43: =-VLOOKUP($A43,'pl-data'!$A:$BQ,38+K$3) ->  | L43: =-VLOOKUP($A43,'pl-data'!$A:$BQ,23+L$3) -> 0 | M43: n/a | N43: n/a | P43: =-VLOOKUP($A43,'pl-data'!$A:$BQ,8+P$3) ->  | Q43: =-VLOOKUP($A43,'pl-data'!$A:$BQ,38+Q$3) ->  | R43: =-VLOOKUP($A43,'pl-data'!$A:$BQ,23+R$3) -> 0 | S43: n/a | T43: n/a | V43: =-VLOOKUP($A43,'pl-data'!$A:$BQ,8+V$3) ->  | W43: =-VLOOKUP($A43,'pl-data'!$A:$BQ,38+W$3) ->  | X43: =-VLOOKUP($A43,'pl-data'!$A:$BQ,23+X$3) -> 0 | Y43: n/a | Z43: n/a | AB43: =-VLOOKUP($A43,'pl-data'!$A:$BQ,8+AB$3) ->  | AC43: =-VLOOKUP($A43,'pl-data'!$A:$BQ,38+AC$3) ->  | AD43: =-VLOOKUP($A43,'pl-data'!$A:$BQ,23+AD$3) -> 0 | AE43: n/a | AF43: n/a | AH43: =-VLOOKUP($A43,'pl-data'!$A:$BQ,8+AH$3) ->  | AI43: =-VLOOKUP($A43,'pl-data'!$A:$BQ,38+AI$3) ->  | AJ43: =-VLOOKUP($A43,'pl-data'!$A:$BQ,23+AJ$3) -> 0 | AK43: n/a | AL43: n/a | AN43: =-VLOOKUP($A43,'pl-data'!$A:$BQ,8+AN$3) ->  | AO43: =-VLOOKUP($A43,'pl-data'!$A:$BQ,38+AO$3) ->  | AP43: =-VLOOKUP($A43,'pl-data'!$A:$BQ,23+AP$3) -> 0 | AQ43: n/a | AR43: n/a | AT43: =-VLOOKUP($A43,'pl-data'!$A:$BQ,8+AT$3) ->  | AU43: =-VLOOKUP($A43,'pl-data'!$A:$BQ,38+AU$3) ->  | AV43: =-VLOOKUP($A43,'pl-data'!$A:$BQ,23+AV$3) -> 0 | AW43: n/a | AX43: n/a | AZ43: =-VLOOKUP($A43,'pl-data'!$A:$BQ,8+AZ$3) ->  | BA43: =-VLOOKUP($A43,'pl-data'!$A:$BQ,38+BA$3) ->  | BB43: =-VLOOKUP($A43,'pl-data'!$A:$BQ,23+BB$3) -> 0 | BC43: n/a | BD43: n/a | BF43: =-VLOOKUP($A43,'pl-data'!$A:$BQ,8+BF$3) ->  | BG43: =-VLOOKUP($A43,'pl-data'!$A:$BQ,38+BG$3) ->  | BH43: =-VLOOKUP($A43,'pl-data'!$A:$BQ,23+BH$3) -> 0 | BI43: n/a | BJ43: n/a | BL43: =-VLOOKUP($A43,'pl-data'!$A:$BQ,8+BL$3) ->  | BM43: =-VLOOKUP($A43,'pl-data'!$A:$BQ,38+BM$3) ->  | BN43: =-VLOOKUP($A43,'pl-data'!$A:$BQ,23+BN$3) -> 0 | BO43: n/a | BP43: n/a | BR43: =-VLOOKUP($A43,'pl-data'!$A:$BQ,8+BR$3) ->  | BS43: =-VLOOKUP($A43,'pl-data'!$A:$BQ,38+BS$3) ->  | BT43: =-VLOOKUP($A43,'pl-data'!$A:$BQ,23+BT$3) -> 0 | BU43: n/a | BV43: n/a | BZ43: 0 | CA43: n/a | CB43: n/a
A44: 8338 | B44: =+masterfile!D1249 -> 8338 Nicht steuerbare Umsätze Drittland | D44: =-VLOOKUP($A44,'pl-data'!$A:$BQ,8+D$3) ->  | E44: =-VLOOKUP($A44,'pl-data'!$A:$BQ,38+E$3) ->  | F44: =-VLOOKUP($A44,'pl-data'!$A:$BQ,23+F$3) -> 0 | G44: n/a | H44: n/a | J44: =-VLOOKUP($A44,'pl-data'!$A:$BQ,8+J$3) ->  | K44: =-VLOOKUP($A44,'pl-data'!$A:$BQ,38+K$3) ->  | L44: =-VLOOKUP($A44,'pl-data'!$A:$BQ,23+L$3) -> 0 | M44: n/a | N44: n/a | P44: =-VLOOKUP($A44,'pl-data'!$A:$BQ,8+P$3) ->  | Q44: =-VLOOKUP($A44,'pl-data'!$A:$BQ,38+Q$3) ->  | R44: =-VLOOKUP($A44,'pl-data'!$A:$BQ,23+R$3) -> 0 | S44: n/a | T44: n/a | V44: =-VLOOKUP($A44,'pl-data'!$A:$BQ,8+V$3) ->  | W44: =-VLOOKUP($A44,'pl-data'!$A:$BQ,38+W$3) ->  | X44: =-VLOOKUP($A44,'pl-data'!$A:$BQ,23+X$3) -> 0 | Y44: n/a | Z44: n/a | AB44: =-VLOOKUP($A44,'pl-data'!$A:$BQ,8+AB$3) ->  | AC44: =-VLOOKUP($A44,'pl-data'!$A:$BQ,38+AC$3) ->  | AD44: =-VLOOKUP($A44,'pl-data'!$A:$BQ,23+AD$3) -> 0 | AE44: n/a | AF44: n/a | AH44: =-VLOOKUP($A44,'pl-data'!$A:$BQ,8+AH$3) ->  | AI44: =-VLOOKUP($A44,'pl-data'!$A:$BQ,38+AI$3) ->  | AJ44: =-VLOOKUP($A44,'pl-data'!$A:$BQ,23+AJ$3) -> 0 | AK44: n/a | AL44: n/a | AN44: =-VLOOKUP($A44,'pl-data'!$A:$BQ,8+AN$3) ->  | AO44: =-VLOOKUP($A44,'pl-data'!$A:$BQ,38+AO$3) ->  | AP44: =-VLOOKUP($A44,'pl-data'!$A:$BQ,23+AP$3) -> 0 | AQ44: n/a | AR44: n/a | AT44: =-VLOOKUP($A44,'pl-data'!$A:$BQ,8+AT$3) ->  | AU44: =-VLOOKUP($A44,'pl-data'!$A:$BQ,38+AU$3) ->  | AV44: =-VLOOKUP($A44,'pl-data'!$A:$BQ,23+AV$3) -> 0 | AW44: n/a | AX44: n/a | AZ44: =-VLOOKUP($A44,'pl-data'!$A:$BQ,8+AZ$3) ->  | BA44: =-VLOOKUP($A44,'pl-data'!$A:$BQ,38+BA$3) ->  | BB44: =-VLOOKUP($A44,'pl-data'!$A:$BQ,23+BB$3) -> 0 | BC44: n/a | BD44: n/a | BF44: =-VLOOKUP($A44,'pl-data'!$A:$BQ,8+BF$3) ->  | BG44: =-VLOOKUP($A44,'pl-data'!$A:$BQ,38+BG$3) ->  | BH44: =-VLOOKUP($A44,'pl-data'!$A:$BQ,23+BH$3) -> 0 | BI44: n/a | BJ44: n/a | BL44: =-VLOOKUP($A44,'pl-data'!$A:$BQ,8+BL$3) ->  | BM44: =-VLOOKUP($A44,'pl-data'!$A:$BQ,38+BM$3) ->  | BN44: =-VLOOKUP($A44,'pl-data'!$A:$BQ,23+BN$3) -> 0 | BO44: n/a | BP44: n/a | BR44: =-VLOOKUP($A44,'pl-data'!$A:$BQ,8+BR$3) ->  | BS44: =-VLOOKUP($A44,'pl-data'!$A:$BQ,38+BS$3) ->  | BT44: =-VLOOKUP($A44,'pl-data'!$A:$BQ,23+BT$3) -> 0 | BU44: n/a | BV44: n/a | BZ44: 0 | CA44: n/a | CB44: n/a
A45: 8339 | B45: =+masterfile!D1250 -> 8339 Nicht steuerbare Umsätze EU-Land | D45: =-VLOOKUP($A45,'pl-data'!$A:$BQ,8+D$3) ->  | E45: =-VLOOKUP($A45,'pl-data'!$A:$BQ,38+E$3) ->  | F45: =-VLOOKUP($A45,'pl-data'!$A:$BQ,23+F$3) -> 0 | G45: n/a | H45: n/a | J45: =-VLOOKUP($A45,'pl-data'!$A:$BQ,8+J$3) ->  | K45: =-VLOOKUP($A45,'pl-data'!$A:$BQ,38+K$3) ->  | L45: =-VLOOKUP($A45,'pl-data'!$A:$BQ,23+L$3) -> 0 | M45: n/a | N45: n/a | P45: =-VLOOKUP($A45,'pl-data'!$A:$BQ,8+P$3) ->  | Q45: =-VLOOKUP($A45,'pl-data'!$A:$BQ,38+Q$3) ->  | R45: =-VLOOKUP($A45,'pl-data'!$A:$BQ,23+R$3) -> 0 | S45: n/a | T45: n/a | V45: =-VLOOKUP($A45,'pl-data'!$A:$BQ,8+V$3) ->  | W45: =-VLOOKUP($A45,'pl-data'!$A:$BQ,38+W$3) ->  | X45: =-VLOOKUP($A45,'pl-data'!$A:$BQ,23+X$3) -> 0 | Y45: n/a | Z45: n/a | AB45: =-VLOOKUP($A45,'pl-data'!$A:$BQ,8+AB$3) ->  | AC45: =-VLOOKUP($A45,'pl-data'!$A:$BQ,38+AC$3) ->  | AD45: =-VLOOKUP($A45,'pl-data'!$A:$BQ,23+AD$3) -> 0 | AE45: n/a | AF45: n/a | AH45: =-VLOOKUP($A45,'pl-data'!$A:$BQ,8+AH$3) ->  | AI45: =-VLOOKUP($A45,'pl-data'!$A:$BQ,38+AI$3) ->  | AJ45: =-VLOOKUP($A45,'pl-data'!$A:$BQ,23+AJ$3) -> 0 | AK45: n/a | AL45: n/a | AN45: =-VLOOKUP($A45,'pl-data'!$A:$BQ,8+AN$3) ->  | AO45: =-VLOOKUP($A45,'pl-data'!$A:$BQ,38+AO$3) ->  | AP45: =-VLOOKUP($A45,'pl-data'!$A:$BQ,23+AP$3) -> 0 | AQ45: n/a | AR45: n/a | AT45: =-VLOOKUP($A45,'pl-data'!$A:$BQ,8+AT$3) ->  | AU45: =-VLOOKUP($A45,'pl-data'!$A:$BQ,38+AU$3) ->  | AV45: =-VLOOKUP($A45,'pl-data'!$A:$BQ,23+AV$3) -> 0 | AW45: n/a | AX45: n/a | AZ45: =-VLOOKUP($A45,'pl-data'!$A:$BQ,8+AZ$3) ->  | BA45: =-VLOOKUP($A45,'pl-data'!$A:$BQ,38+BA$3) ->  | BB45: =-VLOOKUP($A45,'pl-data'!$A:$BQ,23+BB$3) -> 0 | BC45: n/a | BD45: n/a | BF45: =-VLOOKUP($A45,'pl-data'!$A:$BQ,8+BF$3) ->  | BG45: =-VLOOKUP($A45,'pl-data'!$A:$BQ,38+BG$3) ->  | BH45: =-VLOOKUP($A45,'pl-data'!$A:$BQ,23+BH$3) -> 0 | BI45: n/a | BJ45: n/a | BL45: =-VLOOKUP($A45,'pl-data'!$A:$BQ,8+BL$3) ->  | BM45: =-VLOOKUP($A45,'pl-data'!$A:$BQ,38+BM$3) ->  | BN45: =-VLOOKUP($A45,'pl-data'!$A:$BQ,23+BN$3) -> 0 | BO45: n/a | BP45: n/a | BR45: =-VLOOKUP($A45,'pl-data'!$A:$BQ,8+BR$3) ->  | BS45: =-VLOOKUP($A45,'pl-data'!$A:$BQ,38+BS$3) ->  | BT45: =-VLOOKUP($A45,'pl-data'!$A:$BQ,23+BT$3) -> 0 | BU45: n/a | BV45: n/a | BZ45: 0 | CA45: n/a | CB45: n/a
A46: 8340 | B46: =+masterfile!D1251 -> 8340 Erlöse 16% USt | D46: =-VLOOKUP($A46,'pl-data'!$A:$BQ,8+D$3) ->  | E46: =-VLOOKUP($A46,'pl-data'!$A:$BQ,38+E$3) ->  | F46: =-VLOOKUP($A46,'pl-data'!$A:$BQ,23+F$3) -> 0 | G46: n/a | H46: n/a | J46: =-VLOOKUP($A46,'pl-data'!$A:$BQ,8+J$3) ->  | K46: =-VLOOKUP($A46,'pl-data'!$A:$BQ,38+K$3) ->  | L46: =-VLOOKUP($A46,'pl-data'!$A:$BQ,23+L$3) -> 0 | M46: n/a | N46: n/a | P46: =-VLOOKUP($A46,'pl-data'!$A:$BQ,8+P$3) ->  | Q46: =-VLOOKUP($A46,'pl-data'!$A:$BQ,38+Q$3) ->  | R46: =-VLOOKUP($A46,'pl-data'!$A:$BQ,23+R$3) -> 0 | S46: n/a | T46: n/a | V46: =-VLOOKUP($A46,'pl-data'!$A:$BQ,8+V$3) ->  | W46: =-VLOOKUP($A46,'pl-data'!$A:$BQ,38+W$3) ->  | X46: =-VLOOKUP($A46,'pl-data'!$A:$BQ,23+X$3) -> 0 | Y46: n/a | Z46: n/a | AB46: =-VLOOKUP($A46,'pl-data'!$A:$BQ,8+AB$3) ->  | AC46: =-VLOOKUP($A46,'pl-data'!$A:$BQ,38+AC$3) ->  | AD46: =-VLOOKUP($A46,'pl-data'!$A:$BQ,23+AD$3) -> 0 | AE46: n/a | AF46: n/a | AH46: =-VLOOKUP($A46,'pl-data'!$A:$BQ,8+AH$3) ->  | AI46: =-VLOOKUP($A46,'pl-data'!$A:$BQ,38+AI$3) ->  | AJ46: =-VLOOKUP($A46,'pl-data'!$A:$BQ,23+AJ$3) -> 0 | AK46: n/a | AL46: n/a | AN46: =-VLOOKUP($A46,'pl-data'!$A:$BQ,8+AN$3) ->  | AO46: =-VLOOKUP($A46,'pl-data'!$A:$BQ,38+AO$3) ->  | AP46: =-VLOOKUP($A46,'pl-data'!$A:$BQ,23+AP$3) -> 0 | AQ46: n/a | AR46: n/a | AT46: =-VLOOKUP($A46,'pl-data'!$A:$BQ,8+AT$3) ->  | AU46: =-VLOOKUP($A46,'pl-data'!$A:$BQ,38+AU$3) ->  | AV46: =-VLOOKUP($A46,'pl-data'!$A:$BQ,23+AV$3) -> 0 | AW46: n/a | AX46: n/a | AZ46: =-VLOOKUP($A46,'pl-data'!$A:$BQ,8+AZ$3) ->  | BA46: =-VLOOKUP($A46,'pl-data'!$A:$BQ,38+BA$3) ->  | BB46: =-VLOOKUP($A46,'pl-data'!$A:$BQ,23+BB$3) -> 0 | BC46: n/a | BD46: n/a | BF46: =-VLOOKUP($A46,'pl-data'!$A:$BQ,8+BF$3) ->  | BG46: =-VLOOKUP($A46,'pl-data'!$A:$BQ,38+BG$3) ->  | BH46: =-VLOOKUP($A46,'pl-data'!$A:$BQ,23+BH$3) -> 0 | BI46: n/a | BJ46: n/a | BL46: =-VLOOKUP($A46,'pl-data'!$A:$BQ,8+BL$3) ->  | BM46: =-VLOOKUP($A46,'pl-data'!$A:$BQ,38+BM$3) ->  | BN46: =-VLOOKUP($A46,'pl-data'!$A:$BQ,23+BN$3) -> 0 | BO46: n/a | BP46: n/a | BR46: =-VLOOKUP($A46,'pl-data'!$A:$BQ,8+BR$3) ->  | BS46: =-VLOOKUP($A46,'pl-data'!$A:$BQ,38+BS$3) ->  | BT46: =-VLOOKUP($A46,'pl-data'!$A:$BQ,23+BT$3) -> 0 | BU46: n/a | BV46: n/a | BZ46: 0 | CA46: n/a | CB46: n/a
A47: 8400 | B47: =+masterfile!D1252 -> 8400 Erlöse 19% USt | D47: =-VLOOKUP($A47,'pl-data'!$A:$BQ,8+D$3) ->  | E47: =-VLOOKUP($A47,'pl-data'!$A:$BQ,38+E$3) ->  | F47: =-VLOOKUP($A47,'pl-data'!$A:$BQ,23+F$3) -> 0 | G47: n/a | H47: n/a | J47: =-VLOOKUP($A47,'pl-data'!$A:$BQ,8+J$3) ->  | K47: =-VLOOKUP($A47,'pl-data'!$A:$BQ,38+K$3) ->  | L47: =-VLOOKUP($A47,'pl-data'!$A:$BQ,23+L$3) -> 0 | M47: n/a | N47: n/a | P47: =-VLOOKUP($A47,'pl-data'!$A:$BQ,8+P$3) ->  | Q47: =-VLOOKUP($A47,'pl-data'!$A:$BQ,38+Q$3) ->  | R47: =-VLOOKUP($A47,'pl-data'!$A:$BQ,23+R$3) -> 0 | S47: n/a | T47: n/a | V47: =-VLOOKUP($A47,'pl-data'!$A:$BQ,8+V$3) ->  | W47: =-VLOOKUP($A47,'pl-data'!$A:$BQ,38+W$3) ->  | X47: =-VLOOKUP($A47,'pl-data'!$A:$BQ,23+X$3) -> 0 | Y47: n/a | Z47: n/a | AB47: =-VLOOKUP($A47,'pl-data'!$A:$BQ,8+AB$3) ->  | AC47: =-VLOOKUP($A47,'pl-data'!$A:$BQ,38+AC$3) ->  | AD47: =-VLOOKUP($A47,'pl-data'!$A:$BQ,23+AD$3) -> 0 | AE47: n/a | AF47: n/a | AH47: =-VLOOKUP($A47,'pl-data'!$A:$BQ,8+AH$3) ->  | AI47: =-VLOOKUP($A47,'pl-data'!$A:$BQ,38+AI$3) ->  | AJ47: =-VLOOKUP($A47,'pl-data'!$A:$BQ,23+AJ$3) -> 0 | AK47: n/a | AL47: n/a | AN47: =-VLOOKUP($A47,'pl-data'!$A:$BQ,8+AN$3) ->  | AO47: =-VLOOKUP($A47,'pl-data'!$A:$BQ,38+AO$3) ->  | AP47: =-VLOOKUP($A47,'pl-data'!$A:$BQ,23+AP$3) -> 0 | AQ47: n/a | AR47: n/a | AT47: =-VLOOKUP($A47,'pl-data'!$A:$BQ,8+AT$3) ->  | AU47: =-VLOOKUP($A47,'pl-data'!$A:$BQ,38+AU$3) ->  | AV47: =-VLOOKUP($A47,'pl-data'!$A:$BQ,23+AV$3) -> 0 | AW47: n/a | AX47: n/a | AZ47: =-VLOOKUP($A47,'pl-data'!$A:$BQ,8+AZ$3) ->  | BA47: =-VLOOKUP($A47,'pl-data'!$A:$BQ,38+BA$3) ->  | BB47: =-VLOOKUP($A47,'pl-data'!$A:$BQ,23+BB$3) -> 0 | BC47: n/a | BD47: n/a | BF47: =-VLOOKUP($A47,'pl-data'!$A:$BQ,8+BF$3) ->  | BG47: =-VLOOKUP($A47,'pl-data'!$A:$BQ,38+BG$3) ->  | BH47: =-VLOOKUP($A47,'pl-data'!$A:$BQ,23+BH$3) -> 0 | BI47: n/a | BJ47: n/a | BL47: =-VLOOKUP($A47,'pl-data'!$A:$BQ,8+BL$3) ->  | BM47: =-VLOOKUP($A47,'pl-data'!$A:$BQ,38+BM$3) ->  | BN47: =-VLOOKUP($A47,'pl-data'!$A:$BQ,23+BN$3) -> 0 | BO47: n/a | BP47: n/a | BR47: =-VLOOKUP($A47,'pl-data'!$A:$BQ,8+BR$3) ->  | BS47: =-VLOOKUP($A47,'pl-data'!$A:$BQ,38+BS$3) ->  | BT47: =-VLOOKUP($A47,'pl-data'!$A:$BQ,23+BT$3) -> 0 | BU47: n/a | BV47: n/a | BZ47: 0 | CA47: n/a | CB47: n/a
A48: 8401 | B48: =+masterfile!D1253 -> 8401 Erlöse 19% USt | D48: =-VLOOKUP($A48,'pl-data'!$A:$BQ,8+D$3) ->  | E48: =-VLOOKUP($A48,'pl-data'!$A:$BQ,38+E$3) ->  | F48: =-VLOOKUP($A48,'pl-data'!$A:$BQ,23+F$3) -> 0 | G48: n/a | H48: n/a | J48: =-VLOOKUP($A48,'pl-data'!$A:$BQ,8+J$3) ->  | K48: =-VLOOKUP($A48,'pl-data'!$A:$BQ,38+K$3) ->  | L48: =-VLOOKUP($A48,'pl-data'!$A:$BQ,23+L$3) -> 0 | M48: n/a | N48: n/a | P48: =-VLOOKUP($A48,'pl-data'!$A:$BQ,8+P$3) ->  | Q48: =-VLOOKUP($A48,'pl-data'!$A:$BQ,38+Q$3) ->  | R48: =-VLOOKUP($A48,'pl-data'!$A:$BQ,23+R$3) -> 0 | S48: n/a | T48: n/a | V48: =-VLOOKUP($A48,'pl-data'!$A:$BQ,8+V$3) ->  | W48: =-VLOOKUP($A48,'pl-data'!$A:$BQ,38+W$3) ->  | X48: =-VLOOKUP($A48,'pl-data'!$A:$BQ,23+X$3) -> 0 | Y48: n/a | Z48: n/a | AB48: =-VLOOKUP($A48,'pl-data'!$A:$BQ,8+AB$3) ->  | AC48: =-VLOOKUP($A48,'pl-data'!$A:$BQ,38+AC$3) ->  | AD48: =-VLOOKUP($A48,'pl-data'!$A:$BQ,23+AD$3) -> 0 | AE48: n/a | AF48: n/a | AH48: =-VLOOKUP($A48,'pl-data'!$A:$BQ,8+AH$3) ->  | AI48: =-VLOOKUP($A48,'pl-data'!$A:$BQ,38+AI$3) ->  | AJ48: =-VLOOKUP($A48,'pl-data'!$A:$BQ,23+AJ$3) -> 0 | AK48: n/a | AL48: n/a | AN48: =-VLOOKUP($A48,'pl-data'!$A:$BQ,8+AN$3) ->  | AO48: =-VLOOKUP($A48,'pl-data'!$A:$BQ,38+AO$3) ->  | AP48: =-VLOOKUP($A48,'pl-data'!$A:$BQ,23+AP$3) -> 0 | AQ48: n/a | AR48: n/a | AT48: =-VLOOKUP($A48,'pl-data'!$A:$BQ,8+AT$3) ->  | AU48: =-VLOOKUP($A48,'pl-data'!$A:$BQ,38+AU$3) ->  | AV48: =-VLOOKUP($A48,'pl-data'!$A:$BQ,23+AV$3) -> 0 | AW48: n/a | AX48: n/a | AZ48: =-VLOOKUP($A48,'pl-data'!$A:$BQ,8+AZ$3) ->  | BA48: =-VLOOKUP($A48,'pl-data'!$A:$BQ,38+BA$3) ->  | BB48: =-VLOOKUP($A48,'pl-data'!$A:$BQ,23+BB$3) -> 0 | BC48: n/a | BD48: n/a | BF48: =-VLOOKUP($A48,'pl-data'!$A:$BQ,8+BF$3) ->  | BG48: =-VLOOKUP($A48,'pl-data'!$A:$BQ,38+BG$3) ->  | BH48: =-VLOOKUP($A48,'pl-data'!$A:$BQ,23+BH$3) -> 0 | BI48: n/a | BJ48: n/a | BL48: =-VLOOKUP($A48,'pl-data'!$A:$BQ,8+BL$3) ->  | BM48: =-VLOOKUP($A48,'pl-data'!$A:$BQ,38+BM$3) ->  | BN48: =-VLOOKUP($A48,'pl-data'!$A:$BQ,23+BN$3) -> 0 | BO48: n/a | BP48: n/a | BR48: =-VLOOKUP($A48,'pl-data'!$A:$BQ,8+BR$3) ->  | BS48: =-VLOOKUP($A48,'pl-data'!$A:$BQ,38+BS$3) ->  | BT48: =-VLOOKUP($A48,'pl-data'!$A:$BQ,23+BT$3) -> 0 | BU48: n/a | BV48: n/a | BZ48: 0 | CA48: n/a | CB48: n/a
A49: 8402 | B49: =+masterfile!D1254 -> 8402 Erlöse 19% USt | D49: =-VLOOKUP($A49,'pl-data'!$A:$BQ,8+D$3) ->  | E49: =-VLOOKUP($A49,'pl-data'!$A:$BQ,38+E$3) ->  | F49: =-VLOOKUP($A49,'pl-data'!$A:$BQ,23+F$3) -> 0 | G49: n/a | H49: n/a | J49: =-VLOOKUP($A49,'pl-data'!$A:$BQ,8+J$3) ->  | K49: =-VLOOKUP($A49,'pl-data'!$A:$BQ,38+K$3) ->  | L49: =-VLOOKUP($A49,'pl-data'!$A:$BQ,23+L$3) -> 0 | M49: n/a | N49: n/a | P49: =-VLOOKUP($A49,'pl-data'!$A:$BQ,8+P$3) ->  | Q49: =-VLOOKUP($A49,'pl-data'!$A:$BQ,38+Q$3) ->  | R49: =-VLOOKUP($A49,'pl-data'!$A:$BQ,23+R$3) -> 0 | S49: n/a | T49: n/a | V49: =-VLOOKUP($A49,'pl-data'!$A:$BQ,8+V$3) ->  | W49: =-VLOOKUP($A49,'pl-data'!$A:$BQ,38+W$3) ->  | X49: =-VLOOKUP($A49,'pl-data'!$A:$BQ,23+X$3) -> 0 | Y49: n/a | Z49: n/a | AB49: =-VLOOKUP($A49,'pl-data'!$A:$BQ,8+AB$3) ->  | AC49: =-VLOOKUP($A49,'pl-data'!$A:$BQ,38+AC$3) ->  | AD49: =-VLOOKUP($A49,'pl-data'!$A:$BQ,23+AD$3) -> 0 | AE49: n/a | AF49: n/a | AH49: =-VLOOKUP($A49,'pl-data'!$A:$BQ,8+AH$3) ->  | AI49: =-VLOOKUP($A49,'pl-data'!$A:$BQ,38+AI$3) ->  | AJ49: =-VLOOKUP($A49,'pl-data'!$A:$BQ,23+AJ$3) -> 0 | AK49: n/a | AL49: n/a | AN49: =-VLOOKUP($A49,'pl-data'!$A:$BQ,8+AN$3) ->  | AO49: =-VLOOKUP($A49,'pl-data'!$A:$BQ,38+AO$3) ->  | AP49: =-VLOOKUP($A49,'pl-data'!$A:$BQ,23+AP$3) -> 0 | AQ49: n/a | AR49: n/a | AT49: =-VLOOKUP($A49,'pl-data'!$A:$BQ,8+AT$3) ->  | AU49: =-VLOOKUP($A49,'pl-data'!$A:$BQ,38+AU$3) ->  | AV49: =-VLOOKUP($A49,'pl-data'!$A:$BQ,23+AV$3) -> 0 | AW49: n/a | AX49: n/a | AZ49: =-VLOOKUP($A49,'pl-data'!$A:$BQ,8+AZ$3) ->  | BA49: =-VLOOKUP($A49,'pl-data'!$A:$BQ,38+BA$3) ->  | BB49: =-VLOOKUP($A49,'pl-data'!$A:$BQ,23+BB$3) -> 0 | BC49: n/a | BD49: n/a | BF49: =-VLOOKUP($A49,'pl-data'!$A:$BQ,8+BF$3) ->  | BG49: =-VLOOKUP($A49,'pl-data'!$A:$BQ,38+BG$3) ->  | BH49: =-VLOOKUP($A49,'pl-data'!$A:$BQ,23+BH$3) -> 0 | BI49: n/a | BJ49: n/a | BL49: =-VLOOKUP($A49,'pl-data'!$A:$BQ,8+BL$3) ->  | BM49: =-VLOOKUP($A49,'pl-data'!$A:$BQ,38+BM$3) ->  | BN49: =-VLOOKUP($A49,'pl-data'!$A:$BQ,23+BN$3) -> 0 | BO49: n/a | BP49: n/a | BR49: =-VLOOKUP($A49,'pl-data'!$A:$BQ,8+BR$3) ->  | BS49: =-VLOOKUP($A49,'pl-data'!$A:$BQ,38+BS$3) ->  | BT49: =-VLOOKUP($A49,'pl-data'!$A:$BQ,23+BT$3) -> 0 | BU49: n/a | BV49: n/a | BZ49: 0 | CA49: n/a | CB49: n/a
A50: 8403 | B50: =+masterfile!D1255 -> 8403 Erlöse 19% USt | D50: =-VLOOKUP($A50,'pl-data'!$A:$BQ,8+D$3) ->  | E50: =-VLOOKUP($A50,'pl-data'!$A:$BQ,38+E$3) ->  | F50: =-VLOOKUP($A50,'pl-data'!$A:$BQ,23+F$3) -> 0 | G50: n/a | H50: n/a | J50: =-VLOOKUP($A50,'pl-data'!$A:$BQ,8+J$3) ->  | K50: =-VLOOKUP($A50,'pl-data'!$A:$BQ,38+K$3) ->  | L50: =-VLOOKUP($A50,'pl-data'!$A:$BQ,23+L$3) -> 0 | M50: n/a | N50: n/a | P50: =-VLOOKUP($A50,'pl-data'!$A:$BQ,8+P$3) ->  | Q50: =-VLOOKUP($A50,'pl-data'!$A:$BQ,38+Q$3) ->  | R50: =-VLOOKUP($A50,'pl-data'!$A:$BQ,23+R$3) -> 0 | S50: n/a | T50: n/a | V50: =-VLOOKUP($A50,'pl-data'!$A:$BQ,8+V$3) ->  | W50: =-VLOOKUP($A50,'pl-data'!$A:$BQ,38+W$3) ->  | X50: =-VLOOKUP($A50,'pl-data'!$A:$BQ,23+X$3) -> 0 | Y50: n/a | Z50: n/a | AB50: =-VLOOKUP($A50,'pl-data'!$A:$BQ,8+AB$3) ->  | AC50: =-VLOOKUP($A50,'pl-data'!$A:$BQ,38+AC$3) ->  | AD50: =-VLOOKUP($A50,'pl-data'!$A:$BQ,23+AD$3) -> 0 | AE50: n/a | AF50: n/a | AH50: =-VLOOKUP($A50,'pl-data'!$A:$BQ,8+AH$3) ->  | AI50: =-VLOOKUP($A50,'pl-data'!$A:$BQ,38+AI$3) ->  | AJ50: =-VLOOKUP($A50,'pl-data'!$A:$BQ,23+AJ$3) -> 0 | AK50: n/a | AL50: n/a | AN50: =-VLOOKUP($A50,'pl-data'!$A:$BQ,8+AN$3) ->  | AO50: =-VLOOKUP($A50,'pl-data'!$A:$BQ,38+AO$3) ->  | AP50: =-VLOOKUP($A50,'pl-data'!$A:$BQ,23+AP$3) -> 0 | AQ50: n/a | AR50: n/a | AT50: =-VLOOKUP($A50,'pl-data'!$A:$BQ,8+AT$3) ->  | AU50: =-VLOOKUP($A50,'pl-data'!$A:$BQ,38+AU$3) ->  | AV50: =-VLOOKUP($A50,'pl-data'!$A:$BQ,23+AV$3) -> 0 | AW50: n/a | AX50: n/a | AZ50: =-VLOOKUP($A50,'pl-data'!$A:$BQ,8+AZ$3) ->  | BA50: =-VLOOKUP($A50,'pl-data'!$A:$BQ,38+BA$3) ->  | BB50: =-VLOOKUP($A50,'pl-data'!$A:$BQ,23+BB$3) -> 0 | BC50: n/a | BD50: n/a | BF50: =-VLOOKUP($A50,'pl-data'!$A:$BQ,8+BF$3) ->  | BG50: =-VLOOKUP($A50,'pl-data'!$A:$BQ,38+BG$3) ->  | BH50: =-VLOOKUP($A50,'pl-data'!$A:$BQ,23+BH$3) -> 0 | BI50: n/a | BJ50: n/a | BL50: =-VLOOKUP($A50,'pl-data'!$A:$BQ,8+BL$3) ->  | BM50: =-VLOOKUP($A50,'pl-data'!$A:$BQ,38+BM$3) ->  | BN50: =-VLOOKUP($A50,'pl-data'!$A:$BQ,23+BN$3) -> 0 | BO50: n/a | BP50: n/a | BR50: =-VLOOKUP($A50,'pl-data'!$A:$BQ,8+BR$3) ->  | BS50: =-VLOOKUP($A50,'pl-data'!$A:$BQ,38+BS$3) ->  | BT50: =-VLOOKUP($A50,'pl-data'!$A:$BQ,23+BT$3) -> 0 | BU50: n/a | BV50: n/a | BZ50: 0 | CA50: n/a | CB50: n/a
A51: 8404 | B51: =+masterfile!D1256 -> 8404 Erlöse 19% USt | D51: =-VLOOKUP($A51,'pl-data'!$A:$BQ,8+D$3) ->  | E51: =-VLOOKUP($A51,'pl-data'!$A:$BQ,38+E$3) ->  | F51: =-VLOOKUP($A51,'pl-data'!$A:$BQ,23+F$3) -> 0 | G51: n/a | H51: n/a | J51: =-VLOOKUP($A51,'pl-data'!$A:$BQ,8+J$3) ->  | K51: =-VLOOKUP($A51,'pl-data'!$A:$BQ,38+K$3) ->  | L51: =-VLOOKUP($A51,'pl-data'!$A:$BQ,23+L$3) -> 0 | M51: n/a | N51: n/a | P51: =-VLOOKUP($A51,'pl-data'!$A:$BQ,8+P$3) ->  | Q51: =-VLOOKUP($A51,'pl-data'!$A:$BQ,38+Q$3) ->  | R51: =-VLOOKUP($A51,'pl-data'!$A:$BQ,23+R$3) -> 0 | S51: n/a | T51: n/a | V51: =-VLOOKUP($A51,'pl-data'!$A:$BQ,8+V$3) ->  | W51: =-VLOOKUP($A51,'pl-data'!$A:$BQ,38+W$3) ->  | X51: =-VLOOKUP($A51,'pl-data'!$A:$BQ,23+X$3) -> 0 | Y51: n/a | Z51: n/a | AB51: =-VLOOKUP($A51,'pl-data'!$A:$BQ,8+AB$3) ->  | AC51: =-VLOOKUP($A51,'pl-data'!$A:$BQ,38+AC$3) ->  | AD51: =-VLOOKUP($A51,'pl-data'!$A:$BQ,23+AD$3) -> 0 | AE51: n/a | AF51: n/a | AH51: =-VLOOKUP($A51,'pl-data'!$A:$BQ,8+AH$3) ->  | AI51: =-VLOOKUP($A51,'pl-data'!$A:$BQ,38+AI$3) ->  | AJ51: =-VLOOKUP($A51,'pl-data'!$A:$BQ,23+AJ$3) -> 0 | AK51: n/a | AL51: n/a | AN51: =-VLOOKUP($A51,'pl-data'!$A:$BQ,8+AN$3) ->  | AO51: =-VLOOKUP($A51,'pl-data'!$A:$BQ,38+AO$3) ->  | AP51: =-VLOOKUP($A51,'pl-data'!$A:$BQ,23+AP$3) -> 0 | AQ51: n/a | AR51: n/a | AT51: =-VLOOKUP($A51,'pl-data'!$A:$BQ,8+AT$3) ->  | AU51: =-VLOOKUP($A51,'pl-data'!$A:$BQ,38+AU$3) ->  | AV51: =-VLOOKUP($A51,'pl-data'!$A:$BQ,23+AV$3) -> 0 | AW51: n/a | AX51: n/a | AZ51: =-VLOOKUP($A51,'pl-data'!$A:$BQ,8+AZ$3) ->  | BA51: =-VLOOKUP($A51,'pl-data'!$A:$BQ,38+BA$3) ->  | BB51: =-VLOOKUP($A51,'pl-data'!$A:$BQ,23+BB$3) -> 0 | BC51: n/a | BD51: n/a | BF51: =-VLOOKUP($A51,'pl-data'!$A:$BQ,8+BF$3) ->  | BG51: =-VLOOKUP($A51,'pl-data'!$A:$BQ,38+BG$3) ->  | BH51: =-VLOOKUP($A51,'pl-data'!$A:$BQ,23+BH$3) -> 0 | BI51: n/a | BJ51: n/a | BL51: =-VLOOKUP($A51,'pl-data'!$A:$BQ,8+BL$3) ->  | BM51: =-VLOOKUP($A51,'pl-data'!$A:$BQ,38+BM$3) ->  | BN51: =-VLOOKUP($A51,'pl-data'!$A:$BQ,23+BN$3) -> 0 | BO51: n/a | BP51: n/a | BR51: =-VLOOKUP($A51,'pl-data'!$A:$BQ,8+BR$3) ->  | BS51: =-VLOOKUP($A51,'pl-data'!$A:$BQ,38+BS$3) ->  | BT51: =-VLOOKUP($A51,'pl-data'!$A:$BQ,23+BT$3) -> 0 | BU51: n/a | BV51: n/a | BZ51: 0 | CA51: n/a | CB51: n/a
A52: 8405 | B52: =+masterfile!D1257 -> 8405 Erlöse 19% USt | D52: =-VLOOKUP($A52,'pl-data'!$A:$BQ,8+D$3) ->  | E52: =-VLOOKUP($A52,'pl-data'!$A:$BQ,38+E$3) ->  | F52: =-VLOOKUP($A52,'pl-data'!$A:$BQ,23+F$3) -> 0 | G52: n/a | H52: n/a | J52: =-VLOOKUP($A52,'pl-data'!$A:$BQ,8+J$3) ->  | K52: =-VLOOKUP($A52,'pl-data'!$A:$BQ,38+K$3) ->  | L52: =-VLOOKUP($A52,'pl-data'!$A:$BQ,23+L$3) -> 0 | M52: n/a | N52: n/a | P52: =-VLOOKUP($A52,'pl-data'!$A:$BQ,8+P$3) ->  | Q52: =-VLOOKUP($A52,'pl-data'!$A:$BQ,38+Q$3) ->  | R52: =-VLOOKUP($A52,'pl-data'!$A:$BQ,23+R$3) -> 0 | S52: n/a | T52: n/a | V52: =-VLOOKUP($A52,'pl-data'!$A:$BQ,8+V$3) ->  | W52: =-VLOOKUP($A52,'pl-data'!$A:$BQ,38+W$3) ->  | X52: =-VLOOKUP($A52,'pl-data'!$A:$BQ,23+X$3) -> 0 | Y52: n/a | Z52: n/a | AB52: =-VLOOKUP($A52,'pl-data'!$A:$BQ,8+AB$3) ->  | AC52: =-VLOOKUP($A52,'pl-data'!$A:$BQ,38+AC$3) ->  | AD52: =-VLOOKUP($A52,'pl-data'!$A:$BQ,23+AD$3) -> 0 | AE52: n/a | AF52: n/a | AH52: =-VLOOKUP($A52,'pl-data'!$A:$BQ,8+AH$3) ->  | AI52: =-VLOOKUP($A52,'pl-data'!$A:$BQ,38+AI$3) ->  | AJ52: =-VLOOKUP($A52,'pl-data'!$A:$BQ,23+AJ$3) -> 0 | AK52: n/a | AL52: n/a | AN52: =-VLOOKUP($A52,'pl-data'!$A:$BQ,8+AN$3) ->  | AO52: =-VLOOKUP($A52,'pl-data'!$A:$BQ,38+AO$3) ->  | AP52: =-VLOOKUP($A52,'pl-data'!$A:$BQ,23+AP$3) -> 0 | AQ52: n/a | AR52: n/a | AT52: =-VLOOKUP($A52,'pl-data'!$A:$BQ,8+AT$3) ->  | AU52: =-VLOOKUP($A52,'pl-data'!$A:$BQ,38+AU$3) ->  | AV52: =-VLOOKUP($A52,'pl-data'!$A:$BQ,23+AV$3) -> 0 | AW52: n/a | AX52: n/a | AZ52: =-VLOOKUP($A52,'pl-data'!$A:$BQ,8+AZ$3) ->  | BA52: =-VLOOKUP($A52,'pl-data'!$A:$BQ,38+BA$3) ->  | BB52: =-VLOOKUP($A52,'pl-data'!$A:$BQ,23+BB$3) -> 0 | BC52: n/a | BD52: n/a | BF52: =-VLOOKUP($A52,'pl-data'!$A:$BQ,8+BF$3) ->  | BG52: =-VLOOKUP($A52,'pl-data'!$A:$BQ,38+BG$3) ->  | BH52: =-VLOOKUP($A52,'pl-data'!$A:$BQ,23+BH$3) -> 0 | BI52: n/a | BJ52: n/a | BL52: =-VLOOKUP($A52,'pl-data'!$A:$BQ,8+BL$3) ->  | BM52: =-VLOOKUP($A52,'pl-data'!$A:$BQ,38+BM$3) ->  | BN52: =-VLOOKUP($A52,'pl-data'!$A:$BQ,23+BN$3) -> 0 | BO52: n/a | BP52: n/a | BR52: =-VLOOKUP($A52,'pl-data'!$A:$BQ,8+BR$3) ->  | BS52: =-VLOOKUP($A52,'pl-data'!$A:$BQ,38+BS$3) ->  | BT52: =-VLOOKUP($A52,'pl-data'!$A:$BQ,23+BT$3) -> 0 | BU52: n/a | BV52: n/a | BZ52: 0 | CA52: n/a | CB52: n/a
A53: 8405 | B53: =+masterfile!D1258 -> 8405 Erlöse 19% USt | D53: =-VLOOKUP($A53,'pl-data'!$A:$BQ,8+D$3) ->  | E53: =-VLOOKUP($A53,'pl-data'!$A:$BQ,38+E$3) ->  | F53: =-VLOOKUP($A53,'pl-data'!$A:$BQ,23+F$3) -> 0 | G53: n/a | H53: n/a | J53: =-VLOOKUP($A53,'pl-data'!$A:$BQ,8+J$3) ->  | K53: =-VLOOKUP($A53,'pl-data'!$A:$BQ,38+K$3) ->  | L53: =-VLOOKUP($A53,'pl-data'!$A:$BQ,23+L$3) -> 0 | M53: n/a | N53: n/a | P53: =-VLOOKUP($A53,'pl-data'!$A:$BQ,8+P$3) ->  | Q53: =-VLOOKUP($A53,'pl-data'!$A:$BQ,38+Q$3) ->  | R53: =-VLOOKUP($A53,'pl-data'!$A:$BQ,23+R$3) -> 0 | S53: n/a | T53: n/a | V53: =-VLOOKUP($A53,'pl-data'!$A:$BQ,8+V$3) ->  | W53: =-VLOOKUP($A53,'pl-data'!$A:$BQ,38+W$3) ->  | X53: =-VLOOKUP($A53,'pl-data'!$A:$BQ,23+X$3) -> 0 | Y53: n/a | Z53: n/a | AB53: =-VLOOKUP($A53,'pl-data'!$A:$BQ,8+AB$3) ->  | AC53: =-VLOOKUP($A53,'pl-data'!$A:$BQ,38+AC$3) ->  | AD53: =-VLOOKUP($A53,'pl-data'!$A:$BQ,23+AD$3) -> 0 | AE53: n/a | AF53: n/a | AH53: =-VLOOKUP($A53,'pl-data'!$A:$BQ,8+AH$3) ->  | AI53: =-VLOOKUP($A53,'pl-data'!$A:$BQ,38+AI$3) ->  | AJ53: =-VLOOKUP($A53,'pl-data'!$A:$BQ,23+AJ$3) -> 0 | AK53: n/a | AL53: n/a | AN53: =-VLOOKUP($A53,'pl-data'!$A:$BQ,8+AN$3) ->  | AO53: =-VLOOKUP($A53,'pl-data'!$A:$BQ,38+AO$3) ->  | AP53: =-VLOOKUP($A53,'pl-data'!$A:$BQ,23+AP$3) -> 0 | AQ53: n/a | AR53: n/a | AT53: =-VLOOKUP($A53,'pl-data'!$A:$BQ,8+AT$3) ->  | AU53: =-VLOOKUP($A53,'pl-data'!$A:$BQ,38+AU$3) ->  | AV53: =-VLOOKUP($A53,'pl-data'!$A:$BQ,23+AV$3) -> 0 | AW53: n/a | AX53: n/a | AZ53: =-VLOOKUP($A53,'pl-data'!$A:$BQ,8+AZ$3) ->  | BA53: =-VLOOKUP($A53,'pl-data'!$A:$BQ,38+BA$3) ->  | BB53: =-VLOOKUP($A53,'pl-data'!$A:$BQ,23+BB$3) -> 0 | BC53: n/a | BD53: n/a | BF53: =-VLOOKUP($A53,'pl-data'!$A:$BQ,8+BF$3) ->  | BG53: =-VLOOKUP($A53,'pl-data'!$A:$BQ,38+BG$3) ->  | BH53: =-VLOOKUP($A53,'pl-data'!$A:$BQ,23+BH$3) -> 0 | BI53: n/a | BJ53: n/a | BL53: =-VLOOKUP($A53,'pl-data'!$A:$BQ,8+BL$3) ->  | BM53: =-VLOOKUP($A53,'pl-data'!$A:$BQ,38+BM$3) ->  | BN53: =-VLOOKUP($A53,'pl-data'!$A:$BQ,23+BN$3) -> 0 | BO53: n/a | BP53: n/a | BR53: =-VLOOKUP($A53,'pl-data'!$A:$BQ,8+BR$3) ->  | BS53: =-VLOOKUP($A53,'pl-data'!$A:$BQ,38+BS$3) ->  | BT53: =-VLOOKUP($A53,'pl-data'!$A:$BQ,23+BT$3) -> 0 | BU53: n/a | BV53: n/a | BZ53: 0 | CA53: n/a | CB53: n/a
A54: 8406 | B54: =+masterfile!D1259 -> 8406 Erlöse 19% USt | D54: =-VLOOKUP($A54,'pl-data'!$A:$BQ,8+D$3) ->  | E54: =-VLOOKUP($A54,'pl-data'!$A:$BQ,38+E$3) ->  | F54: =-VLOOKUP($A54,'pl-data'!$A:$BQ,23+F$3) -> 0 | G54: n/a | H54: n/a | J54: =-VLOOKUP($A54,'pl-data'!$A:$BQ,8+J$3) ->  | K54: =-VLOOKUP($A54,'pl-data'!$A:$BQ,38+K$3) ->  | L54: =-VLOOKUP($A54,'pl-data'!$A:$BQ,23+L$3) -> 0 | M54: n/a | N54: n/a | P54: =-VLOOKUP($A54,'pl-data'!$A:$BQ,8+P$3) ->  | Q54: =-VLOOKUP($A54,'pl-data'!$A:$BQ,38+Q$3) ->  | R54: =-VLOOKUP($A54,'pl-data'!$A:$BQ,23+R$3) -> 0 | S54: n/a | T54: n/a | V54: =-VLOOKUP($A54,'pl-data'!$A:$BQ,8+V$3) ->  | W54: =-VLOOKUP($A54,'pl-data'!$A:$BQ,38+W$3) ->  | X54: =-VLOOKUP($A54,'pl-data'!$A:$BQ,23+X$3) -> 0 | Y54: n/a | Z54: n/a | AB54: =-VLOOKUP($A54,'pl-data'!$A:$BQ,8+AB$3) ->  | AC54: =-VLOOKUP($A54,'pl-data'!$A:$BQ,38+AC$3) ->  | AD54: =-VLOOKUP($A54,'pl-data'!$A:$BQ,23+AD$3) -> 0 | AE54: n/a | AF54: n/a | AH54: =-VLOOKUP($A54,'pl-data'!$A:$BQ,8+AH$3) ->  | AI54: =-VLOOKUP($A54,'pl-data'!$A:$BQ,38+AI$3) ->  | AJ54: =-VLOOKUP($A54,'pl-data'!$A:$BQ,23+AJ$3) -> 0 | AK54: n/a | AL54: n/a | AN54: =-VLOOKUP($A54,'pl-data'!$A:$BQ,8+AN$3) ->  | AO54: =-VLOOKUP($A54,'pl-data'!$A:$BQ,38+AO$3) ->  | AP54: =-VLOOKUP($A54,'pl-data'!$A:$BQ,23+AP$3) -> 0 | AQ54: n/a | AR54: n/a | AT54: =-VLOOKUP($A54,'pl-data'!$A:$BQ,8+AT$3) ->  | AU54: =-VLOOKUP($A54,'pl-data'!$A:$BQ,38+AU$3) ->  | AV54: =-VLOOKUP($A54,'pl-data'!$A:$BQ,23+AV$3) -> 0 | AW54: n/a | AX54: n/a | AZ54: =-VLOOKUP($A54,'pl-data'!$A:$BQ,8+AZ$3) ->  | BA54: =-VLOOKUP($A54,'pl-data'!$A:$BQ,38+BA$3) ->  | BB54: =-VLOOKUP($A54,'pl-data'!$A:$BQ,23+BB$3) -> 0 | BC54: n/a | BD54: n/a | BF54: =-VLOOKUP($A54,'pl-data'!$A:$BQ,8+BF$3) ->  | BG54: =-VLOOKUP($A54,'pl-data'!$A:$BQ,38+BG$3) ->  | BH54: =-VLOOKUP($A54,'pl-data'!$A:$BQ,23+BH$3) -> 0 | BI54: n/a | BJ54: n/a | BL54: =-VLOOKUP($A54,'pl-data'!$A:$BQ,8+BL$3) ->  | BM54: =-VLOOKUP($A54,'pl-data'!$A:$BQ,38+BM$3) ->  | BN54: =-VLOOKUP($A54,'pl-data'!$A:$BQ,23+BN$3) -> 0 | BO54: n/a | BP54: n/a | BR54: =-VLOOKUP($A54,'pl-data'!$A:$BQ,8+BR$3) ->  | BS54: =-VLOOKUP($A54,'pl-data'!$A:$BQ,38+BS$3) ->  | BT54: =-VLOOKUP($A54,'pl-data'!$A:$BQ,23+BT$3) -> 0 | BU54: n/a | BV54: n/a | BZ54: 0 | CA54: n/a | CB54: n/a
A55: 8407 | B55: =+masterfile!D1260 -> 8407 Erlöse 19% USt | D55: =-VLOOKUP($A55,'pl-data'!$A:$BQ,8+D$3) ->  | E55: =-VLOOKUP($A55,'pl-data'!$A:$BQ,38+E$3) ->  | F55: =-VLOOKUP($A55,'pl-data'!$A:$BQ,23+F$3) -> 0 | G55: n/a | H55: n/a | J55: =-VLOOKUP($A55,'pl-data'!$A:$BQ,8+J$3) ->  | K55: =-VLOOKUP($A55,'pl-data'!$A:$BQ,38+K$3) ->  | L55: =-VLOOKUP($A55,'pl-data'!$A:$BQ,23+L$3) -> 0 | M55: n/a | N55: n/a | P55: =-VLOOKUP($A55,'pl-data'!$A:$BQ,8+P$3) ->  | Q55: =-VLOOKUP($A55,'pl-data'!$A:$BQ,38+Q$3) ->  | R55: =-VLOOKUP($A55,'pl-data'!$A:$BQ,23+R$3) -> 0 | S55: n/a | T55: n/a | V55: =-VLOOKUP($A55,'pl-data'!$A:$BQ,8+V$3) ->  | W55: =-VLOOKUP($A55,'pl-data'!$A:$BQ,38+W$3) ->  | X55: =-VLOOKUP($A55,'pl-data'!$A:$BQ,23+X$3) -> 0 | Y55: n/a | Z55: n/a | AB55: =-VLOOKUP($A55,'pl-data'!$A:$BQ,8+AB$3) ->  | AC55: =-VLOOKUP($A55,'pl-data'!$A:$BQ,38+AC$3) ->  | AD55: =-VLOOKUP($A55,'pl-data'!$A:$BQ,23+AD$3) -> 0 | AE55: n/a | AF55: n/a | AH55: =-VLOOKUP($A55,'pl-data'!$A:$BQ,8+AH$3) ->  | AI55: =-VLOOKUP($A55,'pl-data'!$A:$BQ,38+AI$3) ->  | AJ55: =-VLOOKUP($A55,'pl-data'!$A:$BQ,23+AJ$3) -> 0 | AK55: n/a | AL55: n/a | AN55: =-VLOOKUP($A55,'pl-data'!$A:$BQ,8+AN$3) ->  | AO55: =-VLOOKUP($A55,'pl-data'!$A:$BQ,38+AO$3) ->  | AP55: =-VLOOKUP($A55,'pl-data'!$A:$BQ,23+AP$3) -> 0 | AQ55: n/a | AR55: n/a | AT55: =-VLOOKUP($A55,'pl-data'!$A:$BQ,8+AT$3) ->  | AU55: =-VLOOKUP($A55,'pl-data'!$A:$BQ,38+AU$3) ->  | AV55: =-VLOOKUP($A55,'pl-data'!$A:$BQ,23+AV$3) -> 0 | AW55: n/a | AX55: n/a | AZ55: =-VLOOKUP($A55,'pl-data'!$A:$BQ,8+AZ$3) ->  | BA55: =-VLOOKUP($A55,'pl-data'!$A:$BQ,38+BA$3) ->  | BB55: =-VLOOKUP($A55,'pl-data'!$A:$BQ,23+BB$3) -> 0 | BC55: n/a | BD55: n/a | BF55: =-VLOOKUP($A55,'pl-data'!$A:$BQ,8+BF$3) ->  | BG55: =-VLOOKUP($A55,'pl-data'!$A:$BQ,38+BG$3) ->  | BH55: =-VLOOKUP($A55,'pl-data'!$A:$BQ,23+BH$3) -> 0 | BI55: n/a | BJ55: n/a | BL55: =-VLOOKUP($A55,'pl-data'!$A:$BQ,8+BL$3) ->  | BM55: =-VLOOKUP($A55,'pl-data'!$A:$BQ,38+BM$3) ->  | BN55: =-VLOOKUP($A55,'pl-data'!$A:$BQ,23+BN$3) -> 0 | BO55: n/a | BP55: n/a | BR55: =-VLOOKUP($A55,'pl-data'!$A:$BQ,8+BR$3) ->  | BS55: =-VLOOKUP($A55,'pl-data'!$A:$BQ,38+BS$3) ->  | BT55: =-VLOOKUP($A55,'pl-data'!$A:$BQ,23+BT$3) -> 0 | BU55: n/a | BV55: n/a | BZ55: 0 | CA55: n/a | CB55: n/a
A56: 8408 | B56: =+masterfile!D1261 -> 8408 Erlöse 19% USt | D56: =-VLOOKUP($A56,'pl-data'!$A:$BQ,8+D$3) ->  | E56: =-VLOOKUP($A56,'pl-data'!$A:$BQ,38+E$3) ->  | F56: =-VLOOKUP($A56,'pl-data'!$A:$BQ,23+F$3) -> 0 | G56: n/a | H56: n/a | J56: =-VLOOKUP($A56,'pl-data'!$A:$BQ,8+J$3) ->  | K56: =-VLOOKUP($A56,'pl-data'!$A:$BQ,38+K$3) ->  | L56: =-VLOOKUP($A56,'pl-data'!$A:$BQ,23+L$3) -> 0 | M56: n/a | N56: n/a | P56: =-VLOOKUP($A56,'pl-data'!$A:$BQ,8+P$3) ->  | Q56: =-VLOOKUP($A56,'pl-data'!$A:$BQ,38+Q$3) ->  | R56: =-VLOOKUP($A56,'pl-data'!$A:$BQ,23+R$3) -> 0 | S56: n/a | T56: n/a | V56: =-VLOOKUP($A56,'pl-data'!$A:$BQ,8+V$3) ->  | W56: =-VLOOKUP($A56,'pl-data'!$A:$BQ,38+W$3) ->  | X56: =-VLOOKUP($A56,'pl-data'!$A:$BQ,23+X$3) -> 0 | Y56: n/a | Z56: n/a | AB56: =-VLOOKUP($A56,'pl-data'!$A:$BQ,8+AB$3) ->  | AC56: =-VLOOKUP($A56,'pl-data'!$A:$BQ,38+AC$3) ->  | AD56: =-VLOOKUP($A56,'pl-data'!$A:$BQ,23+AD$3) -> 0 | AE56: n/a | AF56: n/a | AH56: =-VLOOKUP($A56,'pl-data'!$A:$BQ,8+AH$3) ->  | AI56: =-VLOOKUP($A56,'pl-data'!$A:$BQ,38+AI$3) ->  | AJ56: =-VLOOKUP($A56,'pl-data'!$A:$BQ,23+AJ$3) -> 0 | AK56: n/a | AL56: n/a | AN56: =-VLOOKUP($A56,'pl-data'!$A:$BQ,8+AN$3) ->  | AO56: =-VLOOKUP($A56,'pl-data'!$A:$BQ,38+AO$3) ->  | AP56: =-VLOOKUP($A56,'pl-data'!$A:$BQ,23+AP$3) -> 0 | AQ56: n/a | AR56: n/a | AT56: =-VLOOKUP($A56,'pl-data'!$A:$BQ,8+AT$3) ->  | AU56: =-VLOOKUP($A56,'pl-data'!$A:$BQ,38+AU$3) ->  | AV56: =-VLOOKUP($A56,'pl-data'!$A:$BQ,23+AV$3) -> 0 | AW56: n/a | AX56: n/a | AZ56: =-VLOOKUP($A56,'pl-data'!$A:$BQ,8+AZ$3) ->  | BA56: =-VLOOKUP($A56,'pl-data'!$A:$BQ,38+BA$3) ->  | BB56: =-VLOOKUP($A56,'pl-data'!$A:$BQ,23+BB$3) -> 0 | BC56: n/a | BD56: n/a | BF56: =-VLOOKUP($A56,'pl-data'!$A:$BQ,8+BF$3) ->  | BG56: =-VLOOKUP($A56,'pl-data'!$A:$BQ,38+BG$3) ->  | BH56: =-VLOOKUP($A56,'pl-data'!$A:$BQ,23+BH$3) -> 0 | BI56: n/a | BJ56: n/a | BL56: =-VLOOKUP($A56,'pl-data'!$A:$BQ,8+BL$3) ->  | BM56: =-VLOOKUP($A56,'pl-data'!$A:$BQ,38+BM$3) ->  | BN56: =-VLOOKUP($A56,'pl-data'!$A:$BQ,23+BN$3) -> 0 | BO56: n/a | BP56: n/a | BR56: =-VLOOKUP($A56,'pl-data'!$A:$BQ,8+BR$3) ->  | BS56: =-VLOOKUP($A56,'pl-data'!$A:$BQ,38+BS$3) ->  | BT56: =-VLOOKUP($A56,'pl-data'!$A:$BQ,23+BT$3) -> 0 | BU56: n/a | BV56: n/a | BZ56: 0 | CA56: n/a | CB56: n/a
A57: 8409 | B57: =+masterfile!D1262 -> 8409 Erlöse 19% USt | D57: =-VLOOKUP($A57,'pl-data'!$A:$BQ,8+D$3) ->  | E57: =-VLOOKUP($A57,'pl-data'!$A:$BQ,38+E$3) ->  | F57: =-VLOOKUP($A57,'pl-data'!$A:$BQ,23+F$3) -> 0 | G57: n/a | H57: n/a | J57: =-VLOOKUP($A57,'pl-data'!$A:$BQ,8+J$3) ->  | K57: =-VLOOKUP($A57,'pl-data'!$A:$BQ,38+K$3) ->  | L57: =-VLOOKUP($A57,'pl-data'!$A:$BQ,23+L$3) -> 0 | M57: n/a | N57: n/a | P57: =-VLOOKUP($A57,'pl-data'!$A:$BQ,8+P$3) ->  | Q57: =-VLOOKUP($A57,'pl-data'!$A:$BQ,38+Q$3) ->  | R57: =-VLOOKUP($A57,'pl-data'!$A:$BQ,23+R$3) -> 0 | S57: n/a | T57: n/a | V57: =-VLOOKUP($A57,'pl-data'!$A:$BQ,8+V$3) ->  | W57: =-VLOOKUP($A57,'pl-data'!$A:$BQ,38+W$3) ->  | X57: =-VLOOKUP($A57,'pl-data'!$A:$BQ,23+X$3) -> 0 | Y57: n/a | Z57: n/a | AB57: =-VLOOKUP($A57,'pl-data'!$A:$BQ,8+AB$3) ->  | AC57: =-VLOOKUP($A57,'pl-data'!$A:$BQ,38+AC$3) ->  | AD57: =-VLOOKUP($A57,'pl-data'!$A:$BQ,23+AD$3) -> 0 | AE57: n/a | AF57: n/a | AH57: =-VLOOKUP($A57,'pl-data'!$A:$BQ,8+AH$3) ->  | AI57: =-VLOOKUP($A57,'pl-data'!$A:$BQ,38+AI$3) ->  | AJ57: =-VLOOKUP($A57,'pl-data'!$A:$BQ,23+AJ$3) -> 0 | AK57: n/a | AL57: n/a | AN57: =-VLOOKUP($A57,'pl-data'!$A:$BQ,8+AN$3) ->  | AO57: =-VLOOKUP($A57,'pl-data'!$A:$BQ,38+AO$3) ->  | AP57: =-VLOOKUP($A57,'pl-data'!$A:$BQ,23+AP$3) -> 0 | AQ57: n/a | AR57: n/a | AT57: =-VLOOKUP($A57,'pl-data'!$A:$BQ,8+AT$3) ->  | AU57: =-VLOOKUP($A57,'pl-data'!$A:$BQ,38+AU$3) ->  | AV57: =-VLOOKUP($A57,'pl-data'!$A:$BQ,23+AV$3) -> 0 | AW57: n/a | AX57: n/a | AZ57: =-VLOOKUP($A57,'pl-data'!$A:$BQ,8+AZ$3) ->  | BA57: =-VLOOKUP($A57,'pl-data'!$A:$BQ,38+BA$3) ->  | BB57: =-VLOOKUP($A57,'pl-data'!$A:$BQ,23+BB$3) -> 0 | BC57: n/a | BD57: n/a | BF57: =-VLOOKUP($A57,'pl-data'!$A:$BQ,8+BF$3) ->  | BG57: =-VLOOKUP($A57,'pl-data'!$A:$BQ,38+BG$3) ->  | BH57: =-VLOOKUP($A57,'pl-data'!$A:$BQ,23+BH$3) -> 0 | BI57: n/a | BJ57: n/a | BL57: =-VLOOKUP($A57,'pl-data'!$A:$BQ,8+BL$3) ->  | BM57: =-VLOOKUP($A57,'pl-data'!$A:$BQ,38+BM$3) ->  | BN57: =-VLOOKUP($A57,'pl-data'!$A:$BQ,23+BN$3) -> 0 | BO57: n/a | BP57: n/a | BR57: =-VLOOKUP($A57,'pl-data'!$A:$BQ,8+BR$3) ->  | BS57: =-VLOOKUP($A57,'pl-data'!$A:$BQ,38+BS$3) ->  | BT57: =-VLOOKUP($A57,'pl-data'!$A:$BQ,23+BT$3) -> 0 | BU57: n/a | BV57: n/a | BZ57: 0 | CA57: n/a | CB57: n/a
A58: 8449 | B58: =+masterfile!D1263 -> 8449 Erlöse elektr.DL Inland stpf 19% USt | D58: =-VLOOKUP($A58,'pl-data'!$A:$BQ,8+D$3) ->  | E58: =-VLOOKUP($A58,'pl-data'!$A:$BQ,38+E$3) ->  | F58: =-VLOOKUP($A58,'pl-data'!$A:$BQ,23+F$3) -> 0 | G58: n/a | H58: n/a | J58: =-VLOOKUP($A58,'pl-data'!$A:$BQ,8+J$3) ->  | K58: =-VLOOKUP($A58,'pl-data'!$A:$BQ,38+K$3) ->  | L58: =-VLOOKUP($A58,'pl-data'!$A:$BQ,23+L$3) -> 0 | M58: n/a | N58: n/a | P58: =-VLOOKUP($A58,'pl-data'!$A:$BQ,8+P$3) ->  | Q58: =-VLOOKUP($A58,'pl-data'!$A:$BQ,38+Q$3) ->  | R58: =-VLOOKUP($A58,'pl-data'!$A:$BQ,23+R$3) -> 0 | S58: n/a | T58: n/a | V58: =-VLOOKUP($A58,'pl-data'!$A:$BQ,8+V$3) ->  | W58: =-VLOOKUP($A58,'pl-data'!$A:$BQ,38+W$3) ->  | X58: =-VLOOKUP($A58,'pl-data'!$A:$BQ,23+X$3) -> 0 | Y58: n/a | Z58: n/a | AB58: =-VLOOKUP($A58,'pl-data'!$A:$BQ,8+AB$3) ->  | AC58: =-VLOOKUP($A58,'pl-data'!$A:$BQ,38+AC$3) ->  | AD58: =-VLOOKUP($A58,'pl-data'!$A:$BQ,23+AD$3) -> 0 | AE58: n/a | AF58: n/a | AH58: =-VLOOKUP($A58,'pl-data'!$A:$BQ,8+AH$3) ->  | AI58: =-VLOOKUP($A58,'pl-data'!$A:$BQ,38+AI$3) ->  | AJ58: =-VLOOKUP($A58,'pl-data'!$A:$BQ,23+AJ$3) -> 0 | AK58: n/a | AL58: n/a | AN58: =-VLOOKUP($A58,'pl-data'!$A:$BQ,8+AN$3) ->  | AO58: =-VLOOKUP($A58,'pl-data'!$A:$BQ,38+AO$3) ->  | AP58: =-VLOOKUP($A58,'pl-data'!$A:$BQ,23+AP$3) -> 0 | AQ58: n/a | AR58: n/a | AT58: =-VLOOKUP($A58,'pl-data'!$A:$BQ,8+AT$3) ->  | AU58: =-VLOOKUP($A58,'pl-data'!$A:$BQ,38+AU$3) ->  | AV58: =-VLOOKUP($A58,'pl-data'!$A:$BQ,23+AV$3) -> 0 | AW58: n/a | AX58: n/a | AZ58: =-VLOOKUP($A58,'pl-data'!$A:$BQ,8+AZ$3) ->  | BA58: =-VLOOKUP($A58,'pl-data'!$A:$BQ,38+BA$3) ->  | BB58: =-VLOOKUP($A58,'pl-data'!$A:$BQ,23+BB$3) -> 0 | BC58: n/a | BD58: n/a | BF58: =-VLOOKUP($A58,'pl-data'!$A:$BQ,8+BF$3) ->  | BG58: =-VLOOKUP($A58,'pl-data'!$A:$BQ,38+BG$3) ->  | BH58: =-VLOOKUP($A58,'pl-data'!$A:$BQ,23+BH$3) -> 0 | BI58: n/a | BJ58: n/a | BL58: =-VLOOKUP($A58,'pl-data'!$A:$BQ,8+BL$3) ->  | BM58: =-VLOOKUP($A58,'pl-data'!$A:$BQ,38+BM$3) ->  | BN58: =-VLOOKUP($A58,'pl-data'!$A:$BQ,23+BN$3) -> 0 | BO58: n/a | BP58: n/a | BR58: =-VLOOKUP($A58,'pl-data'!$A:$BQ,8+BR$3) ->  | BS58: =-VLOOKUP($A58,'pl-data'!$A:$BQ,38+BS$3) ->  | BT58: =-VLOOKUP($A58,'pl-data'!$A:$BQ,23+BT$3) -> 0 | BU58: n/a | BV58: n/a | BZ58: 0 | CA58: n/a | CB58: n/a
A59: 8499 | B59: =+masterfile!D1264 -> 8499 Nebenerlöse (Bezug zu Materialaufwand) | D59: =-VLOOKUP($A59,'pl-data'!$A:$BQ,8+D$3) ->  | E59: =-VLOOKUP($A59,'pl-data'!$A:$BQ,38+E$3) ->  | F59: =-VLOOKUP($A59,'pl-data'!$A:$BQ,23+F$3) -> 0 | G59: n/a | H59: n/a | J59: =-VLOOKUP($A59,'pl-data'!$A:$BQ,8+J$3) ->  | K59: =-VLOOKUP($A59,'pl-data'!$A:$BQ,38+K$3) ->  | L59: =-VLOOKUP($A59,'pl-data'!$A:$BQ,23+L$3) -> 0 | M59: n/a | N59: n/a | P59: =-VLOOKUP($A59,'pl-data'!$A:$BQ,8+P$3) ->  | Q59: =-VLOOKUP($A59,'pl-data'!$A:$BQ,38+Q$3) ->  | R59: =-VLOOKUP($A59,'pl-data'!$A:$BQ,23+R$3) -> 0 | S59: n/a | T59: n/a | V59: =-VLOOKUP($A59,'pl-data'!$A:$BQ,8+V$3) ->  | W59: =-VLOOKUP($A59,'pl-data'!$A:$BQ,38+W$3) ->  | X59: =-VLOOKUP($A59,'pl-data'!$A:$BQ,23+X$3) -> 0 | Y59: n/a | Z59: n/a | AB59: =-VLOOKUP($A59,'pl-data'!$A:$BQ,8+AB$3) ->  | AC59: =-VLOOKUP($A59,'pl-data'!$A:$BQ,38+AC$3) ->  | AD59: =-VLOOKUP($A59,'pl-data'!$A:$BQ,23+AD$3) -> 0 | AE59: n/a | AF59: n/a | AH59: =-VLOOKUP($A59,'pl-data'!$A:$BQ,8+AH$3) ->  | AI59: =-VLOOKUP($A59,'pl-data'!$A:$BQ,38+AI$3) ->  | AJ59: =-VLOOKUP($A59,'pl-data'!$A:$BQ,23+AJ$3) -> 0 | AK59: n/a | AL59: n/a | AN59: =-VLOOKUP($A59,'pl-data'!$A:$BQ,8+AN$3) ->  | AO59: =-VLOOKUP($A59,'pl-data'!$A:$BQ,38+AO$3) ->  | AP59: =-VLOOKUP($A59,'pl-data'!$A:$BQ,23+AP$3) -> 0 | AQ59: n/a | AR59: n/a | AT59: =-VLOOKUP($A59,'pl-data'!$A:$BQ,8+AT$3) ->  | AU59: =-VLOOKUP($A59,'pl-data'!$A:$BQ,38+AU$3) ->  | AV59: =-VLOOKUP($A59,'pl-data'!$A:$BQ,23+AV$3) -> 0 | AW59: n/a | AX59: n/a | AZ59: =-VLOOKUP($A59,'pl-data'!$A:$BQ,8+AZ$3) ->  | BA59: =-VLOOKUP($A59,'pl-data'!$A:$BQ,38+BA$3) ->  | BB59: =-VLOOKUP($A59,'pl-data'!$A:$BQ,23+BB$3) -> 0 | BC59: n/a | BD59: n/a | BF59: =-VLOOKUP($A59,'pl-data'!$A:$BQ,8+BF$3) ->  | BG59: =-VLOOKUP($A59,'pl-data'!$A:$BQ,38+BG$3) ->  | BH59: =-VLOOKUP($A59,'pl-data'!$A:$BQ,23+BH$3) -> 0 | BI59: n/a | BJ59: n/a | BL59: =-VLOOKUP($A59,'pl-data'!$A:$BQ,8+BL$3) ->  | BM59: =-VLOOKUP($A59,'pl-data'!$A:$BQ,38+BM$3) ->  | BN59: =-VLOOKUP($A59,'pl-data'!$A:$BQ,23+BN$3) -> 0 | BO59: n/a | BP59: n/a | BR59: =-VLOOKUP($A59,'pl-data'!$A:$BQ,8+BR$3) ->  | BS59: =-VLOOKUP($A59,'pl-data'!$A:$BQ,38+BS$3) ->  | BT59: =-VLOOKUP($A59,'pl-data'!$A:$BQ,23+BT$3) -> 0 | BU59: n/a | BV59: n/a | BZ59: 0 | CA59: n/a | CB59: n/a
A60: 8510 | B60: =+masterfile!D1271 -> 8510 Provisionsumsätze | D60: =-VLOOKUP($A60,'pl-data'!$A:$BQ,8+D$3) ->  | E60: =-VLOOKUP($A60,'pl-data'!$A:$BQ,38+E$3) ->  | F60: =-VLOOKUP($A60,'pl-data'!$A:$BQ,23+F$3) -> 0 | G60: n/a | H60: n/a | J60: =-VLOOKUP($A60,'pl-data'!$A:$BQ,8+J$3) ->  | K60: =-VLOOKUP($A60,'pl-data'!$A:$BQ,38+K$3) ->  | L60: =-VLOOKUP($A60,'pl-data'!$A:$BQ,23+L$3) -> 0 | M60: n/a | N60: n/a | P60: =-VLOOKUP($A60,'pl-data'!$A:$BQ,8+P$3) ->  | Q60: =-VLOOKUP($A60,'pl-data'!$A:$BQ,38+Q$3) ->  | R60: =-VLOOKUP($A60,'pl-data'!$A:$BQ,23+R$3) -> 0 | S60: n/a | T60: n/a | V60: =-VLOOKUP($A60,'pl-data'!$A:$BQ,8+V$3) ->  | W60: =-VLOOKUP($A60,'pl-data'!$A:$BQ,38+W$3) ->  | X60: =-VLOOKUP($A60,'pl-data'!$A:$BQ,23+X$3) -> 0 | Y60: n/a | Z60: n/a | AB60: =-VLOOKUP($A60,'pl-data'!$A:$BQ,8+AB$3) ->  | AC60: =-VLOOKUP($A60,'pl-data'!$A:$BQ,38+AC$3) ->  | AD60: =-VLOOKUP($A60,'pl-data'!$A:$BQ,23+AD$3) -> 0 | AE60: n/a | AF60: n/a | AH60: =-VLOOKUP($A60,'pl-data'!$A:$BQ,8+AH$3) ->  | AI60: =-VLOOKUP($A60,'pl-data'!$A:$BQ,38+AI$3) ->  | AJ60: =-VLOOKUP($A60,'pl-data'!$A:$BQ,23+AJ$3) -> 0 | AK60: n/a | AL60: n/a | AN60: =-VLOOKUP($A60,'pl-data'!$A:$BQ,8+AN$3) ->  | AO60: =-VLOOKUP($A60,'pl-data'!$A:$BQ,38+AO$3) ->  | AP60: =-VLOOKUP($A60,'pl-data'!$A:$BQ,23+AP$3) -> 0 | AQ60: n/a | AR60: n/a | AT60: =-VLOOKUP($A60,'pl-data'!$A:$BQ,8+AT$3) ->  | AU60: =-VLOOKUP($A60,'pl-data'!$A:$BQ,38+AU$3) ->  | AV60: =-VLOOKUP($A60,'pl-data'!$A:$BQ,23+AV$3) -> 0 | AW60: n/a | AX60: n/a | AZ60: =-VLOOKUP($A60,'pl-data'!$A:$BQ,8+AZ$3) ->  | BA60: =-VLOOKUP($A60,'pl-data'!$A:$BQ,38+BA$3) ->  | BB60: =-VLOOKUP($A60,'pl-data'!$A:$BQ,23+BB$3) -> 0 | BC60: n/a | BD60: n/a | BF60: =-VLOOKUP($A60,'pl-data'!$A:$BQ,8+BF$3) ->  | BG60: =-VLOOKUP($A60,'pl-data'!$A:$BQ,38+BG$3) ->  | BH60: =-VLOOKUP($A60,'pl-data'!$A:$BQ,23+BH$3) -> 0 | BI60: n/a | BJ60: n/a | BL60: =-VLOOKUP($A60,'pl-data'!$A:$BQ,8+BL$3) ->  | BM60: =-VLOOKUP($A60,'pl-data'!$A:$BQ,38+BM$3) ->  | BN60: =-VLOOKUP($A60,'pl-data'!$A:$BQ,23+BN$3) -> 0 | BO60: n/a | BP60: n/a | BR60: =-VLOOKUP($A60,'pl-data'!$A:$BQ,8+BR$3) ->  | BS60: =-VLOOKUP($A60,'pl-data'!$A:$BQ,38+BS$3) ->  | BT60: =-VLOOKUP($A60,'pl-data'!$A:$BQ,23+BT$3) -> 0 | BU60: n/a | BV60: n/a | BZ60: 0 | CA60: n/a | CB60: n/a
A61: 8514 | B61: =+masterfile!D1272 -> 8514 Provisionsumsätze, stfr.§4 Nr.8 ff.UStG | D61: =-VLOOKUP($A61,'pl-data'!$A:$BQ,8+D$3) ->  | E61: =-VLOOKUP($A61,'pl-data'!$A:$BQ,38+E$3) ->  | F61: =-VLOOKUP($A61,'pl-data'!$A:$BQ,23+F$3) -> 0 | G61: n/a | H61: n/a | J61: =-VLOOKUP($A61,'pl-data'!$A:$BQ,8+J$3) ->  | K61: =-VLOOKUP($A61,'pl-data'!$A:$BQ,38+K$3) ->  | L61: =-VLOOKUP($A61,'pl-data'!$A:$BQ,23+L$3) -> 0 | M61: n/a | N61: n/a | P61: =-VLOOKUP($A61,'pl-data'!$A:$BQ,8+P$3) ->  | Q61: =-VLOOKUP($A61,'pl-data'!$A:$BQ,38+Q$3) ->  | R61: =-VLOOKUP($A61,'pl-data'!$A:$BQ,23+R$3) -> 0 | S61: n/a | T61: n/a | V61: =-VLOOKUP($A61,'pl-data'!$A:$BQ,8+V$3) ->  | W61: =-VLOOKUP($A61,'pl-data'!$A:$BQ,38+W$3) ->  | X61: =-VLOOKUP($A61,'pl-data'!$A:$BQ,23+X$3) -> 0 | Y61: n/a | Z61: n/a | AB61: =-VLOOKUP($A61,'pl-data'!$A:$BQ,8+AB$3) ->  | AC61: =-VLOOKUP($A61,'pl-data'!$A:$BQ,38+AC$3) ->  | AD61: =-VLOOKUP($A61,'pl-data'!$A:$BQ,23+AD$3) -> 0 | AE61: n/a | AF61: n/a | AH61: =-VLOOKUP($A61,'pl-data'!$A:$BQ,8+AH$3) ->  | AI61: =-VLOOKUP($A61,'pl-data'!$A:$BQ,38+AI$3) ->  | AJ61: =-VLOOKUP($A61,'pl-data'!$A:$BQ,23+AJ$3) -> 0 | AK61: n/a | AL61: n/a | AN61: =-VLOOKUP($A61,'pl-data'!$A:$BQ,8+AN$3) ->  | AO61: =-VLOOKUP($A61,'pl-data'!$A:$BQ,38+AO$3) ->  | AP61: =-VLOOKUP($A61,'pl-data'!$A:$BQ,23+AP$3) -> 0 | AQ61: n/a | AR61: n/a | AT61: =-VLOOKUP($A61,'pl-data'!$A:$BQ,8+AT$3) ->  | AU61: =-VLOOKUP($A61,'pl-data'!$A:$BQ,38+AU$3) ->  | AV61: =-VLOOKUP($A61,'pl-data'!$A:$BQ,23+AV$3) -> 0 | AW61: n/a | AX61: n/a | AZ61: =-VLOOKUP($A61,'pl-data'!$A:$BQ,8+AZ$3) ->  | BA61: =-VLOOKUP($A61,'pl-data'!$A:$BQ,38+BA$3) ->  | BB61: =-VLOOKUP($A61,'pl-data'!$A:$BQ,23+BB$3) -> 0 | BC61: n/a | BD61: n/a | BF61: =-VLOOKUP($A61,'pl-data'!$A:$BQ,8+BF$3) ->  | BG61: =-VLOOKUP($A61,'pl-data'!$A:$BQ,38+BG$3) ->  | BH61: =-VLOOKUP($A61,'pl-data'!$A:$BQ,23+BH$3) -> 0 | BI61: n/a | BJ61: n/a | BL61: =-VLOOKUP($A61,'pl-data'!$A:$BQ,8+BL$3) ->  | BM61: =-VLOOKUP($A61,'pl-data'!$A:$BQ,38+BM$3) ->  | BN61: =-VLOOKUP($A61,'pl-data'!$A:$BQ,23+BN$3) -> 0 | BO61: n/a | BP61: n/a | BR61: =-VLOOKUP($A61,'pl-data'!$A:$BQ,8+BR$3) ->  | BS61: =-VLOOKUP($A61,'pl-data'!$A:$BQ,38+BS$3) ->  | BT61: =-VLOOKUP($A61,'pl-data'!$A:$BQ,23+BT$3) -> 0 | BU61: n/a | BV61: n/a | BZ61: 0 | CA61: n/a | CB61: n/a
A62: 8515 | B62: =+masterfile!D1273 -> 8515 Provisionsumsätze, stfrei §4 Nr. 5 UStG | D62: =-VLOOKUP($A62,'pl-data'!$A:$BQ,8+D$3) ->  | E62: =-VLOOKUP($A62,'pl-data'!$A:$BQ,38+E$3) ->  | F62: =-VLOOKUP($A62,'pl-data'!$A:$BQ,23+F$3) -> 0 | G62: n/a | H62: n/a | J62: =-VLOOKUP($A62,'pl-data'!$A:$BQ,8+J$3) ->  | K62: =-VLOOKUP($A62,'pl-data'!$A:$BQ,38+K$3) ->  | L62: =-VLOOKUP($A62,'pl-data'!$A:$BQ,23+L$3) -> 0 | M62: n/a | N62: n/a | P62: =-VLOOKUP($A62,'pl-data'!$A:$BQ,8+P$3) ->  | Q62: =-VLOOKUP($A62,'pl-data'!$A:$BQ,38+Q$3) ->  | R62: =-VLOOKUP($A62,'pl-data'!$A:$BQ,23+R$3) -> 0 | S62: n/a | T62: n/a | V62: =-VLOOKUP($A62,'pl-data'!$A:$BQ,8+V$3) ->  | W62: =-VLOOKUP($A62,'pl-data'!$A:$BQ,38+W$3) ->  | X62: =-VLOOKUP($A62,'pl-data'!$A:$BQ,23+X$3) -> 0 | Y62: n/a | Z62: n/a | AB62: =-VLOOKUP($A62,'pl-data'!$A:$BQ,8+AB$3) ->  | AC62: =-VLOOKUP($A62,'pl-data'!$A:$BQ,38+AC$3) ->  | AD62: =-VLOOKUP($A62,'pl-data'!$A:$BQ,23+AD$3) -> 0 | AE62: n/a | AF62: n/a | AH62: =-VLOOKUP($A62,'pl-data'!$A:$BQ,8+AH$3) ->  | AI62: =-VLOOKUP($A62,'pl-data'!$A:$BQ,38+AI$3) ->  | AJ62: =-VLOOKUP($A62,'pl-data'!$A:$BQ,23+AJ$3) -> 0 | AK62: n/a | AL62: n/a | AN62: =-VLOOKUP($A62,'pl-data'!$A:$BQ,8+AN$3) ->  | AO62: =-VLOOKUP($A62,'pl-data'!$A:$BQ,38+AO$3) ->  | AP62: =-VLOOKUP($A62,'pl-data'!$A:$BQ,23+AP$3) -> 0 | AQ62: n/a | AR62: n/a | AT62: =-VLOOKUP($A62,'pl-data'!$A:$BQ,8+AT$3) ->  | AU62: =-VLOOKUP($A62,'pl-data'!$A:$BQ,38+AU$3) ->  | AV62: =-VLOOKUP($A62,'pl-data'!$A:$BQ,23+AV$3) -> 0 | AW62: n/a | AX62: n/a | AZ62: =-VLOOKUP($A62,'pl-data'!$A:$BQ,8+AZ$3) ->  | BA62: =-VLOOKUP($A62,'pl-data'!$A:$BQ,38+BA$3) ->  | BB62: =-VLOOKUP($A62,'pl-data'!$A:$BQ,23+BB$3) -> 0 | BC62: n/a | BD62: n/a | BF62: =-VLOOKUP($A62,'pl-data'!$A:$BQ,8+BF$3) ->  | BG62: =-VLOOKUP($A62,'pl-data'!$A:$BQ,38+BG$3) ->  | BH62: =-VLOOKUP($A62,'pl-data'!$A:$BQ,23+BH$3) -> 0 | BI62: n/a | BJ62: n/a | BL62: =-VLOOKUP($A62,'pl-data'!$A:$BQ,8+BL$3) ->  | BM62: =-VLOOKUP($A62,'pl-data'!$A:$BQ,38+BM$3) ->  | BN62: =-VLOOKUP($A62,'pl-data'!$A:$BQ,23+BN$3) -> 0 | BO62: n/a | BP62: n/a | BR62: =-VLOOKUP($A62,'pl-data'!$A:$BQ,8+BR$3) ->  | BS62: =-VLOOKUP($A62,'pl-data'!$A:$BQ,38+BS$3) ->  | BT62: =-VLOOKUP($A62,'pl-data'!$A:$BQ,23+BT$3) -> 0 | BU62: n/a | BV62: n/a | BZ62: 0 | CA62: n/a | CB62: n/a
A63: 8516 | B63: =+masterfile!D1274 -> 8516 Provisionsumsätze 7% USt | D63: =-VLOOKUP($A63,'pl-data'!$A:$BQ,8+D$3) ->  | E63: =-VLOOKUP($A63,'pl-data'!$A:$BQ,38+E$3) ->  | F63: =-VLOOKUP($A63,'pl-data'!$A:$BQ,23+F$3) -> 0 | G63: n/a | H63: n/a | J63: =-VLOOKUP($A63,'pl-data'!$A:$BQ,8+J$3) ->  | K63: =-VLOOKUP($A63,'pl-data'!$A:$BQ,38+K$3) ->  | L63: =-VLOOKUP($A63,'pl-data'!$A:$BQ,23+L$3) -> 0 | M63: n/a | N63: n/a | P63: =-VLOOKUP($A63,'pl-data'!$A:$BQ,8+P$3) ->  | Q63: =-VLOOKUP($A63,'pl-data'!$A:$BQ,38+Q$3) ->  | R63: =-VLOOKUP($A63,'pl-data'!$A:$BQ,23+R$3) -> 0 | S63: n/a | T63: n/a | V63: =-VLOOKUP($A63,'pl-data'!$A:$BQ,8+V$3) ->  | W63: =-VLOOKUP($A63,'pl-data'!$A:$BQ,38+W$3) ->  | X63: =-VLOOKUP($A63,'pl-data'!$A:$BQ,23+X$3) -> 0 | Y63: n/a | Z63: n/a | AB63: =-VLOOKUP($A63,'pl-data'!$A:$BQ,8+AB$3) ->  | AC63: =-VLOOKUP($A63,'pl-data'!$A:$BQ,38+AC$3) ->  | AD63: =-VLOOKUP($A63,'pl-data'!$A:$BQ,23+AD$3) -> 0 | AE63: n/a | AF63: n/a | AH63: =-VLOOKUP($A63,'pl-data'!$A:$BQ,8+AH$3) ->  | AI63: =-VLOOKUP($A63,'pl-data'!$A:$BQ,38+AI$3) ->  | AJ63: =-VLOOKUP($A63,'pl-data'!$A:$BQ,23+AJ$3) -> 0 | AK63: n/a | AL63: n/a | AN63: =-VLOOKUP($A63,'pl-data'!$A:$BQ,8+AN$3) ->  | AO63: =-VLOOKUP($A63,'pl-data'!$A:$BQ,38+AO$3) ->  | AP63: =-VLOOKUP($A63,'pl-data'!$A:$BQ,23+AP$3) -> 0 | AQ63: n/a | AR63: n/a | AT63: =-VLOOKUP($A63,'pl-data'!$A:$BQ,8+AT$3) ->  | AU63: =-VLOOKUP($A63,'pl-data'!$A:$BQ,38+AU$3) ->  | AV63: =-VLOOKUP($A63,'pl-data'!$A:$BQ,23+AV$3) -> 0 | AW63: n/a | AX63: n/a | AZ63: =-VLOOKUP($A63,'pl-data'!$A:$BQ,8+AZ$3) ->  | BA63: =-VLOOKUP($A63,'pl-data'!$A:$BQ,38+BA$3) ->  | BB63: =-VLOOKUP($A63,'pl-data'!$A:$BQ,23+BB$3) -> 0 | BC63: n/a | BD63: n/a | BF63: =-VLOOKUP($A63,'pl-data'!$A:$BQ,8+BF$3) ->  | BG63: =-VLOOKUP($A63,'pl-data'!$A:$BQ,38+BG$3) ->  | BH63: =-VLOOKUP($A63,'pl-data'!$A:$BQ,23+BH$3) -> 0 | BI63: n/a | BJ63: n/a | BL63: =-VLOOKUP($A63,'pl-data'!$A:$BQ,8+BL$3) ->  | BM63: =-VLOOKUP($A63,'pl-data'!$A:$BQ,38+BM$3) ->  | BN63: =-VLOOKUP($A63,'pl-data'!$A:$BQ,23+BN$3) -> 0 | BO63: n/a | BP63: n/a | BR63: =-VLOOKUP($A63,'pl-data'!$A:$BQ,8+BR$3) ->  | BS63: =-VLOOKUP($A63,'pl-data'!$A:$BQ,38+BS$3) ->  | BT63: =-VLOOKUP($A63,'pl-data'!$A:$BQ,23+BT$3) -> 0 | BU63: n/a | BV63: n/a | BZ63: 0 | CA63: n/a | CB63: n/a
A64: 8519 | B64: =+masterfile!D1275 -> 8519 Provisionsumsätze 19% USt | D64: =-VLOOKUP($A64,'pl-data'!$A:$BQ,8+D$3) ->  | E64: =-VLOOKUP($A64,'pl-data'!$A:$BQ,38+E$3) ->  | F64: =-VLOOKUP($A64,'pl-data'!$A:$BQ,23+F$3) -> 0 | G64: n/a | H64: n/a | J64: =-VLOOKUP($A64,'pl-data'!$A:$BQ,8+J$3) ->  | K64: =-VLOOKUP($A64,'pl-data'!$A:$BQ,38+K$3) ->  | L64: =-VLOOKUP($A64,'pl-data'!$A:$BQ,23+L$3) -> 0 | M64: n/a | N64: n/a | P64: =-VLOOKUP($A64,'pl-data'!$A:$BQ,8+P$3) ->  | Q64: =-VLOOKUP($A64,'pl-data'!$A:$BQ,38+Q$3) ->  | R64: =-VLOOKUP($A64,'pl-data'!$A:$BQ,23+R$3) -> 0 | S64: n/a | T64: n/a | V64: =-VLOOKUP($A64,'pl-data'!$A:$BQ,8+V$3) ->  | W64: =-VLOOKUP($A64,'pl-data'!$A:$BQ,38+W$3) ->  | X64: =-VLOOKUP($A64,'pl-data'!$A:$BQ,23+X$3) -> 0 | Y64: n/a | Z64: n/a | AB64: =-VLOOKUP($A64,'pl-data'!$A:$BQ,8+AB$3) ->  | AC64: =-VLOOKUP($A64,'pl-data'!$A:$BQ,38+AC$3) ->  | AD64: =-VLOOKUP($A64,'pl-data'!$A:$BQ,23+AD$3) -> 0 | AE64: n/a | AF64: n/a | AH64: =-VLOOKUP($A64,'pl-data'!$A:$BQ,8+AH$3) ->  | AI64: =-VLOOKUP($A64,'pl-data'!$A:$BQ,38+AI$3) ->  | AJ64: =-VLOOKUP($A64,'pl-data'!$A:$BQ,23+AJ$3) -> 0 | AK64: n/a | AL64: n/a | AN64: =-VLOOKUP($A64,'pl-data'!$A:$BQ,8+AN$3) ->  | AO64: =-VLOOKUP($A64,'pl-data'!$A:$BQ,38+AO$3) ->  | AP64: =-VLOOKUP($A64,'pl-data'!$A:$BQ,23+AP$3) -> 0 | AQ64: n/a | AR64: n/a | AT64: =-VLOOKUP($A64,'pl-data'!$A:$BQ,8+AT$3) ->  | AU64: =-VLOOKUP($A64,'pl-data'!$A:$BQ,38+AU$3) ->  | AV64: =-VLOOKUP($A64,'pl-data'!$A:$BQ,23+AV$3) -> 0 | AW64: n/a | AX64: n/a | AZ64: =-VLOOKUP($A64,'pl-data'!$A:$BQ,8+AZ$3) ->  | BA64: =-VLOOKUP($A64,'pl-data'!$A:$BQ,38+BA$3) ->  | BB64: =-VLOOKUP($A64,'pl-data'!$A:$BQ,23+BB$3) -> 0 | BC64: n/a | BD64: n/a | BF64: =-VLOOKUP($A64,'pl-data'!$A:$BQ,8+BF$3) ->  | BG64: =-VLOOKUP($A64,'pl-data'!$A:$BQ,38+BG$3) ->  | BH64: =-VLOOKUP($A64,'pl-data'!$A:$BQ,23+BH$3) -> 0 | BI64: n/a | BJ64: n/a | BL64: =-VLOOKUP($A64,'pl-data'!$A:$BQ,8+BL$3) ->  | BM64: =-VLOOKUP($A64,'pl-data'!$A:$BQ,38+BM$3) ->  | BN64: =-VLOOKUP($A64,'pl-data'!$A:$BQ,23+BN$3) -> 0 | BO64: n/a | BP64: n/a | BR64: =-VLOOKUP($A64,'pl-data'!$A:$BQ,8+BR$3) ->  | BS64: =-VLOOKUP($A64,'pl-data'!$A:$BQ,38+BS$3) ->  | BT64: =-VLOOKUP($A64,'pl-data'!$A:$BQ,23+BT$3) -> 0 | BU64: n/a | BV64: n/a | BZ64: 0 | CA64: n/a | CB64: n/a
A65: 8520 | B65: =+masterfile!D1276 -> 8520 Erlöse Abfallverwertung | D65: =-VLOOKUP($A65,'pl-data'!$A:$BQ,8+D$3) ->  | E65: =-VLOOKUP($A65,'pl-data'!$A:$BQ,38+E$3) ->  | F65: =-VLOOKUP($A65,'pl-data'!$A:$BQ,23+F$3) -> 0 | G65: n/a | H65: n/a | J65: =-VLOOKUP($A65,'pl-data'!$A:$BQ,8+J$3) ->  | K65: =-VLOOKUP($A65,'pl-data'!$A:$BQ,38+K$3) ->  | L65: =-VLOOKUP($A65,'pl-data'!$A:$BQ,23+L$3) -> 0 | M65: n/a | N65: n/a | P65: =-VLOOKUP($A65,'pl-data'!$A:$BQ,8+P$3) ->  | Q65: =-VLOOKUP($A65,'pl-data'!$A:$BQ,38+Q$3) ->  | R65: =-VLOOKUP($A65,'pl-data'!$A:$BQ,23+R$3) -> 0 | S65: n/a | T65: n/a | V65: =-VLOOKUP($A65,'pl-data'!$A:$BQ,8+V$3) ->  | W65: =-VLOOKUP($A65,'pl-data'!$A:$BQ,38+W$3) ->  | X65: =-VLOOKUP($A65,'pl-data'!$A:$BQ,23+X$3) -> 0 | Y65: n/a | Z65: n/a | AB65: =-VLOOKUP($A65,'pl-data'!$A:$BQ,8+AB$3) ->  | AC65: =-VLOOKUP($A65,'pl-data'!$A:$BQ,38+AC$3) ->  | AD65: =-VLOOKUP($A65,'pl-data'!$A:$BQ,23+AD$3) -> 0 | AE65: n/a | AF65: n/a | AH65: =-VLOOKUP($A65,'pl-data'!$A:$BQ,8+AH$3) ->  | AI65: =-VLOOKUP($A65,'pl-data'!$A:$BQ,38+AI$3) ->  | AJ65: =-VLOOKUP($A65,'pl-data'!$A:$BQ,23+AJ$3) -> 0 | AK65: n/a | AL65: n/a | AN65: =-VLOOKUP($A65,'pl-data'!$A:$BQ,8+AN$3) ->  | AO65: =-VLOOKUP($A65,'pl-data'!$A:$BQ,38+AO$3) ->  | AP65: =-VLOOKUP($A65,'pl-data'!$A:$BQ,23+AP$3) -> 0 | AQ65: n/a | AR65: n/a | AT65: =-VLOOKUP($A65,'pl-data'!$A:$BQ,8+AT$3) ->  | AU65: =-VLOOKUP($A65,'pl-data'!$A:$BQ,38+AU$3) ->  | AV65: =-VLOOKUP($A65,'pl-data'!$A:$BQ,23+AV$3) -> 0 | AW65: n/a | AX65: n/a | AZ65: =-VLOOKUP($A65,'pl-data'!$A:$BQ,8+AZ$3) ->  | BA65: =-VLOOKUP($A65,'pl-data'!$A:$BQ,38+BA$3) ->  | BB65: =-VLOOKUP($A65,'pl-data'!$A:$BQ,23+BB$3) -> 0 | BC65: n/a | BD65: n/a | BF65: =-VLOOKUP($A65,'pl-data'!$A:$BQ,8+BF$3) ->  | BG65: =-VLOOKUP($A65,'pl-data'!$A:$BQ,38+BG$3) ->  | BH65: =-VLOOKUP($A65,'pl-data'!$A:$BQ,23+BH$3) -> 0 | BI65: n/a | BJ65: n/a | BL65: =-VLOOKUP($A65,'pl-data'!$A:$BQ,8+BL$3) ->  | BM65: =-VLOOKUP($A65,'pl-data'!$A:$BQ,38+BM$3) ->  | BN65: =-VLOOKUP($A65,'pl-data'!$A:$BQ,23+BN$3) -> 0 | BO65: n/a | BP65: n/a | BR65: =-VLOOKUP($A65,'pl-data'!$A:$BQ,8+BR$3) ->  | BS65: =-VLOOKUP($A65,'pl-data'!$A:$BQ,38+BS$3) ->  | BT65: =-VLOOKUP($A65,'pl-data'!$A:$BQ,23+BT$3) -> 0 | BU65: n/a | BV65: n/a | BZ65: 0 | CA65: n/a | CB65: n/a
A66: 8540 | B66: =+masterfile!D1277 -> 8540 Erlöse Leergut | D66: =-VLOOKUP($A66,'pl-data'!$A:$BQ,8+D$3) ->  | E66: =-VLOOKUP($A66,'pl-data'!$A:$BQ,38+E$3) ->  | F66: =-VLOOKUP($A66,'pl-data'!$A:$BQ,23+F$3) -> 0 | G66: n/a | H66: n/a | J66: =-VLOOKUP($A66,'pl-data'!$A:$BQ,8+J$3) ->  | K66: =-VLOOKUP($A66,'pl-data'!$A:$BQ,38+K$3) ->  | L66: =-VLOOKUP($A66,'pl-data'!$A:$BQ,23+L$3) -> 0 | M66: n/a | N66: n/a | P66: =-VLOOKUP($A66,'pl-data'!$A:$BQ,8+P$3) ->  | Q66: =-VLOOKUP($A66,'pl-data'!$A:$BQ,38+Q$3) ->  | R66: =-VLOOKUP($A66,'pl-data'!$A:$BQ,23+R$3) -> 0 | S66: n/a | T66: n/a | V66: =-VLOOKUP($A66,'pl-data'!$A:$BQ,8+V$3) ->  | W66: =-VLOOKUP($A66,'pl-data'!$A:$BQ,38+W$3) ->  | X66: =-VLOOKUP($A66,'pl-data'!$A:$BQ,23+X$3) -> 0 | Y66: n/a | Z66: n/a | AB66: =-VLOOKUP($A66,'pl-data'!$A:$BQ,8+AB$3) ->  | AC66: =-VLOOKUP($A66,'pl-data'!$A:$BQ,38+AC$3) ->  | AD66: =-VLOOKUP($A66,'pl-data'!$A:$BQ,23+AD$3) -> 0 | AE66: n/a | AF66: n/a | AH66: =-VLOOKUP($A66,'pl-data'!$A:$BQ,8+AH$3) ->  | AI66: =-VLOOKUP($A66,'pl-data'!$A:$BQ,38+AI$3) ->  | AJ66: =-VLOOKUP($A66,'pl-data'!$A:$BQ,23+AJ$3) -> 0 | AK66: n/a | AL66: n/a | AN66: =-VLOOKUP($A66,'pl-data'!$A:$BQ,8+AN$3) ->  | AO66: =-VLOOKUP($A66,'pl-data'!$A:$BQ,38+AO$3) ->  | AP66: =-VLOOKUP($A66,'pl-data'!$A:$BQ,23+AP$3) -> 0 | AQ66: n/a | AR66: n/a | AT66: =-VLOOKUP($A66,'pl-data'!$A:$BQ,8+AT$3) ->  | AU66: =-VLOOKUP($A66,'pl-data'!$A:$BQ,38+AU$3) ->  | AV66: =-VLOOKUP($A66,'pl-data'!$A:$BQ,23+AV$3) -> 0 | AW66: n/a | AX66: n/a | AZ66: =-VLOOKUP($A66,'pl-data'!$A:$BQ,8+AZ$3) ->  | BA66: =-VLOOKUP($A66,'pl-data'!$A:$BQ,38+BA$3) ->  | BB66: =-VLOOKUP($A66,'pl-data'!$A:$BQ,23+BB$3) -> 0 | BC66: n/a | BD66: n/a | BF66: =-VLOOKUP($A66,'pl-data'!$A:$BQ,8+BF$3) ->  | BG66: =-VLOOKUP($A66,'pl-data'!$A:$BQ,38+BG$3) ->  | BH66: =-VLOOKUP($A66,'pl-data'!$A:$BQ,23+BH$3) -> 0 | BI66: n/a | BJ66: n/a | BL66: =-VLOOKUP($A66,'pl-data'!$A:$BQ,8+BL$3) ->  | BM66: =-VLOOKUP($A66,'pl-data'!$A:$BQ,38+BM$3) ->  | BN66: =-VLOOKUP($A66,'pl-data'!$A:$BQ,23+BN$3) -> 0 | BO66: n/a | BP66: n/a | BR66: =-VLOOKUP($A66,'pl-data'!$A:$BQ,8+BR$3) ->  | BS66: =-VLOOKUP($A66,'pl-data'!$A:$BQ,38+BS$3) ->  | BT66: =-VLOOKUP($A66,'pl-data'!$A:$BQ,23+BT$3) -> 0 | BU66: n/a | BV66: n/a | BZ66: 0 | CA66: n/a | CB66: n/a
A67: 8570 | B67: =+masterfile!D1278 -> 8570 Provision, sonstige Erträge | D67: =-VLOOKUP($A67,'pl-data'!$A:$BQ,8+D$3) ->  | E67: =-VLOOKUP($A67,'pl-data'!$A:$BQ,38+E$3) ->  | F67: =-VLOOKUP($A67,'pl-data'!$A:$BQ,23+F$3) -> 0 | G67: n/a | H67: n/a | J67: =-VLOOKUP($A67,'pl-data'!$A:$BQ,8+J$3) ->  | K67: =-VLOOKUP($A67,'pl-data'!$A:$BQ,38+K$3) ->  | L67: =-VLOOKUP($A67,'pl-data'!$A:$BQ,23+L$3) -> 0 | M67: n/a | N67: n/a | P67: =-VLOOKUP($A67,'pl-data'!$A:$BQ,8+P$3) ->  | Q67: =-VLOOKUP($A67,'pl-data'!$A:$BQ,38+Q$3) ->  | R67: =-VLOOKUP($A67,'pl-data'!$A:$BQ,23+R$3) -> 0 | S67: n/a | T67: n/a | V67: =-VLOOKUP($A67,'pl-data'!$A:$BQ,8+V$3) ->  | W67: =-VLOOKUP($A67,'pl-data'!$A:$BQ,38+W$3) ->  | X67: =-VLOOKUP($A67,'pl-data'!$A:$BQ,23+X$3) -> 0 | Y67: n/a | Z67: n/a | AB67: =-VLOOKUP($A67,'pl-data'!$A:$BQ,8+AB$3) ->  | AC67: =-VLOOKUP($A67,'pl-data'!$A:$BQ,38+AC$3) ->  | AD67: =-VLOOKUP($A67,'pl-data'!$A:$BQ,23+AD$3) -> 0 | AE67: n/a | AF67: n/a | AH67: =-VLOOKUP($A67,'pl-data'!$A:$BQ,8+AH$3) ->  | AI67: =-VLOOKUP($A67,'pl-data'!$A:$BQ,38+AI$3) ->  | AJ67: =-VLOOKUP($A67,'pl-data'!$A:$BQ,23+AJ$3) -> 0 | AK67: n/a | AL67: n/a | AN67: =-VLOOKUP($A67,'pl-data'!$A:$BQ,8+AN$3) ->  | AO67: =-VLOOKUP($A67,'pl-data'!$A:$BQ,38+AO$3) ->  | AP67: =-VLOOKUP($A67,'pl-data'!$A:$BQ,23+AP$3) -> 0 | AQ67: n/a | AR67: n/a | AT67: =-VLOOKUP($A67,'pl-data'!$A:$BQ,8+AT$3) ->  | AU67: =-VLOOKUP($A67,'pl-data'!$A:$BQ,38+AU$3) ->  | AV67: =-VLOOKUP($A67,'pl-data'!$A:$BQ,23+AV$3) -> 0 | AW67: n/a | AX67: n/a | AZ67: =-VLOOKUP($A67,'pl-data'!$A:$BQ,8+AZ$3) ->  | BA67: =-VLOOKUP($A67,'pl-data'!$A:$BQ,38+BA$3) ->  | BB67: =-VLOOKUP($A67,'pl-data'!$A:$BQ,23+BB$3) -> 0 | BC67: n/a | BD67: n/a | BF67: =-VLOOKUP($A67,'pl-data'!$A:$BQ,8+BF$3) ->  | BG67: =-VLOOKUP($A67,'pl-data'!$A:$BQ,38+BG$3) ->  | BH67: =-VLOOKUP($A67,'pl-data'!$A:$BQ,23+BH$3) -> 0 | BI67: n/a | BJ67: n/a | BL67: =-VLOOKUP($A67,'pl-data'!$A:$BQ,8+BL$3) ->  | BM67: =-VLOOKUP($A67,'pl-data'!$A:$BQ,38+BM$3) ->  | BN67: =-VLOOKUP($A67,'pl-data'!$A:$BQ,23+BN$3) -> 0 | BO67: n/a | BP67: n/a | BR67: =-VLOOKUP($A67,'pl-data'!$A:$BQ,8+BR$3) ->  | BS67: =-VLOOKUP($A67,'pl-data'!$A:$BQ,38+BS$3) ->  | BT67: =-VLOOKUP($A67,'pl-data'!$A:$BQ,23+BT$3) -> 0 | BU67: n/a | BV67: n/a | BZ67: 0 | CA67: n/a | CB67: n/a
A68: 8574 | B68: =+masterfile!D1279 -> 8574 Provision so.Ertr.stfr. § 4 Nr.8 ff UStG | D68: =-VLOOKUP($A68,'pl-data'!$A:$BQ,8+D$3) ->  | E68: =-VLOOKUP($A68,'pl-data'!$A:$BQ,38+E$3) ->  | F68: =-VLOOKUP($A68,'pl-data'!$A:$BQ,23+F$3) -> 0 | G68: n/a | H68: n/a | J68: =-VLOOKUP($A68,'pl-data'!$A:$BQ,8+J$3) ->  | K68: =-VLOOKUP($A68,'pl-data'!$A:$BQ,38+K$3) ->  | L68: =-VLOOKUP($A68,'pl-data'!$A:$BQ,23+L$3) -> 0 | M68: n/a | N68: n/a | P68: =-VLOOKUP($A68,'pl-data'!$A:$BQ,8+P$3) ->  | Q68: =-VLOOKUP($A68,'pl-data'!$A:$BQ,38+Q$3) ->  | R68: =-VLOOKUP($A68,'pl-data'!$A:$BQ,23+R$3) -> 0 | S68: n/a | T68: n/a | V68: =-VLOOKUP($A68,'pl-data'!$A:$BQ,8+V$3) ->  | W68: =-VLOOKUP($A68,'pl-data'!$A:$BQ,38+W$3) ->  | X68: =-VLOOKUP($A68,'pl-data'!$A:$BQ,23+X$3) -> 0 | Y68: n/a | Z68: n/a | AB68: =-VLOOKUP($A68,'pl-data'!$A:$BQ,8+AB$3) ->  | AC68: =-VLOOKUP($A68,'pl-data'!$A:$BQ,38+AC$3) ->  | AD68: =-VLOOKUP($A68,'pl-data'!$A:$BQ,23+AD$3) -> 0 | AE68: n/a | AF68: n/a | AH68: =-VLOOKUP($A68,'pl-data'!$A:$BQ,8+AH$3) ->  | AI68: =-VLOOKUP($A68,'pl-data'!$A:$BQ,38+AI$3) ->  | AJ68: =-VLOOKUP($A68,'pl-data'!$A:$BQ,23+AJ$3) -> 0 | AK68: n/a | AL68: n/a | AN68: =-VLOOKUP($A68,'pl-data'!$A:$BQ,8+AN$3) ->  | AO68: =-VLOOKUP($A68,'pl-data'!$A:$BQ,38+AO$3) ->  | AP68: =-VLOOKUP($A68,'pl-data'!$A:$BQ,23+AP$3) -> 0 | AQ68: n/a | AR68: n/a | AT68: =-VLOOKUP($A68,'pl-data'!$A:$BQ,8+AT$3) ->  | AU68: =-VLOOKUP($A68,'pl-data'!$A:$BQ,38+AU$3) ->  | AV68: =-VLOOKUP($A68,'pl-data'!$A:$BQ,23+AV$3) -> 0 | AW68: n/a | AX68: n/a | AZ68: =-VLOOKUP($A68,'pl-data'!$A:$BQ,8+AZ$3) ->  | BA68: =-VLOOKUP($A68,'pl-data'!$A:$BQ,38+BA$3) ->  | BB68: =-VLOOKUP($A68,'pl-data'!$A:$BQ,23+BB$3) -> 0 | BC68: n/a | BD68: n/a | BF68: =-VLOOKUP($A68,'pl-data'!$A:$BQ,8+BF$3) ->  | BG68: =-VLOOKUP($A68,'pl-data'!$A:$BQ,38+BG$3) ->  | BH68: =-VLOOKUP($A68,'pl-data'!$A:$BQ,23+BH$3) -> 0 | BI68: n/a | BJ68: n/a | BL68: =-VLOOKUP($A68,'pl-data'!$A:$BQ,8+BL$3) ->  | BM68: =-VLOOKUP($A68,'pl-data'!$A:$BQ,38+BM$3) ->  | BN68: =-VLOOKUP($A68,'pl-data'!$A:$BQ,23+BN$3) -> 0 | BO68: n/a | BP68: n/a | BR68: =-VLOOKUP($A68,'pl-data'!$A:$BQ,8+BR$3) ->  | BS68: =-VLOOKUP($A68,'pl-data'!$A:$BQ,38+BS$3) ->  | BT68: =-VLOOKUP($A68,'pl-data'!$A:$BQ,23+BT$3) -> 0 | BU68: n/a | BV68: n/a | BZ68: 0 | CA68: n/a | CB68: n/a
A69: 8575 | B69: =+masterfile!D1280 -> 8575 Provision so.Ertr.stfr. § 4 Nr. 5 UStG | D69: =-VLOOKUP($A69,'pl-data'!$A:$BQ,8+D$3) ->  | E69: =-VLOOKUP($A69,'pl-data'!$A:$BQ,38+E$3) ->  | F69: =-VLOOKUP($A69,'pl-data'!$A:$BQ,23+F$3) -> 0 | G69: n/a | H69: n/a | J69: =-VLOOKUP($A69,'pl-data'!$A:$BQ,8+J$3) ->  | K69: =-VLOOKUP($A69,'pl-data'!$A:$BQ,38+K$3) ->  | L69: =-VLOOKUP($A69,'pl-data'!$A:$BQ,23+L$3) -> 0 | M69: n/a | N69: n/a | P69: =-VLOOKUP($A69,'pl-data'!$A:$BQ,8+P$3) ->  | Q69: =-VLOOKUP($A69,'pl-data'!$A:$BQ,38+Q$3) ->  | R69: =-VLOOKUP($A69,'pl-data'!$A:$BQ,23+R$3) -> 0 | S69: n/a | T69: n/a | V69: =-VLOOKUP($A69,'pl-data'!$A:$BQ,8+V$3) ->  | W69: =-VLOOKUP($A69,'pl-data'!$A:$BQ,38+W$3) ->  | X69: =-VLOOKUP($A69,'pl-data'!$A:$BQ,23+X$3) -> 0 | Y69: n/a | Z69: n/a | AB69: =-VLOOKUP($A69,'pl-data'!$A:$BQ,8+AB$3) ->  | AC69: =-VLOOKUP($A69,'pl-data'!$A:$BQ,38+AC$3) ->  | AD69: =-VLOOKUP($A69,'pl-data'!$A:$BQ,23+AD$3) -> 0 | AE69: n/a | AF69: n/a | AH69: =-VLOOKUP($A69,'pl-data'!$A:$BQ,8+AH$3) ->  | AI69: =-VLOOKUP($A69,'pl-data'!$A:$BQ,38+AI$3) ->  | AJ69: =-VLOOKUP($A69,'pl-data'!$A:$BQ,23+AJ$3) -> 0 | AK69: n/a | AL69: n/a | AN69: =-VLOOKUP($A69,'pl-data'!$A:$BQ,8+AN$3) ->  | AO69: =-VLOOKUP($A69,'pl-data'!$A:$BQ,38+AO$3) ->  | AP69: =-VLOOKUP($A69,'pl-data'!$A:$BQ,23+AP$3) -> 0 | AQ69: n/a | AR69: n/a | AT69: =-VLOOKUP($A69,'pl-data'!$A:$BQ,8+AT$3) ->  | AU69: =-VLOOKUP($A69,'pl-data'!$A:$BQ,38+AU$3) ->  | AV69: =-VLOOKUP($A69,'pl-data'!$A:$BQ,23+AV$3) -> 0 | AW69: n/a | AX69: n/a | AZ69: =-VLOOKUP($A69,'pl-data'!$A:$BQ,8+AZ$3) ->  | BA69: =-VLOOKUP($A69,'pl-data'!$A:$BQ,38+BA$3) ->  | BB69: =-VLOOKUP($A69,'pl-data'!$A:$BQ,23+BB$3) -> 0 | BC69: n/a | BD69: n/a | BF69: =-VLOOKUP($A69,'pl-data'!$A:$BQ,8+BF$3) ->  | BG69: =-VLOOKUP($A69,'pl-data'!$A:$BQ,38+BG$3) ->  | BH69: =-VLOOKUP($A69,'pl-data'!$A:$BQ,23+BH$3) -> 0 | BI69: n/a | BJ69: n/a | BL69: =-VLOOKUP($A69,'pl-data'!$A:$BQ,8+BL$3) ->  | BM69: =-VLOOKUP($A69,'pl-data'!$A:$BQ,38+BM$3) ->  | BN69: =-VLOOKUP($A69,'pl-data'!$A:$BQ,23+BN$3) -> 0 | BO69: n/a | BP69: n/a | BR69: =-VLOOKUP($A69,'pl-data'!$A:$BQ,8+BR$3) ->  | BS69: =-VLOOKUP($A69,'pl-data'!$A:$BQ,38+BS$3) ->  | BT69: =-VLOOKUP($A69,'pl-data'!$A:$BQ,23+BT$3) -> 0 | BU69: n/a | BV69: n/a | BZ69: 0 | CA69: n/a | CB69: n/a
